Workbook

Sheet Calculs
A1: C2F | B1: <== Selectionner votre site | V1: Version 1.17
A2: 25 kV | D2: 1500 V | G2: Autre | Q2: =IF(B9="","",B9&Parametres!E51) -> HEA300J
C3: 2
H4: =IF(C3=1,"vingtcinq",IF(C3=2,"Millecinq",IF(C3=4,"Millecinq2","Autre"))) -> Millecinq
A5: Ancrage d'un seul coté | C5: 1 | G5: Ancrages en opposition | R5: ="F1: "&ROUND(D30, 2)&" kN" -> F1: 90.8 kN
C6: 1 | J6: =IF($C$6=1,"Coté",IF($C$6=2,"Face","Erreur")) -> Coté
A7: Caractéristiques du Support | G7: Zone Normale Zone Polluée | J7: 1
A8: Numéro : | B8: 265-4 | C8: Direction : | D8: TOULOUSE | F8: CASTELNAUDARY | G8: ≠H / Orienté | H8: Non | I8: Oui | J8: =IF($K$8=1,"Noriente",IF($K$8=2,"oriente","Erreur")) -> Noriente | K8: 1
A9: Echantillon : | B9: HEA300 | C9: H / PMR : | D9: 10.95 | E9: Cote A : | F9: 1.45 | G9: Arasement : | H9: 0.08 | I9: (- si < PMR)
A11: Massif : | B11: Pn | C11: Echantillon : | D11: 4 | E11: Approfondissement : | I11: =IF(OR(B11="",D11=""),"",D11&B11&G11) -> 4Pn
O12: ="H1: "&ROUND(I25, 2)&" m" -> H1: 7.45 m
A13: Potelet : | D13: Longueur : | G13: Chaine Feeder :
A14: Hauteur de passage / PMR : | D14: Câble | E14: Hauteur | F14: Câble | G14: Hauteur | H14: Câble | I14: Hauteur
J15: =IF(K15=1,"1Ancrage",IF(K15=2,"2Ancrages","3Ancrages")) -> 2Ancrages | K15: 2
P16: =IF(I26="","","H2: "&ROUND(I26, 2)&" m") -> H2: 6.45 m | S16: ="Anc1: "&ROUND(I21,2)&" m" -> Anc1: 7.45 m
A17: =IF($J$6="coté","Caractéristiques de l'Ancrage",IF($J$6="Face","Caractéristiques de l'Ancrage n°1","Erreur du type d'ancrage")) -> Caractéristiques de l'Ancrage | F17: Droit | G17: Nb pts Anc.: | H17: 1 | I17: 2 3 | R17: =IF(I22="","","Anc2: "&ROUND(I22,2)&" m") -> Anc2: 6.45 m
G18: Hauban de préférence : | I18: Rigide
A19: Tensions mécaniques des câbles (-10°C) : | F19: Ancrage des conducteurs / PMR
D20: =IF(A20="","",VLOOKUP(A20,Parametres!$A$1:$B$150,2,FALSE)) ->  | F20: Plan | G20: Repère | H20: Isolemt Sup. | I20: Hauteur
D21: =IF(A21="","",VLOOKUP(A21,Parametres!$A$1:$B$150,2,FALSE)) ->  | E21: Point n°1 | F21: 10985 | G21: 352 | I21: 7.45
D22: =IF(A22="","",VLOOKUP(A22,Parametres!$A$1:$B$150,2,FALSE)) ->  | E22: Point n°2 | F22: 10985 | G22: 352 | I22: 6.45
D23: =IF(A23="","",VLOOKUP(A23,Parametres!$A$1:$B$150,2,FALSE)) ->  | E23: Point n°3
D24: =IF(A24="","",VLOOKUP(A24,Parametres!$A$1:$B$150,2,FALSE)) ->  | F24: Ancrage des Haubans / PMR
D25: =IF(A25="","",VLOOKUP(A25,Parametres!$A$1:$B$150,2,FALSE)) ->  | G25: Hauteur du Hauban H1 : | I25: 7.45 | S25: PMR
D26: =IF(A26="","",VLOOKUP(A26,Parametres!$A$1:$B$150,2,FALSE)) ->  | G26: =IF(OR(Résultats!B9=0,Résultats!B9=1),"","Hauteur du Hauban H2 :") -> Hauteur du Hauban H2 : | I26: 6.45
D27: =IF(A27="","",VLOOKUP(A27,Parametres!$A$1:$B$150,2,FALSE)) ->  | G27: =IF(Résultats!B9<3,"","Hauteur du Hauban H3 :") ->  | K27: 2 | R27: =IF(H9="","","C: "&H9) -> C: 0.08 | S27: Terrain
G28: =IF(Résultats!B9<>4,"","Hauteur du Hauban H4 :") ->  | K28: TRUE
A29: Saisie Personnalisée | D29: 90.8 | F29: Appareil Tendeur Non Oui | O29: ="d: "&ROUND(B36, 2)&" m" -> d: 7 m | R29: =IF(OR(F9="",H9=""),"","h: "&F9+H9) -> h: 1.53
A30: Somme des tensions (F1): | D30: =IF(AND(D20="",D21="",D22="",D23="",D24="",D25="",D26="",D27="",D28="",D29=""),0,SUM(D20:D29)) -> 90.8 | G30: Pts Ancrage | H30: Plan | I30: Repère
D31: =IF(D30="","",D30*100) -> 9080 | G31: Point n°2 | H31: 222940 | I31: 222942 | M31: =IF($E$36="","",IF(E36<>"Aucun","Massif "&$E$36,E36&" Massif")) -> Massif Api | Q31: =IF($I$11="","","Massif "&$I$11) -> Massif 4Pn
A33: Nom d'ancrage dans la nomenclature:
A35: =IF(OR(J6="",J6="coté"),"Caractéristiques du massif d'Ancrage",IF(J6="Face","Caractéristiques du massif d'Ancrage n°1","Erreur du type d'ancrage")) -> Caractéristiques du massif d'Ancrage
A36: Distance (d): | B36: 7 | D36: Massif: | E36: Api | F36: =IF(E36="Apns","Ancrage surélevé","") ->  | H36: Arasement : | I36: 0.08
J37: =IF(I38=1,"1Ancrage",IF(I38=2,"2Ancrages",IF(I38=3,"3Ancrages",""))) -> 
A38: =IF($J$6="coté","",IF($J$6="Face","Caractéristiques de l'Ancrage n°2","Erreur du type d'ancrage")) ->  | F38: =IF(F17="Droit","Gauche",IF(F17="Gauche","Droit","Erreur")) -> Gauche | G38: Nb pts Ancrages:
G39: Hauban de préférence :
A40: Tensions mécaniques des câbles (-10°C) : | F40: Ancrage des conducteurs / PMR
D41: =IF(A41="","",VLOOKUP(A41,Parametres!$A$1:$B$150,2,FALSE)) ->  | F41: Plan | G41: Repère | H41: Isolemt Sup. | I41: Hauteur
D42: =IF(A42="","",VLOOKUP(A42,Parametres!$A$1:$B$150,2,FALSE)) ->  | E42: Point n°1
D43: =IF(A43="","",VLOOKUP(A43,Parametres!$A$1:$B$150,2,FALSE)) ->  | E43: Point n°2
D44: =IF(A44="","",VLOOKUP(A44,Parametres!$A$1:$B$150,2,FALSE)) ->  | E44: Point n°3
D45: =IF(A45="","",VLOOKUP(A45,Parametres!$A$1:$B$150,2,FALSE)) ->  | F45: Ancrage des Haubans / PMR
D46: =IF(A46="","",VLOOKUP(A46,Parametres!$A$1:$B$150,2,FALSE)) ->  | G46: Hauteur du Hauban H1 :
D47: =IF(A47="","",VLOOKUP(A47,Parametres!$A$1:$B$150,2,FALSE)) ->  | G47: =IF(OR(Résultats!C9=0,Résultats!C9=1),"","Hauteur du Hauban H2 :") -> 
D48: =IF(A48="","",VLOOKUP(A48,Parametres!$A$1:$B$150,2,FALSE)) ->  | G48: =IF(Résultats!C9<3,"","Hauteur du Hauban H3 :") -> 
D49: =IF(A49="","",VLOOKUP(A49,Parametres!$A$1:$B$150,2,FALSE)) ->  | G49: =IF(Résultats!C9<>4,"","Hauteur du Hauban H4 :") ->  | K49: FALSE
A50: Saisie Personnalisée | F50: Appareil Tendeur
A51: Somme des tensions (F2): | D51: =IF(AND(D41="",D42="",D43="",D44="",D45="",D46="",D47="",D48="",D49="",D50=""),0,SUM(D41:D50)) -> 0 | G51: Pts Ancrage | H51: Plan | I51: Repère
D52: =IF(D51="","",D51*100) -> 0
A54: Nom d'ancrage dans la nomenclature:
A56: =IF($J$6="Coté","",IF($J$6="Face","Caractéristiques du massif d'Ancrage n°2","Erreur du type d'ancrage")) -> 
A57: Distance(d2): | D57: Massif n°2: | F57: =IF(E57="Apns","Ancrage surélevé","") ->  | H57: Arasement :
X60: \\srv-cat2\doc-outils\Programme-DessinAncrage\

Sheet Calculs Impression (hidden)
A1: Determination d'Ancrages
C3: Support
C4: Echantillon : | E4: =IF(Echantillonbis="","",Echantillonbis) -> HEA300J
C5: Massif : | E5: =IF(TypeMsupp="","",TypeMsupp) -> 4Pn
C6: Arrasement : | E6: =IF(Arase="","",Arase) -> 0.08
D7: =IF(Orientationb="oriente","Sommier d'ancrage necessaire","") -> 
B8: =IF(F8<>"","Ancrage 1","Ancrage N°1") -> Ancrage N°1 | F8: =IF(Résultats!C4="N","","Ancrage N°2") -> 
A9: Tension Mécanique : | C9: =IF(Tension1="","",Tension1) -> 90.8 | E9: Tension Mécanique : | G9: =IF(Tension2="","",Tension2) -> 0
A10: Massif : | B10: =IF(Résultats!D7="","",IF(C10="Ae",Résultats!B71,Résultats!D7)) -> 9 | C10: =IF(MassifAnc1="","",MassifAnc1) -> Api | E10: Massif : | F10: =IF(F8="","",IF(G10="Ae",Résultats!C71,Résultats!E7)) ->  | G10: =IF(MassifAnc2="","",MassifAnc2) -> 
A12: Designations | B12: Symboles | C12: Quantités | E12: Designations | F12: Symboles | G12: Quantités
A13: =IF(B13="","","Hauban 1") -> Hauban 1 | B13: =IF(C9=0,"",IF(Résultats!W26="N","",Résultats!W26)) -> 08820565 | C13: =IF(B13="","",1) -> 1 | E13: =IF(F13="","","Hauban 1") ->  | F13: =IF(G9=0,"",IF(Résultats!Y26="N","",Résultats!Y26)) ->  | G13: =IF(F13="","",1) -> 
A14: =IF(B14="","","Hauban 2") -> Hauban 2 | B14: =IF(C9=0,"",IF(Résultats!W27="N","",Résultats!W27)) -> 08820565 | C14: =IF(B14="","",1) -> 1 | E14: =IF(F14="","","Hauban 2") ->  | F14: =IF(G9=0,"",IF(Résultats!Y27="N","",Résultats!Y27)) -> 
A15: =IF(B15="","","Hauban 3") ->  | B15: =IF(C9=0,"",IF(Résultats!W28="N","",Résultats!W28)) ->  | E15: =IF(F15="","","Hauban 3") ->  | F15: =IF(G9=0,"",IF(Résultats!Y28="N","",Résultats!Y28)) -> 
A16: =IF(B16="","","Hauban 4") ->  | B16: =IF(C9=0,"",IF(Résultats!W29="N","",Résultats!W29)) ->  | E16: =IF(F16="","","Hauban 4") ->  | F16: =IF(G9=0,"",IF(Résultats!Y29="N","",Résultats!Y29)) -> 
A17: =IF(B17="","","Point Ancrage 1") -> Point Ancrage 1 | B17: =IF(C9=0,"",IF(Résultats!W33="N","",Résultats!W33)) -> 08820583 | C17: 1 | E17: =IF(F17="","","Point Ancrage 1") ->  | F17: =IF(G9=0,"",IF(Résultats!Y33="N","",Résultats!Y33)) -> 
A18: =IF(B18="","","Point Ancrage 2") -> Point Ancrage 2 | B18: =IF(C9=0,"",IF(Résultats!W34="N","",Résultats!W34)) -> 08820583 | C18: 1 | E18: =IF(F18="","","Point Ancrage 2") ->  | F18: =IF(G9=0,"",IF(Résultats!Y34="N","",Résultats!Y34)) -> 
A19: =IF(B19="","","Point Ancrage 3") ->  | B19: =IF(C9=0,"",IF(Résultats!W35="N","",Résultats!W35)) ->  | E19: =IF(F19="","","Point Ancrage 3") ->  | F19: =IF(G9=0,"",IF(Résultats!Y35="N","",Résultats!Y35)) -> 
B20: Pieces de Reglages | F20: Pieces de Reglages
A21: =IF(B21="","","Piece de Reg.") -> Piece de Reg. | B21: =IF(MassifAnc1="Aucun","",IF(AND(Résultats!B6="Câble",HHauba1<>""),Résultats!J6,IF(Résultats!B6="Rigide",Résultats!M6,""))) -> 08828800 | C21: =IF(B21<>"",IF(Résultats!B6="Câble",Résultats!J4,IF(Résultats!B6="Rigide",Résultats!M4,"")),"") -> 2 | E21: =IF(F21="","","Piece de Reg.") ->  | F21: =IF(MassifAnc2="Aucun","",IF(Résultats!C6="Câble",Résultats!Q6,IF(Résultats!C6="Rigide",Résultats!T6,""))) ->  | G21: =IF(F21="","",IF(Résultats!C6="Câble",Résultats!Q4,IF(Résultats!C6="Rigide",Résultats!T4,""))) -> 
B23: Haubans d'Ancrages | F23: Haubans d'Ancrages
A24: =IF(AND(MassifAnc1<>"Aucun",MassifAnc1<>""),IF(Résultats!B9=0,"","Hauban 1"),"") -> Hauban 1 | B24: =IF(A24="","",IF(OR($C$10="Api",$C$10="Ae"),Résultats!B22,IF('Calculs Impression'!$C$10="Apns",Résultats!B29,IF('Calculs Impression'!$C$10="Acn",Résultats!B36,"")))) -> 08828752 | C24: =IF(B24="","",1) -> 1 | E24: =IF(MassifAnc2<>"Aucun",IF(OR(Résultats!C9="",G9=0),"","Hauban 1"),"") ->  | F24: =IF(E24="","",IF(OR($G$10="Api",$G$10="Ae"),Résultats!C22,IF('Calculs Impression'!$G$10="Apns",Résultats!C29,IF('Calculs Impression'!$G$10="Acn",Résultats!C36,"")))) ->  | G24: =IF(F24="","",1) -> 
A25: =IF(A24="","",IF(Résultats!B9=1,"","Hauban 2")) -> Hauban 2 | B25: =IF(A25="","",IF(OR($C$10="Api",$C$10="Ae"),Résultats!B23,IF('Calculs Impression'!$C$10="Apns",Résultats!B30,IF('Calculs Impression'!$C$10="Acn",Résultats!B37,"")))) -> 08828752 | C25: =IF(B25="","",1) -> 1 | E25: =IF(E24="","",IF(Résultats!C9=1,"","Hauban 2")) ->  | F25: =IF(E25="","",IF(OR($G$10="Api",$G$10="Ae"),Résultats!C23,IF('Calculs Impression'!$G$10="Apns",Résultats!C30,IF('Calculs Impression'!$G$10="Acn",Résultats!C37,"")))) ->  | G25: =IF(F25="","",1) -> 
A26: =IF(A24="","",IF(Résultats!B9<3,"","Hauban 3")) ->  | B26: =IF(A26="","",IF(OR($C$10="Api",$C$10="Ae"),Résultats!B24,IF('Calculs Impression'!$C$10="Apns",Résultats!B31,IF('Calculs Impression'!$C$10="Acn",Résultats!B38,"")))) ->  | E26: =IF(E24="","",IF(Résultats!C9<3,"","Hauban 3")) ->  | F26: =IF(E26="","",IF(OR($G$10="Api",$G$10="Ae"),Résultats!C24,IF('Calculs Impression'!$G$10="Apns",Résultats!C31,IF('Calculs Impression'!$G$10="Acn",Résultats!C38,"")))) ->  | G26: =IF(F26="","",1) -> 
A27: =IF(Résultats!B9<>4,"","Hauban 4") ->  | B27: =IF(A27="","",IF(OR($C$10="Api",$C$10="Ae"),Résultats!B25,IF('Calculs Impression'!$C$10="Apns",Résultats!B32,IF('Calculs Impression'!$C$10="Acn",Résultats!B39,"")))) ->  | E27: =IF(Résultats!C9<>4,"","Hauban 4") ->  | F27: =IF(E27="","",IF(OR($G$10="Api",$G$10="Ae"),Résultats!C25,IF('Calculs Impression'!$G$10="Apns",Résultats!C32,IF('Calculs Impression'!$G$10="Acn",Résultats!C39,"")))) -> 
A29: =IF(AND(MassifAnc1<>"Aucun",MassifAnc1<>""),IF(AND(Résultats!B6="Câble",Résultats!J7="Câble"),"Acier Inox",""),"") ->  | B29: =IF(A29="","",IF(Résultats!J11="00986713","03682670",IF(Résultats!J11="00986715","03682668","Erreur"))) ->  | C29: =IF(A29="","",IF(Résultats!J11="00986713",Résultats!B42,IF(Résultats!J11="00986715",Résultats!B43,"Erreur"))) ->  | E29: =IF(AND(Résultats!C6="Câble",Résultats!Q7="Câble",F24<>""),"Acier Inox","") ->  | F29: =IF(E29="","",IF(Résultats!Q11="00986713","03682670",IF(Résultats!Q11="00986715","03682668","Erreur"))) ->  | G29: =IF(E29="","",IF(Résultats!Q11="00986713",Résultats!C42,IF(Résultats!Q11="00986715",Résultats!C43,"Erreur"))) -> 
B31: Jumelles | F31: Jumelles
A32: =IF(B32="","",IF(Résultats!B9=0,"","Hauban 1")) -> Hauban 1 | B32: =IF(AND(Résultats!$B$6="Câble",Résultats!$B$5<=50),"",IF(Résultats!$B$7="Api",Résultats!Y3,IF(Résultats!$B$7="Apns",Résultats!Y11,IF(Résultats!$B$7="Acn",Résultats!Y19,"")))) -> 00986723 | C32: =IF(B32="","",1) -> 1 | E32: =IF(OR(Résultats!C9="",G9=0),"",IF(F32="","","Hauban 1")) ->  | F32: =IF(AND(Résultats!$C$6="Câble",Résultats!$C$5<=50),"",IF(Résultats!$C$7="Api",Résultats!Z3,IF(Résultats!$C$7="Apns",Résultats!Z11,IF(Résultats!$C$7="Acn",Résultats!Z19,"")))) ->  | G32: =IF(F32="","",1) -> 
A33: =IF(B33="","",IF(Résultats!B9=1,"","Hauban 2")) -> Hauban 2 | B33: =IF(AND(Résultats!$B$6="Câble",Résultats!$B$5<=50),"",IF(Résultats!$B$7="Api",Résultats!Y4,IF(Résultats!$B$7="Apns",Résultats!Y12,IF(Résultats!$B$7="Acn",Résultats!Y20,"")))) -> 00986721 | C33: =IF(B33="","",1) -> 1 | E33: =IF(E24="","",IF(Résultats!C9=1,"",IF(F33="","","Hauban 2"))) ->  | F33: =IF(AND(Résultats!$C$6="Câble",Résultats!$C$5<=50),"",IF(Résultats!$C$7="Api",Résultats!Z4,IF(Résultats!$C$7="Apns",Résultats!Z12,IF(Résultats!$C$7="Acn",Résultats!Z20,"")))) ->  | G33: =IF(F33="","",1) -> 
A34: =IF(B34="","",IF(Résultats!B9<3,"","Hauban 3")) ->  | B34: =IF(AND(Résultats!$B$6="Câble",Résultats!$B$5<=50),"",IF(Résultats!$B$7="Api",Résultats!Y5,IF(Résultats!$B$7="Apns",Résultats!Y13,IF(Résultats!$B$7="Acn",Résultats!Y21,"")))) ->  | E34: =IF(E24="","",IF(Résultats!C9<3,"",IF(F34="","","Hauban 3"))) ->  | F34: =IF(AND(Résultats!$C$6="Câble",Résultats!$C$5<=50),"",IF(Résultats!$C$7="Api",Résultats!Z5,IF(Résultats!$C$7="Apns",Résultats!Z13,IF(Résultats!$C$7="Acn",Résultats!Z21,"")))) ->  | G34: =IF(F34="","",1) -> 
A35: =IF(B35="","",IF(Résultats!B9<>4,"","Hauban 4")) ->  | B35: =IF(AND(Résultats!$B$6="Câble",Résultats!$B$5<=50),"",IF(Résultats!$B$7="Api",Résultats!Y6,IF(Résultats!$B$7="Apns",Résultats!Y14,IF(Résultats!$B$7="Acn",Résultats!Y22,"")))) ->  | E35: =IF(Résultats!C9<>4,"",IF(F35="","","Hauban 4")) ->  | F35: =IF(AND(Résultats!$C$6="Câble",Résultats!$C$5<=50),"",IF(Résultats!$C$7="Api",Résultats!Z6,IF(Résultats!$C$7="Apns",Résultats!Z14,IF(Résultats!$C$7="Acn",Résultats!Z22,"")))) -> 
B36: =IF(C10="","",IF(C10<>"Apns","Etriers","")) -> Etriers | F36: =IF(G10="","",IF(G10<>"Apns","Etriers","")) -> 
A37: =IF(MassifAnc1<>"Aucun",IF(B36="","","Etrier"),"") -> Etrier | B37: =IF(A37="","",IF(AND(Résultats!B7="Api",Résultats!B6="Câble"),Résultats!J16,IF(AND(Résultats!B7="Api",Résultats!B6="Rigide"),Résultats!M16,IF(AND(Résultats!B7="Acn",Résultats!B6="Câble"),Résultats!J37,IF(AND(Résultats!B7="Acn",Résultats!B6="Rigide"),Résultats!M37,""))))) -> 08828922 | C37: =IF(A37="","",IF(AND(Résultats!B7="Api",Résultats!B6="Câble"),Résultats!J13,IF(AND(Résultats!B7="Api",Résultats!B6="Rigide"),Résultats!M13,IF(AND(Résultats!B7="Acn",Résultats!B6="Câble"),Résultats!J35,IF(AND(Résultats!B7="Acn",Résultats!B6="Rigide"),Résultats!M35,""))))) -> 2 | E37: =IF(MassifAnc2<>"Aucun",IF(F36="","","Etrier"),"") ->  | F37: =IF(F36="","",IF(AND(Résultats!C7="Api",Résultats!C6="Câble"),Résultats!Q16,IF(AND(Résultats!C7="Api",Résultats!C6="Rigide"),Résultats!T16,IF(AND(Résultats!C7="Acn",Résultats!C6="Câble"),Résultats!Q37,IF(AND(Résultats!C7="Acn",Résultats!C6="Rigide"),Résultats!T37,""))))) ->  | G37: =IF(F36="","",IF(AND(Résultats!C7="Api",Résultats!C6="Câble"),Résultats!Q13,IF(AND(Résultats!C7="Api",Résultats!C6="Rigide"),Résultats!T13,IF(AND(Résultats!C7="Acn",Résultats!C6="Câble"),Résultats!Q35,IF(AND(Résultats!C7="Acn",Résultats!C6="Rigide"),Résultats!T35,""))))) -> 
B38: =IF(AND(MassifAnc1<>"Aucun",MassifAnc1<>"Ae"),IF(C10="","",IF(AND(C10<>0,C10<>"Api"),"Poutrelle d'Ancrage","")),"") ->  | F38: =IF(AND(MassifAnc2<>"Aucun",MassifAnc2<>"Ae"),IF(G10="","",IF(AND(G10<>0,G10<>"Api"),"Poutrelle d'Ancrage","")),"") -> 
A39: =IF(B38="","","Poutrelle") ->  | B39: =IF(A39="","",IF(Résultats!B6="Câble",IF(Résultats!B7="Apns",Résultats!J20,IF(Résultats!B7="Acn",Résultats!J43,"Erreur")),IF(Résultats!B6="Rigide",IF(Résultats!B7="Apns",Résultats!M20,IF(Résultats!B7="Acn",Résultats!M43,"Erreur")),""))) ->  | C39: =IF(B39="","",1) ->  | E39: =IF(F38="","","Poutrelle") ->  | F39: =IF(E39="","",IF(Résultats!C6="Câble",IF(Résultats!C7="Apns",Résultats!Q20,IF(Résultats!C7="Acn",Résultats!Q43,"")),IF(Résultats!C6="Rigide",IF(Résultats!C7="Apns",Résultats!T20,IF(Résultats!C7="Acn",Résultats!T43,"")),""))) ->  | G39: =IF(F39="","",1) -> 
B40: =IF(C10<>"Apns","","Semelle d'Appui") ->  | F40: =IF(G10<>"Apns","","Semelle d'Appui") -> 
A41: =IF(B40="","","Semelle d'Appui") ->  | B41: =IF(A41="","","08828842") ->  | C41: =IF(A41="","",IF(Haubpref1="Câble",Résultats!J21,Résultats!M21)) ->  | E41: =IF(F40="","","Semelle d'Appui") ->  | F41: =IF(E41="","","08828842") ->  | G41: =IF(E41="","",IF(Haubpref2="Câble",Résultats!Q21,Résultats!T21)) -> 
B42: =IF(C10<>"Apns","","Cuvette") ->  | F42: =IF(G10<>"Apns","","Cuvette") -> 
A43: =IF(B42="","","Cuvette") ->  | B43: =IF(A43="","",IF(Résultats!B6="Câble",IF(Résultats!B7="Apns",Résultats!J24,"Erreur"),IF(Résultats!B6="Rigide",IF(Résultats!B7="Apns",Résultats!M24,"Erreur"),"Erreur"))) ->  | C43: =IF(A43="","",IF(Résultats!B6="Câble",IF(Résultats!B7="Apns",Résultats!J23,"Erreur"),IF(Résultats!B6="Rigide",IF(Résultats!B7="Apns",Résultats!M23,"Erreur"),"Erreur"))) ->  | E43: =IF(F42="","","Cuvette") ->  | F43: =IF(E43="","",IF(Résultats!C6="Câble",IF(Résultats!C7="Apns",Résultats!Q24,"Erreur"),IF(Résultats!C6="Rigide",IF(Résultats!C7="Apns",Résultats!T24,"Erreur"),"Erreur"))) ->  | G43: =IF(E43="","",IF(Résultats!C6="Câble",IF(Résultats!C7="Apns",Résultats!Q23,"Erreur"),IF(Résultats!C6="Rigide",IF(Résultats!C7="Apns",Résultats!T23,"Erreur"),"Erreur"))) -> 
B44: Tiges filetees | F44: =IF(F20="","","Tiges filetees") -> Tiges filetees
A45: =IF(Résultats!B7="Apns","TF M27-1000/300","") ->  | B45: =IF(Résultats!B7="Apns","08800300","") ->  | C45: =IF(A45="","",IF(Résultats!B6="Câble",IF(Résultats!B7="Apns",Résultats!J25,"Erreur"),IF(Résultats!B6="Rigide",IF(Résultats!B7="Apns",Résultats!M25,"Erreur"),"Erreur"))) ->  | E45: =IF(Résultats!C7="Apns","TF M27-1000/300","") ->  | F45: =IF(Résultats!C7="Apns","08800300","") ->  | G45: =IF(E45="","",IF(Résultats!C6="Câble",IF(Résultats!C7="Apns",Résultats!Q25,"Erreur"),IF(Résultats!C6="Rigide",IF(Résultats!C7="Apns",Résultats!T25,"Erreur"),"Erreur"))) -> 
A46: =IFERROR(VLOOKUP(B46,Matériels!$B$35:$C$43,2,FALSE),"") -> B. H M22-100/50 | B46: =IF(Résultats!R50="","",Résultats!R50) -> 01602487 | C46: =IF(B46="","",4) -> 4 | E46: =IFERROR(VLOOKUP(F46,Matériels!$B$35:$C$43,2,FALSE),"") ->  | F46: =IF($F$8="","",Résultats!S50) ->  | G46: =IF(F46="","",4) -> 
A47: =IFERROR(VLOOKUP(B47,Matériels!$B$35:$C$43,2,FALSE),"") -> B. H M22-100/50 | B47: =IF(Résultats!R51="","",Résultats!R51) -> 01602487 | C47: 4 | E47: =IFERROR(VLOOKUP(F47,Matériels!$B$35:$C$43,2,FALSE),"") ->  | F47: =IF($F$8="","",Résultats!S51) ->  | G47: =IF(F47="","",4) -> 
A48: =IFERROR(VLOOKUP(B48,Matériels!$B$35:$C$43,2,FALSE),"") ->  | B48: =IF(Résultats!R52="","",Résultats!R52) ->  | E48: =IFERROR(VLOOKUP(F48,Matériels!$B$35:$C$43,2,FALSE),"") ->  | F48: =IF($F$8="","",Résultats!S52) -> 
A49: =IFERROR(VLOOKUP(B49,Matériels!$B$35:$C$43,2,FALSE),"") ->  | B49: =IF(Résultats!R53="","",Résultats!R53) ->  | E49: =IFERROR(VLOOKUP(F49,Matériels!$B$35:$C$43,2,FALSE),"") ->  | F49: =IF($F$8="","",Résultats!S53) -> 
A50: =IFERROR(VLOOKUP(B50,Matériels!$B$35:$C$43,2,FALSE),"") ->  | B50: =IF(Résultats!R54="","",Résultats!R54) ->  | E50: =IFERROR(VLOOKUP(F50,Matériels!$B$35:$C$43,2,FALSE),"") ->  | F50: =IF($F$8="","",Résultats!S54) -> 
A51: =IFERROR(VLOOKUP(B51,Matériels!$B$35:$C$43,2,FALSE),"") ->  | B51: =IF(Résultats!R55="","",Résultats!R55) ->  | E51: =IFERROR(VLOOKUP(F51,Matériels!$B$35:$C$43,2,FALSE),"") ->  | F51: =IF($F$8="","",Résultats!S55) -> 
A52: =IFERROR(VLOOKUP(B52,Matériels!$B$35:$C$43,2,FALSE),"") ->  | B52: =IF(Résultats!R56="","",Résultats!R56) ->  | E52: =IFERROR(VLOOKUP(F52,Matériels!$B$35:$C$43,2,FALSE),"") ->  | F52: =IF($F$8="","",Résultats!S56) -> 
B53: Rondelles | F53: Rondelles
A54: =IFERROR(VLOOKUP(B54,Matériels!$B$35:$C$43,2,FALSE),"") ->  | B54: =IF(Résultats!T50="","",Résultats!T50) ->  | C54: =IF(B54="","",Résultats!T57) ->  | E54: =IFERROR(VLOOKUP(F54,Matériels!$B$35:$C$43,2,FALSE),"") ->  | F54: =IF(Résultats!U50="","",Résultats!U50) ->  | G54: =IF(F54="","",Résultats!U57) -> 
B55: Appareil Tendeur | F55: Appareil Tendeur
A56: =IF(B56="","","Ens. Montage Appareil Tendeur") -> Ens. Montage Appareil Tendeur | B56: =IF(Résultats!B45="","",Résultats!B45) -> 10984102 | C56: =IF(B56="","",1) -> 1 | E56: =IF(F56="","","Ens. Montage Appareil Tendeur") ->  | F56: =IF(Résultats!C45="","",Résultats!C45) ->  | G56: =IF(F56="","",1) -> 
A57: =IF(B57="","","Ens. Montage Appareil Tendeur") ->  | B57: =IF(Résultats!B46="","",Résultats!B46) ->  | C57: =IF(B57="","",1) ->  | E57: =IF(F57="","","Ens. Montage Appareil Tendeur") ->  | F57: =IF(Résultats!C46="","",Résultats!C46) ->  | G57: =IF(F57="","",1) -> 
B58: Ancrage Conducteurs | F58: Ancrage Conducteurs
A59: =IFERROR(VLOOKUP(B59,Matériels!$B$7:$C$1004,2,FALSE),"") -> Ancrage de 2 Porteurs CR | B59: =IF(Résultats!B47="","",Résultats!B47) -> 30982805 | C59: =IF(B59="","",1) -> 1 | E59: =IFERROR(VLOOKUP(F59,Matériels!$B$35:$C$43,2,FALSE),"") ->  | F59: =IF(Résultats!C47="","",Résultats!C47) ->  | G59: =IF(F59="","",1) -> 
A60: =IFERROR(VLOOKUP(B60,Matériels!$B$7:$C$1004,2,FALSE),"") -> Ancrage de 2 Porteurs CR | B60: =IF(Résultats!B48="","",Résultats!B48) -> 30982805 | C60: =IF(B60="","",1) -> 1 | E60: =IFERROR(VLOOKUP(F60,Matériels!$B$35:$C$43,2,FALSE),"") ->  | F60: =IF(Résultats!C48="","",Résultats!C48) ->  | G60: =IF(F60="","",1) -> 
A61: =IFERROR(VLOOKUP(B61,Matériels!$B$7:$C$1004,2,FALSE),"") ->  | B61: =IF(Résultats!B49="","",Résultats!B49) ->  | C61: =IF(B61="","",1) ->  | E61: =IFERROR(VLOOKUP(F61,Matériels!$B$35:$C$43,2,FALSE),"") ->  | F61: =IF(Résultats!C49="","",Résultats!C49) -> 
A62: =IFERROR(VLOOKUP(B62,Matériels!$B$7:$C$1004,2,FALSE),"") ->  | B62: =IF(Résultats!$B$59="","",Résultats!$B$59) ->  | C62: =IF(B62="","",1) ->  | E62: =IFERROR(VLOOKUP(F62,Matériels!$B$35:$C$43,2,FALSE),"") ->  | F62: =IF(Résultats!$C$59="","",Résultats!$C$59) ->  | G62: =IF(F62="","",1) -> 
B63: Isolement Supplémentaire | F63: Isolement Supplémentaire
A64: =IFERROR(VLOOKUP(B64,Matériels!$B$35:$C$43,2,FALSE),"") ->  | B64: =IF(Résultats!K66="","",Résultats!K66) ->  | C64: =IF(Résultats!L66="","",Résultats!L66) ->  | E64: =IFERROR(VLOOKUP(F64,Matériels!$B$35:$C$43,2,FALSE),"") ->  | F64: =IF(Résultats!N66="","",Résultats!N66) ->  | G64: =IF(Résultats!O66="","",Résultats!O66) -> 
A65: =IFERROR(VLOOKUP(B65,Matériels!$B$35:$C$43,2,FALSE),"") ->  | B65: =IF(Résultats!K67="","",Résultats!K67) ->  | C65: =IF(Résultats!L67="","",Résultats!L67) ->  | E65: =IFERROR(VLOOKUP(F65,Matériels!$B$35:$C$43,2,FALSE),"") ->  | F65: =IF(Résultats!N67="","",Résultats!N67) ->  | G65: =IF(Résultats!O67="","",Résultats!O67) -> 
A66: =IFERROR(VLOOKUP(B66,Matériels!$B$35:$C$43,2,FALSE),"") ->  | B66: =IF(Résultats!K68="","",Résultats!K68) ->  | C66: =IF(Résultats!L68="","",Résultats!L68) ->  | E66: =IFERROR(VLOOKUP(F66,Matériels!$B$35:$C$43,2,FALSE),"") ->  | F66: =IF(Résultats!N68="","",Résultats!N68) ->  | G66: =IF(Résultats!O68="","",Résultats!O68) -> 
A67: =IFERROR(VLOOKUP(B67,Matériels!$B$35:$C$43,2,FALSE),"") ->  | B67: =IF(Résultats!K69="","",Résultats!K69) ->  | C67: =IF(Résultats!L69="","",Résultats!L69) ->  | E67: =IFERROR(VLOOKUP(F67,Matériels!$B$35:$C$43,2,FALSE),"") ->  | F67: =IF(Résultats!N69="","",Résultats!N69) ->  | G67: =IF(Résultats!O69="","",Résultats!O69) -> 
A68: =IFERROR(VLOOKUP(B68,Matériels!$B$35:$C$43,2,FALSE),"") ->  | B68: =IF(Résultats!K70="","",Résultats!K70) ->  | C68: =IF(Résultats!L70="","",Résultats!L70) ->  | E68: =IFERROR(VLOOKUP(F68,Matériels!$B$35:$C$43,2,FALSE),"") ->  | F68: =IF(Résultats!N70="","",Résultats!N70) ->  | G68: =IF(Résultats!O70="","",Résultats!O70) -> 
A69: =IFERROR(VLOOKUP(B69,Matériels!$B$35:$C$43,2,FALSE),"") ->  | B69: =IF(Résultats!K71="","",Résultats!K71) ->  | C69: =IF(Résultats!L71="","",Résultats!L71) ->  | E69: =IFERROR(VLOOKUP(F69,Matériels!$B$35:$C$43,2,FALSE),"") ->  | F69: =IF(Résultats!N71="","",Résultats!N71) ->  | G69: =IF(Résultats!O71="","",Résultats!O71) -> 
A70: =IFERROR(VLOOKUP(B70,Matériels!$B$35:$C$43,2,FALSE),"") ->  | B70: =IF(Résultats!K72="","",Résultats!K72) ->  | C70: =IF(Résultats!L72="","",Résultats!L72) ->  | E70: =IFERROR(VLOOKUP(F70,Matériels!$B$35:$C$43,2,FALSE),"") ->  | F70: =IF(Résultats!N72="","",Résultats!N72) ->  | G70: =IF(Résultats!O72="","",Résultats!O72) -> 
A71: =IFERROR(VLOOKUP(B71,Matériels!$B$35:$C$43,2,FALSE),"") ->  | B71: =IF(Résultats!K73="","",Résultats!K73) ->  | C71: =IF(Résultats!L73="","",Résultats!L73) ->  | E71: =IFERROR(VLOOKUP(F71,Matériels!$B$35:$C$43,2,FALSE),"") ->  | F71: =IF(Résultats!N73="","",Résultats!N73) ->  | G71: =IF(Résultats!O73="","",Résultats!O73) -> 
A72: =IFERROR(VLOOKUP(B72,Matériels!$B$35:$C$43,2,FALSE),"") ->  | B72: =IF(Résultats!K74="","",Résultats!K74) ->  | C72: =IF(Résultats!L74="","",Résultats!L74) ->  | E72: =IFERROR(VLOOKUP(F72,Matériels!$B$35:$C$43,2,FALSE),"") ->  | F72: =IF(Résultats!N74="","",Résultats!N74) ->  | G72: =IF(Résultats!O74="","",Résultats!O74) -> 

Sheet Gestion des calques (hidden)
A1: 1 | B1: 2 | C1: 3 | D1: 4 | E1: 5 | F1: 6 | G1: 7 | H1: 8 | I1: 9 | J1: 10 | K1: 11 | L1: 12 | M1: 13 | N1: 14 | O1: 15 | P1: 16 | Q1: 17 | R1: 18 | S1: 19 | T1: 20
A2: Calques | B2: Couleurs | C2: Statut | D2: Epaisseur | P2: Code | Q2: Couleur
A3: =IF(Q11="",Q22,IF(ISNUMBER(Q11)=TRUE,VALUE(Q11),Q11)) -> 0 | B3: =IF(R11="",R22,R11) -> 0 | C3: =IF(T11="",T22,T11) -> Existant | D3: =IF(IF(S11="",S22,S11)="","Pardéfaut",IF(S11="",S22,S11)) -> Pardéfaut | P3: 1 | Q3: Pose
A4: =IF(Q12="",Q23,IF(ISNUMBER(Q12)=TRUE,VALUE(Q12),Q12)) -> 1 | B4: =IF(R12="",R23,R12) -> 0 | C4: =IF(T12="",T23,T12) -> Existant | D4: =IF(IF(S12="",S23,S12)="","Pardéfaut",IF(S12="",S23,S12)) -> 0,09 | P4: 40 | Q4: Dépose
A5: 2 | B5: 0 | C5: Existant | D5: 0,15 | P5: 140 | Q5: Réutilisé
A6: 3 | B6: 0 | C6: Existant | D6: 0,3 | P6: 3 | Q6: Provisoire
A7: 4 | B7: 0 | C7: Existant | D7: =IF(IF(S15="",S26,S15)="","Pardéfaut",IF(S15="",S26,S15)) -> 0,09 | P7: 7 | Q7: Existant
A8: 5 | B8: 0 | C8: Existant | D8: 0,50 | P8: 4 | Q8: ARM
A9: 6 | B9: 0 | C9: Existant | D9: Pardéfaut | P9: 10 | Q9: Pose
A10: 7 | B10: 0 | C10: Existant | D10: Pardéfaut | Q10: Calque | R10: Color | S10: Ep | T10: Statut
A11: 0 | C11: =IF(T19="",T30,T19) -> Existant | D11: Pardéfaut | P11: 1 | Q11: 0 | R11: 0 | S11: Pardéfaut | T11: =IFERROR(IF(R11="","",VLOOKUP(R11,$P$3:$Q$9,2,FALSE)),"Existant") -> Existant
B12: Calque perso | C12: Calque défini | D12: Cotation | E12: Statut | F12: Position | H12: Ancrage N° 1 | I12: Symbole | J12: Quantitées | K12: Statut | L12: Ancrage N° 2 | M12: Symbole | N12: Quantitées | O12: Statut | P12: 2 | Q12: 1 | R12: 0 | S12: 0,09 | T12: =IFERROR(IF(R12="","",VLOOKUP(R12,$P$3:$Q$9,2,FALSE)),"Existant") -> Existant
A13: PMR | C13: =IF(B13="",0,B13) -> 0 | D13: =IF(VLOOKUP(C13,$A$3:$B$11,2,FALSE)=1,"CAT_COT",IF(VLOOKUP(C13,$A$3:$B$11,2,FALSE)=40,"CAT_dépose",0)) -> 0 | E13: =VLOOKUP(C13,$A$3:$C$11,3,FALSE) -> Existant | F13: 5 | G13: Pieces Ancrage haubans | P13: 3 | Q13: 2 | R13: 0 | S13: 0,15 | T13: =IFERROR(IF(R13="","",VLOOKUP(R13,$P$3:$Q$9,2,FALSE)),"Existant") -> Existant
A14: ORIENTATION | C14: =IF(B14="",0,B14) -> 0 | D14: =IF(VLOOKUP(C14,$A$3:$B$11,2,FALSE)=1,"CAT_COT",IF(VLOOKUP(C14,$A$3:$B$11,2,FALSE)=40,"CAT_dépose",0)) -> 0 | E14: =VLOOKUP(C14,$A$3:$C$11,3,FALSE) -> Existant | G14: Hauban 1 | H14: =IF(Resultats!B13="","",Resultats!B13&Resultats!C13) -> 22155 | I14: =IF(H14="","",VLOOKUP(H14,Matériels!$J$2:$N$764,5,FALSE)) -> 08820565 | J14: =IF(Resultats!B13="","",Resultats!D13) -> 1 | K14: =IF(I14="","",VLOOKUP($C$26,$A$3:$C$11,3,FALSE)) -> Existant | L14: =IF(Resultats!G13="","",Resultats!G13&Resultats!H13) ->  | M14: =IF(L14="","",VLOOKUP(L14,Matériels!$J$2:$N$764,5,FALSE)) ->  | N14: =IF(Resultats!G13="","",Resultats!I13) ->  | O14: =IF(M14="","",VLOOKUP($C$38,$A$3:$C$11,3,FALSE)) ->  | P14: 4 | Q14: 3 | R14: 0 | S14: 0,3 | T14: Existant
A15: Support | C15: 0 | D15: =IF(VLOOKUP(C15,$A$3:$B$11,2,FALSE)=1,"CAT_COT",IF(VLOOKUP(C15,$A$3:$B$11,2,FALSE)=40,"CAT_dépose",0)) -> 0 | E15: =VLOOKUP(C15,$A$3:$C$11,3,FALSE) -> Existant | G15: Hauban 2 | H15: =IF(Resultats!B14="","",Resultats!B14&Resultats!C14) -> 22155 | I15: =IF(H15="","",VLOOKUP(H15,Matériels!$J$2:$N$764,5,FALSE)) -> 08820565 | J15: =IF(Resultats!B14="","",Resultats!D14) -> 1 | K15: =IF(I15="","",VLOOKUP($C$26,$A$3:$C$11,3,FALSE)) -> Existant | L15: =IF(Resultats!G14="","",Resultats!G14&Resultats!H14) ->  | M15: =IF(L15="","",VLOOKUP(L15,Matériels!$J$2:$N$764,5,FALSE)) ->  | N15: =IF(Resultats!G14="","",Resultats!I14) ->  | O15: =IF(M15="","",VLOOKUP($C$38,$A$3:$C$11,3,FALSE)) ->  | P15: 5 | Q15: 4 | R15: 0 | S15: 0,09 | T15: Existant
G16: Hauban 3 | H16: =IF(Resultats!B15="","",Resultats!B15&Resultats!C15) ->  | I16: =IF(H16="","",VLOOKUP(H16,Matériels!$J$2:$N$764,5,FALSE)) ->  | J16: =IF(Resultats!B15="","",Resultats!D15) ->  | K16: =IF(I16="","",VLOOKUP($C$26,$A$3:$C$11,3,FALSE)) ->  | L16: =IF(Resultats!G15="","",Resultats!G15&Resultats!H15) ->  | M16: =IF(L16="","",VLOOKUP(L16,Matériels!$J$2:$N$764,5,FALSE)) ->  | N16: =IF(Resultats!G15="","",Resultats!I15) ->  | O16: =IF(M16="","",VLOOKUP($C$38,$A$3:$C$11,3,FALSE)) ->  | P16: 6 | Q16: 5 | R16: 0 | S16: 0,50 | T16: Existant
A17: Ancrage n°1 | C17: =IF(B17="",0,B17) -> 0 | D17: =IF(VLOOKUP(C17,$A$3:$B$11,2,FALSE)=1,"CAT_COT",IF(VLOOKUP(C17,$A$3:$B$11,2,FALSE)=40,"CAT_dépose",0)) -> 0 | E17: =VLOOKUP(C17,$A$3:$C$11,3,FALSE) -> Existant | G17: Hauban 4 | H17: =IF(Resultats!B16="","",Resultats!B16&Resultats!C16) ->  | I17: =IF(H17="","",VLOOKUP(H17,Matériels!$J$2:$N$764,5,FALSE)) ->  | J17: =IF(Resultats!B16="","",Resultats!D16) ->  | K17: =IF(I17="","",VLOOKUP($C$26,$A$3:$C$11,3,FALSE)) ->  | L17: =IF(Resultats!G16="","",Resultats!G16&Resultats!H16) ->  | M17: =IF(L17="","",VLOOKUP(L17,Matériels!$J$2:$N$764,5,FALSE)) ->  | N17: =IF(Resultats!G16="","",Resultats!I16) ->  | O17: =IF(M17="","",VLOOKUP($C$38,$A$3:$C$11,3,FALSE)) ->  | P17: 7 | Q17: 6 | R17: 0 | S17: Pardéfaut | T17: Existant
A18: Ancrage conducteurs | C18: =IF($B$18="",$C$17,$B$18) -> 0 | D18: 0 | E18: =VLOOKUP(C18,$A$3:$C$11,3,FALSE) -> Existant | F18: 4 | G18: Pieces Ancrage cables | I18: =IF(H18="","",VLOOKUP(H18,Matériels!$J$2:$N$764,5,FALSE)) ->  | M18: =IF(L18="","",VLOOKUP(L18,Matériels!$J$2:$N$764,5,FALSE)) ->  | P18: 8 | Q18: 7 | R18: 0 | S18: Pardéfaut | T18: =IFERROR(IF(R18="","",VLOOKUP(R18,$P$3:$Q$9,2,FALSE)),"Existant") -> Existant
A19: Point n°1 | C19: =IF(B19="",$C$18,B19) -> 0 | D19: 0 | E19: Existant | G19: Ancrage 1 | H19: =IF(Resultats!B17="","",Resultats!B17&Resultats!C17) -> 22173 | I19: =IF(H19="","",VLOOKUP(H19,Matériels!$J$2:$N$764,5,FALSE)) -> 08820583 | J19: =IF(Resultats!B17="","",Resultats!D17) -> 1 | K19: =IF(I19="","",IF($C$25=0,VLOOKUP($C$25,$A$3:$C$11,3,FALSE),VLOOKUP(C19,$A$3:$C$11,3,FALSE))) -> Existant | L19: =IF(Resultats!G17="","",Resultats!G17&Resultats!H17) ->  | M19: =IF(L19="","",VLOOKUP(L19,Matériels!$J$2:$N$764,5,FALSE)) ->  | N19: =IF(Resultats!G17="","",Resultats!I17) ->  | O19: =IF(M19="","",IF($C$37=0,VLOOKUP($C$37,$A$3:$C$11,3,FALSE),VLOOKUP(C31,$A$3:$C$11,3,FALSE))) ->  | P19: 9 | T19: =IFERROR(IF(R19="","",VLOOKUP(R19,$P$3:$Q$9,2,FALSE)),"Existant") -> 
A20: Point n°2 | C20: =IF(B20="",$C$18,B20) -> 0 | D20: 0 | E20: Existant | G20: Ancrage 2 | H20: =IF(Resultats!B18="","",Resultats!B18&Resultats!C18) -> 22173 | I20: =IF(H20="","",VLOOKUP(H20,Matériels!$J$2:$N$764,5,FALSE)) -> 08820583 | J20: =IF(Resultats!B18="","",Resultats!D18) -> 1 | K20: =IF(I20="","",IF($C$25=0,VLOOKUP($C$25,$A$3:$C$11,3,FALSE),VLOOKUP(C20,$A$3:$C$11,3,FALSE))) -> Existant | L20: =IF(Resultats!G18="","",Resultats!G18&Resultats!H18) ->  | M20: =IF(L20="","",VLOOKUP(L20,Matériels!$J$2:$N$764,5,FALSE)) ->  | N20: =IF(Resultats!G18="","",Resultats!I18) ->  | O20: =IF(M19="","",IF($C$37=0,VLOOKUP($C$37,$A$3:$C$11,3,FALSE),VLOOKUP(C32,$A$3:$C$11,3,FALSE))) -> 
A21: Point n°3 | C21: 0 | D21: 0 | E21: Existant | G21: Ancrage 3 | H21: =IF(Resultats!B19="","",Resultats!B19&Resultats!C19) ->  | I21: =IF(H21="","",VLOOKUP(H21,Matériels!$J$2:$N$764,5,FALSE)) ->  | J21: =IF(Resultats!B19="","",Resultats!D19) ->  | K21: =IF(I21="","",IF($C$25=0,VLOOKUP($C$25,$A$3:$C$11,3,FALSE),VLOOKUP(C21,$A$3:$C$11,3,FALSE))) ->  | L21: =IF(Resultats!G19="","",Resultats!G19&Resultats!H19) ->  | M21: =IF(L21="","",VLOOKUP(L21,Matériels!$J$2:$N$764,5,FALSE)) ->  | N21: =IF(Resultats!G19="","",Resultats!I19) ->  | O21: =IF(M19="","",IF($C$37=0,VLOOKUP($C$37,$A$3:$C$11,3,FALSE),VLOOKUP(C33,$A$3:$C$11,3,FALSE))) ->  | P21: =Calculs!A1 -> C2F | Q21: Calque | R21: Color | S21: Ep | T21: Statut | V21: Toulouse | W21: Calque | X21: Color | Y21: Ep | AA21: St Genis Laval | AB21: Calque | AC21: Color | AD21: Ep | AF21: Chelles | AG21: Calque | AH21: Color | AI21: Ep
A22: Appareil Tendeur | C22: =IF($B$22="",$C$17,$B$22) -> 0 | D22: 0 | E22: Existant | F22: 1 | G22: Ancrage Conducteurs | I22: =IF(H22="","",VLOOKUP(H22,Matériels!$J$2:$N$764,5,FALSE)) ->  | M22: =IF(L22="","",VLOOKUP(L22,Matériels!$J$2:$N$764,5,FALSE)) ->  | P22: 1 | Q22: 0 | R22: 7 | T22: =IFERROR(VLOOKUP(R22,$P$3:$Q$9,2,FALSE),"Existant") -> Existant | V22: 1 | W22: 0 | X22: 7 | AA22: 1 | AB22: 0 | AC22: 7 | AF22: 1 | AG22: 0 | AH22: 7
A23: Point n°1 | C23: =IF(B23="",$C$22,B23) -> 0 | D23: 0 | E23: Existant | G23: 1 | H23: =IF(Resultats!B59="","",Resultats!B59&Resultats!C59) -> 10985352 | I23: =IF(H23="","",VLOOKUP(H23,Matériels!$J$2:$N$764,5,FALSE)) -> 30982805 | J23: =IF(Resultats!B59="","",Resultats!D59) -> 1 | K23: =IF(I23="","",VLOOKUP(C19,$A$3:$C$11,3,FALSE)) -> Existant | L23: =IF(Resultats!G59="","",Resultats!G59&Resultats!H59) ->  | M23: =IF(L23="","",VLOOKUP(L23,Matériels!$J$2:$N$764,5,FALSE)) ->  | N23: =IF(Resultats!G59="","",Resultats!I59) ->  | O23: =IF(M23="","",VLOOKUP(C31,$A$3:$C$11,3,FALSE)) ->  | P23: 2 | Q23: =IF($P$21=$V$21,W23,IF($P$21=$AA$21,AB23,IF($P$21=$AF$21,AG23,"0"))) -> 0 | R23: =IF($P$21=$V$21,X23,IF($P$21=$AA$21,AC23,IF($P$21=$AF$21,AH23,""))) ->  | S23: =IF($P$21=$V$21,Y23,IF($P$21=$AA$21,AD23,IF($P$21=$AF$21,AI23,""))) ->  | T23: =IFERROR(VLOOKUP(R23,$P$3:$Q$9,2,FALSE),"Existant") -> Existant | V23: 2 | W23: CAT | X23: 7 | Y23: 0.09 | AA23: 2 | AB23: CAT | AC23: 7 | AF23: 2 | AG23: CAT | AH23: 7
A24: Point n°2 | C24: =IF(B24="",$C$22,B24) -> 0 | D24: 0 | E24: Existant | G24: 2 | H24: =IF(Resultats!B60="","",Resultats!B60&Resultats!C60) -> 10985352 | I24: =IF(H24="","",VLOOKUP(H24,Matériels!$J$2:$N$764,5,FALSE)) -> 30982805 | J24: =IF(Resultats!B60="","",Resultats!D60) -> 1 | K24: =IF(I24="","",VLOOKUP(C20,$A$3:$C$11,3,FALSE)) -> Existant | L24: =IF(Resultats!G60="","",Resultats!G60&Resultats!H60) ->  | M24: =IF(L24="","",VLOOKUP(L24,Matériels!$J$2:$N$764,5,FALSE)) ->  | N24: =IF(Resultats!G60="","",Resultats!I60) ->  | O24: =IF(M24="","",VLOOKUP(C32,$A$3:$C$11,3,FALSE)) ->  | P24: 3 | Q24: =IF($P$21=$V$21,W24,IF($P$21=$AA$21,AB24,IF($P$21=$AF$21,AG24,"0"))) -> 0 | R24: =IF($P$21=$V$21,X24,IF($P$21=$AA$21,AC24,IF($P$21=$AF$21,AH24,""))) ->  | S24: =IF($P$21=$V$21,Y24,IF($P$21=$AA$21,AD24,IF($P$21=$AF$21,AI24,""))) ->  | T24: Existant | V24: 3 | W24: CAT_COT | X24: 1 | Y24: 0.09 | AA24: 3 | AB24: CAT_COT | AC24: 6 | AF24: 3 | AG24: CAT_COT | AH24: 6
A25: Pieces Ancrage | C25: =IF(B25="",$C$17,B25) -> 0 | D25: 0 | E25: Existant | G25: 3 | H25: =IF(Resultats!B61="","",Resultats!B61&Resultats!C61) ->  | I25: =IF(H25="","",VLOOKUP(H25,Matériels!$J$2:$N$764,5,FALSE)) ->  | J25: =IF(Resultats!B61="","",Resultats!D61) ->  | K25: =IF(I25="","",VLOOKUP(C21,$A$3:$C$11,3,FALSE)) ->  | L25: =IF(Resultats!G61="","",Resultats!G61&Resultats!H61) ->  | M25: =IF(L25="","",VLOOKUP(L25,Matériels!$J$2:$N$764,5,FALSE)) ->  | N25: =IF(Resultats!G61="","",Resultats!I61) ->  | O25: =IF(M25="","",VLOOKUP(C33,$A$3:$C$11,3,FALSE)) ->  | P25: 4 | Q25: 0 | T25: Existant | V25: 4 | W25: CAT_dépose | X25: 40 | Y25: 0.09 | AA25: 4 | AB25: CAT_dépose | AC25: 40 | AF25: 4 | AG25: CAT_dépose | AH25: 40
A26: Haubans Ancrage | C26: =IF(B26="",$C$17,B26) -> 0 | D26: 0 | E26: Existant | G26: 4 | H26: =IF(Resultats!B62="","",Resultats!B62&Resultats!C62) ->  | I26: =IF(H26="","",VLOOKUP(H26,Matériels!$J$2:$N$764,5,FALSE)) ->  | J26: =IF(Resultats!B62="","",Resultats!D62) ->  | K26: =IF(I26="","",K23) ->  | L26: =IF(Resultats!G62="","",Resultats!G62&Resultats!H62) ->  | M26: =IF(L26="","",VLOOKUP(L26,Matériels!$J$2:$N$764,5,FALSE)) ->  | N26: =IF(Resultats!G62="","",Resultats!I62) ->  | O26: =IF(M26="","",O23) ->  | P26: 5 | Q26: 0 | T26: Existant | V26: 5 | W26: CAT_fin | X26: 7 | Y26: 0,00 | AA26: 5 | AB26: CAT_fin | AC26: 6 | AF26: 5 | AG26: CAT_fin | AH26: 6
A27: Massif | C27: =IF(B27="",$C$17,B27) -> 0 | D27: 0 | E27: Existant | F27: 2 | G27: Isos supple. | I27: =IF(H27="","",VLOOKUP(H27,Matériels!$J$2:$N$764,5,FALSE)) ->  | M27: =IF(L27="","",VLOOKUP(L27,Matériels!$J$2:$N$764,5,FALSE)) ->  | P27: 6 | Q27: 0 | T27: Existant | V27: 6 | W27: CAT_pose | X27: 1 | Y27: 0.09 | AA27: 6 | AB27: CAT_pose | AC27: 10 | AF27: 6 | AG27: CAT_pose | AH27: 10
G28: 1 | H28: =IF(Resultats!B64="","",Resultats!B64&Resultats!C64) ->  | I28: =IF(H28="","",VLOOKUP(H28,Matériels!$J$2:$N$764,5,FALSE)) ->  | J28: =IF(Resultats!B64="","",Resultats!D64) ->  | K28: =IF(I28="","",VLOOKUP(C19,$A$3:$C$11,3,FALSE)) ->  | L28: =IF(Resultats!G64="","",Resultats!G64&Resultats!H64) ->  | M28: =IF(L28="","",VLOOKUP(L28,Matériels!$J$2:$N$764,5,FALSE)) ->  | N28: =IF(Resultats!G64="","",Resultats!I64) ->  | O28: =IF(M28="","",VLOOKUP(C31,$A$3:$C$11,3,FALSE)) ->  | P28: 7 | Q28: 0 | T28: Existant | V28: 7 | W28: CAT_provisoire | X28: 3 | Y28: 0.09 | AA28: 7 | AB28: CAT_provisoire | AC28: 3 | AF28: 7 | AG28: CAT_provisoire | AH28: 3
A29: Ancrage n°2 | C29: =IF(B29="",0,B29) -> 0 | D29: =IF(VLOOKUP(C29,$A$3:$B$11,2,FALSE)=1,"CAT_COT",IF(VLOOKUP(C29,$A$3:$B$11,2,FALSE)=40,"CAT_dépose",0)) -> 0 | E29: Existant | G29: 2 | H29: =IF(Resultats!B65="","",Resultats!B65&Resultats!C65) ->  | I29: =IF(H29="","",VLOOKUP(H29,Matériels!$J$2:$N$764,5,FALSE)) ->  | J29: =IF(Resultats!B65="","",Resultats!D65) ->  | K29: =IF(I29="","",VLOOKUP(C19,$A$3:$C$11,3,FALSE)) ->  | L29: =IF(Resultats!G65="","",Resultats!G65&Resultats!H65) ->  | M29: =IF(L29="","",VLOOKUP(L29,Matériels!$J$2:$N$764,5,FALSE)) ->  | N29: =IF(Resultats!G65="","",Resultats!I65) ->  | O29: =IF(M29="","",VLOOKUP(C31,$A$3:$C$11,3,FALSE)) ->  | P29: 8 | Q29: 0 | T29: Existant | V29: 8 | W29: CAT_réutilisé | X29: 140 | Y29: 0.09 | AA29: 8 | AB29: CAT_réutilisé | AC29: 140 | AF29: 8 | AG29: CAT_réutilisé | AH29: 140
A30: Ancrage conducteurs | C30: =IF($B$30="",$C$29,$B$30) -> 0 | D30: 0 | E30: Existant | G30: 3 | H30: =IF(Resultats!B66="","",Resultats!B66&Resultats!C66) ->  | I30: =IF(H30="","",VLOOKUP(H30,Matériels!$J$2:$N$764,5,FALSE)) ->  | J30: =IF(Resultats!B66="","",Resultats!D66) ->  | K30: =IF(I30="","",VLOOKUP(C19,$A$3:$C$11,3,FALSE)) ->  | L30: =IF(Resultats!G66="","",Resultats!G66&Resultats!H66) ->  | M30: =IF(L30="","",VLOOKUP(L30,Matériels!$J$2:$N$764,5,FALSE)) ->  | N30: =IF(Resultats!G66="","",Resultats!I66) ->  | O30: =IF(M30="","",VLOOKUP(C31,$A$3:$C$11,3,FALSE)) ->  | P30: 9 | Q30: 0 | T30: Existant | V30: 9 | W30: CAT_texte | X30: 7 | AA30: 9 | AB30: CAT_texte | AC30: 6 | AF30: 9 | AG30: CAT_texte | AH30: 6
A31: Point n°1 | C31: =IF(B31="",$C$30,B31) -> 0 | D31: 0 | E31: Existant | G31: 4 | H31: =IF(Resultats!B67="","",Resultats!B67&Resultats!C67) ->  | I31: =IF(H31="","",VLOOKUP(H31,Matériels!$J$2:$N$764,5,FALSE)) ->  | J31: =IF(Resultats!B67="","",Resultats!D67) ->  | K31: =IF(I31="","",VLOOKUP(C20,$A$3:$C$11,3,FALSE)) ->  | L31: =IF(Resultats!G67="","",Resultats!G67&Resultats!H67) ->  | M31: =IF(L31="","",VLOOKUP(L31,Matériels!$J$2:$N$764,5,FALSE)) ->  | N31: =IF(Resultats!G67="","",Resultats!I67) ->  | O31: =IF(M31="","",VLOOKUP(C32,$A$3:$C$11,3,FALSE)) -> 
A32: Point n°2 | C32: =IF(B32="",$C$30,B32) -> 0 | D32: 0 | E32: Existant | G32: 5 | H32: =IF(Resultats!B68="","",Resultats!B68&Resultats!C68) ->  | I32: =IF(H32="","",VLOOKUP(H32,Matériels!$J$2:$N$764,5,FALSE)) ->  | J32: =IF(Resultats!B68="","",Resultats!D68) ->  | K32: =IF(I32="","",VLOOKUP(C20,$A$3:$C$11,3,FALSE)) ->  | L32: =IF(Resultats!G68="","",Resultats!G68&Resultats!H68) ->  | M32: =IF(L32="","",VLOOKUP(L32,Matériels!$J$2:$N$764,5,FALSE)) ->  | N32: =IF(Resultats!G68="","",Resultats!I68) ->  | O32: =IF(M32="","",VLOOKUP(C32,$A$3:$C$11,3,FALSE)) -> 
A33: Point n°3 | C33: =IF(B33="",$C$30,B33) -> 0 | D33: 0 | E33: Existant | G33: 6 | H33: =IF(Resultats!B69="","",Resultats!B69&Resultats!C69) ->  | I33: =IF(H33="","",VLOOKUP(H33,Matériels!$J$2:$N$764,5,FALSE)) ->  | J33: =IF(Resultats!B69="","",Resultats!D69) ->  | K33: =IF(I33="","",VLOOKUP(C20,$A$3:$C$11,3,FALSE)) ->  | L33: =IF(Resultats!G69="","",Resultats!G69&Resultats!H69) ->  | M33: =IF(L33="","",VLOOKUP(L33,Matériels!$J$2:$N$764,5,FALSE)) ->  | N33: =IF(Resultats!G69="","",Resultats!I69) ->  | O33: =IF(M33="","",VLOOKUP(C32,$A$3:$C$11,3,FALSE)) -> 
A34: Appareil Tendeur | C34: =IF($B$34="",$C$29,$B$34) -> 0 | D34: 0 | E34: Existant | G34: 7 | H34: =IF(Resultats!B70="","",Resultats!B70&Resultats!C70) ->  | I34: =IF(H34="","",VLOOKUP(H34,Matériels!$J$2:$N$764,5,FALSE)) ->  | J34: =IF(Resultats!B70="","",Resultats!D70) ->  | K34: =IF(I34="","",VLOOKUP(C21,$A$3:$C$11,3,FALSE)) ->  | L34: =IF(Resultats!G70="","",Resultats!G70&Resultats!H70) ->  | M34: =IF(L34="","",VLOOKUP(L34,Matériels!$J$2:$N$764,5,FALSE)) ->  | N34: =IF(Resultats!G70="","",Resultats!I70) ->  | O34: =IF(M34="","",VLOOKUP(C33,$A$3:$C$11,3,FALSE)) -> 
A35: Point n°1 | C35: =IF(B35="",$C$34,B35) -> 0 | D35: 0 | E35: Existant | G35: 8 | H35: =IF(Resultats!B71="","",Resultats!B71&Resultats!C71) ->  | I35: =IF(H35="","",VLOOKUP(H35,Matériels!$J$2:$N$764,5,FALSE)) ->  | J35: =IF(Resultats!B71="","",Resultats!D71) ->  | K35: =IF(I35="","",VLOOKUP(C21,$A$3:$C$11,3,FALSE)) ->  | L35: =IF(Resultats!G71="","",Resultats!G71&Resultats!H71) ->  | M35: =IF(L35="","",VLOOKUP(L35,Matériels!$J$2:$N$764,5,FALSE)) ->  | N35: =IF(Resultats!G71="","",Resultats!I71) ->  | O35: =IF(M35="","",VLOOKUP(C33,$A$3:$C$11,3,FALSE)) -> 
A36: Point n°2 | C36: =IF(B36="",$C$34,B36) -> 0 | D36: 0 | E36: Existant | G36: 9 | H36: =IF(Resultats!B72="","",Resultats!B72&Resultats!C72) ->  | I36: =IF(H36="","",VLOOKUP(H36,Matériels!$J$2:$N$764,5,FALSE)) ->  | J36: =IF(Resultats!B72="","",Resultats!D72) ->  | K36: =IF(I36="","",VLOOKUP(C21,$A$3:$C$11,3,FALSE)) ->  | L36: =IF(Resultats!G72="","",Resultats!G72&Resultats!H72) ->  | M36: =IF(L36="","",VLOOKUP(L36,Matériels!$J$2:$N$764,5,FALSE)) ->  | N36: =IF(Resultats!G72="","",Resultats!I72) ->  | O36: =IF(M36="","",VLOOKUP(C33,$A$3:$C$11,3,FALSE)) -> 
A37: Pieces Ancrage | C37: =IF(B37="",$C$29,B37) -> 0 | D37: 0 | E37: Existant | F37: 3 | G37: Appareils tendeur | I37: =IF(H37="","",VLOOKUP(H37,Matériels!$J$2:$N$764,5,FALSE)) ->  | M37: =IF(L37="","",VLOOKUP(L37,Matériels!$J$2:$N$764,5,FALSE)) -> 
A38: Haubans Ancrage | C38: =IF(B38="",$C$29,B38) -> 0 | D38: 0 | E38: Existant | G38: 1 | H38: =IF(Resultats!B56="","",Resultats!B56&Resultats!C56) -> 222940222942 | I38: =IF(H38="","",VLOOKUP(H38,Matériels!$J$2:$N$764,5,FALSE)) -> 10984102 | J38: =IF(Resultats!B56="","",Resultats!D56) -> 1 | K38: =IF(I38="","",VLOOKUP(C23,$A$3:$C$11,3,FALSE)) -> Existant | L38: =IF(Resultats!G56="","",Resultats!G56&Resultats!H56) ->  | M38: =IF(L38="","",VLOOKUP(L38,Matériels!$J$2:$N$764,5,FALSE)) ->  | N38: =IF(Resultats!G56="","",Resultats!I56) ->  | O38: =IF(M38="","",VLOOKUP(C35,$A$3:$C$11,3,FALSE)) -> 
A39: Massif | C39: =IF(B39="",$C$29,B39) -> 0 | D39: 0 | E39: Existant | G39: 2 | H39: =IF(Resultats!B57="","",Resultats!B57&Resultats!C57) ->  | I39: =IF(H39="","",VLOOKUP(H39,Matériels!$J$2:$N$764,5,FALSE)) ->  | J39: =IF(Resultats!B57="","",Resultats!D57) ->  | K39: =IF(I39="","",VLOOKUP(C24,$A$3:$C$11,3,FALSE)) ->  | L39: =IF(Resultats!G57="","",Resultats!G57&Resultats!H57) ->  | M39: =IF(L39="","",VLOOKUP(L39,Matériels!$J$2:$N$764,5,FALSE)) ->  | N39: =IF(Resultats!G57="","",Resultats!I57) ->  | O39: =IF(N39="","",VLOOKUP(C36,$A$3:$C$11,3,FALSE)) -> 
A40: Passage : | E40: Existant | F40: 11 | G40: Tiges filetées | I40: =IF(H40="","",VLOOKUP(H40,Matériels!$J$2:$N$764,5,FALSE)) ->  | M40: =IF(L40="","",VLOOKUP(L40,Matériels!$J$2:$N$764,5,FALSE)) -> 
A41: =IF(cable1="","",cable1) ->  | C41: =IF(B41="",0,B41) -> 0 | E41: Existant | G41: 1 | H41: =IF(Resultats!B45="","",Resultats!B45&Resultats!C45) ->  | I41: =IF(H41="","",VLOOKUP(H41,Matériels!$J$2:$N$764,5,FALSE)) ->  | J41: =IF(Resultats!B45="","",Resultats!D45) ->  | K41: =IF(I41="","",VLOOKUP(C27,$A$3:$C$11,3,FALSE)) ->  | L41: =IF(Resultats!G45="","",Resultats!G45&Resultats!H45) ->  | M41: =IF(L41="","",VLOOKUP(L41,Matériels!$J$2:$N$764,5,FALSE)) ->  | N41: =IF(Resultats!G45="","",Resultats!I45) ->  | O41: =IF(M41="","",VLOOKUP(C39,$A$3:$C$11,3,FALSE)) -> 
A42: =IF(cable2="","",cable2) ->  | C42: =IF(B42="",0,B42) -> 0 | E42: Existant | F42: 6 | G42: Boulons | I42: =IF(H42="","",VLOOKUP(H42,Matériels!$J$2:$N$764,5,FALSE)) ->  | M42: =IF(L42="","",VLOOKUP(L42,Matériels!$J$2:$N$764,5,FALSE)) ->  | Q42: Ancrage N° 1 | R42: Ancrage N°2
A43: =IF(cable3="","",cable3) ->  | C43: =IF(B43="",0,B43) -> 0 | E43: Existant | G43: 1 | H43: =IF(Resultats!B46="","",Resultats!B46&Resultats!C46) -> 01602487 | I43: =IF(H43="","",VLOOKUP(H43,Matériels!$J$2:$N$764,5,FALSE)) -> 01602487 | J43: =IF(Resultats!B46="","",Resultats!D46) -> 4 | K43: =IF(Q43="","",IF(LEFT(Q43,6)="Hauban",VLOOKUP(Q43,G14:$K$17,5,FALSE),VLOOKUP(Q43,$G$19:$K$21,5,FALSE))) -> Existant | L43: =IF(Resultats!G46="","",Resultats!G46&Resultats!H46) ->  | M43: =IF(L43="","",VLOOKUP(L43,Matériels!$J$2:$N$764,5,FALSE)) ->  | N43: =IF(Resultats!G46="","",Resultats!I46) ->  | O43: =IF(R43="","",IF(LEFT(R43,6)="Hauban",VLOOKUP(R43,G14:$O$17,9,FALSE),VLOOKUP(R43,$G$19:$O$21,9,FALSE))) ->  | Q43: =Résultats!AG51 -> Hauban 1 | R43: =Résultats!AG60 -> 
G44: 2 | H44: =IF(Resultats!B47="","",Resultats!B47&Resultats!C47) -> 01602487 | I44: =IF(H44="","",VLOOKUP(H44,Matériels!$J$2:$N$764,5,FALSE)) -> 01602487 | J44: =IF(Resultats!B47="","",Resultats!D47) -> 4 | K44: =IF(Q44="","",IF(LEFT(Q44,6)="Hauban",VLOOKUP(Q44,G15:$K$17,5,FALSE),VLOOKUP(Q44,$G$19:$K$21,5,FALSE))) -> Existant | L44: =IF(Resultats!G47="","",Resultats!G47&Resultats!H47) ->  | M44: =IF(L44="","",VLOOKUP(L44,Matériels!$J$2:$N$764,5,FALSE)) ->  | N44: =IF(Resultats!G47="","",Resultats!I47) ->  | O44: =IF(R44="","",IF(LEFT(R44,6)="Hauban",VLOOKUP(R44,G15:$O$17,9,FALSE),VLOOKUP(R44,$G$19:$O$21,9,FALSE))) ->  | Q44: =Résultats!AG52 -> Hauban 2 | R44: =Résultats!AG61 -> 
G45: 3 | H45: =IF(Resultats!B48="","",Resultats!B48&Resultats!C48) ->  | I45: =IF(H45="","",VLOOKUP(H45,Matériels!$J$2:$N$764,5,FALSE)) ->  | J45: =IF(Resultats!B48="","",Resultats!D48) ->  | K45: =IF(Q45="","",IF(LEFT(Q45,6)="Hauban",VLOOKUP(Q45,G16:$K$17,5,FALSE),VLOOKUP(Q45,$G$19:$K$21,5,FALSE))) ->  | L45: =IF(Resultats!G48="","",Resultats!G48&Resultats!H48) ->  | M45: =IF(L45="","",VLOOKUP(L45,Matériels!$J$2:$N$764,5,FALSE)) ->  | N45: =IF(Resultats!G48="","",Resultats!I48) ->  | O45: =IF(R45="","",IF(LEFT(R45,6)="Hauban",VLOOKUP(R45,G16:$O$17,9,FALSE),VLOOKUP(R45,$G$19:$O$21,9,FALSE))) ->  | Q45: =Résultats!AG53 ->  | R45: =Résultats!AG62 -> 
G46: 4 | H46: =IF(Resultats!B49="","",Resultats!B49&Resultats!C49) ->  | I46: =IF(H46="","",VLOOKUP(H46,Matériels!$J$2:$N$764,5,FALSE)) ->  | J46: =IF(Resultats!B49="","",Resultats!D49) ->  | K46: =IF(Q46="","",IF(LEFT(Q46,6)="Hauban",VLOOKUP(Q46,G17:$K$17,5,FALSE),VLOOKUP(Q46,$G$19:$K$21,5,FALSE))) ->  | L46: =IF(Resultats!G49="","",Resultats!G49&Resultats!H49) ->  | M46: =IF(L46="","",VLOOKUP(L46,Matériels!$J$2:$N$764,5,FALSE)) ->  | N46: =IF(Resultats!G49="","",Resultats!I49) ->  | O46: =IF(R46="","",IF(LEFT(R46,6)="Hauban",VLOOKUP(R46,G17:$O$17,9,FALSE),VLOOKUP(R46,$G$19:$O$21,9,FALSE))) ->  | Q46: =Résultats!AG54 ->  | R46: =Résultats!AG63 -> 
G47: 5 | H47: =IF(Resultats!B50="","",Resultats!B50&Resultats!C50) ->  | I47: =IF(H47="","",VLOOKUP(H47,Matériels!$J$2:$N$764,5,FALSE)) ->  | J47: =IF(Resultats!B50="","",Resultats!D50) ->  | K47: =IF(Q47="","",IF(LEFT(Q47,6)="Hauban",VLOOKUP(Q47,G$17:$K18,5,FALSE),VLOOKUP(Q47,$G$19:$K$21,5,FALSE))) ->  | L47: =IF(Resultats!G50="","",Resultats!G50&Resultats!H50) ->  | M47: =IF(L47="","",VLOOKUP(L47,Matériels!$J$2:$N$764,5,FALSE)) ->  | N47: =IF(Resultats!G50="","",Resultats!I50) ->  | O47: =IF(R47="","",IF(LEFT(R47,6)="Hauban",VLOOKUP(R47,G$17:$O18,9,FALSE),VLOOKUP(R47,$G$19:$O$21,9,FALSE))) ->  | Q47: =Résultats!AG55 ->  | R47: =Résultats!AG64 -> 
G48: 6 | H48: =IF(Resultats!B51="","",Resultats!B51&Resultats!C51) ->  | I48: =IF(H48="","",VLOOKUP(H48,Matériels!$J$2:$N$764,5,FALSE)) ->  | J48: =IF(Resultats!B51="","",Resultats!D51) ->  | K48: =IF(Q48="","",IF(LEFT(Q48,6)="Hauban",VLOOKUP(Q48,G$17:$K19,5,FALSE),VLOOKUP(Q48,$G$19:$K$21,5,FALSE))) ->  | L48: =IF(Resultats!G51="","",Resultats!G51&Resultats!H51) ->  | M48: =IF(L48="","",VLOOKUP(L48,Matériels!$J$2:$N$764,5,FALSE)) ->  | N48: =IF(Resultats!G51="","",Resultats!I51) ->  | O48: =IF(R48="","",IF(LEFT(R48,6)="Hauban",VLOOKUP(R48,G$17:$O19,9,FALSE),VLOOKUP(R48,$G$19:$O$21,9,FALSE))) ->  | Q48: =Résultats!AG56 ->  | R48: =Résultats!AG65 -> 
G49: 7 | H49: =IF(Resultats!B52="","",Resultats!B52&Resultats!C52) ->  | I49: =IF(H49="","",VLOOKUP(H49,Matériels!$J$2:$N$764,5,FALSE)) ->  | J49: =IF(Resultats!B52="","",Resultats!D52) ->  | K49: =IF(Q49="","",IF(LEFT(Q49,6)="Hauban",VLOOKUP(Q49,G$17:$K20,5,FALSE),VLOOKUP(Q49,$G$19:$K$21,5,FALSE))) ->  | L49: =IF(Resultats!G52="","",Resultats!G52&Resultats!H52) ->  | M49: =IF(L49="","",VLOOKUP(L49,Matériels!$J$2:$N$764,5,FALSE)) ->  | N49: =IF(Resultats!G52="","",Resultats!I52) ->  | O49: =IF(R49="","",IF(LEFT(R49,6)="Hauban",VLOOKUP(R49,G$17:$O20,9,FALSE),VLOOKUP(R49,$G$19:$O$21,9,FALSE))) ->  | Q49: =Résultats!AG57 ->  | R49: =Résultats!AG66 -> 
F50: 7 | G50: Rondelles | I50: =IF(H50="","",VLOOKUP(H50,Matériels!$J$2:$N$764,5,FALSE)) ->  | M50: =IF(L50="","",VLOOKUP(L50,Matériels!$J$2:$N$764,5,FALSE)) -> 
G51: 1 | H51: =IF(Resultats!B54="","",Resultats!B54&Resultats!C54) ->  | I51: =IF(H51="","",VLOOKUP(H51,Matériels!$J$2:$N$764,5,FALSE)) ->  | J51: =IF(Resultats!B54="","",Resultats!D54) ->  | K51: =IF(I51="","",VLOOKUP(C15,$A$3:$C$11,3,FALSE)) ->  | L51: =IF(Resultats!G54="","",Resultats!G54&Resultats!H54) ->  | M51: =IF(L51="","",VLOOKUP(L51,Matériels!$J$2:$N$764,5,FALSE)) ->  | N51: =IF(Resultats!G54="","",Resultats!I54) ->  | O51: =IF(M51="","",VLOOKUP(C15,$A$3:$C$11,3,FALSE)) -> 
F52: 8 | G52: Jumelles | I52: =IF(H52="","",VLOOKUP(H52,Matériels!$J$2:$N$764,5,FALSE)) ->  | M52: =IF(L52="","",VLOOKUP(L52,Matériels!$J$2:$N$764,5,FALSE)) -> 
G53: 1 | H53: =IF(Resultats!B32="","",Resultats!B32&Resultats!C32) -> 37627103 | I53: =IF(H53="","",VLOOKUP(H53,Matériels!$J$2:$N$764,5,FALSE)) -> 00986723 | J53: =IF(Resultats!B32="","",Resultats!D32) -> 1 | K53: =IF(I53="","",VLOOKUP($C$26,$A$3:$C$11,3,FALSE)) -> Existant | L53: =IF(Resultats!G32="","",Resultats!G32&Resultats!H32) ->  | M53: =IF(L53="","",VLOOKUP(L53,Matériels!$J$2:$N$764,5,FALSE)) ->  | N53: =IF(Resultats!G32="","",Resultats!I32) ->  | O53: =IF(M53="","",VLOOKUP($C$37,$A$3:$C$11,3,FALSE)) -> 
G54: 2 | H54: =IF(Resultats!B33="","",Resultats!B33&Resultats!C33) -> 37627101 | I54: =IF(H54="","",VLOOKUP(H54,Matériels!$J$2:$N$764,5,FALSE)) -> 00986721 | J54: =IF(Resultats!B33="","",Resultats!D33) -> 1 | K54: =IF(I54="","",VLOOKUP($C$26,$A$3:$C$11,3,FALSE)) -> Existant | L54: =IF(Resultats!G33="","",Resultats!G33&Resultats!H33) ->  | M54: =IF(L54="","",VLOOKUP(L54,Matériels!$J$2:$N$764,5,FALSE)) ->  | N54: =IF(Resultats!G33="","",Resultats!I33) ->  | O54: =IF(M54="","",VLOOKUP($C$37,$A$3:$C$11,3,FALSE)) -> 
G55: 3 | H55: =IF(Resultats!B34="","",Resultats!B34&Resultats!C34) ->  | I55: =IF(H55="","",VLOOKUP(H55,Matériels!$J$2:$N$764,5,FALSE)) ->  | J55: =IF(Resultats!B34="","",Resultats!D34) ->  | K55: =IF(I55="","",VLOOKUP($C$26,$A$3:$C$11,3,FALSE)) ->  | L55: =IF(Resultats!G34="","",Resultats!G34&Resultats!H34) ->  | M55: =IF(L55="","",VLOOKUP(L55,Matériels!$J$2:$N$764,5,FALSE)) ->  | N55: =IF(Resultats!G34="","",Resultats!I34) ->  | O55: =IF(M55="","",VLOOKUP($C$37,$A$3:$C$11,3,FALSE)) -> 
G56: 4 | H56: =IF(Resultats!B35="","",Resultats!B35&Resultats!C35) ->  | I56: =IF(H56="","",VLOOKUP(H56,Matériels!$J$2:$N$764,5,FALSE)) ->  | J56: =IF(Resultats!B35="","",Resultats!D35) ->  | K56: =IF(I56="","",VLOOKUP($C$26,$A$3:$C$11,3,FALSE)) ->  | L56: =IF(Resultats!G35="","",Resultats!G35&Resultats!H35) ->  | M56: =IF(L56="","",VLOOKUP(L56,Matériels!$J$2:$N$764,5,FALSE)) ->  | N56: =IF(Resultats!G35="","",Resultats!I35) ->  | O56: =IF(M56="","",VLOOKUP($C$37,$A$3:$C$11,3,FALSE)) -> 
F57: 9 | G57: Haubans ancrages | I57: =IF(H57="","",VLOOKUP(H57,Matériels!$J$2:$N$764,5,FALSE)) ->  | M57: =IF(L57="","",VLOOKUP(L57,Matériels!$J$2:$N$764,5,FALSE)) -> 
G58: 1 | H58: =IF(Resultats!B24="","",Resultats!B24&Resultats!C24) -> 3755037556 | I58: =IF(H58="","",VLOOKUP(H58,Matériels!$J$2:$N$764,5,FALSE)) -> 08828752 | J58: =IF(Resultats!B24="","",Resultats!D24) -> 1 | K58: =IF(I58="","",VLOOKUP($C$26,$A$3:$C$11,3,FALSE)) -> Existant | L58: =IF(Resultats!G24="","",Resultats!G24&Resultats!H24) ->  | M58: =IF(L58="","",VLOOKUP(L58,Matériels!$J$2:$N$764,5,FALSE)) ->  | N58: =IF(Resultats!G24="","",Resultats!I24) ->  | O58: =IF(M58="","",VLOOKUP($C$38,$A$3:$C$11,3,FALSE)) -> 
G59: 2 | H59: =IF(Resultats!B25="","",Resultats!B25&Resultats!C25) -> 3755037556 | I59: =IF(H59="","",VLOOKUP(H59,Matériels!$J$2:$N$764,5,FALSE)) -> 08828752 | J59: =IF(Resultats!B25="","",Resultats!D25) -> 1 | K59: =IF(I59="","",VLOOKUP($C$26,$A$3:$C$11,3,FALSE)) -> Existant | L59: =IF(Resultats!G25="","",Resultats!G25&Resultats!H25) ->  | M59: =IF(L59="","",VLOOKUP(L59,Matériels!$J$2:$N$764,5,FALSE)) ->  | N59: =IF(Resultats!G25="","",Resultats!I25) ->  | O59: =IF(M59="","",VLOOKUP($C$38,$A$3:$C$11,3,FALSE)) -> 
G60: 3 | H60: =IF(Resultats!B26="","",Resultats!B26&Resultats!C26) ->  | I60: =IF(H60="","",VLOOKUP(H60,Matériels!$J$2:$N$764,5,FALSE)) ->  | J60: =IF(Resultats!B26="","",Resultats!D26) ->  | K60: =IF(I60="","",VLOOKUP($C$26,$A$3:$C$11,3,FALSE)) ->  | L60: =IF(Resultats!G26="","",Resultats!G26&Resultats!H26) ->  | M60: =IF(L60="","",VLOOKUP(L60,Matériels!$J$2:$N$764,5,FALSE)) ->  | N60: =IF(Resultats!G26="","",Resultats!I26) ->  | O60: =IF(M60="","",VLOOKUP($C$38,$A$3:$C$11,3,FALSE)) -> 
G61: 4 | H61: =IF(Resultats!B27="","",Resultats!B27&Resultats!C27) ->  | I61: =IF(H61="","",VLOOKUP(H61,Matériels!$J$2:$N$764,5,FALSE)) ->  | J61: =IF(Resultats!B27="","",Resultats!D27) ->  | K61: =IF(I61="","",VLOOKUP($C$26,$A$3:$C$11,3,FALSE)) ->  | L61: =IF(Resultats!G27="","",Resultats!G27&Resultats!H27) ->  | M61: =IF(L61="","",VLOOKUP(L61,Matériels!$J$2:$N$764,5,FALSE)) ->  | N61: =IF(Resultats!G27="","",Resultats!I27) ->  | O61: =IF(M61="","",VLOOKUP($C$38,$A$3:$C$11,3,FALSE)) -> 
G62: 5 | H62: =IF(Resultats!B28="","",Resultats!B28&Resultats!C28) ->  | I62: =IF(H62="","",VLOOKUP(H62,Matériels!$J$2:$N$764,5,FALSE)) ->  | J62: =IF(Resultats!B28="","",Resultats!D28) ->  | K62: =IF(I62="","",VLOOKUP($C$26,$A$3:$C$11,3,FALSE)) ->  | L62: =IF(Resultats!G28="","",Resultats!G28&Resultats!H28) ->  | M62: =IF(L62="","",VLOOKUP(L62,Matériels!$J$2:$N$764,5,FALSE)) ->  | N62: =IF(Resultats!G28="","",Resultats!I28) ->  | O62: =IF(M62="","",VLOOKUP($C$38,$A$3:$C$11,3,FALSE)) -> 
F63: 10 | G63: Câbles supplémentaire | I63: =IF(H63="","",VLOOKUP(H63,Matériels!$J$2:$N$764,5,FALSE)) ->  | M63: =IF(L63="","",VLOOKUP(L63,Matériels!$J$2:$N$764,5,FALSE)) -> 
G64: 1 | H64: =IF(Resultats!B29="","",Resultats!B29&Resultats!C29) ->  | I64: =IF(H64="","",VLOOKUP(H64,Matériels!$J$2:$N$764,5,FALSE)) ->  | J64: =IF(Resultats!B29="","",Resultats!D29) ->  | K64: =IF(I64="","",VLOOKUP($C$26,$A$3:$C$11,3,FALSE)) ->  | L64: =IF(Resultats!G29="","",Resultats!G29&Resultats!H29) ->  | M64: =IF(L64="","",VLOOKUP(L64,Matériels!$J$2:$N$764,5,FALSE)) ->  | N64: =IF(Resultats!G29="","",Resultats!I29) ->  | O64: =IF(M64="","",VLOOKUP($C$38,$A$3:$C$11,3,FALSE)) -> 
G65: 2 | H65: =IF(Resultats!B30="","",Resultats!B30&Resultats!C30) ->  | I65: =IF(H65="","",VLOOKUP(H65,Matériels!$J$2:$N$764,5,FALSE)) ->  | J65: =IF(Resultats!B30="","",Resultats!D30) ->  | K65: =IF(I65="","",VLOOKUP($C$26,$A$3:$C$11,3,FALSE)) ->  | L65: =IF(Resultats!G30="","",Resultats!G30&Resultats!H30) ->  | M65: =IF(L65="","",VLOOKUP(L65,Matériels!$J$2:$N$764,5,FALSE)) ->  | N65: =IF(Resultats!G30="","",Resultats!I30) ->  | O65: =IF(M65="","",VLOOKUP($C$38,$A$3:$C$11,3,FALSE)) -> 
F66: 13 | G66: Pieces de reglage | I66: =IF(H66="","",VLOOKUP(H66,Matériels!$J$2:$N$764,5,FALSE)) ->  | M66: =IF(L66="","",VLOOKUP(L66,Matériels!$J$2:$N$764,5,FALSE)) -> 
G67: 1 | H67: =IF(Resultats!B21="","",Resultats!B21&Resultats!C21) -> 37606 | I67: =IF(H67="","",VLOOKUP(H67,Matériels!$J$2:$N$764,5,FALSE)) -> 08828800 | J67: =IF(Resultats!B21="","",Resultats!D21) -> 2 | K67: =IF(I67="","",VLOOKUP($C$26,$A$3:$C$11,3,FALSE)) -> Existant | L67: =IF(Resultats!G21="","",Resultats!G21&Resultats!H21) ->  | M67: =IF(L67="","",VLOOKUP(L67,Matériels!$J$2:$N$764,5,FALSE)) ->  | N67: =IF(Resultats!G21="","",Resultats!I21) ->  | O67: =IF(M67="","",VLOOKUP($C$38,$A$3:$C$11,3,FALSE)) -> 
G68: 2 | H68: =IF(Resultats!B22="","",Resultats!B22&Resultats!C22) ->  | I68: =IF(H68="","",VLOOKUP(H68,Matériels!$J$2:$N$764,5,FALSE)) ->  | J68: =IF(Resultats!B22="","",Resultats!D22) ->  | K68: =IF(I68="","",VLOOKUP($C$26,$A$3:$C$11,3,FALSE)) ->  | L68: =IF(Resultats!G22="","",Resultats!G22&Resultats!H22) ->  | M68: =IF(L68="","",VLOOKUP(L68,Matériels!$J$2:$N$764,5,FALSE)) ->  | N68: =IF(Resultats!G22="","",Resultats!I22) ->  | O68: =IF(M68="","",VLOOKUP($C$38,$A$3:$C$11,3,FALSE)) -> 
F69: 12 | G69: Etriers | I69: =IF(H69="","",VLOOKUP(H69,Matériels!$J$2:$N$764,5,FALSE)) ->  | M69: =IF(L69="","",VLOOKUP(L69,Matériels!$J$2:$N$764,5,FALSE)) -> 
G70: 1 | H70: =IF(Resultats!B37="","",Resultats!B37&Resultats!C37) -> 3951039513 | I70: =IF(H70="","",VLOOKUP(H70,Matériels!$J$2:$N$764,5,FALSE)) -> 08828922 | J70: =IF(Resultats!B37="","",Resultats!D37) -> 2 | K70: =IF(I70="","",VLOOKUP($C$27,$A$3:$C$11,3,FALSE)) -> Existant | L70: =IF(Resultats!G37="","",Resultats!G37&Resultats!H37) ->  | M70: =IF(L70="","",VLOOKUP(L70,Matériels!$J$2:$N$764,5,FALSE)) ->  | N70: =IF(Resultats!G37="","",Resultats!I37) ->  | O70: =IF(M70="","",VLOOKUP($C$39,$A$3:$C$11,3,FALSE)) -> 
F71: 14 | G71: Poutrelle Ancrage | I71: =IF(H71="","",VLOOKUP(H71,Matériels!$J$2:$N$764,5,FALSE)) ->  | M71: =IF(L71="","",VLOOKUP(L71,Matériels!$J$2:$N$764,5,FALSE)) -> 
G72: 1 | H72: =IF(Resultats!B39="","",Resultats!B39&Resultats!C39) ->  | I72: =IF(H72="","",VLOOKUP(H72,Matériels!$J$2:$N$764,5,FALSE)) ->  | J72: =IF(Resultats!B39="","",Resultats!D39) ->  | K72: =IF(I72="","",VLOOKUP($C$27,$A$3:$C$11,3,FALSE)) ->  | L72: =IF(Resultats!G39="","",Resultats!G39&Resultats!H39) ->  | M72: =IF(L72="","",VLOOKUP(L72,Matériels!$J$2:$N$764,5,FALSE)) ->  | N72: =IF(Resultats!G39="","",Resultats!I39) ->  | O72: =IF(M72="","",VLOOKUP($C$39,$A$3:$C$11,3,FALSE)) -> 
F73: 15 | G73: Semelle d'appui | I73: =IF(H73="","",VLOOKUP(H73,Matériels!$J$2:$N$764,5,FALSE)) ->  | M73: =IF(L73="","",VLOOKUP(L73,Matériels!$J$2:$N$764,5,FALSE)) -> 
G74: 1 | H74: =IF(Resultats!B41="","",Resultats!B41&Resultats!C41) ->  | I74: =IF(H74="","",VLOOKUP(H74,Matériels!$J$2:$N$764,5,FALSE)) ->  | J74: =IF(Resultats!B41="","",Resultats!D41) ->  | K74: =IF(I74="","",VLOOKUP($C$27,$A$3:$C$11,3,FALSE)) ->  | L74: =IF(Resultats!G41="","",Resultats!G41&Resultats!H41) ->  | M74: =IF(L74="","",VLOOKUP(L74,Matériels!$J$2:$N$764,5,FALSE)) ->  | N74: =IF(Resultats!G41="","",Resultats!I41) ->  | O74: =IF(M74="","",VLOOKUP($C$39,$A$3:$C$11,3,FALSE)) -> 
F75: 16 | G75: Cuvette | I75: =IF(H75="","",VLOOKUP(H75,Matériels!$J$2:$N$764,5,FALSE)) ->  | M75: =IF(L75="","",VLOOKUP(L75,Matériels!$J$2:$N$764,5,FALSE)) -> 
G76: 1 | H76: =IF(Resultats!B43="","",Resultats!B43&Resultats!C43) ->  | I76: =IF(H76="","",VLOOKUP(H76,Matériels!$J$2:$N$764,5,FALSE)) ->  | J76: =IF(Resultats!B43="","",Resultats!D43) ->  | K76: =IF(I76="","",VLOOKUP($C$27,$A$3:$C$11,3,FALSE)) ->  | L76: =IF(Resultats!G43="","",Resultats!G43&Resultats!H43) ->  | M76: =IF(L76="","",VLOOKUP(L76,Matériels!$J$2:$N$764,5,FALSE)) ->  | N76: =IF(Resultats!G43="","",Resultats!I43) ->  | O76: =IF(M76="","",VLOOKUP($C$39,$A$3:$C$11,3,FALSE)) -> 
F80: Position | H80: Ancrage N° 1 | I80: Symbole | J80: Quantitées | K80: Statut | L80: Ancrage N° 2 | M80: Symbole | N80: Quantitées | O80: Statut
F81: 1 | G81: Ancrage Conducteurs
G82: 1 | H82: 10985352 | I82: =IF(H82="","",VLOOKUP(H82,Matériels!$J$2:$N$764,5,FALSE)) -> 30982805 | J82: 2 | K82: Existant | M82: =IF(L82="","",VLOOKUP(L82,Matériels!$J$2:$N$764,5,FALSE)) -> 
G83: 2 | I83: =IF(H83="","",VLOOKUP(H83,Matériels!$J$2:$N$764,5,FALSE)) ->  | M83: =IF(L83="","",VLOOKUP(L83,Matériels!$J$2:$N$764,5,FALSE)) -> 
G84: 3 | I84: =IF(H84="","",VLOOKUP(H84,Matériels!$J$2:$N$764,5,FALSE)) ->  | M84: =IF(L84="","",VLOOKUP(L84,Matériels!$J$2:$N$764,5,FALSE)) -> 
G85: 4 | I85: =IF(H85="","",VLOOKUP(H85,Matériels!$J$2:$N$764,5,FALSE)) ->  | M85: =IF(L85="","",VLOOKUP(L85,Matériels!$J$2:$N$764,5,FALSE)) -> 
F86: 2 | G86: Isos supple.
G87: 1 | I87: =IF(H87="","",VLOOKUP(H87,Matériels!$J$2:$N$764,5,FALSE)) ->  | M87: =IF(L87="","",VLOOKUP(L87,Matériels!$J$2:$N$764,5,FALSE)) -> 
G88: 2 | I88: =IF(H88="","",VLOOKUP(H88,Matériels!$J$2:$N$764,5,FALSE)) ->  | M88: =IF(L88="","",VLOOKUP(L88,Matériels!$J$2:$N$764,5,FALSE)) -> 
G89: 3 | I89: =IF(H89="","",VLOOKUP(H89,Matériels!$J$2:$N$764,5,FALSE)) ->  | M89: =IF(L89="","",VLOOKUP(L89,Matériels!$J$2:$N$764,5,FALSE)) -> 
G90: 4 | I90: =IF(H90="","",VLOOKUP(H90,Matériels!$J$2:$N$764,5,FALSE)) ->  | M90: =IF(L90="","",VLOOKUP(L90,Matériels!$J$2:$N$764,5,FALSE)) -> 
G91: 5 | I91: =IF(H91="","",VLOOKUP(H91,Matériels!$J$2:$N$764,5,FALSE)) ->  | M91: =IF(L91="","",VLOOKUP(L91,Matériels!$J$2:$N$764,5,FALSE)) -> 
G92: 6 | I92: =IF(H92="","",VLOOKUP(H92,Matériels!$J$2:$N$764,5,FALSE)) ->  | M92: =IF(L92="","",VLOOKUP(L92,Matériels!$J$2:$N$764,5,FALSE)) -> 
G93: 7 | I93: =IF(H93="","",VLOOKUP(H93,Matériels!$J$2:$N$764,5,FALSE)) ->  | M93: =IF(L93="","",VLOOKUP(L93,Matériels!$J$2:$N$764,5,FALSE)) -> 
G94: 8 | I94: =IF(H94="","",VLOOKUP(H94,Matériels!$J$2:$N$764,5,FALSE)) ->  | M94: =IF(L94="","",VLOOKUP(L94,Matériels!$J$2:$N$764,5,FALSE)) -> 
G95: 9 | I95: =IF(H95="","",VLOOKUP(H95,Matériels!$J$2:$N$764,5,FALSE)) ->  | M95: =IF(L95="","",VLOOKUP(L95,Matériels!$J$2:$N$764,5,FALSE)) -> 
F96: 3 | G96: Appareils tendeur
G97: 1 | H97: 222940222942 | I97: =IF(H97="","",VLOOKUP(H97,Matériels!$J$2:$N$764,5,FALSE)) -> 10984102 | J97: 1 | K97: Existant | M97: =IF(L97="","",VLOOKUP(L97,Matériels!$J$2:$N$764,5,FALSE)) -> 
G98: 2 | I98: =IF(H98="","",VLOOKUP(H98,Matériels!$J$2:$N$764,5,FALSE)) ->  | M98: =IF(L98="","",VLOOKUP(L98,Matériels!$J$2:$N$764,5,FALSE)) -> 
F99: 4 | G99: Pieces Ancrage cables
G100: Ancrage 1 | H100: 22173 | I100: =IF(H100="","",VLOOKUP(H100,Matériels!$J$2:$N$764,5,FALSE)) -> 08820583 | J100: 2 | K100: Existant | M100: =IF(L100="","",VLOOKUP(L100,Matériels!$J$2:$N$764,5,FALSE)) -> 
G101: Ancrage 2 | I101: =IF(H101="","",VLOOKUP(H101,Matériels!$J$2:$N$764,5,FALSE)) ->  | M101: =IF(L101="","",VLOOKUP(L101,Matériels!$J$2:$N$764,5,FALSE)) -> 
G102: Ancrage 3 | I102: =IF(H102="","",VLOOKUP(H102,Matériels!$J$2:$N$764,5,FALSE)) ->  | M102: =IF(L102="","",VLOOKUP(L102,Matériels!$J$2:$N$764,5,FALSE)) -> 
F103: 5 | G103: Pieces Ancrage haubans
G104: Hauban 1 | H104: 22155 | I104: =IF(H104="","",VLOOKUP(H104,Matériels!$J$2:$N$764,5,FALSE)) -> 08820565 | J104: 2 | K104: Existant | M104: =IF(L104="","",VLOOKUP(L104,Matériels!$J$2:$N$764,5,FALSE)) -> 
G105: Hauban 2 | I105: =IF(H105="","",VLOOKUP(H105,Matériels!$J$2:$N$764,5,FALSE)) ->  | M105: =IF(L105="","",VLOOKUP(L105,Matériels!$J$2:$N$764,5,FALSE)) -> 
G106: Hauban 3 | I106: =IF(H106="","",VLOOKUP(H106,Matériels!$J$2:$N$764,5,FALSE)) ->  | M106: =IF(L106="","",VLOOKUP(L106,Matériels!$J$2:$N$764,5,FALSE)) -> 
G107: Hauban 4 | I107: =IF(H107="","",VLOOKUP(H107,Matériels!$J$2:$N$764,5,FALSE)) ->  | M107: =IF(L107="","",VLOOKUP(L107,Matériels!$J$2:$N$764,5,FALSE)) -> 
F108: 6 | G108: Boulons
G109: 1 | H109: 01602487 | I109: =IF(H109="","",VLOOKUP(H109,Matériels!$J$2:$N$764,5,FALSE)) -> 01602487 | J109: 8 | K109: Existant | M109: =IF(L109="","",VLOOKUP(L109,Matériels!$J$2:$N$764,5,FALSE)) -> 
G110: 2 | I110: =IF(H110="","",VLOOKUP(H110,Matériels!$J$2:$N$764,5,FALSE)) ->  | M110: =IF(L110="","",VLOOKUP(L110,Matériels!$J$2:$N$764,5,FALSE)) -> 
G111: 3 | I111: =IF(H111="","",VLOOKUP(H111,Matériels!$J$2:$N$764,5,FALSE)) ->  | M111: =IF(L111="","",VLOOKUP(L111,Matériels!$J$2:$N$764,5,FALSE)) -> 
G112: 4 | I112: =IF(H112="","",VLOOKUP(H112,Matériels!$J$2:$N$764,5,FALSE)) ->  | M112: =IF(L112="","",VLOOKUP(L112,Matériels!$J$2:$N$764,5,FALSE)) -> 
G113: 5 | I113: =IF(H113="","",VLOOKUP(H113,Matériels!$J$2:$N$764,5,FALSE)) ->  | M113: =IF(L113="","",VLOOKUP(L113,Matériels!$J$2:$N$764,5,FALSE)) -> 
G114: 6 | I114: =IF(H114="","",VLOOKUP(H114,Matériels!$J$2:$N$764,5,FALSE)) ->  | M114: =IF(L114="","",VLOOKUP(L114,Matériels!$J$2:$N$764,5,FALSE)) -> 
G115: 7 | I115: =IF(H115="","",VLOOKUP(H115,Matériels!$J$2:$N$764,5,FALSE)) ->  | M115: =IF(L115="","",VLOOKUP(L115,Matériels!$J$2:$N$764,5,FALSE)) -> 
F116: 7 | G116: Rondelles
G117: 1 | I117: =IF(H117="","",VLOOKUP(H117,Matériels!$J$2:$N$764,5,FALSE)) ->  | M117: =IF(L117="","",VLOOKUP(L117,Matériels!$J$2:$N$764,5,FALSE)) -> 
F118: 8 | G118: Jumelles
G119: 1 | H119: 37627103 | I119: =IF(H119="","",VLOOKUP(H119,Matériels!$J$2:$N$764,5,FALSE)) -> 00986723 | J119: 1 | K119: Existant | M119: =IF(L119="","",VLOOKUP(L119,Matériels!$J$2:$N$764,5,FALSE)) -> 
G120: 2 | H120: 37627101 | I120: =IF(H120="","",VLOOKUP(H120,Matériels!$J$2:$N$764,5,FALSE)) -> 00986721 | J120: 1 | K120: Existant | M120: =IF(L120="","",VLOOKUP(L120,Matériels!$J$2:$N$764,5,FALSE)) -> 
G121: 3 | I121: =IF(H121="","",VLOOKUP(H121,Matériels!$J$2:$N$764,5,FALSE)) ->  | M121: =IF(L121="","",VLOOKUP(L121,Matériels!$J$2:$N$764,5,FALSE)) -> 
G122: 4 | I122: =IF(H122="","",VLOOKUP(H122,Matériels!$J$2:$N$764,5,FALSE)) ->  | M122: =IF(L122="","",VLOOKUP(L122,Matériels!$J$2:$N$764,5,FALSE)) -> 
F123: 9 | G123: Haubans ancrages
G124: 1 | H124: 3755037556 | I124: =IF(H124="","",VLOOKUP(H124,Matériels!$J$2:$N$764,5,FALSE)) -> 08828752 | J124: 2 | K124: Existant | M124: =IF(L124="","",VLOOKUP(L124,Matériels!$J$2:$N$764,5,FALSE)) -> 
G125: 2 | I125: =IF(H125="","",VLOOKUP(H125,Matériels!$J$2:$N$764,5,FALSE)) ->  | M125: =IF(L125="","",VLOOKUP(L125,Matériels!$J$2:$N$764,5,FALSE)) -> 
G126: 3 | I126: =IF(H126="","",VLOOKUP(H126,Matériels!$J$2:$N$764,5,FALSE)) ->  | M126: =IF(L126="","",VLOOKUP(L126,Matériels!$J$2:$N$764,5,FALSE)) -> 
G127: 4 | I127: =IF(H127="","",VLOOKUP(H127,Matériels!$J$2:$N$764,5,FALSE)) ->  | M127: =IF(L127="","",VLOOKUP(L127,Matériels!$J$2:$N$764,5,FALSE)) -> 
G128: 5 | I128: =IF(H128="","",VLOOKUP(H128,Matériels!$J$2:$N$764,5,FALSE)) ->  | M128: =IF(L128="","",VLOOKUP(L128,Matériels!$J$2:$N$764,5,FALSE)) -> 
F129: 10 | G129: Câbles supplémentaire
G130: 1 | I130: =IF(H130="","",VLOOKUP(H130,Matériels!$J$2:$N$764,5,FALSE)) ->  | M130: =IF(L130="","",VLOOKUP(L130,Matériels!$J$2:$N$764,5,FALSE)) -> 
G131: 2 | I131: =IF(H131="","",VLOOKUP(H131,Matériels!$J$2:$N$764,5,FALSE)) ->  | M131: =IF(L131="","",VLOOKUP(L131,Matériels!$J$2:$N$764,5,FALSE)) -> 
F132: 11 | G132: Tiges filetées
G133: 1 | I133: =IF(H133="","",VLOOKUP(H133,Matériels!$J$2:$N$764,5,FALSE)) ->  | M133: =IF(L133="","",VLOOKUP(L133,Matériels!$J$2:$N$764,5,FALSE)) -> 
F134: 12 | G134: Etriers
G135: 1 | H135: 3951039513 | I135: =IF(H135="","",VLOOKUP(H135,Matériels!$J$2:$N$764,5,FALSE)) -> 08828922 | J135: 2 | K135: Existant | M135: =IF(L135="","",VLOOKUP(L135,Matériels!$J$2:$N$764,5,FALSE)) -> 
F136: 13 | G136: Pieces de reglage
G137: 1 | H137: 37606 | I137: =IF(H137="","",VLOOKUP(H137,Matériels!$J$2:$N$764,5,FALSE)) -> 08828800 | J137: 2 | K137: Existant | M137: =IF(L137="","",VLOOKUP(L137,Matériels!$J$2:$N$764,5,FALSE)) -> 
G138: 2 | I138: =IF(H138="","",VLOOKUP(H138,Matériels!$J$2:$N$764,5,FALSE)) ->  | M138: =IF(L138="","",VLOOKUP(L138,Matériels!$J$2:$N$764,5,FALSE)) -> 
F139: 14 | G139: Poutrelle Ancrage
G140: 1 | I140: =IF(H140="","",VLOOKUP(H140,Matériels!$J$2:$N$764,5,FALSE)) ->  | M140: =IF(L140="","",VLOOKUP(L140,Matériels!$J$2:$N$764,5,FALSE)) -> 
F141: 15 | G141: Semelle d'appui
G142: 1 | I142: =IF(H142="","",VLOOKUP(H142,Matériels!$J$2:$N$764,5,FALSE)) ->  | M142: =IF(L142="","",VLOOKUP(L142,Matériels!$J$2:$N$764,5,FALSE)) -> 
F143: 16 | G143: Cuvette
G144: 1 | I144: =IF(H144="","",VLOOKUP(H144,Matériels!$J$2:$N$764,5,FALSE)) ->  | M144: =IF(L144="","",VLOOKUP(L144,Matériels!$J$2:$N$764,5,FALSE)) -> 

Sheet Erreurs (hidden)
A1: Feuille de gestion des erreurs
A4: Cellules à compléter | B4: Erreur ? | C4: Message
A5: Caractéristiques du support :
A6: Echantillon | B6: =IF(Support="","VRAI","FAUX") -> FAUX | C6: L'echantillon du support reste a renseigner [B9]
A7: Hauteur | B7: =IF(Hsupport="","VRAI","FAUX") -> FAUX | C7: La hauteur du support reste a renseigner [D9]
A8: Cote A | B8: =IF(CoteA="","VRAI","FAUX") -> FAUX | C8: La cote A du support reste a renseigner [F9]
A9: Arasement | B9: =IF(Arase="","VRAI","FAUX") -> FAUX | C9: L'arasement du support reste a renseigner [H9]
A10: Massif | B10: =IF(Msupp="","VRAI","FAUX") -> FAUX | C10: le type de massif du support reste a renseigner [B11]
A11: Echantillon | B11: =IF(EMSupp="","VRAI","FAUX") -> FAUX | C11: l'echantillon du massif pour le support reste a renseigner [D11]
A12: Ancrage des conducteurs | B12: =IF(Carac1="","VRAI","FAUX") -> FAUX | C12: La direction de l'ancrage des conducteurs reste a renseigner [F13]
A14: Caractéristiques de l'Ancrage n°1 :
A15: Hauban de préf | B15: =IF(AND(Haubpref1="",MassifAnc1<>"Aucun"),"VRAI","FAUX") -> FAUX | C15: Le type de hauban de preference pour l'Ancrage n°1 n'est pas renseigné, un hauban en cable sera affecté
A16: Tensions méca | B16: =IF(AND(Tension1=0,MassifAnc1<>"Aucun"),"VRAI","FAUX") -> FAUX | C16: Vous devez renseigner des tensions mécanique pour l'Ancrage n°1 [A16]
A17: Hauteur Ancrage 1 | B17: =IF(HAnca1="","VRAI","FAUX") -> FAUX | C17: La hauteur de l'ancrage du Fc n°1 n'est pas renseigné sur l'Ancrage n°1 [I17]
A18: Hauteur Ancrage 2 | B18: =IF(AND(HAnca2="",NbAnc1<>1),"VRAI","FAUX") -> FAUX | C18: La hauteur de l'ancrage du Fc n°2 n'est pas renseigné sur l'Ancrage n°1 [I18]
A19: Hauteur Ancrage 3 | B19: =IF(AND(HAnca3="",NbAnc1>2),"VRAI","FAUX") -> FAUX | C19: La hauteur de l'ancrage du Fc n°3 n'est pas renseigné sur l'Ancrage n°1 [I19]
A20: Hauteur du Hauban n°1 | B20: =IF(AND(MassifAnc1<>"Aucun",HHauba1=""),"VRAI","FAUX") -> FAUX | C20: La hauteur d'ancrage du hauban n°1 n'est pas renseigné sur l'Ancrage n°1 [I21]
A21: Hauteur du Hauban n°2 | B21: =IF(AND(MassifAnc1<>"Aucun",Résultats!B9>1,HHauba2=""),"VRAI","FAUX") -> FAUX | C21: La hauteur d'ancrage du hauban n°2 n'est pas renseigné sur l'Ancrage n°1 [I22]
A22: Hauteur du Hauban n°3 | B22: =IF(AND(MassifAnc1<>"Aucun",Résultats!B9>2,HHauba3=""),"VRAI","FAUX") -> FAUX | C22: La hauteur d'ancrage du hauban n°3 n'est pas renseigné sur l'Ancrage n°1 [I23]
A23: Hauteur du Hauban n°4 | B23: =IF(AND(MassifAnc1<>"Aucun",Résultats!B9>3,HHauba4=""),"VRAI","FAUX") -> FAUX | C23: La hauteur d'ancrage du hauban n°4 n'est pas renseigné sur l'Ancrage n°1 [I24]
A24: Appareil T N°1 | B24: =IF(ATanc1=1,"FAUX",IF(OR(PtATa1="",PlanATa1="",RepATa1=""),"VRAI","FAUX")) -> FAUX | C24: Une donnée reste a renseigner pour l'Appareil T. n°1 sur l'Ancrage n°1 [G27:I27]
A25: Appareil T N°2 | B25: =IF(ATanc1=1,"FAUX",IF(NbAnc1=1,"FAUX",IF(OR(PtATa2<>"",PlanATa2<>"",RepATa2<>""),IF(OR(PtATa2="",PlanATa2="",RepATa2=""),"VRAI","FAUX"),"FAUX"))) -> FAUX | C25: Une donnée reste a renseigner pour l'Appareil T. n°2 sur l'Ancrage n°1 [G28:I28]
A27: Distance Massif | B27: =IF(MassifD1<>"","FAUX",IF(OR(MassifD1<>"",MassifAnc1="Aucun"),"FAUX","VRAI")) -> FAUX | C27: La distance du massif de l'Ancrage n°1 reste a renseigner [B32]
A28: Type de Massif | B28: =IF(MassifAnc1="","VRAI","FAUX") -> FAUX | C28: Le type de massif de l'Ancrage n°1 reste a renseigner [E32]
A30: Caractéristiques de l'Ancrage n°2 : | D30: =IF(NbAncrage=1,"FAUX","VRAI") -> FAUX
A31: Hauban de préf | B31: =IF(D30="FAUX","FAUX",IF(AND(Haubpref2="",MassifAnc2<>"Aucun"),"VRAI","FAUX")) -> FAUX | C31: Le type de hauban de preference pour l'Ancrage n°2 n'est pas renseigné, un hauban en cable sera affecté [I35]
A32: Tensions méca | B32: =IF(D30="FAUX","FAUX",IF(AND(Tension2=0,MassifAnc2<>"Aucun"),"VRAI","FAUX")) -> FAUX | C32: Vous devez renseigner des tensions mécanique pour l'Ancrage n°2 [A37]
A33: Hauteur Ancrage 1 | B33: =IF(D30="FAUX","FAUX",IF(HAncb1="","VRAI","FAUX")) -> FAUX | C33: La hauteur de l'ancrage du Fc n°1 n'est pas renseigné sur l'Ancrage n°2 [I38]
A34: Hauteur Ancrage 2 | B34: =IF(D30="FAUX","FAUX",IF(AND(NbAnc2<>"",NbAnc2>1,HAncb2=""),"VRAI","FAUX")) -> FAUX | C34: La hauteur de l'ancrage du Fc n°2 n'est pas renseigné sur l'Ancrage n°2 [I39]
A35: Hauteur Ancrage 3 | B35: =IF(D30="FAUX","FAUX",IF(AND(NbAnc2<>"",NbAnc2>2,HAncb3=""),"VRAI","FAUX")) -> FAUX | C35: La hauteur de l'ancrage du Fc n°3 n'est pas renseigné sur l'Ancrage n°2 [I40]
A36: Hauteur du Hauban n°1 | B36: =IF(D30="FAUX","FAUX",IF(AND(MassifAnc2<>"Aucun",HHaubb1=""),"VRAI","FAUX")) -> FAUX | C36: La hauteur d'ancrage du hauban n°1 n'est pas renseigné sur l'Ancrage n°2 [I42]
A37: Hauteur du Hauban n°2 | B37: =IF(D30="FAUX","FAUX",IF(AND(MassifAnc2<>"Aucun",Résultats!C9>1,HHaubb2=""),"VRAI","FAUX")) -> FAUX | C37: La hauteur d'ancrage du hauban n°2 n'est pas renseigné sur l'Ancrage n°2 [I43]
A38: Hauteur du Hauban n°3 | B38: =IF(D30="FAUX","FAUX",IF(AND(MassifAnc2<>"Aucun",Résultats!C9>2,HHaubb3=""),"VRAI","FAUX")) -> FAUX | C38: La hauteur d'ancrage du hauban n°3 n'est pas renseigné sur l'Ancrage n°2 [I44]
A39: Hauteur du Hauban n°4 | B39: =IF(D30="FAUX","FAUX",IF(AND(MassifAnc2<>"Aucun",Résultats!C9>3,HHaubb4=""),"VRAI","FAUX")) -> FAUX | C39: La hauteur d'ancrage du hauban n°4 n'est pas renseigné sur l'Ancrage n°2 [I45]
A40: Appareil T N°1 | B40: =IF(D30="FAUX","FAUX",IF(OR(ATanc2="NON",ATanc2=""),"FAUX",IF(OR(PtATb1="",PlanATb1="",RepATb1=""),"VRAI","FAUX"))) -> FAUX | C40: Une donnée reste a renseigner pour l'Appareil T. n°1 sur l'Ancrage n°2 [G48:I48]
A41: Appareil T N°2 | B41: =IF(D30="FAUX","FAUX",IF(OR(ATanc2="NON",ATanc2=""),"FAUX",IF(OR(NbAnc2=1,NbAnc2=""),"FAUX",IF(OR(PtATb2<>"",PlanATb2<>"",RepATb2<>""),IF(OR(PtATb2="",PlanATb2="",RepATb2=""),"VRAI","FAUX"),"FAUX")))) -> FAUX | C41: Une donnée reste a renseigner pour l'Appareil T. n°2 sur l'Ancrage n°2 [G49:I49]
A43: Distance Massif | B43: =IF(D30="FAUX","FAUX",IF(MassifD2<>"","FAUX",IF(OR(MassifD2<>"",MassifAnc2="Aucun"),"FAUX","VRAI"))) -> FAUX | C43: La distance du massif de l'Ancrage n°2 reste a renseigner [B53]
A44: Type de Massif | B44: =IF(D30="FAUX","FAUX",IF(MassifAnc2="","VRAI","FAUX")) -> FAUX | C44: Le type de massif de l'Ancrage n°2 reste a renseigner [E53]
A46: Effort du Massif 1 | B46: =IF(AND(MassifAnc1="Acn",Tension1>50),"VRAI",IF(AND(MassifAnc1="Api",Tension1>190),"VRAI",IF(AND(MassifAnc1="Apns",Tension1>190),"VRAI","FAUX"))) -> FAUX | C46: Le massif de l'Ancrage n°1 renseigné ne peut pas supporter autant d'efforts [E32]
A47: Effort du Massif 2 | B47: =IF(AND(MassifAnc2="Acn",Tension2>50),"VRAI",IF(AND(MassifAnc2="Api",Tension2>190),"VRAI",IF(AND(MassifAnc2="Apns",Tension2>190),"VRAI","FAUX"))) -> FAUX | C47: Le massif de l'Ancrage n°2 renseigné ne peut pas supporter autant d'efforts [E53]

Sheet Impression (hidden)
A1: DETERMINATION D'ANCRAGES
C3: Support
C4: Echantillon : | E4: =IF(Resultats!F4="","",Resultats!F4) -> HEA300J
C5: Massif : | E5: =IF(Resultats!F5="","",Resultats!F5) -> 4Pn
C6: Arrasement : | E6: =IF(Resultats!F6="","",Resultats!F6) -> 0.08
B8: Ancrage N°1 | F8: Ancrage N°2
A9: Tension Mécanique : | B9: =IF(Resultats!C9="","",Resultats!C9) -> 90.8 | E9: Tension Mécanique : | F9: =IF(Resultats!H9="","",Resultats!H9) -> 0
A10: Massif : | B10: =IF(Resultats!B10="","",Resultats!B10) -> 9 | C10: =IF(Resultats!C10="","",Resultats!C10) -> Api | E10: Massif : | F10: =IF(Resultats!G10="","",Resultats!G10) ->  | G10: =IF(Resultats!H10="","",Resultats!H10) -> 
A12: Designations | B12: Symboles | C12: Quantités | E12: Designations | F12: Symboles | G12: Quantités
A13: =IF(B13="","",VLOOKUP(B13,Matériels!$B$2:$C$1004,2,FALSE)) -> Piece d'ancrage Hauban | B13: =IFERROR(VLOOKUP(Resultats!B13&Resultats!C13,Matériels!$J$2:$N$1004,5,FALSE),"") -> 08820565 | C13: =IF(Resultats!D13="","",Resultats!D13) -> 1 | E13: =IF(F13="","",VLOOKUP(F13,Matériels!$B$2:$C$1004,2,FALSE)) ->  | F13: =IFERROR(VLOOKUP(Resultats!G13&Resultats!H13,Matériels!$J$2:$N$1004,5,FALSE),"") ->  | G13: =IF(Resultats!I13="","",Resultats!I13) -> 
A14: =IF(B14="","",VLOOKUP(B14,Matériels!$B$2:$C$1004,2,FALSE)) -> Piece d'ancrage Hauban | B14: =IFERROR(VLOOKUP(Resultats!B14&Resultats!C14,Matériels!$J$2:$N$1004,5,FALSE),"") -> 08820565 | C14: =IF(Resultats!D14="","",Resultats!D14) -> 1 | E14: =IF(F14="","",VLOOKUP(F14,Matériels!$B$2:$C$1004,2,FALSE)) ->  | F14: =IFERROR(VLOOKUP(Resultats!G14&Resultats!H14,Matériels!$J$2:$N$1004,5,FALSE),"") ->  | G14: =IF(Resultats!I14="","",Resultats!I14) -> 
A15: =IF(B15="","",VLOOKUP(B15,Matériels!$B$2:$C$1004,2,FALSE)) ->  | B15: =IFERROR(VLOOKUP(Resultats!B15&Resultats!C15,Matériels!$J$2:$N$1004,5,FALSE),"") ->  | C15: =IF(Resultats!D15="","",Resultats!D15) ->  | E15: =IF(F15="","",VLOOKUP(F15,Matériels!$B$2:$C$1004,2,FALSE)) ->  | F15: =IFERROR(VLOOKUP(Resultats!G15&Resultats!H15,Matériels!$J$2:$N$1004,5,FALSE),"") ->  | G15: =IF(Resultats!I15="","",Resultats!I15) -> 
A16: =IF(B16="","",VLOOKUP(B16,Matériels!$B$2:$C$1004,2,FALSE)) ->  | B16: =IFERROR(VLOOKUP(Resultats!B16&Resultats!C16,Matériels!$J$2:$N$1004,5,FALSE),"") ->  | C16: =IF(Resultats!D16="","",Resultats!D16) ->  | E16: =IF(F16="","",VLOOKUP(F16,Matériels!$B$2:$C$1004,2,FALSE)) ->  | F16: =IFERROR(VLOOKUP(Resultats!G16&Resultats!H16,Matériels!$J$2:$N$1004,5,FALSE),"") ->  | G16: =IF(Resultats!I16="","",Resultats!I16) -> 
A17: =IF(B17="","",VLOOKUP(B17,Matériels!$B$2:$C$1004,2,FALSE)) -> Piece d'ancrage Câble | B17: =IFERROR(VLOOKUP(Resultats!B17&Resultats!C17,Matériels!$J$2:$N$1004,5,FALSE),"") -> 08820583 | C17: =IF(Resultats!D17="","",Resultats!D17) -> 1 | E17: =IF(F17="","",VLOOKUP(F17,Matériels!$B$2:$C$1004,2,FALSE)) ->  | F17: =IFERROR(VLOOKUP(Resultats!G17&Resultats!H17,Matériels!$J$2:$N$1004,5,FALSE),"") ->  | G17: =IF(Resultats!I17="","",Resultats!I17) -> 
A18: =IF(B18="","",VLOOKUP(B18,Matériels!$B$2:$C$1004,2,FALSE)) -> Piece d'ancrage Câble | B18: =IFERROR(VLOOKUP(Resultats!B18&Resultats!C18,Matériels!$J$2:$N$1004,5,FALSE),"") -> 08820583 | C18: =IF(Resultats!D18="","",Resultats!D18) -> 1 | E18: =IF(F18="","",VLOOKUP(F18,Matériels!$B$2:$C$1004,2,FALSE)) ->  | F18: =IFERROR(VLOOKUP(Resultats!G18&Resultats!H18,Matériels!$J$2:$N$1004,5,FALSE),"") ->  | G18: =IF(Resultats!I18="","",Resultats!I18) -> 
A19: =IF(B19="","",VLOOKUP(B19,Matériels!$B$2:$C$1004,2,FALSE)) ->  | B19: =IFERROR(VLOOKUP(Resultats!B19&Resultats!C19,Matériels!$J$2:$N$1004,5,FALSE),"") ->  | C19: =IF(Resultats!D19="","",Resultats!D19) ->  | E19: =IF(F19="","",VLOOKUP(F19,Matériels!$B$2:$C$1004,2,FALSE)) ->  | F19: =IFERROR(VLOOKUP(Resultats!G19&Resultats!H19,Matériels!$J$2:$N$1004,5,FALSE),"") ->  | G19: =IF(Resultats!I19="","",Resultats!I19) -> 
B20: Pieces de Reglages | F20: Pieces de Reglages
A21: =IF(B21="","",VLOOKUP(B21,Matériels!$B$2:$C$1004,2,FALSE)) -> Piece de Reglage | B21: =IFERROR(VLOOKUP(Resultats!B21&Resultats!C21,Matériels!$J$2:$N$1004,5,FALSE),"") -> 08828800 | C21: =IF(Resultats!D21="","",Resultats!D21) -> 2 | E21: =IF(F21="","",VLOOKUP(F21,Matériels!$B$2:$C$1004,2,FALSE)) ->  | F21: =IFERROR(VLOOKUP(Resultats!G21&Resultats!H21,Matériels!$J$2:$N$1004,5,FALSE),"") ->  | G21: =IF(Resultats!I21="","",Resultats!I21) -> 
A22: =IF(B22="","",VLOOKUP(B22,Matériels!$B$2:$C$1004,2,FALSE)) ->  | B22: =IFERROR(VLOOKUP(Resultats!B22&Resultats!C22,Matériels!$J$2:$N$1004,5,FALSE),"") ->  | C22: =IF(Resultats!D22="","",Resultats!D22) ->  | E22: =IF(F22="","",VLOOKUP(F22,Matériels!$B$2:$C$1004,2,FALSE)) ->  | F22: =IFERROR(VLOOKUP(Resultats!G22&Resultats!H22,Matériels!$J$2:$N$1004,5,FALSE),"") ->  | G22: =IF(Resultats!I22="","",Resultats!I22) -> 
B23: Haubans d'Ancrages | F23: Haubans d'Ancrages
A24: =IF(B24="","",VLOOKUP(B24,Matériels!$B$2:$C$1004,2,FALSE)) -> hauban d'ancrage Ø36 de Lg= 8,75m | B24: =IFERROR(VLOOKUP(Resultats!B24&Resultats!C24,Matériels!$J$2:$N$1004,5,FALSE),"") -> 08828752 | C24: =IF(Resultats!D24="","",Resultats!D24) -> 1 | E24: =IF(F24="","",VLOOKUP(F24,Matériels!$B$2:$C$1004,2,FALSE)) ->  | F24: =IFERROR(VLOOKUP(Resultats!G24&Resultats!H24,Matériels!$J$2:$N$1004,5,FALSE),"") ->  | G24: =IF(Resultats!I24="","",Resultats!I24) -> 
A25: =IF(B25="","",VLOOKUP(B25,Matériels!$B$2:$C$1004,2,FALSE)) -> hauban d'ancrage Ø36 de Lg= 8,75m | B25: =IFERROR(VLOOKUP(Resultats!B25&Resultats!C25,Matériels!$J$2:$N$1004,5,FALSE),"") -> 08828752 | C25: =IF(Resultats!D25="","",Resultats!D25) -> 1 | E25: =IF(F25="","",VLOOKUP(F25,Matériels!$B$2:$C$1004,2,FALSE)) ->  | F25: =IFERROR(VLOOKUP(Resultats!G25&Resultats!H25,Matériels!$J$2:$N$1004,5,FALSE),"") ->  | G25: =IF(Resultats!I25="","",Resultats!I25) -> 
A26: =IF(B26="","",VLOOKUP(B26,Matériels!$B$2:$C$1004,2,FALSE)) ->  | B26: =IFERROR(VLOOKUP(Resultats!B26&Resultats!C26,Matériels!$J$2:$N$1004,5,FALSE),"") ->  | C26: =IF(Resultats!D26="","",Resultats!D26) ->  | E26: =IF(F26="","",VLOOKUP(F26,Matériels!$B$2:$C$1004,2,FALSE)) ->  | F26: =IFERROR(VLOOKUP(Resultats!G26&Resultats!H26,Matériels!$J$2:$N$1004,5,FALSE),"") ->  | G26: =IF(Resultats!I26="","",Resultats!I26) -> 
A27: =IF(B27="","",VLOOKUP(B27,Matériels!$B$2:$C$1004,2,FALSE)) ->  | B27: =IFERROR(VLOOKUP(Resultats!B27&Resultats!C27,Matériels!$J$2:$N$1004,5,FALSE),"") ->  | C27: =IF(Resultats!D27="","",Resultats!D27) ->  | E27: =IF(F27="","",VLOOKUP(F27,Matériels!$B$2:$C$1004,2,FALSE)) ->  | F27: =IFERROR(VLOOKUP(Resultats!G27&Resultats!H27,Matériels!$J$2:$N$1004,5,FALSE),"") ->  | G27: =IF(Resultats!I27="","",Resultats!I27) -> 
A28: =IF(B28="","",VLOOKUP(B28,Matériels!$B$2:$C$1004,2,FALSE)) ->  | B28: =IFERROR(VLOOKUP(Resultats!B28&Resultats!C28,Matériels!$J$2:$N$1004,5,FALSE),"") ->  | C28: =IF(Resultats!D28="","",Resultats!D28) ->  | E28: =IF(F28="","",VLOOKUP(F28,Matériels!$B$2:$C$1004,2,FALSE)) ->  | F28: =IFERROR(VLOOKUP(Resultats!G28&Resultats!H28,Matériels!$J$2:$N$1004,5,FALSE),"") ->  | G28: =IF(Resultats!I28="","",Resultats!I28) -> 
A29: =IF(B29="","",VLOOKUP(B29,Matériels!$B$2:$C$1004,2,FALSE)) ->  | B29: =IFERROR(VLOOKUP(Resultats!B29&Resultats!C29,Matériels!$J$2:$N$1004,5,FALSE),"") ->  | C29: =IF(Resultats!D29="","",Resultats!D29) ->  | E29: =IF(F29="","",VLOOKUP(F29,Matériels!$B$2:$C$1004,2,FALSE)) ->  | F29: =IFERROR(VLOOKUP(Resultats!G29&Resultats!H29,Matériels!$J$2:$N$1004,5,FALSE),"") ->  | G29: =IF(Resultats!I29="","",Resultats!I29) -> 
A30: =IF(B30="","",VLOOKUP(B30,Matériels!$B$2:$C$1004,2,FALSE)) ->  | B30: =IFERROR(VLOOKUP(Resultats!B30&Resultats!C30,Matériels!$J$2:$N$1004,5,FALSE),"") ->  | C30: =IF(Resultats!D30="","",Resultats!D30) ->  | E30: =IF(F30="","",VLOOKUP(F30,Matériels!$B$2:$C$1004,2,FALSE)) ->  | F30: =IFERROR(VLOOKUP(Resultats!G30&Resultats!H30,Matériels!$J$2:$N$1004,5,FALSE),"") ->  | G30: =IF(Resultats!I30="","",Resultats!I30) -> 
B31: Jumelles | F31: Jumelles
A32: =IF(B32="","",VLOOKUP(B32,Matériels!$B$2:$C$1004,2,FALSE)) -> Jumelles de 1,00m | B32: =IFERROR(VLOOKUP(Resultats!B32&Resultats!C32,Matériels!$J$2:$N$1004,5,FALSE),"") -> 00986723 | C32: =IF(Resultats!D32="","",Resultats!D32) -> 1 | E32: =IF(F32="","",VLOOKUP(F32,Matériels!$B$2:$C$1004,2,FALSE)) ->  | F32: =IFERROR(VLOOKUP(Resultats!G32&Resultats!H32,Matériels!$J$2:$N$1004,5,FALSE),"") ->  | G32: =IF(Resultats!I32="","",Resultats!I32) -> 
A33: =IF(B33="","",VLOOKUP(B33,Matériels!$B$2:$C$1004,2,FALSE)) -> Jumelles de 0,12m | B33: =IFERROR(VLOOKUP(Resultats!B33&Resultats!C33,Matériels!$J$2:$N$1004,5,FALSE),"") -> 00986721 | C33: =IF(Resultats!D33="","",Resultats!D33) -> 1 | E33: =IF(F33="","",VLOOKUP(F33,Matériels!$B$2:$C$1004,2,FALSE)) ->  | F33: =IFERROR(VLOOKUP(Resultats!G33&Resultats!H33,Matériels!$J$2:$N$1004,5,FALSE),"") ->  | G33: =IF(Resultats!I33="","",Resultats!I33) -> 
A34: =IF(B34="","",VLOOKUP(B34,Matériels!$B$2:$C$1004,2,FALSE)) ->  | B34: =IFERROR(VLOOKUP(Resultats!B34&Resultats!C34,Matériels!$J$2:$N$1004,5,FALSE),"") ->  | C34: =IF(Resultats!D34="","",Resultats!D34) ->  | E34: =IF(F34="","",VLOOKUP(F34,Matériels!$B$2:$C$1004,2,FALSE)) ->  | F34: =IFERROR(VLOOKUP(Resultats!G34&Resultats!H34,Matériels!$J$2:$N$1004,5,FALSE),"") ->  | G34: =IF(Resultats!I34="","",Resultats!I34) -> 
A35: =IF(B35="","",VLOOKUP(B35,Matériels!$B$2:$C$1004,2,FALSE)) ->  | B35: =IFERROR(VLOOKUP(Resultats!B35&Resultats!C35,Matériels!$J$2:$N$1004,5,FALSE),"") ->  | C35: =IF(Resultats!D35="","",Resultats!D35) ->  | E35: =IF(F35="","",VLOOKUP(F35,Matériels!$B$2:$C$1004,2,FALSE)) ->  | F35: =IFERROR(VLOOKUP(Resultats!G35&Resultats!H35,Matériels!$J$2:$N$1004,5,FALSE),"") ->  | G35: =IF(Resultats!I35="","",Resultats!I35) -> 
B36: Etriers | F36: Etriers
A37: =IF(B37="","",VLOOKUP(B37,Matériels!$B$2:$C$1004,2,FALSE)) -> Etrier | B37: =IFERROR(VLOOKUP(Resultats!B37&Resultats!C37,Matériels!$J$2:$N$1004,5,FALSE),"") -> 08828922 | C37: =IF(Resultats!D37="","",Resultats!D37) -> 2 | E37: =IF(F37="","",VLOOKUP(F37,Matériels!$B$2:$C$1004,2,FALSE)) ->  | F37: =IFERROR(VLOOKUP(Resultats!G37&Resultats!H37,Matériels!$J$2:$N$1004,5,FALSE),"") ->  | G37: =IF(Resultats!I37="","",Resultats!I37) -> 
B38: Poutrelle d'Ancrage | F38: Poutrelle d'Ancrage
A39: =IF(B39="","",VLOOKUP(B39,Matériels!$B$2:$C$1004,2,FALSE)) ->  | B39: =IFERROR(VLOOKUP(Resultats!B39&Resultats!C39,Matériels!$J$2:$N$1004,5,FALSE),"") ->  | C39: =IF(Resultats!D39="","",Resultats!D39) ->  | E39: =IF(F39="","",VLOOKUP(F39,Matériels!$B$2:$C$1004,2,FALSE)) ->  | F39: =IFERROR(VLOOKUP(Resultats!G39&Resultats!H39,Matériels!$J$2:$N$1004,5,FALSE),"") ->  | G39: =IF(Resultats!I39="","",Resultats!I39) -> 
B40: Semelle d'Appui | F40: Semelle d'Appui
A41: =IF(B41="","",VLOOKUP(B41,Matériels!$B$2:$C$1004,2,FALSE)) ->  | B41: =IFERROR(VLOOKUP(Resultats!B41&Resultats!C41,Matériels!$J$2:$N$1004,5,FALSE),"") ->  | C41: =IF(Resultats!D41="","",Resultats!D41) ->  | E41: =IF(F41="","",VLOOKUP(F41,Matériels!$B$2:$C$1004,2,FALSE)) ->  | F41: =IFERROR(VLOOKUP(Resultats!G41&Resultats!H41,Matériels!$J$2:$N$1004,5,FALSE),"") ->  | G41: =IF(Resultats!I41="","",Resultats!I41) -> 
B42: Cuvette | F42: Cuvette
A43: =IF(B43="","",VLOOKUP(B43,Matériels!$B$2:$C$1004,2,FALSE)) ->  | B43: =IFERROR(VLOOKUP(Resultats!B43&Resultats!C43,Matériels!$J$2:$N$1004,5,FALSE),"") ->  | C43: =IF(Resultats!D43="","",Resultats!D43) ->  | E43: =IF(F43="","",VLOOKUP(F43,Matériels!$B$2:$C$1004,2,FALSE)) ->  | F43: =IFERROR(VLOOKUP(Resultats!G43&Resultats!H43,Matériels!$J$2:$N$1004,5,FALSE),"") ->  | G43: =IF(Resultats!I43="","",Resultats!I43) -> 
B44: Tiges filetees | F44: Tiges filetees
A45: =IF(B45="","",VLOOKUP(B45,Matériels!$B$2:$C$1004,2,FALSE)) ->  | B45: =IFERROR(VLOOKUP(Resultats!B45&Resultats!C45,Matériels!$J$2:$N$1004,5,FALSE),"") ->  | C45: =IF(Resultats!D45="","",Resultats!D45) ->  | E45: =IF(F45="","",VLOOKUP(F45,Matériels!$B$2:$C$1004,2,FALSE)) ->  | F45: =IFERROR(VLOOKUP(Resultats!G45&Resultats!H45,Matériels!$J$2:$N$1004,5,FALSE),"") ->  | G45: =IF(Resultats!I45="","",Resultats!I45) -> 
A46: =IF(B46="","",VLOOKUP(B46,Matériels!$B$2:$C$1004,2,FALSE)) -> B. H M22-100/50 | B46: =IFERROR(VLOOKUP(Resultats!B46&Resultats!C46,Matériels!$J$2:$N$1004,5,FALSE),"") -> 01602487 | C46: =IF(Resultats!D46="","",Resultats!D46) -> 4 | E46: =IF(F46="","",VLOOKUP(F46,Matériels!$B$2:$C$1004,2,FALSE)) ->  | F46: =IFERROR(VLOOKUP(Resultats!G46&Resultats!H46,Matériels!$J$2:$N$1004,5,FALSE),"") ->  | G46: =IF(Resultats!I46="","",Resultats!I46) -> 
A47: =IF(B47="","",VLOOKUP(B47,Matériels!$B$2:$C$1004,2,FALSE)) -> B. H M22-100/50 | B47: =IFERROR(VLOOKUP(Resultats!B47&Resultats!C47,Matériels!$J$2:$N$1004,5,FALSE),"") -> 01602487 | C47: =IF(Resultats!D47="","",Resultats!D47) -> 4 | E47: =IF(F47="","",VLOOKUP(F47,Matériels!$B$2:$C$1004,2,FALSE)) ->  | F47: =IFERROR(VLOOKUP(Resultats!G47&Resultats!H47,Matériels!$J$2:$N$1004,5,FALSE),"") ->  | G47: =IF(Resultats!I47="","",Resultats!I47) -> 
A48: =IF(B48="","",VLOOKUP(B48,Matériels!$B$2:$C$1004,2,FALSE)) ->  | B48: =IFERROR(VLOOKUP(Resultats!B48&Resultats!C48,Matériels!$J$2:$N$1004,5,FALSE),"") ->  | C48: =IF(Resultats!D48="","",Resultats!D48) ->  | E48: =IF(F48="","",VLOOKUP(F48,Matériels!$B$2:$C$1004,2,FALSE)) ->  | F48: =IFERROR(VLOOKUP(Resultats!G48&Resultats!H48,Matériels!$J$2:$N$1004,5,FALSE),"") ->  | G48: =IF(Resultats!I48="","",Resultats!I48) -> 
A49: =IF(B49="","",VLOOKUP(B49,Matériels!$B$2:$C$1004,2,FALSE)) ->  | B49: =IFERROR(VLOOKUP(Resultats!B49&Resultats!C49,Matériels!$J$2:$N$1004,5,FALSE),"") ->  | C49: =IF(Resultats!D49="","",Resultats!D49) ->  | E49: =IF(F49="","",VLOOKUP(F49,Matériels!$B$2:$C$1004,2,FALSE)) ->  | F49: =IFERROR(VLOOKUP(Resultats!G49&Resultats!H49,Matériels!$J$2:$N$1004,5,FALSE),"") ->  | G49: =IF(Resultats!I49="","",Resultats!I49) -> 
A50: =IF(B50="","",VLOOKUP(B50,Matériels!$B$2:$C$1004,2,FALSE)) ->  | B50: =IFERROR(VLOOKUP(Resultats!B50&Resultats!C50,Matériels!$J$2:$N$1004,5,FALSE),"") ->  | C50: =IF(Resultats!D50="","",Resultats!D50) ->  | E50: =IF(F50="","",VLOOKUP(F50,Matériels!$B$2:$C$1004,2,FALSE)) ->  | F50: =IFERROR(VLOOKUP(Resultats!G50&Resultats!H50,Matériels!$J$2:$N$1004,5,FALSE),"") ->  | G50: =IF(Resultats!I50="","",Resultats!I50) -> 
A51: =IF(B51="","",VLOOKUP(B51,Matériels!$B$2:$C$1004,2,FALSE)) ->  | B51: =IFERROR(VLOOKUP(Resultats!B51&Resultats!C51,Matériels!$J$2:$N$1004,5,FALSE),"") ->  | C51: =IF(Resultats!D51="","",Resultats!D51) ->  | E51: =IF(F51="","",VLOOKUP(F51,Matériels!$B$2:$C$1004,2,FALSE)) ->  | F51: =IFERROR(VLOOKUP(Resultats!G51&Resultats!H51,Matériels!$J$2:$N$1004,5,FALSE),"") ->  | G51: =IF(Resultats!I51="","",Resultats!I51) -> 
A52: =IF(B52="","",VLOOKUP(B52,Matériels!$B$2:$C$1004,2,FALSE)) ->  | B52: =IFERROR(VLOOKUP(Resultats!B52&Resultats!C52,Matériels!$J$2:$N$1004,5,FALSE),"") ->  | C52: =IF(Resultats!D52="","",Resultats!D52) ->  | E52: =IF(F52="","",VLOOKUP(F52,Matériels!$B$2:$C$1004,2,FALSE)) ->  | F52: =IFERROR(VLOOKUP(Resultats!G52&Resultats!H52,Matériels!$J$2:$N$1004,5,FALSE),"") ->  | G52: =IF(Resultats!I52="","",Resultats!I52) -> 
B53: Rondelles | F53: Rondelles
A54: =IF(B54="","",VLOOKUP(B54,Matériels!$B$2:$C$1004,2,FALSE)) ->  | B54: =IFERROR(VLOOKUP(Resultats!B54&Resultats!C54,Matériels!$J$2:$N$1004,5,FALSE),"") ->  | C54: =IF(Resultats!D54="","",Resultats!D54) ->  | E54: =IF(F54="","",VLOOKUP(F54,Matériels!$B$2:$C$1004,2,FALSE)) ->  | F54: =IFERROR(VLOOKUP(Resultats!G54&Resultats!H54,Matériels!$J$2:$N$1004,5,FALSE),"") ->  | G54: =IF(Resultats!I54="","",Resultats!I54) -> 
B55: Appareil Tendeur | F55: Appareil Tendeur
A56: =IF(B56="","",VLOOKUP(B56,Matériels!$B$2:$C$1004,2,FALSE)) -> Ens. Montage Appareil Tendeur | B56: =IFERROR(VLOOKUP(Resultats!B56&Resultats!C56,Matériels!$J$2:$N$1004,5,FALSE),"") -> 10984102 | C56: =IF(Resultats!D56="","",Resultats!D56) -> 1 | E56: =IF(F56="","",VLOOKUP(F56,Matériels!$B$2:$C$1004,2,FALSE)) ->  | F56: =IFERROR(VLOOKUP(Resultats!G56&Resultats!H56,Matériels!$J$2:$N$1004,5,FALSE),"") ->  | G56: =IF(Resultats!I56="","",Resultats!I56) -> 
A57: =IF(B57="","",VLOOKUP(B57,Matériels!$B$2:$C$1004,2,FALSE)) ->  | B57: =IFERROR(VLOOKUP(Resultats!B57&Resultats!C57,Matériels!$J$2:$N$1004,5,FALSE),"") ->  | C57: =IF(Resultats!D57="","",Resultats!D57) ->  | E57: =IF(F57="","",VLOOKUP(F57,Matériels!$B$2:$C$1004,2,FALSE)) ->  | F57: =IFERROR(VLOOKUP(Resultats!G57&Resultats!H57,Matériels!$J$2:$N$1004,5,FALSE),"") ->  | G57: =IF(Resultats!I57="","",Resultats!I57) -> 
B58: Ancrage Conducteurs | F58: Ancrage Conducteurs
A59: =IF(B59="","",VLOOKUP(B59,Matériels!$B$2:$C$1004,2,FALSE)) -> Ancrage de 2 Porteurs CR | B59: =IFERROR(VLOOKUP(Resultats!B59&Resultats!C59,Matériels!$J$2:$N$1004,5,FALSE),"") -> 30982805 | C59: =IF(Resultats!D59="","",Resultats!D59) -> 1 | E59: =IF(F59="","",VLOOKUP(F59,Matériels!$B$2:$C$1004,2,FALSE)) ->  | F59: =IFERROR(VLOOKUP(Resultats!G59&Resultats!H59,Matériels!$J$2:$N$1004,5,FALSE),"") ->  | G59: =IF(Resultats!I59="","",Resultats!I59) -> 
A60: =IF(B60="","",VLOOKUP(B60,Matériels!$B$2:$C$1004,2,FALSE)) -> Ancrage de 2 Porteurs CR | B60: =IFERROR(VLOOKUP(Resultats!B60&Resultats!C60,Matériels!$J$2:$N$1004,5,FALSE),"") -> 30982805 | C60: =IF(Resultats!D60="","",Resultats!D60) -> 1 | E60: =IF(F60="","",VLOOKUP(F60,Matériels!$B$2:$C$1004,2,FALSE)) ->  | F60: =IFERROR(VLOOKUP(Resultats!G60&Resultats!H60,Matériels!$J$2:$N$1004,5,FALSE),"") ->  | G60: =IF(Resultats!I60="","",Resultats!I60) -> 
A61: =IF(B61="","",VLOOKUP(B61,Matériels!$B$2:$C$1004,2,FALSE)) ->  | B61: =IFERROR(VLOOKUP(Resultats!B61&Resultats!C61,Matériels!$J$2:$N$1004,5,FALSE),"") ->  | C61: =IF(Resultats!D61="","",Resultats!D61) ->  | E61: =IF(F61="","",VLOOKUP(F61,Matériels!$B$2:$C$1004,2,FALSE)) ->  | F61: =IFERROR(VLOOKUP(Resultats!G61&Resultats!H61,Matériels!$J$2:$N$1004,5,FALSE),"") ->  | G61: =IF(Resultats!I61="","",Resultats!I61) -> 
A62: =IF(B62="","",VLOOKUP(B62,Matériels!$B$2:$C$1004,2,FALSE)) ->  | B62: =IFERROR(VLOOKUP(Resultats!B62&Resultats!C62,Matériels!$J$2:$N$1004,5,FALSE),"") ->  | C62: =IF(Resultats!D62="","",Resultats!D62) ->  | E62: =IF(F62="","",VLOOKUP(F62,Matériels!$B$2:$C$1004,2,FALSE)) ->  | F62: =IFERROR(VLOOKUP(Resultats!G62&Resultats!H62,Matériels!$J$2:$N$1004,5,FALSE),"") ->  | G62: =IF(Resultats!I62="","",Resultats!I62) -> 
B63: Isolement Supplémentaire | F63: Isolement Supplémentaire
A64: =IF(B64="","",VLOOKUP(B64,Matériels!$B$2:$C$1004,2,FALSE)) ->  | B64: =IFERROR(VLOOKUP(Resultats!B64&Resultats!C64,Matériels!$J$2:$N$1004,5,FALSE),"") ->  | C64: =IF(Resultats!D64="","",Resultats!D64) ->  | E64: =IF(F64="","",VLOOKUP(F64,Matériels!$B$2:$C$1004,2,FALSE)) ->  | F64: =IFERROR(VLOOKUP(Resultats!G64&Resultats!H64,Matériels!$J$2:$N$1004,5,FALSE),"") ->  | G64: =IF(Resultats!I64="","",Resultats!I64) -> 
A65: =IF(B65="","",VLOOKUP(B65,Matériels!$B$2:$C$1004,2,FALSE)) ->  | B65: =IFERROR(VLOOKUP(Resultats!B65&Resultats!C65,Matériels!$J$2:$N$1004,5,FALSE),"") ->  | C65: =IF(Resultats!D65="","",Resultats!D65) ->  | E65: =IF(F65="","",VLOOKUP(F65,Matériels!$B$2:$C$1004,2,FALSE)) ->  | F65: =IFERROR(VLOOKUP(Resultats!G65&Resultats!H65,Matériels!$J$2:$N$1004,5,FALSE),"") ->  | G65: =IF(Resultats!I65="","",Resultats!I65) -> 
A66: =IF(B66="","",VLOOKUP(B66,Matériels!$B$2:$C$1004,2,FALSE)) ->  | B66: =IFERROR(VLOOKUP(Resultats!B66&Resultats!C66,Matériels!$J$2:$N$1004,5,FALSE),"") ->  | C66: =IF(Resultats!D66="","",Resultats!D66) ->  | E66: =IF(F66="","",VLOOKUP(F66,Matériels!$B$2:$C$1004,2,FALSE)) ->  | F66: =IFERROR(VLOOKUP(Resultats!G66&Resultats!H66,Matériels!$J$2:$N$1004,5,FALSE),"") ->  | G66: =IF(Resultats!I66="","",Resultats!I66) -> 
A67: =IF(B67="","",VLOOKUP(B67,Matériels!$B$2:$C$1004,2,FALSE)) ->  | B67: =IFERROR(VLOOKUP(Resultats!B67&Resultats!C67,Matériels!$J$2:$N$1004,5,FALSE),"") ->  | C67: =IF(Resultats!D67="","",Resultats!D67) ->  | E67: =IF(F67="","",VLOOKUP(F67,Matériels!$B$2:$C$1004,2,FALSE)) ->  | F67: =IFERROR(VLOOKUP(Resultats!G67&Resultats!H67,Matériels!$J$2:$N$1004,5,FALSE),"") ->  | G67: =IF(Resultats!I67="","",Resultats!I67) -> 
A68: =IF(B68="","",VLOOKUP(B68,Matériels!$B$2:$C$1004,2,FALSE)) ->  | B68: =IFERROR(VLOOKUP(Resultats!B68&Resultats!C68,Matériels!$J$2:$N$1004,5,FALSE),"") ->  | C68: =IF(Resultats!D68="","",Resultats!D68) ->  | E68: =IF(F68="","",VLOOKUP(F68,Matériels!$B$2:$C$1004,2,FALSE)) ->  | F68: =IFERROR(VLOOKUP(Resultats!G68&Resultats!H68,Matériels!$J$2:$N$1004,5,FALSE),"") ->  | G68: =IF(Resultats!I68="","",Resultats!I68) -> 
A69: =IF(B69="","",VLOOKUP(B69,Matériels!$B$2:$C$1004,2,FALSE)) ->  | B69: =IFERROR(VLOOKUP(Resultats!B69&Resultats!C69,Matériels!$J$2:$N$1004,5,FALSE),"") ->  | C69: =IF(Resultats!D69="","",Resultats!D69) ->  | E69: =IF(F69="","",VLOOKUP(F69,Matériels!$B$2:$C$1004,2,FALSE)) ->  | F69: =IFERROR(VLOOKUP(Resultats!G69&Resultats!H69,Matériels!$J$2:$N$1004,5,FALSE),"") ->  | G69: =IF(Resultats!I69="","",Resultats!I69) -> 
A70: =IF(B70="","",VLOOKUP(B70,Matériels!$B$2:$C$1004,2,FALSE)) ->  | B70: =IFERROR(VLOOKUP(Resultats!B70&Resultats!C70,Matériels!$J$2:$N$1004,5,FALSE),"") ->  | C70: =IF(Resultats!D70="","",Resultats!D70) ->  | E70: =IF(F70="","",VLOOKUP(F70,Matériels!$B$2:$C$1004,2,FALSE)) ->  | F70: =IFERROR(VLOOKUP(Resultats!G70&Resultats!H70,Matériels!$J$2:$N$1004,5,FALSE),"") ->  | G70: =IF(Resultats!I70="","",Resultats!I70) -> 
A71: =IF(B71="","",VLOOKUP(B71,Matériels!$B$2:$C$1004,2,FALSE)) ->  | B71: =IFERROR(VLOOKUP(Resultats!B71&Resultats!C71,Matériels!$J$2:$N$1004,5,FALSE),"") ->  | C71: =IF(Resultats!D71="","",Resultats!D71) ->  | E71: =IF(F71="","",VLOOKUP(F71,Matériels!$B$2:$C$1004,2,FALSE)) ->  | F71: =IFERROR(VLOOKUP(Resultats!G71&Resultats!H71,Matériels!$J$2:$N$1004,5,FALSE),"") ->  | G71: =IF(Resultats!I71="","",Resultats!I71) -> 
A72: =IF(B72="","",VLOOKUP(B72,Matériels!$B$2:$C$1004,2,FALSE)) ->  | B72: =IFERROR(VLOOKUP(Resultats!B72&Resultats!C72,Matériels!$J$2:$N$1004,5,FALSE),"") ->  | C72: =IF(Resultats!D72="","",Resultats!D72) ->  | E72: =IF(F72="","",VLOOKUP(F72,Matériels!$B$2:$C$1004,2,FALSE)) ->  | F72: =IFERROR(VLOOKUP(Resultats!G72&Resultats!H72,Matériels!$J$2:$N$1004,5,FALSE),"") ->  | G72: =IF(Resultats!I72="","",Resultats!I72) -> 

Sheet Calculs Resultats (hidden)
A1: DETERMINATION D'ANCRAGES
D3: Support
D4: Echantillon : | F4: =IF('Calculs Impression'!E4="","",'Calculs Impression'!E4) -> HEA300J
D5: Massif : | F5: =IF('Calculs Impression'!E5="","",'Calculs Impression'!E5) -> 4Pn
D6: Arrasement : | F6: =IF('Calculs Impression'!E6="","",'Calculs Impression'!E6) -> 0.08
B8: Ancrage N°1
A9: Tension Mécanique : | C9: ='Calculs Impression'!C9 -> 90.8 | F9: Tension Mécanique : | H9: ='Calculs Impression'!G9 -> 0
A10: Massif : | B10: ='Calculs Impression'!B10 -> 9 | C10: ='Calculs Impression'!C10 -> Api | F10: Massif : | G10: ='Calculs Impression'!F10 ->  | H10: ='Calculs Impression'!G10 -> 
A12: Designations | B12: Plan | C12: Repere | D12: Quantités | F12: Designations | G12: Plan | H12: Repere | I12: Quantités
A13: =IFERROR(VLOOKUP(B13&C13,Matériels!$J$1:$M$993,2,FALSE),"") -> Piece d'ancrage Hauban | B13: =IF('Calculs Impression'!B13="","",VLOOKUP('Calculs Impression'!B13,Matériels!$B$1:$I$1004,4,FALSE)) -> 22155 | C13: =IF('Calculs Impression'!$B13="","",IF(VLOOKUP('Calculs Impression'!$B13,Matériels!$B$2:$I$1004,5,FALSE)=0,"",VLOOKUP('Calculs Impression'!$B13,Matériels!$B$2:$I$1004,5,FALSE))) ->  | D13: =IF('Calculs Impression'!C13="","",'Calculs Impression'!C13) -> 1 | F13: =IFERROR(VLOOKUP(G13&H13,Matériels!$J$1:$M$993,2,FALSE),"") ->  | G13: =IF('Calculs Impression'!$F13="","",VLOOKUP('Calculs Impression'!$F13,Matériels!$B$1:$I$1004,4,FALSE)) ->  | H13: =IF('Calculs Impression'!$F13="","",IF(VLOOKUP('Calculs Impression'!$F13,Matériels!$B$2:$I$1004,5,FALSE)=0,"",VLOOKUP('Calculs Impression'!$F13,Matériels!$B$2:$I$1004,5,FALSE))) ->  | I13: =IF('Calculs Impression'!G13="","",'Calculs Impression'!G13) -> 
A14: =IFERROR(VLOOKUP(B14&C14,Matériels!$J$1:$M$993,2,FALSE),"") -> Piece d'ancrage Hauban | B14: =IF('Calculs Impression'!$B14="","",VLOOKUP('Calculs Impression'!$B14,Matériels!$B$1:$I$1004,4,FALSE)) -> 22155 | C14: =IF('Calculs Impression'!$B14="","",IF(VLOOKUP('Calculs Impression'!$B14,Matériels!$B$2:$I$1004,5,FALSE)=0,"",VLOOKUP('Calculs Impression'!$B14,Matériels!$B$2:$I$1004,5,FALSE))) ->  | D14: =IF('Calculs Impression'!C14="","",'Calculs Impression'!C14) -> 1 | F14: =IFERROR(VLOOKUP(G14&H14,Matériels!$J$1:$M$993,2,FALSE),"") ->  | G14: =IF('Calculs Impression'!$F14="","",VLOOKUP('Calculs Impression'!$F14,Matériels!$B$1:$I$1004,4,FALSE)) ->  | H14: =IF('Calculs Impression'!$F14="","",IF(VLOOKUP('Calculs Impression'!$F14,Matériels!$B$2:$I$1004,5,FALSE)=0,"",VLOOKUP('Calculs Impression'!$F14,Matériels!$B$2:$I$1004,5,FALSE))) ->  | I14: =IF('Calculs Impression'!G14="","",'Calculs Impression'!G14) -> 
A15: =IFERROR(VLOOKUP(B15&C15,Matériels!$J$1:$M$993,2,FALSE),"") ->  | B15: =IF('Calculs Impression'!$B15="","",VLOOKUP('Calculs Impression'!$B15,Matériels!$B$1:$I$1004,4,FALSE)) ->  | C15: =IF('Calculs Impression'!$B15="","",IF(VLOOKUP('Calculs Impression'!$B15,Matériels!$B$2:$I$1004,5,FALSE)=0,"",VLOOKUP('Calculs Impression'!$B15,Matériels!$B$2:$I$1004,5,FALSE))) ->  | D15: =IF('Calculs Impression'!C15="","",'Calculs Impression'!C15) ->  | F15: =IFERROR(VLOOKUP(G15&H15,Matériels!$J$1:$M$993,2,FALSE),"") ->  | G15: =IF('Calculs Impression'!$F15="","",VLOOKUP('Calculs Impression'!$F15,Matériels!$B$1:$I$1004,4,FALSE)) ->  | H15: =IF('Calculs Impression'!$F15="","",IF(VLOOKUP('Calculs Impression'!$F15,Matériels!$B$2:$I$1004,5,FALSE)=0,"",VLOOKUP('Calculs Impression'!$F15,Matériels!$B$2:$I$1004,5,FALSE))) ->  | I15: =IF('Calculs Impression'!G15="","",'Calculs Impression'!G15) -> 
A16: =IFERROR(VLOOKUP(B16&C16,Matériels!$J$1:$M$993,2,FALSE),"") ->  | B16: =IF('Calculs Impression'!$B16="","",VLOOKUP('Calculs Impression'!$B16,Matériels!$B$1:$I$1004,4,FALSE)) ->  | C16: =IF('Calculs Impression'!$B16="","",IF(VLOOKUP('Calculs Impression'!$B16,Matériels!$B$2:$I$1004,5,FALSE)=0,"",VLOOKUP('Calculs Impression'!$B16,Matériels!$B$2:$I$1004,5,FALSE))) ->  | D16: =IF('Calculs Impression'!C16="","",'Calculs Impression'!C16) ->  | F16: =IFERROR(VLOOKUP(G16&H16,Matériels!$J$1:$M$993,2,FALSE),"") ->  | G16: =IF('Calculs Impression'!$F16="","",VLOOKUP('Calculs Impression'!$F16,Matériels!$B$1:$I$1004,4,FALSE)) ->  | H16: =IF('Calculs Impression'!$F16="","",IF(VLOOKUP('Calculs Impression'!$F16,Matériels!$B$2:$I$1004,5,FALSE)=0,"",VLOOKUP('Calculs Impression'!$F16,Matériels!$B$2:$I$1004,5,FALSE))) ->  | I16: =IF('Calculs Impression'!G16="","",'Calculs Impression'!G16) -> 
A17: =IFERROR(VLOOKUP(B17&C17,Matériels!$J$1:$M$993,2,FALSE),"") -> Piece d'ancrage Câble | B17: =IF('Calculs Impression'!$B17="","",VLOOKUP('Calculs Impression'!$B17,Matériels!$B$1:$I$1004,4,FALSE)) -> 22173 | C17: =IF('Calculs Impression'!$B17="","",IF(VLOOKUP('Calculs Impression'!$B17,Matériels!$B$2:$I$1004,5,FALSE)=0,"",VLOOKUP('Calculs Impression'!$B17,Matériels!$B$2:$I$1004,5,FALSE))) ->  | D17: =IF('Calculs Impression'!C17="","",'Calculs Impression'!C17) -> 1 | F17: =IFERROR(VLOOKUP(G17&H17,Matériels!$J$1:$M$993,2,FALSE),"") ->  | G17: =IF('Calculs Impression'!$F17="","",VLOOKUP('Calculs Impression'!$F17,Matériels!$B$1:$I$1004,4,FALSE)) ->  | H17: =IF('Calculs Impression'!$F17="","",IF(VLOOKUP('Calculs Impression'!$F17,Matériels!$B$2:$I$1004,5,FALSE)=0,"",VLOOKUP('Calculs Impression'!$F17,Matériels!$B$2:$I$1004,5,FALSE))) ->  | I17: =IF('Calculs Impression'!G17="","",'Calculs Impression'!G17) -> 
A18: =IFERROR(VLOOKUP(B18&C18,Matériels!$J$1:$M$993,2,FALSE),"") -> Piece d'ancrage Câble | B18: =IF('Calculs Impression'!$B18="","",VLOOKUP('Calculs Impression'!$B18,Matériels!$B$1:$I$1004,4,FALSE)) -> 22173 | C18: =IF('Calculs Impression'!$B18="","",IF(VLOOKUP('Calculs Impression'!$B18,Matériels!$B$2:$I$1004,5,FALSE)=0,"",VLOOKUP('Calculs Impression'!$B18,Matériels!$B$2:$I$1004,5,FALSE))) ->  | D18: =IF('Calculs Impression'!C18="","",'Calculs Impression'!C18) -> 1 | F18: =IFERROR(VLOOKUP(G18&H18,Matériels!$J$1:$M$993,2,FALSE),"") ->  | G18: =IF('Calculs Impression'!$F18="","",VLOOKUP('Calculs Impression'!$F18,Matériels!$B$1:$I$1004,4,FALSE)) ->  | H18: =IF('Calculs Impression'!$F18="","",IF(VLOOKUP('Calculs Impression'!$F18,Matériels!$B$2:$I$1004,5,FALSE)=0,"",VLOOKUP('Calculs Impression'!$F18,Matériels!$B$2:$I$1004,5,FALSE))) ->  | I18: =IF('Calculs Impression'!G18="","",'Calculs Impression'!G18) -> 
A19: =IFERROR(VLOOKUP(B19&C19,Matériels!$J$1:$M$993,2,FALSE),"") ->  | B19: =IF('Calculs Impression'!$B19="","",VLOOKUP('Calculs Impression'!$B19,Matériels!$B$1:$I$1004,4,FALSE)) ->  | C19: =IF('Calculs Impression'!$B19="","",IF(VLOOKUP('Calculs Impression'!$B19,Matériels!$B$2:$I$1004,5,FALSE)=0,"",VLOOKUP('Calculs Impression'!$B19,Matériels!$B$2:$I$1004,5,FALSE))) ->  | D19: =IF('Calculs Impression'!C19="","",'Calculs Impression'!C19) ->  | F19: =IFERROR(VLOOKUP(G19&H19,Matériels!$J$1:$M$993,2,FALSE),"") ->  | G19: =IF('Calculs Impression'!$F19="","",VLOOKUP('Calculs Impression'!$F19,Matériels!$B$1:$I$1004,4,FALSE)) ->  | H19: =IF('Calculs Impression'!$F19="","",IF(VLOOKUP('Calculs Impression'!$F19,Matériels!$B$2:$I$1004,5,FALSE)=0,"",VLOOKUP('Calculs Impression'!$F19,Matériels!$B$2:$I$1004,5,FALSE))) ->  | I19: =IF('Calculs Impression'!G19="","",'Calculs Impression'!G19) -> 
A20: =IFERROR(VLOOKUP(B20&C20,Matériels!$J$1:$M$993,2,FALSE),"") ->  | B20: Pieces de Reglages | G20: Pieces de Reglages
A21: =IFERROR(VLOOKUP(B21&C21,Matériels!$J$1:$M$993,2,FALSE),"") -> Piece de Reglage | B21: =IF('Calculs Impression'!$B21="","",VLOOKUP('Calculs Impression'!$B21,Matériels!$B$1:$I$1004,4,FALSE)) -> 37606 | C21: =IF('Calculs Impression'!$B21="","",IF(VLOOKUP('Calculs Impression'!$B21,Matériels!$B$2:$I$1004,5,FALSE)=0,"",VLOOKUP('Calculs Impression'!$B21,Matériels!$B$2:$I$1004,5,FALSE))) ->  | D21: =IF('Calculs Impression'!C21="","",'Calculs Impression'!C21) -> 2 | F21: =IFERROR(VLOOKUP(G21&H21,Matériels!$J$1:$M$993,2,FALSE),"") ->  | G21: =IF('Calculs Impression'!$F21="","",VLOOKUP('Calculs Impression'!$F21,Matériels!$B$1:$I$1004,4,FALSE)) ->  | H21: =IF('Calculs Impression'!$F21="","",IF(VLOOKUP('Calculs Impression'!$F21,Matériels!$B$2:$I$1004,5,FALSE)=0,"",VLOOKUP('Calculs Impression'!$F21,Matériels!$B$2:$I$1004,5,FALSE))) ->  | I21: =IF('Calculs Impression'!G21="","",'Calculs Impression'!G21) -> 
A22: =IFERROR(VLOOKUP(B22&C22,Matériels!$J$1:$M$993,2,FALSE),"") ->  | B22: =IF('Calculs Impression'!$B22="","",VLOOKUP('Calculs Impression'!$B22,Matériels!$B$1:$I$1004,4,FALSE)) ->  | C22: =IF('Calculs Impression'!$B22="","",IF(VLOOKUP('Calculs Impression'!$B22,Matériels!$B$2:$I$1004,5,FALSE)=0,"",VLOOKUP('Calculs Impression'!$B22,Matériels!$B$2:$I$1004,5,FALSE))) ->  | D22: =IF('Calculs Impression'!C22="","",'Calculs Impression'!C22) ->  | F22: =IFERROR(VLOOKUP(G22&H22,Matériels!$J$1:$M$993,2,FALSE),"") ->  | G22: =IF('Calculs Impression'!$F22="","",VLOOKUP('Calculs Impression'!$F22,Matériels!$B$1:$I$1004,4,FALSE)) ->  | H22: =IF('Calculs Impression'!$F22="","",IF(VLOOKUP('Calculs Impression'!$F22,Matériels!$B$2:$I$1004,5,FALSE)=0,"",VLOOKUP('Calculs Impression'!$F22,Matériels!$B$2:$I$1004,5,FALSE))) ->  | I22: =IF('Calculs Impression'!G22="","",'Calculs Impression'!G22) -> 
A23: =IFERROR(VLOOKUP(B23&C23,Matériels!$J$1:$M$993,2,FALSE),"") ->  | B23: Haubans d'Ancrages | G23: Haubans d'Ancrages
A24: =IFERROR(VLOOKUP(B24&C24,Matériels!$J$1:$M$993,2,FALSE),"") -> hauban d'ancrage Ø36 de Lg= 8,75m | B24: =IFERROR(IF('Calculs Impression'!$B24="","",VLOOKUP('Calculs Impression'!$B24,Matériels!$B$1:$I$1004,4,FALSE)),'Calculs Impression'!$B24) -> 37550 | C24: =IFERROR(IF('Calculs Impression'!$B24="","",IF(VLOOKUP('Calculs Impression'!$B24,Matériels!$B$2:$I$1004,5,FALSE)=0,"",VLOOKUP('Calculs Impression'!$B24,Matériels!$B$2:$I$1004,5,FALSE))),"") -> 37556 | D24: =IF('Calculs Impression'!C24="","",'Calculs Impression'!C24) -> 1 | F24: =IFERROR(VLOOKUP(G24&H24,Matériels!$J$1:$M$993,2,FALSE),"") ->  | G24: =IFERROR(IF('Calculs Impression'!$F24="","",VLOOKUP('Calculs Impression'!$F24,Matériels!$B$1:$I$1004,4,FALSE)),'Calculs Impression'!$F24) ->  | H24: =IFERROR(IF('Calculs Impression'!$F24="","",IF(VLOOKUP('Calculs Impression'!$F24,Matériels!$B$2:$I$1004,5,FALSE)=0,"",VLOOKUP('Calculs Impression'!$F24,Matériels!$B$2:$I$1004,5,FALSE))),"") ->  | I24: =IF('Calculs Impression'!G24="","",'Calculs Impression'!G24) -> 
A25: =IFERROR(VLOOKUP(B25&C25,Matériels!$J$1:$M$993,2,FALSE),"") -> hauban d'ancrage Ø36 de Lg= 8,75m | B25: =IFERROR(IF('Calculs Impression'!$B25="","",VLOOKUP('Calculs Impression'!$B25,Matériels!$B$1:$I$1004,4,FALSE)),'Calculs Impression'!$B25) -> 37550 | C25: =IFERROR(IF('Calculs Impression'!$B25="","",IF(VLOOKUP('Calculs Impression'!$B25,Matériels!$B$2:$I$1004,5,FALSE)=0,"",VLOOKUP('Calculs Impression'!$B25,Matériels!$B$2:$I$1004,5,FALSE))),"") -> 37556 | D25: =IF('Calculs Impression'!C25="","",'Calculs Impression'!C25) -> 1 | F25: =IFERROR(VLOOKUP(G25&H25,Matériels!$J$1:$M$993,2,FALSE),"") ->  | G25: =IFERROR(IF('Calculs Impression'!$F25="","",VLOOKUP('Calculs Impression'!$F25,Matériels!$B$1:$I$1004,4,FALSE)),'Calculs Impression'!$F25) ->  | H25: =IF('Calculs Impression'!$F25="","",IF(VLOOKUP('Calculs Impression'!$F25,Matériels!$B$2:$I$1004,5,FALSE)=0,"",VLOOKUP('Calculs Impression'!$F25,Matériels!$B$2:$I$1004,5,FALSE))) ->  | I25: =IF('Calculs Impression'!G25="","",'Calculs Impression'!G25) -> 
A26: =IFERROR(VLOOKUP(B26&C26,Matériels!$J$1:$M$993,2,FALSE),"") ->  | B26: =IFERROR(IF('Calculs Impression'!$B26="","",VLOOKUP('Calculs Impression'!$B26,Matériels!$B$1:$I$1004,4,FALSE)),'Calculs Impression'!$B26) ->  | C26: =IFERROR(IF('Calculs Impression'!$B26="","",IF(VLOOKUP('Calculs Impression'!$B26,Matériels!$B$2:$I$1004,5,FALSE)=0,"",VLOOKUP('Calculs Impression'!$B26,Matériels!$B$2:$I$1004,5,FALSE))),"") ->  | D26: =IF('Calculs Impression'!C26="","",'Calculs Impression'!C26) ->  | F26: =IFERROR(VLOOKUP(G26&H26,Matériels!$J$1:$M$993,2,FALSE),"") ->  | G26: =IFERROR(IF('Calculs Impression'!$F26="","",VLOOKUP('Calculs Impression'!$F26,Matériels!$B$1:$I$1004,4,FALSE)),'Calculs Impression'!$F26) ->  | H26: =IF('Calculs Impression'!$F26="","",IF(VLOOKUP('Calculs Impression'!$F26,Matériels!$B$2:$I$1004,5,FALSE)=0,"",VLOOKUP('Calculs Impression'!$F26,Matériels!$B$2:$I$1004,5,FALSE))) ->  | I26: =IF('Calculs Impression'!G26="","",'Calculs Impression'!G26) -> 
A27: =IFERROR(VLOOKUP(B27&C27,Matériels!$J$1:$M$993,2,FALSE),"") ->  | B27: =IFERROR(IF('Calculs Impression'!$B27="","",VLOOKUP('Calculs Impression'!$B27,Matériels!$B$1:$I$1004,4,FALSE)),'Calculs Impression'!$B27) ->  | C27: =IFERROR(IF('Calculs Impression'!$B27="","",IF(VLOOKUP('Calculs Impression'!$B27,Matériels!$B$2:$I$1004,5,FALSE)=0,"",VLOOKUP('Calculs Impression'!$B27,Matériels!$B$2:$I$1004,5,FALSE))),"") ->  | D27: =IF('Calculs Impression'!C27="","",'Calculs Impression'!C27) ->  | F27: =IFERROR(VLOOKUP(G27&H27,Matériels!$J$1:$M$993,2,FALSE),"") ->  | G27: =IFERROR(IF('Calculs Impression'!$F27="","",VLOOKUP('Calculs Impression'!$F27,Matériels!$B$1:$I$1004,4,FALSE)),'Calculs Impression'!$F27) ->  | H27: =IF('Calculs Impression'!$F27="","",IF(VLOOKUP('Calculs Impression'!$F27,Matériels!$B$2:$I$1004,5,FALSE)=0,"",VLOOKUP('Calculs Impression'!$F27,Matériels!$B$2:$I$1004,5,FALSE))) ->  | I27: =IF('Calculs Impression'!G27="","",'Calculs Impression'!G27) -> 
A28: =IFERROR(VLOOKUP(B28&C28,Matériels!$J$1:$M$993,2,FALSE),"") ->  | B28: =IFERROR(IF('Calculs Impression'!$B28="","",VLOOKUP('Calculs Impression'!$B28,Matériels!$B$1:$I$1004,4,FALSE)),'Calculs Impression'!$B28) ->  | C28: =IFERROR(IF('Calculs Impression'!$B28="","",IF(VLOOKUP('Calculs Impression'!$B28,Matériels!$B$2:$I$1004,5,FALSE)=0,"",VLOOKUP('Calculs Impression'!$B28,Matériels!$B$2:$I$1004,5,FALSE))),"") ->  | D28: =IF('Calculs Impression'!C28="","",'Calculs Impression'!C28) ->  | F28: =IFERROR(VLOOKUP(G28&H28,Matériels!$J$1:$M$993,2,FALSE),"") ->  | G28: =IFERROR(IF('Calculs Impression'!$F28="","",VLOOKUP('Calculs Impression'!$F28,Matériels!$B$1:$I$1004,4,FALSE)),'Calculs Impression'!$F28) ->  | H28: =IF('Calculs Impression'!$F28="","",IF(VLOOKUP('Calculs Impression'!$F28,Matériels!$B$2:$I$1004,5,FALSE)=0,"",VLOOKUP('Calculs Impression'!$F28,Matériels!$B$2:$I$1004,5,FALSE))) ->  | I28: =IF('Calculs Impression'!G28="","",'Calculs Impression'!G28) -> 
A29: =IFERROR(VLOOKUP(B29&C29,Matériels!$J$1:$M$993,2,FALSE),"") ->  | B29: =IFERROR(IF('Calculs Impression'!$B29="","",VLOOKUP('Calculs Impression'!$B29,Matériels!$B$1:$I$1004,4,FALSE)),'Calculs Impression'!$B29) ->  | C29: =IFERROR(IF('Calculs Impression'!$B29="","",IF(VLOOKUP('Calculs Impression'!$B29,Matériels!$B$2:$I$1004,5,FALSE)=0,"",VLOOKUP('Calculs Impression'!$B29,Matériels!$B$2:$I$1004,5,FALSE))),"") ->  | D29: =IF('Calculs Impression'!C29="","",'Calculs Impression'!C29) ->  | F29: =IFERROR(VLOOKUP(G29&H29,Matériels!$J$1:$M$993,2,FALSE),"") ->  | G29: =IFERROR(IF('Calculs Impression'!$F29="","",VLOOKUP('Calculs Impression'!$F29,Matériels!$B$1:$I$1004,4,FALSE)),'Calculs Impression'!$F29) ->  | H29: =IF('Calculs Impression'!$F29="","",IF(VLOOKUP('Calculs Impression'!$F29,Matériels!$B$2:$I$1004,5,FALSE)=0,"",VLOOKUP('Calculs Impression'!$F29,Matériels!$B$2:$I$1004,5,FALSE))) ->  | I29: =IF('Calculs Impression'!G29="","",'Calculs Impression'!G29) -> 
A30: =IFERROR(VLOOKUP(B30&C30,Matériels!$J$1:$M$993,2,FALSE),"") ->  | B30: =IFERROR(IF('Calculs Impression'!$B30="","",VLOOKUP('Calculs Impression'!$B30,Matériels!$B$1:$I$1004,4,FALSE)),'Calculs Impression'!$B30) ->  | C30: =IFERROR(IF('Calculs Impression'!$B30="","",IF(VLOOKUP('Calculs Impression'!$B30,Matériels!$B$2:$I$1004,5,FALSE)=0,"",VLOOKUP('Calculs Impression'!$B30,Matériels!$B$2:$I$1004,5,FALSE))),"") ->  | D30: =IF('Calculs Impression'!C30="","",'Calculs Impression'!C30) ->  | F30: =IFERROR(VLOOKUP(G30&H30,Matériels!$J$1:$M$993,2,FALSE),"") ->  | G30: =IFERROR(IF('Calculs Impression'!$F30="","",VLOOKUP('Calculs Impression'!$F30,Matériels!$B$1:$I$1004,4,FALSE)),'Calculs Impression'!$F30) ->  | H30: =IF('Calculs Impression'!$F30="","",IF(VLOOKUP('Calculs Impression'!$F30,Matériels!$B$2:$I$1004,5,FALSE)=0,"",VLOOKUP('Calculs Impression'!$F30,Matériels!$B$2:$I$1004,5,FALSE))) ->  | I30: =IF('Calculs Impression'!G30="","",'Calculs Impression'!G30) -> 
A31: =IFERROR(VLOOKUP(B31&C31,Matériels!$J$1:$M$993,2,FALSE),"") ->  | B31: Jumelles | G31: Jumelles
A32: =IFERROR(VLOOKUP(B32&C32,Matériels!$J$1:$M$993,2,FALSE),"") -> Jumelles de 1,00m | B32: =IFERROR(IF('Calculs Impression'!$B32="","",VLOOKUP('Calculs Impression'!$B32,Matériels!$B$1:$I$1004,4,FALSE)),'Calculs Impression'!$B32) -> 37627 | C32: =IFERROR(IF('Calculs Impression'!$B32="","",IF(VLOOKUP('Calculs Impression'!$B32,Matériels!$B$2:$I$1004,5,FALSE)=0,"",VLOOKUP('Calculs Impression'!$B32,Matériels!$B$2:$I$1004,5,FALSE))),"") -> 103 | D32: =IF('Calculs Impression'!C32="","",'Calculs Impression'!C32) -> 1 | F32: =IFERROR(VLOOKUP(G32&H32,Matériels!$J$1:$M$993,2,FALSE),"") ->  | G32: =IFERROR(IF('Calculs Impression'!$F32="","",VLOOKUP('Calculs Impression'!$F32,Matériels!$B$1:$I$1004,4,FALSE)),'Calculs Impression'!$F32) ->  | H32: =IFERROR(IF('Calculs Impression'!$F32="","",IF(VLOOKUP('Calculs Impression'!$F32,Matériels!$B$2:$I$1004,5,FALSE)=0,"",VLOOKUP('Calculs Impression'!$F32,Matériels!$B$2:$I$1004,5,FALSE))),"") ->  | I32: =IF('Calculs Impression'!G32="","",'Calculs Impression'!G32) -> 
A33: =IFERROR(VLOOKUP(B33&C33,Matériels!$J$1:$M$993,2,FALSE),"") -> Jumelles de 0,12m | B33: =IFERROR(IF('Calculs Impression'!$B33="","",VLOOKUP('Calculs Impression'!$B33,Matériels!$B$1:$I$1004,4,FALSE)),'Calculs Impression'!$B33) -> 37627 | C33: =IFERROR(IF('Calculs Impression'!$B33="","",IF(VLOOKUP('Calculs Impression'!$B33,Matériels!$B$2:$I$1004,5,FALSE)=0,"",VLOOKUP('Calculs Impression'!$B33,Matériels!$B$2:$I$1004,5,FALSE))),"") -> 101 | D33: =IF('Calculs Impression'!C33="","",'Calculs Impression'!C33) -> 1 | F33: =IFERROR(VLOOKUP(G33&H33,Matériels!$J$1:$M$993,2,FALSE),"") ->  | G33: =IFERROR(IF('Calculs Impression'!$F33="","",VLOOKUP('Calculs Impression'!$F33,Matériels!$B$1:$I$1004,4,FALSE)),'Calculs Impression'!$F33) ->  | H33: =IF('Calculs Impression'!$F33="","",IF(VLOOKUP('Calculs Impression'!$F33,Matériels!$B$2:$I$1004,5,FALSE)=0,"",VLOOKUP('Calculs Impression'!$F33,Matériels!$B$2:$I$1004,5,FALSE))) ->  | I33: =IF('Calculs Impression'!G33="","",'Calculs Impression'!G33) -> 
A34: =IFERROR(VLOOKUP(B34&C34,Matériels!$J$1:$M$993,2,FALSE),"") ->  | B34: =IFERROR(IF('Calculs Impression'!$B34="","",VLOOKUP('Calculs Impression'!$B34,Matériels!$B$1:$I$1004,4,FALSE)),'Calculs Impression'!$B34) ->  | C34: =IFERROR(IF('Calculs Impression'!$B34="","",IF(VLOOKUP('Calculs Impression'!$B34,Matériels!$B$2:$I$1004,5,FALSE)=0,"",VLOOKUP('Calculs Impression'!$B34,Matériels!$B$2:$I$1004,5,FALSE))),"") ->  | D34: =IF('Calculs Impression'!C34="","",'Calculs Impression'!C34) ->  | F34: =IFERROR(VLOOKUP(G34&H34,Matériels!$J$1:$M$993,2,FALSE),"") ->  | G34: =IFERROR(IF('Calculs Impression'!$F34="","",VLOOKUP('Calculs Impression'!$F34,Matériels!$B$1:$I$1004,4,FALSE)),'Calculs Impression'!$F34) ->  | H34: =IF('Calculs Impression'!$F34="","",IF(VLOOKUP('Calculs Impression'!$F34,Matériels!$B$2:$I$1004,5,FALSE)=0,"",VLOOKUP('Calculs Impression'!$F34,Matériels!$B$2:$I$1004,5,FALSE))) ->  | I34: =IF('Calculs Impression'!G34="","",'Calculs Impression'!G34) -> 
A35: =IFERROR(VLOOKUP(B35&C35,Matériels!$J$1:$M$993,2,FALSE),"") ->  | B35: =IFERROR(IF('Calculs Impression'!$B35="","",VLOOKUP('Calculs Impression'!$B35,Matériels!$B$1:$I$1004,4,FALSE)),'Calculs Impression'!$B35) ->  | C35: =IFERROR(IF('Calculs Impression'!$B35="","",IF(VLOOKUP('Calculs Impression'!$B35,Matériels!$B$2:$I$1004,5,FALSE)=0,"",VLOOKUP('Calculs Impression'!$B35,Matériels!$B$2:$I$1004,5,FALSE))),"") ->  | D35: =IF('Calculs Impression'!C35="","",'Calculs Impression'!C35) ->  | F35: =IFERROR(VLOOKUP(G35&H35,Matériels!$J$1:$M$993,2,FALSE),"") ->  | G35: =IFERROR(IF('Calculs Impression'!$F35="","",VLOOKUP('Calculs Impression'!$F35,Matériels!$B$1:$I$1004,4,FALSE)),'Calculs Impression'!$F35) ->  | H35: =IF('Calculs Impression'!$F35="","",IF(VLOOKUP('Calculs Impression'!$F35,Matériels!$B$2:$I$1004,5,FALSE)=0,"",VLOOKUP('Calculs Impression'!$F35,Matériels!$B$2:$I$1004,5,FALSE))) ->  | I35: =IF('Calculs Impression'!G35="","",'Calculs Impression'!G35) -> 
A36: =IFERROR(VLOOKUP(B36&C36,Matériels!$J$1:$M$993,2,FALSE),"") ->  | B36: Etriers | G36: Etriers
A37: =IFERROR(VLOOKUP(B37&C37,Matériels!$J$1:$M$993,2,FALSE),"") -> Etrier | B37: =IF('Calculs Impression'!$B37="","",VLOOKUP('Calculs Impression'!$B37,Matériels!$B$1:$I$1004,4,FALSE)) -> 39510 | C37: =IF('Calculs Impression'!$B37="","",IF(VLOOKUP('Calculs Impression'!$B37,Matériels!$B$2:$I$1004,5,FALSE)=0,"",VLOOKUP('Calculs Impression'!$B37,Matériels!$B$2:$I$1004,5,FALSE))) -> 39513 | D37: =IF('Calculs Impression'!C37="","",'Calculs Impression'!C37) -> 2 | F37: =IFERROR(VLOOKUP(G37&H37,Matériels!$J$1:$M$993,2,FALSE),"") ->  | G37: =IF('Calculs Impression'!$F37="","",VLOOKUP('Calculs Impression'!$F37,Matériels!$B$1:$I$1004,4,FALSE)) ->  | H37: =IF('Calculs Impression'!$F37="","",IF(VLOOKUP('Calculs Impression'!$F37,Matériels!$B$2:$I$1004,5,FALSE)=0,"",VLOOKUP('Calculs Impression'!$F37,Matériels!$B$2:$I$1004,5,FALSE))) ->  | I37: =IF('Calculs Impression'!G37="","",'Calculs Impression'!G37) -> 
A38: =IFERROR(VLOOKUP(B38&C38,Matériels!$J$1:$M$993,2,FALSE),"") ->  | B38: Poutrelle d'Ancrage | F38: =IFERROR(VLOOKUP(G38&H38,Matériels!$J$1:$M$993,2,FALSE),"") ->  | G38: Poutrelle d'Ancrage
A39: =IFERROR(VLOOKUP(B39&C39,Matériels!$J$1:$M$993,2,FALSE),"") ->  | B39: =IF('Calculs Impression'!$B39="","",VLOOKUP('Calculs Impression'!$B39,Matériels!$B$1:$I$1004,4,FALSE)) ->  | C39: =IF('Calculs Impression'!$B39="","",IF(VLOOKUP('Calculs Impression'!$B39,Matériels!$B$2:$I$1004,5,FALSE)=0,"",VLOOKUP('Calculs Impression'!$B39,Matériels!$B$2:$I$1004,5,FALSE))) ->  | D39: =IF('Calculs Impression'!C39="","",'Calculs Impression'!C39) ->  | F39: =IFERROR(VLOOKUP(G39&H39,Matériels!$J$1:$M$993,2,FALSE),"") ->  | G39: =IF('Calculs Impression'!$F39="","",VLOOKUP('Calculs Impression'!$F39,Matériels!$B$1:$I$1004,4,FALSE)) ->  | H39: =IF('Calculs Impression'!$F39="","",IF(VLOOKUP('Calculs Impression'!$F39,Matériels!$B$2:$I$1004,5,FALSE)=0,"",VLOOKUP('Calculs Impression'!$F39,Matériels!$B$2:$I$1004,5,FALSE))) ->  | I39: =IF('Calculs Impression'!G39="","",'Calculs Impression'!G39) -> 
B40: Semelle d'Appui | F40: =IFERROR(VLOOKUP(G40&H40,Matériels!$J$1:$M$993,2,FALSE),"") ->  | G40: Semelle d'Appui | I40: =IF('Calculs Impression'!G40="","",'Calculs Impression'!G40) -> 
A41: =IFERROR(VLOOKUP(B41&C41,Matériels!$J$1:$M$993,2,FALSE),"") ->  | B41: =IF('Calculs Impression'!$B41="","",VLOOKUP('Calculs Impression'!$B41,Matériels!$B$1:$I$1004,4,FALSE)) ->  | C41: =IF('Calculs Impression'!$B41="","",IF(VLOOKUP('Calculs Impression'!$B41,Matériels!$B$2:$I$1004,5,FALSE)=0,"",VLOOKUP('Calculs Impression'!$B41,Matériels!$B$2:$I$1004,5,FALSE))) ->  | D41: =IF('Calculs Impression'!C41="","",'Calculs Impression'!C41) ->  | F41: =IFERROR(VLOOKUP(G41&H41,Matériels!$J$1:$M$993,2,FALSE),"") ->  | G41: =IF('Calculs Impression'!$F41="","",VLOOKUP('Calculs Impression'!$F41,Matériels!$B$1:$I$1004,4,FALSE)) ->  | H41: =IF('Calculs Impression'!$F41="","",IF(VLOOKUP('Calculs Impression'!$F41,Matériels!$B$2:$I$1004,5,FALSE)=0,"",VLOOKUP('Calculs Impression'!$F41,Matériels!$B$2:$I$1004,5,FALSE))) ->  | I41: =IF('Calculs Impression'!G41="","",'Calculs Impression'!G41) -> 
B42: Cuvette | F42: =IFERROR(VLOOKUP(G42&H42,Matériels!$J$1:$M$993,2,FALSE),"") ->  | G42: Cuvette | I42: =IF('Calculs Impression'!G42="","",'Calculs Impression'!G42) -> 
A43: =IFERROR(VLOOKUP(B43&C43,Matériels!$J$1:$M$993,2,FALSE),"") ->  | B43: =IF('Calculs Impression'!$B43="","",VLOOKUP('Calculs Impression'!$B43,Matériels!$B$1:$I$1004,4,FALSE)) ->  | C43: =IF('Calculs Impression'!$B43="","",IF(VLOOKUP('Calculs Impression'!$B43,Matériels!$B$2:$I$1004,5,FALSE)=0,"",VLOOKUP('Calculs Impression'!$B43,Matériels!$B$2:$I$1004,5,FALSE))) ->  | D43: =IF('Calculs Impression'!C43="","",'Calculs Impression'!C43) ->  | F43: =IFERROR(VLOOKUP(G43&H43,Matériels!$J$1:$M$993,2,FALSE),"") ->  | G43: =IF('Calculs Impression'!$F43="","",VLOOKUP('Calculs Impression'!$F43,Matériels!$B$1:$I$1004,4,FALSE)) ->  | H43: =IF('Calculs Impression'!$F43="","",IF(VLOOKUP('Calculs Impression'!$F43,Matériels!$B$2:$I$1004,5,FALSE)=0,"",VLOOKUP('Calculs Impression'!$F43,Matériels!$B$2:$I$1004,5,FALSE))) ->  | I43: =IF('Calculs Impression'!G43="","",'Calculs Impression'!G43) -> 
A44: =IFERROR(VLOOKUP(B44&C44,Matériels!$J$1:$M$993,2,FALSE),"") ->  | B44: Tiges filetees | G44: Tiges filetees
A45: =IFERROR(VLOOKUP(B45&C45,Matériels!$J$1:$M$993,2,FALSE),"") ->  | B45: =IF('Calculs Impression'!$B45="","",VLOOKUP('Calculs Impression'!$B45,Matériels!$B$1:$I$1004,4,FALSE)) ->  | C45: =IF('Calculs Impression'!$B45="","",IF(VLOOKUP('Calculs Impression'!$B45,Matériels!$B$2:$I$1004,5,FALSE)=0,"",VLOOKUP('Calculs Impression'!$B45,Matériels!$B$2:$I$1004,5,FALSE))) ->  | D45: =IF('Calculs Impression'!C45="","",'Calculs Impression'!C45) ->  | F45: =IFERROR(VLOOKUP(G45&H45,Matériels!$J$1:$M$993,2,FALSE),"") ->  | G45: =IF('Calculs Impression'!$F45="","",VLOOKUP('Calculs Impression'!$F45,Matériels!$B$1:$I$1004,4,FALSE)) ->  | H45: =IF('Calculs Impression'!$F45="","",IF(VLOOKUP('Calculs Impression'!$F45,Matériels!$B$2:$I$1004,5,FALSE)=0,"",VLOOKUP('Calculs Impression'!$F45,Matériels!$B$2:$I$1004,5,FALSE))) ->  | I45: =IF('Calculs Impression'!G45="","",'Calculs Impression'!G45) -> 
A46: =IFERROR(VLOOKUP(B46&C46,Matériels!$J$1:$M$993,2,FALSE),"") -> B. H M22-100/50 | B46: =IF('Calculs Impression'!$B46="","",VLOOKUP('Calculs Impression'!$B46,Matériels!$B$1:$I$1004,4,FALSE)) -> 01602487 | C46: =IF('Calculs Impression'!$B46="","",IF(VLOOKUP('Calculs Impression'!$B46,Matériels!$B$2:$I$1004,5,FALSE)=0,"",VLOOKUP('Calculs Impression'!$B46,Matériels!$B$2:$I$1004,5,FALSE))) ->  | D46: =IF('Calculs Impression'!C46="","",'Calculs Impression'!C46) -> 4 | F46: =IFERROR(VLOOKUP(G46&H46,Matériels!$J$1:$M$993,2,FALSE),"") ->  | G46: =IF('Calculs Impression'!$F46="","",VLOOKUP('Calculs Impression'!$F46,Matériels!$B$1:$I$1004,4,FALSE)) ->  | H46: =IF('Calculs Impression'!$F46="","",IF(VLOOKUP('Calculs Impression'!$F46,Matériels!$B$2:$I$1004,5,FALSE)=0,"",VLOOKUP('Calculs Impression'!$F46,Matériels!$B$2:$I$1004,5,FALSE))) ->  | I46: =IF('Calculs Impression'!G46="","",'Calculs Impression'!G46) -> 
A47: =IFERROR(VLOOKUP(B47&C47,Matériels!$J$1:$M$993,2,FALSE),"") -> B. H M22-100/50 | B47: =IF('Calculs Impression'!$B47="","",VLOOKUP('Calculs Impression'!$B47,Matériels!$B$1:$I$1004,4,FALSE)) -> 01602487 | C47: =IF('Calculs Impression'!$B47="","",IF(VLOOKUP('Calculs Impression'!$B47,Matériels!$B$2:$I$1004,5,FALSE)=0,"",VLOOKUP('Calculs Impression'!$B47,Matériels!$B$2:$I$1004,5,FALSE))) ->  | D47: =IF('Calculs Impression'!C47="","",'Calculs Impression'!C47) -> 4 | F47: =IFERROR(VLOOKUP(G47&H47,Matériels!$J$1:$M$993,2,FALSE),"") ->  | G47: =IF('Calculs Impression'!$F47="","",VLOOKUP('Calculs Impression'!$F47,Matériels!$B$1:$I$1004,4,FALSE)) ->  | H47: =IF('Calculs Impression'!$F47="","",IF(VLOOKUP('Calculs Impression'!$F47,Matériels!$B$2:$I$1004,5,FALSE)=0,"",VLOOKUP('Calculs Impression'!$F47,Matériels!$B$2:$I$1004,5,FALSE))) ->  | I47: =IF('Calculs Impression'!G47="","",'Calculs Impression'!G47) -> 
A48: =IFERROR(VLOOKUP(B48&C48,Matériels!$J$1:$M$993,2,FALSE),"") ->  | B48: =IF('Calculs Impression'!$B48="","",VLOOKUP('Calculs Impression'!$B48,Matériels!$B$1:$I$1004,4,FALSE)) ->  | C48: =IF('Calculs Impression'!$B48="","",IF(VLOOKUP('Calculs Impression'!$B48,Matériels!$B$2:$I$1004,5,FALSE)=0,"",VLOOKUP('Calculs Impression'!$B48,Matériels!$B$2:$I$1004,5,FALSE))) ->  | D48: =IF('Calculs Impression'!C48="","",'Calculs Impression'!C48) ->  | F48: =IFERROR(VLOOKUP(G48&H48,Matériels!$J$1:$M$993,2,FALSE),"") ->  | G48: =IF('Calculs Impression'!$F48="","",VLOOKUP('Calculs Impression'!$F48,Matériels!$B$1:$I$1004,4,FALSE)) ->  | H48: =IF('Calculs Impression'!$F48="","",IF(VLOOKUP('Calculs Impression'!$F48,Matériels!$B$2:$I$1004,5,FALSE)=0,"",VLOOKUP('Calculs Impression'!$F48,Matériels!$B$2:$I$1004,5,FALSE))) ->  | I48: =IF('Calculs Impression'!G48="","",'Calculs Impression'!G48) -> 
A49: =IFERROR(VLOOKUP(B49&C49,Matériels!$J$1:$M$993,2,FALSE),"") ->  | B49: =IF('Calculs Impression'!$B49="","",VLOOKUP('Calculs Impression'!$B49,Matériels!$B$1:$I$1004,4,FALSE)) ->  | C49: =IF('Calculs Impression'!$B49="","",IF(VLOOKUP('Calculs Impression'!$B49,Matériels!$B$2:$I$1004,5,FALSE)=0,"",VLOOKUP('Calculs Impression'!$B49,Matériels!$B$2:$I$1004,5,FALSE))) ->  | D49: =IF('Calculs Impression'!C49="","",'Calculs Impression'!C49) ->  | F49: =IFERROR(VLOOKUP(G49&H49,Matériels!$J$1:$M$993,2,FALSE),"") ->  | G49: =IF('Calculs Impression'!$F49="","",VLOOKUP('Calculs Impression'!$F49,Matériels!$B$1:$I$1004,4,FALSE)) ->  | H49: =IF('Calculs Impression'!$F49="","",IF(VLOOKUP('Calculs Impression'!$F49,Matériels!$B$2:$I$1004,5,FALSE)=0,"",VLOOKUP('Calculs Impression'!$F49,Matériels!$B$2:$I$1004,5,FALSE))) ->  | I49: =IF('Calculs Impression'!G49="","",'Calculs Impression'!G49) -> 
A50: =IFERROR(VLOOKUP(B50&C50,Matériels!$J$1:$M$993,2,FALSE),"") ->  | B50: =IF('Calculs Impression'!$B50="","",VLOOKUP('Calculs Impression'!$B50,Matériels!$B$1:$I$1004,4,FALSE)) ->  | C50: =IF('Calculs Impression'!$B50="","",IF(VLOOKUP('Calculs Impression'!$B50,Matériels!$B$2:$I$1004,5,FALSE)=0,"",VLOOKUP('Calculs Impression'!$B50,Matériels!$B$2:$I$1004,5,FALSE))) ->  | D50: =IF('Calculs Impression'!C50="","",'Calculs Impression'!C50) ->  | F50: =IFERROR(VLOOKUP(G50&H50,Matériels!$J$1:$M$993,2,FALSE),"") ->  | G50: =IF('Calculs Impression'!$F50="","",VLOOKUP('Calculs Impression'!$F50,Matériels!$B$1:$I$1004,4,FALSE)) ->  | H50: =IF('Calculs Impression'!$F50="","",IF(VLOOKUP('Calculs Impression'!$F50,Matériels!$B$2:$I$1004,5,FALSE)=0,"",VLOOKUP('Calculs Impression'!$F50,Matériels!$B$2:$I$1004,5,FALSE))) ->  | I50: =IF('Calculs Impression'!G50="","",'Calculs Impression'!G50) -> 
A51: =IFERROR(VLOOKUP(B51&C51,Matériels!$J$1:$M$993,2,FALSE),"") ->  | B51: =IF('Calculs Impression'!$B51="","",VLOOKUP('Calculs Impression'!$B51,Matériels!$B$1:$I$1004,4,FALSE)) ->  | C51: =IF('Calculs Impression'!$B51="","",IF(VLOOKUP('Calculs Impression'!$B51,Matériels!$B$2:$I$1004,5,FALSE)=0,"",VLOOKUP('Calculs Impression'!$B51,Matériels!$B$2:$I$1004,5,FALSE))) ->  | D51: =IF('Calculs Impression'!C51="","",'Calculs Impression'!C51) ->  | F51: =IFERROR(VLOOKUP(G51&H51,Matériels!$J$1:$M$993,2,FALSE),"") ->  | G51: =IF('Calculs Impression'!$F51="","",VLOOKUP('Calculs Impression'!$F51,Matériels!$B$1:$I$1004,4,FALSE)) ->  | H51: =IF('Calculs Impression'!$F51="","",IF(VLOOKUP('Calculs Impression'!$F51,Matériels!$B$2:$I$1004,5,FALSE)=0,"",VLOOKUP('Calculs Impression'!$F51,Matériels!$B$2:$I$1004,5,FALSE))) ->  | I51: =IF('Calculs Impression'!G51="","",'Calculs Impression'!G51) -> 
A52: =IFERROR(VLOOKUP(B52&C52,Matériels!$J$1:$M$993,2,FALSE),"") ->  | B52: =IF('Calculs Impression'!$B52="","",VLOOKUP('Calculs Impression'!$B52,Matériels!$B$1:$I$1004,4,FALSE)) ->  | C52: =IF('Calculs Impression'!$B52="","",IF(VLOOKUP('Calculs Impression'!$B52,Matériels!$B$2:$I$1004,5,FALSE)=0,"",VLOOKUP('Calculs Impression'!$B52,Matériels!$B$2:$I$1004,5,FALSE))) ->  | D52: =IF('Calculs Impression'!C52="","",'Calculs Impression'!C52) ->  | F52: =IFERROR(VLOOKUP(G52&H52,Matériels!$J$1:$M$993,2,FALSE),"") ->  | G52: =IF('Calculs Impression'!$F52="","",VLOOKUP('Calculs Impression'!$F52,Matériels!$B$1:$I$1004,4,FALSE)) ->  | H52: =IF('Calculs Impression'!$F52="","",IF(VLOOKUP('Calculs Impression'!$F52,Matériels!$B$2:$I$1004,5,FALSE)=0,"",VLOOKUP('Calculs Impression'!$F52,Matériels!$B$2:$I$1004,5,FALSE))) ->  | I52: =IF('Calculs Impression'!G52="","",'Calculs Impression'!G52) -> 
B53: Rondelles | G53: Rondelles
B54: =IF('Calculs Impression'!$B54="","",VLOOKUP('Calculs Impression'!$B54,Matériels!$B$1:$I$1004,4,FALSE)) ->  | C54: =IF('Calculs Impression'!$B54="","",IF(VLOOKUP('Calculs Impression'!$B54,Matériels!$B$2:$I$1004,5,FALSE)=0,"",VLOOKUP('Calculs Impression'!$B54,Matériels!$B$2:$I$1004,5,FALSE))) ->  | D54: =IF('Calculs Impression'!C54="","",'Calculs Impression'!C54) ->  | G54: =IF('Calculs Impression'!$F54="","",VLOOKUP('Calculs Impression'!$F54,Matériels!$B$1:$I$1004,4,FALSE)) ->  | H54: =IF('Calculs Impression'!$F54="","",IF(VLOOKUP('Calculs Impression'!$F54,Matériels!$B$2:$I$1004,5,FALSE)=0,"",VLOOKUP('Calculs Impression'!$F54,Matériels!$B$2:$I$1004,5,FALSE))) ->  | I54: =IF('Calculs Impression'!G54="","",'Calculs Impression'!G54) -> 
A55: =IFERROR(VLOOKUP(B55&C55,Matériels!$J$1:$M$993,2,FALSE),"") ->  | B55: Appareil Tendeur | G55: Appareil Tendeur
A56: =IFERROR(VLOOKUP(B56&C56,Matériels!$J$1:$M$993,2,FALSE),"") -> Ens. Montage Appareil Tendeur | B56: =IF('Calculs Impression'!$B56="","",VLOOKUP('Calculs Impression'!$B56,Matériels!$B$1:$I$1004,4,FALSE)) -> 222940 | C56: =IF('Calculs Impression'!$B56="","",IF(VLOOKUP('Calculs Impression'!$B56,Matériels!$B$2:$I$1004,5,FALSE)=0,"",VLOOKUP('Calculs Impression'!$B56,Matériels!$B$2:$I$1004,5,FALSE))) -> 222942 | D56: =IF('Calculs Impression'!C56="","",'Calculs Impression'!C56) -> 1 | F56: =IFERROR(VLOOKUP(G56&H56,Matériels!$J$1:$M$993,2,FALSE),"") ->  | G56: =IF('Calculs Impression'!$F56="","",VLOOKUP('Calculs Impression'!$F56,Matériels!$B$1:$I$1004,4,FALSE)) ->  | H56: =IF('Calculs Impression'!$F56="","",IF(VLOOKUP('Calculs Impression'!$F56,Matériels!$B$2:$I$1004,5,FALSE)=0,"",VLOOKUP('Calculs Impression'!$F56,Matériels!$B$2:$I$1004,5,FALSE))) ->  | I56: =IF('Calculs Impression'!G56="","",'Calculs Impression'!G56) -> 
A57: =IFERROR(VLOOKUP(B57&C57,Matériels!$J$1:$M$993,2,FALSE),"") ->  | B57: =IF('Calculs Impression'!$B57="","",VLOOKUP('Calculs Impression'!$B57,Matériels!$B$1:$I$1004,4,FALSE)) ->  | C57: =IF('Calculs Impression'!$B57="","",IF(VLOOKUP('Calculs Impression'!$B57,Matériels!$B$2:$I$1004,5,FALSE)=0,"",VLOOKUP('Calculs Impression'!$B57,Matériels!$B$2:$I$1004,5,FALSE))) ->  | D57: =IF('Calculs Impression'!C57="","",'Calculs Impression'!C57) ->  | F57: =IFERROR(VLOOKUP(G57&H57,Matériels!$J$1:$M$993,2,FALSE),"") ->  | G57: =IF('Calculs Impression'!$F57="","",VLOOKUP('Calculs Impression'!$F57,Matériels!$B$1:$I$1004,4,FALSE)) ->  | H57: =IF('Calculs Impression'!$F57="","",IF(VLOOKUP('Calculs Impression'!$F57,Matériels!$B$2:$I$1004,5,FALSE)=0,"",VLOOKUP('Calculs Impression'!$F57,Matériels!$B$2:$I$1004,5,FALSE))) ->  | I57: =IF('Calculs Impression'!G57="","",'Calculs Impression'!G57) -> 
A58: =IFERROR(VLOOKUP(B58&C58,Matériels!$J$1:$M$993,2,FALSE),"") ->  | B58: Ancrage Conducteurs | G58: Ancrage Conducteurs
A59: =IFERROR(VLOOKUP(B59&C59,Matériels!$J$1:$M$993,2,FALSE),"") -> Ancrage de 2 Porteurs CR | B59: =IF('Calculs Impression'!$B59="","",VLOOKUP('Calculs Impression'!$B59,Matériels!$B$1:$I$1004,4,FALSE)) -> 10985 | C59: =IF('Calculs Impression'!$B59="","",IF(VLOOKUP('Calculs Impression'!$B59,Matériels!$B$2:$I$1004,5,FALSE)=0,"",VLOOKUP('Calculs Impression'!$B59,Matériels!$B$2:$I$1004,5,FALSE))) -> 352 | D59: =IF('Calculs Impression'!C59="","",'Calculs Impression'!C59) -> 1 | F59: =IFERROR(VLOOKUP(G59&H59,Matériels!$J$1:$M$993,2,FALSE),"") ->  | G59: =IF('Calculs Impression'!$F59="","",VLOOKUP('Calculs Impression'!$F59,Matériels!$B$1:$I$1004,4,FALSE)) ->  | H59: =IF('Calculs Impression'!$F59="","",IF(VLOOKUP('Calculs Impression'!$F59,Matériels!$B$2:$I$1004,5,FALSE)=0,"",VLOOKUP('Calculs Impression'!$F59,Matériels!$B$2:$I$1004,5,FALSE))) ->  | I59: =IF('Calculs Impression'!G59="","",'Calculs Impression'!G59) -> 
A60: =IFERROR(VLOOKUP(B60&C60,Matériels!$J$1:$M$993,2,FALSE),"") -> Ancrage de 2 Porteurs CR | B60: =IF('Calculs Impression'!$B60="","",VLOOKUP('Calculs Impression'!$B60,Matériels!$B$1:$I$1004,4,FALSE)) -> 10985 | C60: =IF('Calculs Impression'!$B60="","",IF(VLOOKUP('Calculs Impression'!$B60,Matériels!$B$2:$I$1004,5,FALSE)=0,"",VLOOKUP('Calculs Impression'!$B60,Matériels!$B$2:$I$1004,5,FALSE))) -> 352 | D60: =IF('Calculs Impression'!C60="","",'Calculs Impression'!C60) -> 1 | F60: =IFERROR(VLOOKUP(G60&H60,Matériels!$J$1:$M$993,2,FALSE),"") ->  | G60: =IF('Calculs Impression'!$F60="","",VLOOKUP('Calculs Impression'!$F60,Matériels!$B$1:$I$1004,4,FALSE)) ->  | H60: =IF('Calculs Impression'!$F60="","",IF(VLOOKUP('Calculs Impression'!$F60,Matériels!$B$2:$I$1004,5,FALSE)=0,"",VLOOKUP('Calculs Impression'!$F60,Matériels!$B$2:$I$1004,5,FALSE))) ->  | I60: =IF('Calculs Impression'!G60="","",'Calculs Impression'!G60) -> 
A61: =IFERROR(VLOOKUP(B61&C61,Matériels!$J$1:$M$993,2,FALSE),"") ->  | B61: =IF('Calculs Impression'!$B61="","",VLOOKUP('Calculs Impression'!$B61,Matériels!$B$1:$I$1004,4,FALSE)) ->  | C61: =IF('Calculs Impression'!$B61="","",IF(VLOOKUP('Calculs Impression'!$B61,Matériels!$B$2:$I$1004,5,FALSE)=0,"",VLOOKUP('Calculs Impression'!$B61,Matériels!$B$2:$I$1004,5,FALSE))) ->  | D61: =IF('Calculs Impression'!C61="","",'Calculs Impression'!C61) ->  | F61: =IFERROR(VLOOKUP(G61&H61,Matériels!$J$1:$M$993,2,FALSE),"") ->  | G61: =IF('Calculs Impression'!$F61="","",VLOOKUP('Calculs Impression'!$F61,Matériels!$B$1:$I$1004,4,FALSE)) ->  | H61: =IF('Calculs Impression'!$F61="","",IF(VLOOKUP('Calculs Impression'!$F61,Matériels!$B$2:$I$1004,5,FALSE)=0,"",VLOOKUP('Calculs Impression'!$F61,Matériels!$B$2:$I$1004,5,FALSE))) ->  | I61: =IF('Calculs Impression'!G61="","",'Calculs Impression'!G61) -> 
A62: =IFERROR(VLOOKUP(B62&C62,Matériels!$J$1:$M$993,2,FALSE),"") ->  | B62: =IF('Calculs Impression'!$B62="","",VLOOKUP('Calculs Impression'!$B62,Matériels!$B$1:$I$1004,4,FALSE)) ->  | C62: =IF('Calculs Impression'!$B62="","",IF(VLOOKUP('Calculs Impression'!$B62,Matériels!$B$2:$I$1004,5,FALSE)=0,"",VLOOKUP('Calculs Impression'!$B62,Matériels!$B$2:$I$1004,5,FALSE))) ->  | D62: =IF('Calculs Impression'!C62="","",'Calculs Impression'!C62) ->  | F62: =IFERROR(VLOOKUP(G62&H62,Matériels!$J$1:$M$993,2,FALSE),"") ->  | G62: =IF('Calculs Impression'!$F62="","",VLOOKUP('Calculs Impression'!$F62,Matériels!$B$1:$I$1004,4,FALSE)) ->  | H62: =IF('Calculs Impression'!$F62="","",IF(VLOOKUP('Calculs Impression'!$F62,Matériels!$B$2:$I$1004,5,FALSE)=0,"",VLOOKUP('Calculs Impression'!$F62,Matériels!$B$2:$I$1004,5,FALSE))) ->  | I62: =IF('Calculs Impression'!G62="","",'Calculs Impression'!G62) -> 
A63: =IFERROR(VLOOKUP(B63&C63,Matériels!$J$1:$M$993,2,FALSE),"") ->  | B63: Isolement Supplémentaire | G63: Isolement Supplémentaire
A64: =IFERROR(VLOOKUP(B64&C64,Matériels!$J$1:$M$993,2,FALSE),"") ->  | B64: =IF('Calculs Impression'!$B64="","",VLOOKUP('Calculs Impression'!$B64,Matériels!$B$1:$I$1004,4,FALSE)) ->  | C64: =IF('Calculs Impression'!$B64="","",IF(VLOOKUP('Calculs Impression'!$B64,Matériels!$B$2:$I$1004,5,FALSE)=0,"",VLOOKUP('Calculs Impression'!$B64,Matériels!$B$2:$I$1004,5,FALSE))) ->  | D64: =IF('Calculs Impression'!C64="","",'Calculs Impression'!C64) ->  | F64: =IFERROR(VLOOKUP(G64&H64,Matériels!$J$1:$M$993,2,FALSE),"") ->  | G64: =IF('Calculs Impression'!$F64="","",VLOOKUP('Calculs Impression'!$F64,Matériels!$B$1:$I$1004,4,FALSE)) ->  | H64: =IF('Calculs Impression'!$F64="","",IF(VLOOKUP('Calculs Impression'!$F64,Matériels!$B$2:$I$1004,5,FALSE)=0,"",VLOOKUP('Calculs Impression'!$F64,Matériels!$B$2:$I$1004,5,FALSE))) ->  | I64: =IF('Calculs Impression'!G64="","",'Calculs Impression'!G64) -> 
A65: =IFERROR(VLOOKUP(B65&C65,Matériels!$J$1:$M$993,2,FALSE),"") ->  | B65: =IF('Calculs Impression'!$B65="","",VLOOKUP('Calculs Impression'!$B65,Matériels!$B$1:$I$1004,4,FALSE)) ->  | C65: =IF('Calculs Impression'!$B65="","",IF(VLOOKUP('Calculs Impression'!$B65,Matériels!$B$2:$I$1004,5,FALSE)=0,"",VLOOKUP('Calculs Impression'!$B65,Matériels!$B$2:$I$1004,5,FALSE))) ->  | D65: =IF('Calculs Impression'!C65="","",'Calculs Impression'!C65) ->  | F65: =IFERROR(VLOOKUP(G65&H65,Matériels!$J$1:$M$993,2,FALSE),"") ->  | G65: =IF('Calculs Impression'!$F65="","",VLOOKUP('Calculs Impression'!$F65,Matériels!$B$1:$I$1004,4,FALSE)) ->  | H65: =IF('Calculs Impression'!$F65="","",IF(VLOOKUP('Calculs Impression'!$F65,Matériels!$B$2:$I$1004,5,FALSE)=0,"",VLOOKUP('Calculs Impression'!$F65,Matériels!$B$2:$I$1004,5,FALSE))) ->  | I65: =IF('Calculs Impression'!G65="","",'Calculs Impression'!G65) -> 
A66: =IFERROR(VLOOKUP(B66&C66,Matériels!$J$1:$M$993,2,FALSE),"") ->  | B66: =IF('Calculs Impression'!$B66="","",VLOOKUP('Calculs Impression'!$B66,Matériels!$B$1:$I$1004,4,FALSE)) ->  | C66: =IF('Calculs Impression'!$B66="","",IF(VLOOKUP('Calculs Impression'!$B66,Matériels!$B$2:$I$1004,5,FALSE)=0,"",VLOOKUP('Calculs Impression'!$B66,Matériels!$B$2:$I$1004,5,FALSE))) ->  | D66: =IF('Calculs Impression'!C66="","",'Calculs Impression'!C66) ->  | F66: =IFERROR(VLOOKUP(G66&H66,Matériels!$J$1:$M$993,2,FALSE),"") ->  | G66: =IF('Calculs Impression'!$F66="","",VLOOKUP('Calculs Impression'!$F66,Matériels!$B$1:$I$1004,4,FALSE)) ->  | H66: =IF('Calculs Impression'!$F66="","",IF(VLOOKUP('Calculs Impression'!$F66,Matériels!$B$2:$I$1004,5,FALSE)=0,"",VLOOKUP('Calculs Impression'!$F66,Matériels!$B$2:$I$1004,5,FALSE))) ->  | I66: =IF('Calculs Impression'!G66="","",'Calculs Impression'!G66) -> 
A67: =IFERROR(VLOOKUP(B67&C67,Matériels!$J$1:$M$993,2,FALSE),"") ->  | B67: =IF('Calculs Impression'!$B67="","",VLOOKUP('Calculs Impression'!$B67,Matériels!$B$1:$I$1004,4,FALSE)) ->  | C67: =IF('Calculs Impression'!$B67="","",IF(VLOOKUP('Calculs Impression'!$B67,Matériels!$B$2:$I$1004,5,FALSE)=0,"",VLOOKUP('Calculs Impression'!$B67,Matériels!$B$2:$I$1004,5,FALSE))) ->  | D67: =IF('Calculs Impression'!C67="","",'Calculs Impression'!C67) ->  | F67: =IFERROR(VLOOKUP(G67&H67,Matériels!$J$1:$M$993,2,FALSE),"") ->  | G67: =IF('Calculs Impression'!$F67="","",VLOOKUP('Calculs Impression'!$F67,Matériels!$B$1:$I$1004,4,FALSE)) ->  | H67: =IF('Calculs Impression'!$F67="","",IF(VLOOKUP('Calculs Impression'!$F67,Matériels!$B$2:$I$1004,5,FALSE)=0,"",VLOOKUP('Calculs Impression'!$F67,Matériels!$B$2:$I$1004,5,FALSE))) ->  | I67: =IF('Calculs Impression'!G67="","",'Calculs Impression'!G67) -> 
A68: =IFERROR(VLOOKUP(B68&C68,Matériels!$J$1:$M$993,2,FALSE),"") ->  | B68: =IF('Calculs Impression'!$B68="","",VLOOKUP('Calculs Impression'!$B68,Matériels!$B$1:$I$1004,4,FALSE)) ->  | C68: =IF('Calculs Impression'!$B68="","",IF(VLOOKUP('Calculs Impression'!$B68,Matériels!$B$2:$I$1004,5,FALSE)=0,"",VLOOKUP('Calculs Impression'!$B68,Matériels!$B$2:$I$1004,5,FALSE))) ->  | D68: =IF('Calculs Impression'!C68="","",'Calculs Impression'!C68) ->  | F68: =IFERROR(VLOOKUP(G68&H68,Matériels!$J$1:$M$993,2,FALSE),"") ->  | G68: =IF('Calculs Impression'!$F68="","",VLOOKUP('Calculs Impression'!$F68,Matériels!$B$1:$I$1004,4,FALSE)) ->  | H68: =IF('Calculs Impression'!$F68="","",IF(VLOOKUP('Calculs Impression'!$F68,Matériels!$B$2:$I$1004,5,FALSE)=0,"",VLOOKUP('Calculs Impression'!$F68,Matériels!$B$2:$I$1004,5,FALSE))) ->  | I68: =IF('Calculs Impression'!G68="","",'Calculs Impression'!G68) -> 
A69: =IFERROR(VLOOKUP(B69&C69,Matériels!$J$1:$M$993,2,FALSE),"") ->  | B69: =IF('Calculs Impression'!$B69="","",VLOOKUP('Calculs Impression'!$B69,Matériels!$B$1:$I$1004,4,FALSE)) ->  | C69: =IF('Calculs Impression'!$B69="","",IF(VLOOKUP('Calculs Impression'!$B69,Matériels!$B$2:$I$1004,5,FALSE)=0,"",VLOOKUP('Calculs Impression'!$B69,Matériels!$B$2:$I$1004,5,FALSE))) ->  | D69: =IF('Calculs Impression'!C69="","",'Calculs Impression'!C69) ->  | F69: =IFERROR(VLOOKUP(G69&H69,Matériels!$J$1:$M$993,2,FALSE),"") ->  | G69: =IF('Calculs Impression'!$F69="","",VLOOKUP('Calculs Impression'!$F69,Matériels!$B$1:$I$1004,4,FALSE)) ->  | H69: =IF('Calculs Impression'!$F69="","",IF(VLOOKUP('Calculs Impression'!$F69,Matériels!$B$2:$I$1004,5,FALSE)=0,"",VLOOKUP('Calculs Impression'!$F69,Matériels!$B$2:$I$1004,5,FALSE))) ->  | I69: =IF('Calculs Impression'!G69="","",'Calculs Impression'!G69) -> 
A70: =IFERROR(VLOOKUP(B70&C70,Matériels!$J$1:$M$993,2,FALSE),"") ->  | B70: =IF('Calculs Impression'!$B70="","",VLOOKUP('Calculs Impression'!$B70,Matériels!$B$1:$I$1004,4,FALSE)) ->  | C70: =IF('Calculs Impression'!$B70="","",IF(VLOOKUP('Calculs Impression'!$B70,Matériels!$B$2:$I$1004,5,FALSE)=0,"",VLOOKUP('Calculs Impression'!$B70,Matériels!$B$2:$I$1004,5,FALSE))) ->  | D70: =IF('Calculs Impression'!C70="","",'Calculs Impression'!C70) ->  | F70: =IFERROR(VLOOKUP(G70&H70,Matériels!$J$1:$M$993,2,FALSE),"") ->  | G70: =IF('Calculs Impression'!$F70="","",VLOOKUP('Calculs Impression'!$F70,Matériels!$B$1:$I$1004,4,FALSE)) ->  | H70: =IF('Calculs Impression'!$F70="","",IF(VLOOKUP('Calculs Impression'!$F70,Matériels!$B$2:$I$1004,5,FALSE)=0,"",VLOOKUP('Calculs Impression'!$F70,Matériels!$B$2:$I$1004,5,FALSE))) ->  | I70: =IF('Calculs Impression'!G70="","",'Calculs Impression'!G70) -> 
A71: =IFERROR(VLOOKUP(B71&C71,Matériels!$J$1:$M$993,2,FALSE),"") ->  | B71: =IF('Calculs Impression'!$B71="","",VLOOKUP('Calculs Impression'!$B71,Matériels!$B$1:$I$1004,4,FALSE)) ->  | C71: =IF('Calculs Impression'!$B71="","",IF(VLOOKUP('Calculs Impression'!$B71,Matériels!$B$2:$I$1004,5,FALSE)=0,"",VLOOKUP('Calculs Impression'!$B71,Matériels!$B$2:$I$1004,5,FALSE))) ->  | D71: =IF('Calculs Impression'!C71="","",'Calculs Impression'!C71) ->  | F71: =IFERROR(VLOOKUP(G71&H71,Matériels!$J$1:$M$993,2,FALSE),"") ->  | G71: =IF('Calculs Impression'!$F71="","",VLOOKUP('Calculs Impression'!$F71,Matériels!$B$1:$I$1004,4,FALSE)) ->  | H71: =IF('Calculs Impression'!$F71="","",IF(VLOOKUP('Calculs Impression'!$F71,Matériels!$B$2:$I$1004,5,FALSE)=0,"",VLOOKUP('Calculs Impression'!$F71,Matériels!$B$2:$I$1004,5,FALSE))) ->  | I71: =IF('Calculs Impression'!G71="","",'Calculs Impression'!G71) -> 
A72: =IFERROR(VLOOKUP(B72&C72,Matériels!$J$1:$M$993,2,FALSE),"") ->  | B72: =IF('Calculs Impression'!$B72="","",VLOOKUP('Calculs Impression'!$B72,Matériels!$B$1:$I$1004,4,FALSE)) ->  | C72: =IF('Calculs Impression'!$B72="","",IF(VLOOKUP('Calculs Impression'!$B72,Matériels!$B$2:$I$1004,5,FALSE)=0,"",VLOOKUP('Calculs Impression'!$B72,Matériels!$B$2:$I$1004,5,FALSE))) ->  | D72: =IF('Calculs Impression'!C72="","",'Calculs Impression'!C72) ->  | F72: =IFERROR(VLOOKUP(G72&H72,Matériels!$J$1:$M$993,2,FALSE),"") ->  | G72: =IF('Calculs Impression'!$F72="","",VLOOKUP('Calculs Impression'!$F72,Matériels!$B$1:$I$1004,4,FALSE)) ->  | H72: =IF('Calculs Impression'!$F72="","",IF(VLOOKUP('Calculs Impression'!$F72,Matériels!$B$2:$I$1004,5,FALSE)=0,"",VLOOKUP('Calculs Impression'!$F72,Matériels!$B$2:$I$1004,5,FALSE))) ->  | I72: =IF('Calculs Impression'!G72="","",'Calculs Impression'!G72) -> 

Sheet Resultats
A1: DETERMINATION D'ANCRAGES
D3: ="Support "&Numero -> Support 265-4
D4: Echantillon : | F4: HEA300J
D5: Massif : | F5: 4Pn
D6: Arrasement : | F6: 0.08
B8: Ancrage N°1 | C8: ="("&Carac1&")" -> (Droit) | G8: Ancrage N°2 | H8: ="("&Carac2&")" -> (Gauche) | K8: =IF(K9="","","Percages :") -> Percages :
A9: Tension Mécanique : | C9: 90.8 | F9: Tension Mécanique : | H9: 0 | K9: =IF(Résultats!N92<>"",Résultats!N92,"") -> E1: L=8.9 m
A10: Massif : | B10: 9 | C10: Api | F10: Massif : | K10: =IF(Résultats!N93<>"",Résultats!N93,"") -> E2: L=7.9 m
K11: =IF(Résultats!N94<>"",Résultats!N94,"") -> 
A12: Designations | B12: Plan | C12: Repere | D12: Quantités | F12: Designations | G12: Plan | H12: Repere | I12: Quantités | K12: =IF(Résultats!N95<>"",Résultats!N95,"") -> 
A13: =IFERROR(VLOOKUP(B13&C13,Matériels!$J$1:$M$1004,2,FALSE),"") -> Piece d'ancrage Hauban | B13: 22155 | D13: 1 | F13: =IFERROR(VLOOKUP(G13&H13,Matériels!$J$1:$M$1004,2,FALSE),"") ->  | K13: =IF(Résultats!N96<>"",Résultats!N96,"") -> 
A14: =IFERROR(VLOOKUP(B14&C14,Matériels!$J$1:$M$1004,2,FALSE),"") -> Piece d'ancrage Hauban | B14: 22155 | D14: 1 | F14: =IFERROR(VLOOKUP(G14&H14,Matériels!$J$1:$M$1004,2,FALSE),"") ->  | K14: =IF(Résultats!N97<>"",Résultats!N97,"") -> 
A15: =IFERROR(VLOOKUP(B15&C15,Matériels!$J$1:$M$1004,2,FALSE),"") ->  | F15: =IFERROR(VLOOKUP(G15&H15,Matériels!$J$1:$M$1004,2,FALSE),"") ->  | K15: =IF(Résultats!N98<>"",Résultats!N98,"") -> 
A16: =IFERROR(VLOOKUP(B16&C16,Matériels!$J$1:$M$1004,2,FALSE),"") ->  | F16: =IFERROR(VLOOKUP(G16&H16,Matériels!$J$1:$M$1004,2,FALSE),"") ->  | K16: =IF(Résultats!N99<>"",Résultats!N99,"") -> 
A17: =IFERROR(VLOOKUP(B17&C17,Matériels!$J$1:$M$1004,2,FALSE),"") -> Piece d'ancrage Câble | B17: 22173 | D17: 1 | F17: =IFERROR(VLOOKUP(G17&H17,Matériels!$J$1:$M$1004,2,FALSE),"") ->  | K17: =IF(Résultats!N100<>"",Résultats!N100,"") -> 
A18: =IFERROR(VLOOKUP(B18&C18,Matériels!$J$1:$M$1004,2,FALSE),"") -> Piece d'ancrage Câble | B18: 22173 | D18: 1 | F18: =IFERROR(VLOOKUP(G18&H18,Matériels!$J$1:$M$1004,2,FALSE),"") ->  | K18: =IF(Résultats!N101<>"",Résultats!N101,"") -> 
A19: =IFERROR(VLOOKUP(B19&C19,Matériels!$J$1:$M$1004,2,FALSE),"") ->  | F19: =IFERROR(VLOOKUP(G19&H19,Matériels!$J$1:$M$1004,2,FALSE),"") ->  | K19: =IF(Résultats!N102<>"",Résultats!N102,"") -> 
A20: ------------------------------------------------ | B20: Pieces de Reglages | C20: ----------------------------------------------------------- | F20: ------------------------------------------------ | G20: Pieces de Reglages | H20: ----------------------------------------------------------- | K20: =IF(Résultats!N103<>"",Résultats!N103,"") -> 
A21: =IFERROR(VLOOKUP(B21&C21,Matériels!$J$1:$M$1004,2,FALSE),"") -> Piece de Reglage | B21: 37606 | D21: 2 | F21: =IFERROR(VLOOKUP(G21&H21,Matériels!$J$1:$M$1004,2,FALSE),"") ->  | K21: =IF(Résultats!N104<>"",Résultats!N104,"") -> 
A22: =IFERROR(VLOOKUP(B22&C22,Matériels!$J$1:$M$1004,2,FALSE),"") ->  | F22: =IFERROR(VLOOKUP(G22&H22,Matériels!$J$1:$M$1004,2,FALSE),"") ->  | K22: =IF(Résultats!N105<>"",Résultats!N105,"") -> 
A23: ------------------------------------------------ | B23: Haubans d'Ancrages | C23: ----------------------------------------------------------- | F23: ------------------------------------------------ | G23: Haubans d'Ancrages | H23: -----------------------------------------------------------
A24: =IFERROR(VLOOKUP(B24&C24,Matériels!$J$1:$M$1004,2,FALSE),"") -> hauban d'ancrage Ø36 de Lg= 8,75m | B24: 37550 | C24: 37556 | D24: 1 | F24: =IFERROR(VLOOKUP(G24&H24,Matériels!$J$1:$M$1004,2,FALSE),"") -> 
A25: =IFERROR(VLOOKUP(B25&C25,Matériels!$J$1:$M$1004,2,FALSE),"") -> hauban d'ancrage Ø36 de Lg= 8,75m | B25: 37550 | C25: 37556 | D25: 1 | F25: =IFERROR(VLOOKUP(G25&H25,Matériels!$J$1:$M$1004,2,FALSE),"") -> 
A26: =IFERROR(VLOOKUP(B26&C26,Matériels!$J$1:$M$1004,2,FALSE),"") ->  | F26: =IFERROR(VLOOKUP(G26&H26,Matériels!$J$1:$M$1004,2,FALSE),"") -> 
A27: =IFERROR(VLOOKUP(B27&C27,Matériels!$J$1:$M$1004,2,FALSE),"") ->  | F27: =IFERROR(VLOOKUP(G27&H27,Matériels!$J$1:$M$1004,2,FALSE),"") -> 
A28: =IFERROR(VLOOKUP(B28&C28,Matériels!$J$1:$M$1004,2,FALSE),"") ->  | F28: =IFERROR(VLOOKUP(G28&H28,Matériels!$J$1:$M$1004,2,FALSE),"") -> 
A29: =IFERROR(VLOOKUP(B29&C29,Matériels!$J$1:$M$1004,2,FALSE),"") ->  | F29: =IFERROR(VLOOKUP(G29&H29,Matériels!$J$1:$M$1004,2,FALSE),"") -> 
A30: =IFERROR(VLOOKUP(B30&C30,Matériels!$J$1:$M$1004,2,FALSE),"") ->  | F30: =IFERROR(VLOOKUP(G30&H30,Matériels!$J$1:$M$1004,2,FALSE),"") -> 
A31: ------------------------------------------------ | B31: Jumelles | C31: ----------------------------------------------------------- | F31: ------------------------------------------------ | G31: Jumelles | H31: -----------------------------------------------------------
A32: =IFERROR(VLOOKUP(B32&C32,Matériels!$J$1:$M$1004,2,FALSE),"") -> Jumelles de 1,00m | B32: 37627 | C32: 103 | D32: 1 | F32: =IFERROR(VLOOKUP(G32&H32,Matériels!$J$1:$M$1004,2,FALSE),"") -> 
A33: =IFERROR(VLOOKUP(B33&C33,Matériels!$J$1:$M$1004,2,FALSE),"") -> Jumelles de 0,12m | B33: 37627 | C33: 101 | D33: 1 | F33: =IFERROR(VLOOKUP(G33&H33,Matériels!$J$1:$M$1004,2,FALSE),"") -> 
A34: =IFERROR(VLOOKUP(B34&C34,Matériels!$J$1:$M$1004,2,FALSE),"") ->  | F34: =IFERROR(VLOOKUP(G34&H34,Matériels!$J$1:$M$1004,2,FALSE),"") -> 
A35: =IFERROR(VLOOKUP(B35&C35,Matériels!$J$1:$M$1004,2,FALSE),"") ->  | F35: =IFERROR(VLOOKUP(G35&H35,Matériels!$J$1:$M$1004,2,FALSE),"") -> 
A36: ------------------------------------------------ | B36: Etriers | F36: ------------------------------------------------ | G36: Etriers
A37: =IFERROR(VLOOKUP(B37&C37,Matériels!$J$1:$M$1004,2,FALSE),"") -> Etrier | B37: 39510 | C37: 39513 | D37: 2 | F37: =IFERROR(VLOOKUP(G37&H37,Matériels!$J$1:$M$1004,2,FALSE),"") -> 
A38: ------------------------------------------------ | B38: Poutrelle d'Ancrage | C38: ----------------------------------------------------------- | F38: ------------------------------------------------ | G38: Poutrelle d'Ancrage | H38: -----------------------------------------------------------
A39: =IFERROR(VLOOKUP(B39&C39,Matériels!$J$1:$M$1004,2,FALSE),"") ->  | F39: =IFERROR(VLOOKUP(G39&H39,Matériels!$J$1:$M$1004,2,FALSE),"") -> 
A40: ------------------------------------------------ | B40: Semelle d'Appui | C40: ----------------------------------------------------------- | F40: ------------------------------------------------ | G40: Semelle d'Appui | H40: -----------------------------------------------------------
A41: =IFERROR(VLOOKUP(B41&C41,Matériels!$J$1:$M$1004,2,FALSE),"") ->  | F41: =IFERROR(VLOOKUP(G41&H41,Matériels!$J$1:$M$1004,2,FALSE),"") -> 
A42: ------------------------------------------------ | B42: Cuvette | C42: ----------------------------------------------------------- | F42: ------------------------------------------------ | G42: Cuvette | H42: -----------------------------------------------------------
A43: =IFERROR(VLOOKUP(B43&C43,Matériels!$J$1:$M$1004,2,FALSE),"") ->  | F43: =IFERROR(VLOOKUP(G43&H43,Matériels!$J$1:$M$1004,2,FALSE),"") -> 
A44: ------------------------------------------------ | B44: Boulons / TF | C44: ----------------------------------------------------------- | F44: ------------------------------------------------ | G44: Boulons / TF | H44: -----------------------------------------------------------
A45: =IFERROR(VLOOKUP(B45&C45,Matériels!$J$1:$M$1004,2,FALSE),"") ->  | F45: =IFERROR(VLOOKUP(G45&H45,Matériels!$J$1:$M$1004,2,FALSE),"") -> 
A46: =IFERROR(VLOOKUP(B46&C46,Matériels!$J$1:$M$1004,2,FALSE),"") -> B. H M22-100/50 | B46: 01602487 | D46: 4 | F46: =IFERROR(VLOOKUP(G46&H46,Matériels!$J$1:$M$1004,2,FALSE),"") -> 
A47: =IFERROR(VLOOKUP(B47&C47,Matériels!$J$1:$M$1004,2,FALSE),"") -> B. H M22-100/50 | B47: 01602487 | D47: 4 | F47: =IFERROR(VLOOKUP(G47&H47,Matériels!$J$1:$M$1004,2,FALSE),"") -> 
A48: =IFERROR(VLOOKUP(B48&C48,Matériels!$J$1:$M$1004,2,FALSE),"") ->  | F48: =IFERROR(VLOOKUP(G48&H48,Matériels!$J$1:$M$1004,2,FALSE),"") -> 
A49: =IFERROR(VLOOKUP(B49&C49,Matériels!$J$1:$M$1004,2,FALSE),"") ->  | F49: =IFERROR(VLOOKUP(G49&H49,Matériels!$J$1:$M$1004,2,FALSE),"") -> 
A50: =IFERROR(VLOOKUP(B50&C50,Matériels!$J$1:$M$1004,2,FALSE),"") ->  | F50: =IFERROR(VLOOKUP(G50&H50,Matériels!$J$1:$M$1004,2,FALSE),"") -> 
A51: =IFERROR(VLOOKUP(B51&C51,Matériels!$J$1:$M$1004,2,FALSE),"") ->  | F51: =IFERROR(VLOOKUP(G51&H51,Matériels!$J$1:$M$1004,2,FALSE),"") -> 
A52: =IFERROR(VLOOKUP(B52&C52,Matériels!$J$1:$M$1004,2,FALSE),"") ->  | F52: =IFERROR(VLOOKUP(G52&H52,Matériels!$J$1:$M$1004,2,FALSE),"") -> 
A53: ------------------------------------------------ | B53: Rondelles | C53: ----------------------------------------------------------- | F53: ------------------------------------------------ | G53: Rondelles | H53: -----------------------------------------------------------
A54: =IFERROR(VLOOKUP(B54&C54,Matériels!$J$1:$M$1004,2,FALSE),"") ->  | F54: =IFERROR(VLOOKUP(G54&H54,Matériels!$J$1:$M$1004,2,FALSE),"") -> 
A55: ------------------------------------------------ | B55: Appareil Tendeur | C55: ----------------------------------------------------------- | F55: ------------------------------------------------ | G55: Appareil Tendeur | H55: -----------------------------------------------------------
A56: =IFERROR(VLOOKUP(B56&C56,Matériels!$J$1:$M$1004,2,FALSE),"") -> Ens. Montage Appareil Tendeur | B56: 222940 | C56: 222942 | D56: 1 | F56: =IFERROR(VLOOKUP(G56&H56,Matériels!$J$1:$M$1004,2,FALSE),"") -> 
A57: =IFERROR(VLOOKUP(B57&C57,Matériels!$J$1:$M$1004,2,FALSE),"") ->  | F57: =IFERROR(VLOOKUP(G57&H57,Matériels!$J$1:$M$1004,2,FALSE),"") -> 
A58: ------------------------------------------------ | B58: Ancrage Conducteurs | C58: ----------------------------------------------------------- | F58: ------------------------------------------------ | G58: Ancrage Conducteurs | H58: -----------------------------------------------------------
A59: =IFERROR(VLOOKUP(B59&C59,Matériels!$J$1:$M$1004,2,FALSE),"") -> Ancrage de 2 Porteurs CR | B59: 10985 | C59: 352 | D59: 1 | F59: =IFERROR(VLOOKUP(G59&H59,Matériels!$J$1:$M$1004,2,FALSE),"") -> 
A60: =IFERROR(VLOOKUP(B60&C60,Matériels!$J$1:$M$1004,2,FALSE),"") -> Ancrage de 2 Porteurs CR | B60: 10985 | C60: 352 | D60: 1 | F60: =IFERROR(VLOOKUP(G60&H60,Matériels!$J$1:$M$1004,2,FALSE),"") -> 
A61: =IFERROR(VLOOKUP(B61&C61,Matériels!$J$1:$M$1004,2,FALSE),"") ->  | F61: =IFERROR(VLOOKUP(G61&H61,Matériels!$J$1:$M$1004,2,FALSE),"") -> 
A62: =IFERROR(VLOOKUP(B62&C62,Matériels!$J$1:$M$1004,2,FALSE),"") ->  | F62: =IFERROR(VLOOKUP(G62&H62,Matériels!$J$1:$M$1004,2,FALSE),"") -> 
A63: ------------------------------------------------ | B63: Isolement Supp. | C63: ----------------------------------------------------------- | F63: ------------------------------------------------ | G63: Isolement Supp. | H63: -----------------------------------------------------------
A64: =IFERROR(VLOOKUP(B64&C64,Matériels!$J$1:$M$1004,2,FALSE),"") ->  | F64: =IFERROR(VLOOKUP(G64&H64,Matériels!$J$1:$M$1004,2,FALSE),"") -> 
A65: =IFERROR(VLOOKUP(B65&C65,Matériels!$J$1:$M$1004,2,FALSE),"") ->  | F65: =IFERROR(VLOOKUP(G65&H65,Matériels!$J$1:$M$1004,2,FALSE),"") -> 
A66: =IFERROR(VLOOKUP(B66&C66,Matériels!$J$1:$M$1004,2,FALSE),"") ->  | F66: =IFERROR(VLOOKUP(G66&H66,Matériels!$J$1:$M$1004,2,FALSE),"") -> 
A67: =IFERROR(VLOOKUP(B67&C67,Matériels!$J$1:$M$1004,2,FALSE),"") ->  | F67: =IFERROR(VLOOKUP(G67&H67,Matériels!$J$1:$M$1004,2,FALSE),"") -> 
A68: =IFERROR(VLOOKUP(B68&C68,Matériels!$J$1:$M$1004,2,FALSE),"") ->  | F68: =IFERROR(VLOOKUP(G68&H68,Matériels!$J$1:$M$1004,2,FALSE),"") -> 
A69: =IFERROR(VLOOKUP(B69&C69,Matériels!$J$1:$M$1004,2,FALSE),"") ->  | F69: =IFERROR(VLOOKUP(G69&H69,Matériels!$J$1:$M$1004,2,FALSE),"") -> 
A70: =IFERROR(VLOOKUP(B70&C70,Matériels!$J$1:$M$1004,2,FALSE),"") ->  | F70: =IFERROR(VLOOKUP(G70&H70,Matériels!$J$1:$M$1004,2,FALSE),"") -> 
A71: =IFERROR(VLOOKUP(B71&C71,Matériels!$J$1:$M$1004,2,FALSE),"") ->  | F71: =IFERROR(VLOOKUP(G71&H71,Matériels!$J$1:$M$1004,2,FALSE),"") -> 
A72: =IFERROR(VLOOKUP(B72&C72,Matériels!$J$1:$M$1004,2,FALSE),"") ->  | F72: =IFERROR(VLOOKUP(G72&H72,Matériels!$J$1:$M$1004,2,FALSE),"") -> 

Sheet X,Y (hidden)
A1: =IFERROR(IF(Orientation=1,IF(LEFT(A2,3)<>"JHE",Parametres!$D$87/2,0.275+Parametres!$D$87/2),IFERROR(VLOOKUP('X,Y'!A2,Parametres!F58:H112,3,TRUE)/1000,0)),0) -> 0.00425 | B1: XPt1 | C1: YPt1 | D1: XPt2 | E1: YPt2 | F1: =Résultats!C4 -> N | G1: XPt1 | H1: YPt1 | I1: XPt2 | J1: YPt2 | K1: =IF(AND(F1="O"),"Oui","") ->  | O1: Lien de la Base : | Q1: =IF(Calculs!$V$55="",VLOOKUP(Site,'X,Y'!$T$2:$U$4,2,FALSE),Calculs!$V$55) -> C:\Users\Julien Verdier\Documents\_DATA\Outils\Dessins\Ancrage\
A2: =Support -> HEA300 | B2: 0 | C2: 0 | D2: =IF(Orientationb="Noriente",VLOOKUP('X,Y'!$A$2,Parametres!$F$58:$H$150,3,FALSE),VLOOKUP('X,Y'!$A$2,Parametres!$J$58:$L$150,3,FALSE)) -> 145 | F2: Position 0 | M2: Support | N2: =LEFT(A2,3) -> HEA | Q2: =Q1&"Haubans\" -> C:\Users\Julien Verdier\Documents\_DATA\Outils\Dessins\Ancrage\Haubans\ | T2: C2F | U2: C:\Users\Julien Verdier\Documents\_DATA\Outils\Dessins\Ancrage\ | Z2: C2F
A3: =Hsupport -> 10.95 | B3: =B2 -> 0 | C3: =(C2+A3)*1000 -> 10950 | F3: Position haut du sup | M3: Ancrage 1 | N3: =Résultats!B7 -> Api | Q3: =Q1&"Massifs\" -> C:\Users\Julien Verdier\Documents\_DATA\Outils\Dessins\Ancrage\Massifs\ | T3: St Genis Laval | U3: //srvsglnas01\doc-outils\Boite à outils\Spécial Ferroviaire\Ancrage\ | Z3: St Genis Laval
A4: =CoteA -> 1.45 | B4: =B2 -> 0 | C4: =(C2-A4)*1000 -> -1450 | F4: Position basse du sup | M4: Ancrage 2 | N4: =Résultats!C7 -> 0 | Q4: =Q1&"Pieces\" -> C:\Users\Julien Verdier\Documents\_DATA\Outils\Dessins\Ancrage\Pieces\ | T4: Toulouse | U4: //srvtlcatnas01\doc-outils\Boite à outils\Spécial Ferroviaire\Ancrage\ | Z4: Toulouse
A5: =Resultats!$F$6 -> 0.08 | B5: =B2 -> 0 | C5: =(C2+A5)*1000 -> 80 | F5: Position du massif | Q5: =Q1&"Conducteurs\" -> C:\Users\Julien Verdier\Documents\_DATA\Outils\Dessins\Ancrage\Conducteurs\ | U5: Z:\lamoureux\Autre\ | Z5: Test 01
A6: =Impression!E5 -> 4Pn | B6: =VLOOKUP($A$6,Massifs!$P$3:$T$1000,3,FALSE)*1000 -> 900 | C6: =VLOOKUP($A$6,Massifs!$P$3:$T$1000,4,FALSE)*1000 -> 1500 | D6: =VLOOKUP($A$6,Massifs!$P$3:$T$1000,5,FALSE)*1000 -> 1800 | Q6: =Q1&"Autre\" -> C:\Users\Julien Verdier\Documents\_DATA\Outils\Dessins\Ancrage\Autre\ | U6: F:\Catenaire\Dessin Ancrage\Ancrage\ | Z6: Test 02
A7: Ancrage n°1 | B7: =IF(Carac1="Droit",1,IF(Carac1="Gauche",-1,1)) -> 1 | C7: =IF(B7>0,"D","G") -> D | F7: Ancrage n°2 | G7: =IF(Carac2="Droit",1,IF(Carac2="Gauche",-1,1)) -> -1 | H7: =IF(G7>0,"D","G") -> G
A8: =Impression!B10&Impression!C10 -> 9Api | B8: =MassifD1*'X,Y'!B7*1000 -> 7000 | C8: =AraseM1*1000 -> 80 | F8: =Impression!F10&Impression!G10 ->  | G8: =IF(F8="","",MassifD2*'X,Y'!G7*1000) ->  | H8: =IF(F1="N","",AraseM2*1000) -> 
A9: =IF(Impression!B13="","",Impression!B13) -> 08820565 | B9: =IF(A9="","",$A$1*-$B$7*1000) -> -4.25 | C9: =IF(A9="","",Résultats!B14*1000) -> 7450 | F9: =IF(Impression!F13="","",Impression!F13) ->  | G9: =IF(F9="","",$A$1*-$G$7*1000) ->  | H9: =IFERROR(IF(F9="","",Résultats!C14*1000),"") -> 
A10: =IF(Impression!B14="","",Impression!B14) -> 08820565 | B10: =IF(A10="","",$A$1*-$B$7*1000) -> -4.25 | C10: =IF(A10="","",Résultats!B15*1000) -> 6450 | F10: =IF(Impression!F14="","",Impression!F14) ->  | G10: =IF(F10="","",$A$1*-$G$7*1000) ->  | H10: =IFERROR(IF(F10="","",Résultats!C15*1000),"") -> 
A11: =IF(Impression!B15="","",Impression!B15) ->  | B11: =IF(A11="","",$A$1*-$B$7*1000) ->  | C11: =IF(A11="","",Résultats!B16*1000) ->  | F11: =IF(Impression!F15="","",Impression!F15) ->  | H11: =IFERROR(IF(F11="","",Résultats!C16*1000),"") ->  | W11: =IF(ISERR(S22),3,4) -> 4 | AE11: =IF(ISERR(AA22),3,4) -> 3
A12: =IF(Impression!B16="","",Impression!B16) ->  | B12: =IF(A12="","",$A$1*-$B$7*1000) ->  | C12: =IF(A12="","",Résultats!B17*1000) ->  | F12: =IF(Impression!F16="","",Impression!F16) ->  | H12: =IFERROR(IF(F12="","",Résultats!C17*1000),"") ->  | P12: Ancrage 1 | X12: Ancrage 2
A13: =IF(Impression!B17="","",Impression!B17) -> 08820583 | B13: =IF(A13="","",$A$1*$B$7*1000) -> 4.25 | C13: =IF(A13="","",Résultats!B11*1000) -> 7450 | F13: =IF(Impression!F17="","",Impression!F17) ->  | G13: =IF(F13="","",$A$1*$G$7*1000) ->  | H13: =IF(F13="","",Résultats!C11*1000) ->  | M13: Jumelles | P13: =VLOOKUP(A25,$M$14:$N$21,2,FALSE) -> 1000 | Q13: =IFERROR(IF(OR(A17="00986713",A17="00986715"),"NON",IF($B$7>=0,B25-P13,B25+P13)),"NON") -> -1124.25 | R13: =IF(A26="","",VLOOKUP(A26,$M$14:$N$21,2,FALSE)) -> 120 | S13: =IFERROR(IF(OR(A18="00986713",A18="00986715"),"NON",IF($B$7>=0,B26-R13,B26+R13)),"NON") -> -244.25 | T13: =IF(A27="","",VLOOKUP(A27,$M$14:$N$21,2,FALSE)) ->  | U13: =IFERROR(IF(OR(A19="00986713",A19="00986715"),"NON",IF($B$7>=0,B27-T13,B27+T13)),"NON") -> NON | V13: =IF(A28="","",VLOOKUP(A28,$M$14:$N$21,2,FALSE)) ->  | W13: =IFERROR(IF(OR(A20="00986713",A20="00986715"),"NON",IF($B$7>=0,B28-V13,B28+V13)),"NON") -> NON | X13: =IF(F25="","",VLOOKUP(F25,$M$14:$N$21,2,FALSE)) ->  | Y13: =IFERROR(IF(OR(F17="00986713",F17="00986715"),"NON",IF($G$7>=0,G25-X13,G25+X13)),"NON") -> NON | Z13: =IF(F26="","",VLOOKUP(F26,$M$14:$N$21,2,FALSE)) ->  | AA13: =IFERROR(IF(OR(F18="00986713",F18="00986715"),"NON",IF($G$7>=0,G26-Z13,G26+Z13)),"NON") -> NON | AB13: =IF(F27="","",VLOOKUP(F27,$M$14:$N$21,2,FALSE)) ->  | AC13: =IFERROR(IF(OR(F19="00986713",F19="00986715"),"NON",IF($G$7>=0,G27-AB13,G27+AB13)),"NON") -> NON | AD13: =IF(F28="","",VLOOKUP(F28,$M$14:$N$21,2,FALSE)) ->  | AE13: =IFERROR(IF(OR(F20="00986713",F20="00986715"),"NON",IF($G$7>=0,G28-AD13,G28+AD13)),"NON") -> NON
A14: =IF(Impression!B18="","",Impression!B18) -> 08820583 | B14: =IF(A14="","",$A$1*$B$7*1000) -> 4.25 | C14: =IF(A14="","",Résultats!B12*1000) -> 6450 | F14: =IF(Impression!F18="","",Impression!F18) ->  | G14: =IF(F14="","",$A$1*$G$7*1000) ->  | H14: =IF(F14="","",Résultats!C12*1000) ->  | M14: 00986721 | N14: 120 | O14: P1 | P14: =IF($B$7<=0,B25-50,B25+50) -> -74.25 | Q14: =C25+20 -> 7350 | R14: =IF($B$7<=0,B26-50,B26+50) -> -74.25 | S14: =C26+20 -> 6350 | T14: =IF($B$7<=0,B27-50,B27+50) ->  | U14: =C27+20 ->  | V14: =IF($B$7<=0,B28-50,B28+50) ->  | W14: =C28+20 ->  | X14: =IF($G$7<=0,G25-50,G25+50) ->  | Y14: =H25+20 ->  | Z14: =IF($G$7<=0,G26-50,G26+50) ->  | AA14: =H26+20 ->  | AB14: =IF($G$7<=0,G27-50,G27+50) ->  | AC14: =H27+20 ->  | AD14: =IF($G$7<=0,G28-50,G28+50) ->  | AE14: =H28+20 -> 
A15: =IF(Impression!B19="","",Impression!B19) ->  | B15: =IF(A15="","",$A$1*$B$7*1000) ->  | C15: =IF(A15="","",Résultats!B13*1000) ->  | F15: =IF(Impression!F19="","",Impression!F19) ->  | H15: =IF(F15="","",Résultats!C13*1000) ->  | M15: 00986722 | N15: 500 | O15: P2 | P15: =IF($B$7<=0,B25-20,B25+20) -> -104.25 | Q15: =C25+50 -> 7380 | R15: =IF($B$7<=0,B26-20,B26+20) -> -104.25 | S15: =C26+50 -> 6380 | T15: =IF($B$7<=0,B27-20,B27+20) ->  | U15: =C27+50 ->  | V15: =IF($B$7<=0,B28-20,B28+20) ->  | W15: =C28+50 ->  | X15: =IF($G$7<=0,G25-20,G25+20) ->  | Y15: =H25+50 ->  | Z15: =IF($G$7<=0,G26-20,G26+20) ->  | AA15: =H26+50 ->  | AB15: =IF($G$7<=0,G27-20,G27+20) ->  | AC15: =H27+50 ->  | AD15: =IF($G$7<=0,G28-20,G28+20) ->  | AE15: =H28+50 -> 
A16: =Impression!B23 -> Haubans d'Ancrages | B16: xxx | C16: xxx | D16: Distance X1 | E16: Distance Y1 | F16: =Impression!F23 -> Haubans d'Ancrages | G16: xxx | H16: xxx | I16: Distance X1 | J16: Distance Y1 | M16: 00986723 | N16: 1000 | O16: P3 | P16: =IF($B$7<=0,Q13+20,Q13-20) -> -1144.25 | Q16: =C25+50 -> 7380 | R16: =IF($B$7<=0,S13+20,S13-20) -> -264.25 | S16: =C26+50 -> 6380 | T16: =IF($B$7<=0,U13+20,U13-20) ->  | U16: =C27+50 ->  | V16: =IF($B$7<=0,W13+20,W13-20) ->  | W16: =C28+50 ->  | X16: =IF($G$7<=0,Y13+20,Y13-20) ->  | Y16: =H25+50 ->  | Z16: =IF($G$7<=0,AA13+20,AA13-20) ->  | AA16: =H26+50 ->  | AB16: =IF($G$7<=0,AC13+20,AC13-20) ->  | AC16: =H27+50 ->  | AD16: =IF($G$7<=0,AE13+20,AE13-20) ->  | AE16: =H28+50 -> 
A17: =Impression!B24 -> 08828752 | B17: =IF(A17="","",IF(Q13="NON",B25,D25)) -> -825.2190566 | C17: =IF(A17="","",IF(Q13="NON",C25,E25)) -> 6616.808313 | D17: =IF(A17="","",IF(AND(Resultats!$C$10="Apns",Résultats!B6="Câble"),($T$33+B17-(61.534*B7))*B7,(($T$33+B17+(IF(AND(R13<>"",$N$3<>"Acn"),250,0))*$B$7)*$B$7))) -> 6424.780943 | E17: =IF(A17="","",C17-$C$8-IF(AND(Resultats!$C$10="Apns",Résultats!B6="Câble"),2508.081,0)) -> 6536.808313 | F17: =Impression!F24 ->  | G17: =IF(F17="","",IF(Y13="NON",G25,I25)) ->  | H17: =IF(F17="","",IF(Y13="NON",H25,J25)) ->  | I17: =IF(F17="","",IF(AND(Resultats!H10="Apns",Résultats!C6="Câble"),($V$33+G17-(80.5337*G7))*G7,(($V$33+G17+(IF(AND(N4<>"Acn",Z13<>""),250,0))*$G$7)*$G$7))) ->  | J17: =IF(F17="","",H17-$H$8-IF(AND(Resultats!H10="Apns",Résultats!C6="Câble"),2508.081,0)) ->  | M17: 00986724 | N17: 1500 | O17: P4 | P17: =IF($B$7<=0,Q13+50,Q13-50) -> -1174.25 | Q17: =C25+20 -> 7350 | R17: =IF($B$7<=0,S13+50,S13-50) -> -294.25 | S17: =C26+20 -> 6350 | T17: =IF($B$7<=0,U13+50,U13-50) ->  | U17: =C27+20 ->  | V17: =IF($B$7<=0,W13+50,W13-50) ->  | W17: =C28+20 ->  | X17: =IF($G$7<=0,Y13+50,Y13-50) ->  | Y17: =H25+20 ->  | Z17: =IF($G$7<=0,AA13+50,AA13-50) ->  | AA17: =H26+20 ->  | AB17: =IF($G$7<=0,AC13+50,AC13-50) ->  | AC17: =H27+20 ->  | AD17: =IF($G$7<=0,AE13+50,AE13-50) ->  | AE17: =H28+20 -> 
A18: =Impression!B25 -> 08828752 | B18: =IF(A18="","",IF(S13="NON",B26,D26)) -> -213.0471914 | C18: =IF(A18="","",IF($Q$13="NON",C26,E26)) -> 6249.284086 | D18: =IF(A18="","",IF(AND(Resultats!$C$10="Apns",Résultats!B6="Câble"),(($U$33+B18-(58.034*B7))*B7),((($U$33+B18)+IF(AND($N$3<>"Acn",R13<>""),250*IF(R22="Cable",-1,1)*B7,0))*$B$7))) -> 7286.952809 | E18: =IF(A18="","",C18-$C$8-IF(AND(Resultats!$C$10="Apns",Résultats!B6="Câble"),2008.081,0)+IF($N$3="Acn",100,0)) -> 6169.284086 | F18: =Impression!F25 ->  | G18: =IF(F18="","",IF(AA13="NON",G26,I26)) ->  | H18: =IF(F18="","",IF(AA13="NON",H26,J26)) ->  | I18: =IF(F18="","",IF(AND(Resultats!H10="Apns",Résultats!C6="Câble"),(($W$33+G18-(78.0337*G7))*G7),((($W$33+G18)+IF(AND(N4<>"Acn",Z13<>""),250*IF(Z22="Cable",-1,1)*G7,0))*$G$7))) ->  | J18: =IF(F18="","",H18-$H$8-IF(AND(Resultats!H10="Apns",Résultats!C6="Câble"),2008.081,0)+IF($N$4="Acn",100,0)) ->  | M18: 00986725 | N18: 2000 | O18: P5 | P18: =IF($B$7<=0,Q13+50,Q13-50) -> -1174.25 | Q18: =C25-20 -> 7310 | R18: =IF($B$7<=0,S13+50,S13-50) -> -294.25 | S18: =C26-20 -> 6310 | T18: =IF($B$7<=0,U13+50,U13-50) ->  | U18: =C27-20 ->  | V18: =IF($B$7<=0,W13+50,W13-50) ->  | W18: =C28-20 ->  | X18: =IF($G$7<=0,Y13+50,Y13-50) ->  | Y18: =H25-20 ->  | Z18: =IF($G$7<=0,AA13+50,AA13-50) ->  | AA18: =H26-20 ->  | AB18: =IF($G$7<=0,AC13+50,AC13-50) ->  | AC18: =H27-20 ->  | AD18: =IF($G$7<=0,AE13+50,AE13-50) ->  | AE18: =H28-20 -> 
A19: =IF(Impression!B26="","",Impression!B26) ->  | B19: =IF(A19="","",IF(U13="NON",B27,D27)) ->  | C19: =IF(A19="","",IF($Q$13="NON",C27,E27)) ->  | D19: =IF(A19="","",IF(AND(Resultats!$C$10="Apns",Résultats!B6="Câble"),($T$33+B19-(80.5337*B7))*B7,(($T$33+B19+(IF(AND(V13<>"",N3<>"Acn"),250,0))*$B$7)*$B$7))) ->  | E19: =IF(A19="","",C19-$C$8-IF(AND(Resultats!$C$10="Apns",Résultats!B6="Câble"),2508.081,0)) ->  | F19: =Impression!F26 ->  | G19: =IF(F19="","",IF(AC13="NON",G27,I27)) ->  | H19: =IF(F19="","",IF(AC13="NON",H27,J27)) ->  | I19: =IF(F19="","",IF(AND(Resultats!H10="Apns",Résultats!C6="Câble"),($V$33+G19-(80.5337*G7))*G7,(($V$33+G19+(IF(AND(N4<>"Acn",AD13<>""),250,0))*$G$7)*$G$7))) ->  | J19: =IF(F19="","",H19-$H$8-IF(AND(Resultats!H10="Apns",Résultats!C6="Câble"),2508.081,0)) ->  | M19: 00986726 | N19: 2500 | O19: P6 | P19: =IF($B$7<=0,Q13+20,Q13-20) -> -1144.25 | Q19: =C25-50 -> 7280 | R19: =IF($B$7<=0,S13+20,S13-20) -> -264.25 | S19: =C26-50 -> 6280 | T19: =IF($B$7<=0,U13+20,U13-20) ->  | U19: =C27-50 ->  | V19: =IF($B$7<=0,W13+20,W13-20) ->  | W19: =C28-50 ->  | X19: =IF($G$7<=0,Y13+20,Y13-20) ->  | Y19: =H25-50 ->  | Z19: =IF($G$7<=0,AA13+20,AA13-20) ->  | AA19: =H26-50 ->  | AB19: =IF($G$7<=0,AC13+20,AC13-20) ->  | AC19: =H27-50 ->  | AD19: =IF($G$7<=0,AE13+20,AE13-20) ->  | AE19: =H28-50 -> 
A20: =IF(Impression!B27="","",Impression!B27) ->  | B20: =IF(A20="","",IF(W13="NON",B28,D28)) ->  | C20: =IF(A20="","",IF($Q$13="NON",C28,E28)) ->  | D20: =IF(A20="","",IF(AND(Resultats!$C$10="Apns",Résultats!B6="Câble"),($U$33+B20-(80.5337*B7))*B7,((($U$33+B20)+IF(AND(N3<>"Acn",R13<>""),250*IF(R22="Cable",-1,1)*B7,0))*$B$7))) ->  | E20: =IF(A20="","",C20-$C$8-IF(AND(Resultats!$C$10="Apns",Résultats!B6="Câble"),2008.081,0)+IF($N$3="Acn",100,0)) ->  | F20: =Impression!F27 ->  | G20: =IF(F20="","",IF(AE13="NON",G28,I28)) ->  | H20: =IF(F20="","",IF(AE13="NON",H28,J28)) ->  | I20: =IF(F20="","",IF(AND(Resultats!H10="Apns",Résultats!C6="Câble"),($W$33+G20-(78.0337*G7))*G7,((($W$33+G20)+IF(AND(N4<>"Acn",Z13<>""),250*IF(Z22="Cable",-1,1)*G7,0))*$G$7))) ->  | J20: =IF(F20="","",H20-$H$8-IF(AND(Resultats!H10="Apns",Résultats!C6="Câble"),2008.081,0)+IF($N$4="Acn",100,0)) ->  | M20: 00986727 | N20: 3000 | O20: P7 | P20: =IF($B$7<=0,B25-20,B25+20) -> -104.25 | Q20: =C25-50 -> 7280 | R20: =IF($B$7<=0,B26-20,B26+20) -> -104.25 | S20: =C26-50 -> 6280 | T20: =IF($B$7<=0,B27-20,B27+20) ->  | U20: =C27-50 ->  | V20: =IF($B$7<=0,B28-20,B28+20) ->  | W20: =C28-50 ->  | X20: =IF($G$7<=0,G25-20,G25+20) ->  | Y20: =H25-50 ->  | Z20: =IF($G$7<=0,G26-20,G26+20) ->  | AA20: =H26-50 ->  | AB20: =IF($G$7<=0,G27-20,G27+20) ->  | AC20: =H27-50 ->  | AD20: =IF($G$7<=0,G28-20,G28+20) ->  | AE20: =H28-50 -> 
M21: 00986728 | N21: 3500 | O21: P8 | P21: =IF($B$7<=0,B25-50,B25+50) -> -74.25 | Q21: =C25-20 -> 7310 | R21: =IF($B$7<=0,B26-50,B26+50) -> -74.25 | S21: =C26-20 -> 6310 | T21: =IF($B$7<=0,B27-50,B27+50) ->  | U21: =C27-20 ->  | V21: =IF($B$7<=0,B28-50,B28+50) ->  | W21: =C28-20 ->  | X21: =IF($G$7<=0,G25-50,G25+50) ->  | Y21: =H25-20 ->  | Z21: =IF($G$7<=0,G26-50,G26+50) ->  | AA21: =H26-20 ->  | AB21: =IF($G$7<=0,G27-50,G27+50) ->  | AC21: =H27-20 ->  | AD21: =IF($G$7<=0,G28-50,G28+50) ->  | AE21: =H28-20 -> 
M22: Angle | P22: =IF(A17="","",IF(OR(A17="00986713",A17="00986715"),"Cable","Rigide")) -> Rigide | Q22: =IF($Q$13>=0,-(1.570797-ACOS(((D25-B25)*0+(E25-C25)*(-C25))/((SQRT((D25-B25)^2+(E25-C25)^2))*(SQRT((0)^2+(C25)^2))))),1.570797-ACOS(((D25-B25)*0+(E25-C25)*(-C25))/((SQRT((D25-B25)^2+(E25-C25)^2))*(SQRT((0)^2+(C25)^2))))) -> 0.7940416487 | R22: =IF(A18="","",IF(OR(A18="00986713",A18="00986715"),"Cable","Rigide")) -> Rigide | S22: =IF($S$13>=0,-(1.570797-ACOS(((D26-B26)*0+((E26-C26)*(-C26)))/((SQRT((D26-B26)^2+(E26-C26)^2))*(SQRT((0)^2+(C26)^2))))),1.570797-ACOS(((D26-B26)*0+(E26-C26)*(-C26))/((SQRT((D26-B26)^2+(E26-C26)^2))*(SQRT((0)^2+(C26)^2))))) -> 0.7377614379 | T22: =IF(A19="","",IF(OR(A19="00986713",A19="00986715"),"Cable","Rigide")) ->  | U22: =IF($U$13>=0,-(1.570797-ACOS(((D27-B27)*0+(E27-C27)*(-C27))/((SQRT((D27-B27)^2+(E27-C27)^2))*(SQRT((0)^2+(C27)^2))))),1.570797-ACOS(((D27-B27)*0+(E27-C27)*(-C27))/((SQRT((D27-B27)^2+(E27-C27)^2))*(SQRT((0)^2+(C27)^2))))) ->  | V22: =IF(A20="","",IF(OR(A20="00986713",A20="00986715"),"Cable","Rigide")) ->  | W22: =IF($W$13>=0,-(1.570797-ACOS(((D28-B28)*0+(E28-C28)*(-C28))/((SQRT((D28-B28)^2+(E28-C28)^2))*(SQRT((0)^2+(C28)^2))))),1.570797-ACOS(((D28-B28)*0+(E28-C28)*(-C28))/((SQRT((D28-B28)^2+(E28-C28)^2))*(SQRT((0)^2+(C28)^2))))) ->  | X22: =IF(F17="","",IF(OR(F17="00986713",F17="00986715"),"Cable","Rigide")) ->  | Y22: =IF($Y$13>=0,-(1.570797-ACOS(((I25-G25)*0+(J25-H25)*(-H25))/((SQRT((I25-G25)^2+(J25-H25)^2))*(SQRT((0)^2+(H25)^2))))),1.570797-ACOS(((I25-G25)*0+(J25-H25)*(-H25))/((SQRT((I25-G25)^2+(J25-H25)^2))*(SQRT((0)^2+(H25)^2))))) ->  | Z22: =IF(F18="","",IF(OR(F18="00986713",F18="00986715"),"Cable","Rigide")) ->  | AA22: =IF($AA$13>=0,-(1.570797-ACOS(((I26-G26)*0+(J26-H26)*(-H26))/((SQRT((I26-G26)^2+(J26-H26)^2))*(SQRT((0)^2+(H26)^2))))),1.570797-ACOS(((I26-G26)*0+(J26-H26)*(-H26))/((SQRT((I26-G26)^2+(J26-H26)^2))*(SQRT((0)^2+(H26)^2))))) ->  | AB22: =IF(F19="","",IF(OR(F19="00986713",F19="00986715"),"Cable","Rigide")) ->  | AC22: =IF($AC$13>=0,-(1.570797-ACOS(((I27-G27)*0+(J27-H27)*(-H27))/((SQRT((I27-G27)^2+(J27-H27)^2))*(SQRT((0)^2+(H27)^2))))),1.570797-ACOS(((I27-G27)*0+(J27-H27)*(-H27))/((SQRT((I27-G27)^2+(J27-H27)^2))*(SQRT((0)^2+(H27)^2))))) ->  | AD22: =IF(F20="","",IF(OR(F20="00986713",F20="00986715"),"Cable","Rigide")) ->  | AE22: =IF($AE$13>=0,-(1.570797-ACOS(((I28-G28)*0+(J28-H28)*(-H28))/((SQRT((I28-G28)^2+(J28-H28)^2))*(SQRT((0)^2+(H28)^2))))),1.570797-ACOS(((I28-G28)*0+(J28-H28)*(-H28))/((SQRT((I28-G28)^2+(J28-H28)^2))*(SQRT((0)^2+(H28)^2))))) -> 
P23: Degres | Q23: =ROUND(IF($C$7="G",DEGREES(Q22)+360,ABS(DEGREES(Q22))),0) -> 45 | S23: =ROUND(IF($C$7="G",DEGREES(S22)+360,ABS(DEGREES(S22))),0) -> 42 | U23: =ROUND(IF($C$7="G",DEGREES(U22)+360,ABS(DEGREES(U22))),0) ->  | W23: =ROUND(IF($C$7="G",DEGREES(W22)+360,ABS(DEGREES(W22))),0) ->  | Y23: =ROUND(IF($H$7="D",DEGREES(Y22)+360,ABS(DEGREES(Y22))),0) ->  | AA23: =ROUND(IF($H$7="D",DEGREES(AA22)+360,ABS(DEGREES(AA22))),0) ->  | AC23: =ROUND(IF($H$7="D",DEGREES(AC22)+360,ABS(DEGREES(AC22))),0) ->  | AE23: =ROUND(IF($H$7="D",DEGREES(AE22)+360,ABS(DEGREES(AE22))),0) -> 
A24: =Impression!B31 -> Jumelles | B24: xxx | C24: xxx | F24: =Impression!F31 -> Jumelles | G24: xxx | H24: xxx | Q24: =IF(ISERR(Q22),"","Angle"&Q25) -> Angle1 | S24: =IF(ISERR(S22),"","Angle"&S25) -> Angle2 | U24: =IF(ISERR(U22),"","Angle"&U25) ->  | W24: =IF(ISERR(W22),"","Angle"&W25) ->  | Y24: =IF(ISERR(Y22),"","Angle"&Y25) ->  | AA24: =IF(ISERR(AA22),"","Angle"&AA25) ->  | AC24: =IF(ISERR(AC22),"","Angle"&AC25) ->  | AE24: =IF(ISERR(AE22),"","Angle"&AE25) -> 
A25: =IF(Résultats!$B$7="Api",Résultats!Y3,IF(Résultats!$B$7="Apns",Résultats!Y11,IF(Résultats!$B$7="Acn",Résultats!Y19,""))) -> 00986723 | B25: =IF(A25="","",B9-(120*$B$7)) -> -124.25 | C25: =IF(A25="","",(Résultats!B14*1000)-IF(Résultats!$A$1="1500 V",120,122)) -> 7330 | D25: =IFERROR(IF($B$7>0,-$B$7*U33+(((SQRT((B25-(-$B$7*U33))^2+(C25-$Y$31)^2))-VLOOKUP(A25,$M$14:$N$21,2,FALSE))/(VLOOKUP(A25,$M$14:$N$21,2,FALSE)+((SQRT((B25-(-$B$7*U33))^2+(C25-$Y$31)^2))-VLOOKUP(A25,$M$14:$N$21,2,FALSE))))*(B25-(-$B$7*U33)),$B$7*U33+(((SQRT((B25-($B$7*U33))^2+(C25-$Y$31)^2))-VLOOKUP(A25,$M$14:$N$21,2,FALSE))/(VLOOKUP(A25,$M$14:$N$21,2,FALSE)+((SQRT((B25-($B$7*U33))^2+(C25-$Y$31)^2))-VLOOKUP(A25,$M$14:$N$21,2,FALSE))))*(B25-($B$7*U33))),"") -> -825.2190566 | E25: =IFERROR(IF($B$7>0,$Y$31+(((SQRT((B25-(-$B$7*U33))^2+(C25-$Y$31)^2))-VLOOKUP(A25,$M$14:$N$21,2,FALSE))/(((SQRT((B25-(-$B$7*U33))^2+(C25-$Y$31)^2))-VLOOKUP(A25,$M$14:$N$21,2,FALSE))+(VLOOKUP(A25,$M$14:$N$21,2,FALSE))))*(C25-$Y$31),$Y$31+(((SQRT((B25-($B$7*U33))^2+(C25-$Y$31)^2))-VLOOKUP(A25,$M$14:$N$21,2,FALSE))/(((SQRT((B25-($B$7*U33))^2+(C25-$Y$31)^2))-VLOOKUP(A25,$M$14:$N$21,2,FALSE))+(VLOOKUP(A25,$M$14:$N$21,2,FALSE))))*(C25-$Y$31)),"") -> 6616.808313 | F25: =IF(Résultats!$C$7="Api",Résultats!Z3,IF(Résultats!$C$7="Apns",Résultats!Z11,IF(Résultats!$C$7="Acn",Résultats!Z19,""))) ->  | G25: =IF(F25="","",G9-(120*$G$7)) ->  | H25: =IF(F25="","",(Résultats!C14*1000)-IF(Résultats!$A$1="1500 V",120,122)) ->  | I25: =IFERROR(IF($G$7>0,-$G$7*W33+(((SQRT((G25-(-$G$7*W33))^2+(H25-$Z$31)^2))-VLOOKUP(F25,$M$14:$N$21,2,FALSE))/(VLOOKUP(F25,$M$14:$N$21,2,FALSE)+((SQRT((G25-(-$G$7*W33))^2+(H25-$Z$31)^2))-VLOOKUP(F25,$M$14:$N$21,2,FALSE))))*(G25-(-$G$7*W33)),$G$7*W33+(((SQRT((G25-($G$7*W33))^2+(H25-$Z$31)^2))-VLOOKUP(F25,$M$14:$N$21,2,FALSE))/(VLOOKUP(F25,$M$14:$N$21,2,FALSE)+((SQRT((G25-($G$7*W33))^2+(H25-$Z$31)^2))-VLOOKUP(F25,$M$14:$N$21,2,FALSE))))*(G25-($G$7*W33))),"") ->  | J25: =IFERROR(IF($G$7>0,$Z$31+(((SQRT((G25-(-$G$7*W33))^2+(H25-$Z$31)^2))-VLOOKUP(F25,$M$14:$N$21,2,FALSE))/(((SQRT((G25-(-$G$7*W33))^2+(H25-$Z$31)^2))-VLOOKUP(F25,$M$14:$N$21,2,FALSE))+(VLOOKUP(F25,$M$14:$N$21,2,FALSE))))*(H25-$Z$31),$Z$31+(((SQRT((G25-($G$7*W33))^2+(H25-$Z$31)^2))-VLOOKUP(F25,$M$14:$N$21,2,FALSE))/(((SQRT((G25-($G$7*W33))^2+(H25-$Z$31)^2))-VLOOKUP(F25,$M$14:$N$21,2,FALSE))+(VLOOKUP(F25,$M$14:$N$21,2,FALSE))))*(H25-$Z$31)),"") ->  | Q25: 1 | S25: =IF(ISERR(S22),Q25,Q25+1) -> 2 | U25: =IF(ISERR(U22),S25,S25+1) -> 2 | W25: =IF(ISERR(W22),U25,U25+1) -> 2 | Y25: 1 | AA25: =IF(ISERR(AA22),Y25,Y25+1) -> 1 | AC25: =IF(ISERR(AC22),AA25,AA25+1) -> 1 | AE25: =IF(ISERR(AE22),AC25,AC25+1) -> 1
A26: =IF(Résultats!B9=1,"",IF(Résultats!$B$7="Api",Résultats!Y4,IF(Résultats!$B$7="Apns",Résultats!Y12,IF(Résultats!$B$7="Acn",Résultats!Y20,"")))) -> 00986721 | B26: =IF(A26="","",B10-(120*$B$7)) -> -124.25 | C26: =IF(A26="","",(Résultats!B15*1000)-IF(Résultats!$A$1="1500 V",120,122)) -> 6330 | D26: =IFERROR(IF($B$7>0,-$B$7*T33+(((SQRT((B26-(-$B$7*T33))^2+(C26-$Y$33)^2))-VLOOKUP(A26,$M$14:$N$21,2,FALSE))/(VLOOKUP(A26,$M$14:$N$21,2,FALSE)+((SQRT((B26-(-$B$7*T33))^2+(C26-$Y$33)^2))-VLOOKUP(A26,$M$14:$N$21,2,FALSE))))*(B26-(-$B$7*T33)),$B$7*T33+(((SQRT((B26-($B$7*T33))^2+(C26-$Y$33)^2))-VLOOKUP(A26,$M$14:$N$21,2,FALSE))/(VLOOKUP(A26,$M$14:$N$21,2,FALSE)+((SQRT((B26-($B$7*T33))^2+(C26-$Y$33)^2))-VLOOKUP(A26,$M$14:$N$21,2,FALSE))))*(B26-($B$7*T33))),"") -> -213.0471914 | E26: =IFERROR(IF($B$7>0,$Y$33+(((SQRT((B26-(-$B$7*T33))^2+(C26-$Y$33)^2))-VLOOKUP(A26,$M$14:$N$21,2,FALSE))/(((SQRT((B26-(-$B$7*T33))^2+(C26-$Y$33)^2))-VLOOKUP(A26,$M$14:$N$21,2,FALSE))+(VLOOKUP(A26,$M$14:$N$21,2,FALSE))))*(C26-$Y$33),$Y$33+(((SQRT((B26-($B$7*T33))^2+(C26-$Y$33)^2))-VLOOKUP(A26,$M$14:$N$21,2,FALSE))/(((SQRT((B26-($B$7*T33))^2+(C26-$Y$33)^2))-VLOOKUP(A26,$M$14:$N$21,2,FALSE))+(VLOOKUP(A26,$M$14:$N$21,2,FALSE))))*(C26-$Y$33)),"") -> 6249.284086 | F26: =IF(Résultats!$C$7="Api",Résultats!Z4,IF(Résultats!$C$7="Apns",Résultats!Z12,IF(Résultats!$C$7="Acn",Résultats!Z20,""))) ->  | G26: =IF(F26="","",G10-(120*$G$7)) ->  | H26: =IF(F26="","",(Résultats!C15*1000)-IF(Résultats!$A$1="1500 V",120,122)) ->  | I26: =IFERROR(IF($G$7>0,-$G$7*V33+(((SQRT((G26-(-$G$7*V33))^2+(H26-$Z$33)^2))-VLOOKUP(F26,$M$14:$N$21,2,FALSE))/(VLOOKUP(F26,$M$14:$N$21,2,FALSE)+((SQRT((G26-(-$G$7*V33))^2+(H26-$Z$33)^2))-VLOOKUP(F26,$M$14:$N$21,2,FALSE))))*(G26-(-$G$7*V33)),$G$7*V33+(((SQRT((G26-($G$7*V33))^2+(H26-$Z$33)^2))-VLOOKUP(F26,$M$14:$N$21,2,FALSE))/(VLOOKUP(F26,$M$14:$N$21,2,FALSE)+((SQRT((G26-($G$7*V33))^2+(H26-$Z$33)^2))-VLOOKUP(F26,$M$14:$N$21,2,FALSE))))*(G26-($G$7*V33))),"") ->  | J26: =IFERROR(IF($G$7>0,$Z$33+(((SQRT((G26-(-$G$7*V33))^2+(H26-$Z$33)^2))-VLOOKUP(F26,$M$14:$N$21,2,FALSE))/(((SQRT((G26-(-$G$7*V33))^2+(H26-$Z$33)^2))-VLOOKUP(F26,$M$14:$N$21,2,FALSE))+(VLOOKUP(F26,$M$14:$N$21,2,FALSE))))*(H26-$Z$33),$Z$33+(((SQRT((G26-($G$7*V33))^2+(H26-$Z$33)^2))-VLOOKUP(F26,$M$14:$N$21,2,FALSE))/(((SQRT((G26-($G$7*V33))^2+(H26-$Z$33)^2))-VLOOKUP(F26,$M$14:$N$21,2,FALSE))+(VLOOKUP(F26,$M$14:$N$21,2,FALSE))))*(H26-$Z$33)),"") -> 
A27: =IF(Impression!B34="","",Impression!B34) ->  | C27: =IF(A27="","",(Résultats!B16*1000)-IF(Résultats!$A$1="1500 V",120,122)) ->  | D27: =IFERROR(IF($B$7>0,-$B$7*U33+(((SQRT((B27-(-$B$7*U33))^2+(C27-$Y$31)^2))-VLOOKUP(A27,$M$14:$N$21,2,FALSE))/(VLOOKUP(A27,$M$14:$N$21,2,FALSE)+((SQRT((B27-(-$B$7*U33))^2+(C27-$Y$31)^2))-VLOOKUP(A27,$M$14:$N$21,2,FALSE))))*(B27-(-$B$7*U33)),$B$7*U33+(((SQRT((B27-($B$7*U33))^2+(C27-$Y$31)^2))-VLOOKUP(A27,$M$14:$N$21,2,FALSE))/(VLOOKUP(A27,$M$14:$N$21,2,FALSE)+((SQRT((B27-($B$7*U33))^2+(C27-$Y$31)^2))-VLOOKUP(A27,$M$14:$N$21,2,FALSE))))*(B27-($B$7*U33))),"") ->  | E27: =IFERROR(IF($B$7>0,$Y$31+(((SQRT((B27-(-$B$7*U33))^2+(C27-$Y$31)^2))-VLOOKUP(A27,$M$14:$N$21,2,FALSE))/(((SQRT((B27-(-$B$7*U33))^2+(C27-$Y$31)^2))-VLOOKUP(A27,$M$14:$N$21,2,FALSE))+(VLOOKUP(A27,$M$14:$N$21,2,FALSE))))*(C27-$Y$31),$Y$31+(((SQRT((B27-($B$7*U33))^2+(C27-$Y$31)^2))-VLOOKUP(A27,$M$14:$N$21,2,FALSE))/(((SQRT((B27-($B$7*U33))^2+(C27-$Y$31)^2))-VLOOKUP(A27,$M$14:$N$21,2,FALSE))+(VLOOKUP(A27,$M$14:$N$21,2,FALSE))))*(C27-$Y$31)),"") ->  | F27: =IF(Résultats!$C$7="Api",Résultats!Z5,IF(Résultats!$C$7="Apns",Résultats!Z13,IF(Résultats!$C$7="Acn",Résultats!Z21,""))) ->  | H27: =IF(F27="","",(Résultats!C16*1000)-IF(Résultats!$A$1="1500 V",120,122)) ->  | I27: =IFERROR(IF($G$7>0,-$G$7*W33+(((SQRT((G27-(-$G$7*W33))^2+(H27-$Z$31)^2))-VLOOKUP(F27,$M$14:$N$21,2,FALSE))/(VLOOKUP(F27,$M$14:$N$21,2,FALSE)+((SQRT((G27-(-$G$7*W33))^2+(H27-$Z$31)^2))-VLOOKUP(F27,$M$14:$N$21,2,FALSE))))*(G27-(-$G$7*W33)),$G$7*W33+(((SQRT((G27-($G$7*W33))^2+(H27-$Z$31)^2))-VLOOKUP(F27,$M$14:$N$21,2,FALSE))/(VLOOKUP(F27,$M$14:$N$21,2,FALSE)+((SQRT((G27-($G$7*W33))^2+(H27-$Z$31)^2))-VLOOKUP(F27,$M$14:$N$21,2,FALSE))))*(G27-($G$7*W33))),"") ->  | J27: =IFERROR(IF($G$7>0,$Z$31+(((SQRT((G27-(-$G$7*W33))^2+(H27-$Z$31)^2))-VLOOKUP(F27,$M$14:$N$21,2,FALSE))/(((SQRT((G27-(-$G$7*W33))^2+(H27-$Z$31)^2))-VLOOKUP(F27,$M$14:$N$21,2,FALSE))+(VLOOKUP(F27,$M$14:$N$21,2,FALSE))))*(H27-$Z$31),$Z$31+(((SQRT((G27-($G$7*W33))^2+(H27-$Z$31)^2))-VLOOKUP(F27,$M$14:$N$21,2,FALSE))/(((SQRT((G27-($G$7*W33))^2+(H27-$Z$31)^2))-VLOOKUP(F27,$M$14:$N$21,2,FALSE))+(VLOOKUP(F27,$M$14:$N$21,2,FALSE))))*(H27-$Z$31)),"") ->  | Y27: Position Massif
A28: =IF(Impression!B35="","",Impression!B35) ->  | C28: =IF(A28="","",(Résultats!B17*1000)-IF(Résultats!$A$1="1500 V",120,122)) ->  | D28: =IFERROR(IF($B$7>0,-$B$7*T33+(((SQRT((B28-(-$B$7*T33))^2+(C28-$Y$33)^2))-VLOOKUP(A28,$M$14:$N$21,2,FALSE))/(VLOOKUP(A28,$M$14:$N$21,2,FALSE)+((SQRT((B28-(-$B$7*T33))^2+(C28-$Y$33)^2))-VLOOKUP(A28,$M$14:$N$21,2,FALSE))))*(B28-(-$B$7*T33)),$B$7*T33+(((SQRT((B28-($B$7*T33))^2+(C28-$Y$33)^2))-VLOOKUP(A28,$M$14:$N$21,2,FALSE))/(VLOOKUP(A28,$M$14:$N$21,2,FALSE)+((SQRT((B28-($B$7*T33))^2+(C28-$Y$33)^2))-VLOOKUP(A28,$M$14:$N$21,2,FALSE))))*(B28-($B$7*T33))),"") ->  | E28: =IFERROR(IF($B$7>0,$Y$33+(((SQRT((B28-(-$B$7*T33))^2+(C28-$Y$33)^2))-VLOOKUP(A28,$M$14:$N$21,2,FALSE))/(((SQRT((B28-(-$B$7*T33))^2+(C28-$Y$33)^2))-VLOOKUP(A28,$M$14:$N$21,2,FALSE))+(VLOOKUP(A28,$M$14:$N$21,2,FALSE))))*(C28-$Y$33),$Y$33+(((SQRT((B28-($B$7*T33))^2+(C28-$Y$33)^2))-VLOOKUP(A28,$M$14:$N$21,2,FALSE))/(((SQRT((B28-($B$7*T33))^2+(C28-$Y$33)^2))-VLOOKUP(A28,$M$14:$N$21,2,FALSE))+(VLOOKUP(A28,$M$14:$N$21,2,FALSE))))*(C28-$Y$33)),"") ->  | F28: =IF(Résultats!$C$7="Api",Résultats!Z6,IF(Résultats!$C$7="Apns",Résultats!Z14,IF(Résultats!$C$7="Acn",Résultats!Z22,""))) ->  | H28: =IF(F28="","",(Résultats!C17*1000)-IF(Résultats!$A$1="1500 V",120,122)) ->  | I28: =IFERROR(IF($G$7>0,-$G$7*V33+(((SQRT((G28-(-$G$7*V33))^2+(H28-$Z$33)^2))-VLOOKUP(F28,$M$14:$N$21,2,FALSE))/(VLOOKUP(F28,$M$14:$N$21,2,FALSE)+((SQRT((G28-(-$G$7*V33))^2+(H28-$Z$33)^2))-VLOOKUP(F28,$M$14:$N$21,2,FALSE))))*(G28-(-$G$7*V33)),$G$7*V33+(((SQRT((G28-($G$7*V33))^2+(H28-$Z$33)^2))-VLOOKUP(F28,$M$14:$N$21,2,FALSE))/(VLOOKUP(F28,$M$14:$N$21,2,FALSE)+((SQRT((G28-($G$7*V33))^2+(H28-$Z$33)^2))-VLOOKUP(F28,$M$14:$N$21,2,FALSE))))*(G28-($G$7*V33))),"") ->  | J28: =IFERROR(IF($G$7>0,$Z$33+(((SQRT((G28-(-$G$7*V33))^2+(H28-$Z$33)^2))-VLOOKUP(F28,$M$14:$N$21,2,FALSE))/(((SQRT((G28-(-$G$7*V33))^2+(H28-$Z$33)^2))-VLOOKUP(F28,$M$14:$N$21,2,FALSE))+(VLOOKUP(F28,$M$14:$N$21,2,FALSE))))*(H28-$Z$33),$Z$33+(((SQRT((G28-($G$7*V33))^2+(H28-$Z$33)^2))-VLOOKUP(F28,$M$14:$N$21,2,FALSE))/(((SQRT((G28-($G$7*V33))^2+(H28-$Z$33)^2))-VLOOKUP(F28,$M$14:$N$21,2,FALSE))+(VLOOKUP(F28,$M$14:$N$21,2,FALSE))))*(H28-$Z$33)),"") ->  | T28: Ancrage 1 | V28: Ancrage 2 | Y28: Ancrage1 | Z28: Ancrage2
T29: Pts 1 | U29: Pts 2 | V29: Pts 1 | W29: Pts 2 | Y29: =Impression!C10 -> Api | Z29: =Impression!G10 -> 
A30: =Impression!B36 -> Etriers | B30: xxx | C30: xxx | F30: =Impression!F36 -> Etriers | G30: xxx | H30: xxx | S30: Acn | T30: =B8-(360.72*B7) -> 6639.28 | U30: =T30 -> 6639.28 | V30: =G8-(360.72*G7) ->  | W30: =V30 ->  | Y30: Y : | Z30: Y :
A31: =Impression!B37 -> 08828922 | B31: =B8 -> 7000 | C31: =C8 -> 80 | F31: =Impression!F37 ->  | G31: =G8 ->  | H31: =H8 ->  | S31: Api | T31: =B8 -> 7000 | U31: =B8+(250*B7) -> 7250 | V31: =G8 ->  | W31: =G8+(250*G7) ->  | Y31: =IF(Y29="Apns",C8+2405,C8) -> 80 | Z31: =IF(Z29="Apns",H8+2405+200,H8) -> 
S32: Apns | T32: =B8 -> 7000 | U32: =T32 -> 7000 | V32: =G8 ->  | W32: =V32 ->  | Y32: Y2 : | Z32: Y2 :
A33: =Impression!B38 -> Poutrelle d'Ancrage | B33: xxx | C33: xxx | F33: =Impression!F38 -> Poutrelle d'Ancrage | G33: xxx | H33: xxx | T33: =IFERROR(VLOOKUP(N3,$S$30:$U$32,2,FALSE),"") -> 7000 | U33: =IFERROR(IF(A26="",VLOOKUP(N3,$S$30:$U$32,2,FALSE),VLOOKUP(N3,$S$30:$U$32,3,FALSE)),"") -> 7250 | V33: =IFERROR(VLOOKUP(N4,$S$30:$W$32,4,FALSE),"") ->  | W33: =IFERROR(IF(F26="",VLOOKUP(N4,$S$30:$W$32,4,FALSE),VLOOKUP(N4,$S$30:$W$32,5,FALSE)),"") ->  | Y33: =IF(Y29="Apns",C8+1922.5,C8) -> 80 | Z33: =IF(Z29="Apns",H8+1922.5+200,H8) -> 
A34: =Impression!B39 ->  | F34: =Impression!F39 -> 
A35: =Impression!B40 -> Semelle d'Appui | F35: =Impression!F40 -> Semelle d'Appui
A36: =Impression!B41 ->  | F36: =Impression!F41 -> 
A37: =Impression!B42 -> Cuvette | F37: =Impression!F42 -> Cuvette
A38: =Impression!B43 ->  | F38: =Impression!F43 -> 
A39: =Impression!B44 -> Tiges filetees | B39: xxx | C39: xxx | F39: =Impression!F44 -> Tiges filetees | G39: xxx | H39: xxx
A40: =Impression!B45 ->  | B40: =IF(A40="","",0) ->  | C40: =IF(A40="","",0) ->  | F40: =Impression!F45 ->  | G40: =IF(F40="","",0) ->  | H40: =IF(F40="","",0) -> 
A42: 1 | B42: 2 | C42: 3 | D42: 4 | E42: 5 | F42: 6 | G42: 7 | H42: 8 | I42: 9 | J42: 10 | K42: 11 | L42: 12 | M42: 13 | N42: 14 | O42: 15 | P42: 16 | Q42: 17 | R42: 18 | S42: 19 | T42: 20 | U42: 21 | V42: 22 | W42: 23 | X42: 24 | Y42: 25 | Z42: 26 | AA42: 27 | AB42: 28 | AC42: 29 | AD42: 30 | AE42: 31
A44: Conducteurs | B44: Symbole | C44: Plan | D44: Repere | E44: Iso supp | F44: Appareil Tendeur ? | G44: Pt X | H44: Pt Y | I44: Plan Si ZP | J44: Val Plan NZP | K44: Nom du bloc | L44: Dessin ? | M44: Symetrie ? | O44: Longueur AT | P44: X | Q44: Y
A45: Anc 1 Pts 1 | B45: =IF(Impression!B59="","",Impression!B59) -> 30982805 | C45: =IF(Tableau1[[#This Row],[Symbole]]="","",IF(Tableau1[[#This Row],[Val Plan NZP]]="",VLOOKUP(Tableau1[[#This Row],[Symbole]],Matériels!$B$3:$F$993,4,FALSE),Tableau1[[#This Row],[Val Plan NZP]])) -> 10985 | D45: =IF(Tableau1[[#This Row],[Plan]]="","",VLOOKUP(Tableau1[[#This Row],[Symbole]],Matériels!$B$3:$F$993,5,FALSE)) -> 352 | E45: =IF(Résultats!L57="","",Résultats!L57) ->  | F45: =IF(OR(Résultats!$B$51='X,Y'!O48,Résultats!$B$52='X,Y'!O48),"Oui","Non") -> Non | G45: =IF(Tableau1[[#This Row],[Plan]]="","",B13+(120*$B$7)+IF(Tableau1[[#This Row],[Appareil Tendeur ?]]="Oui",(VLOOKUP($C$54,$O$45:$Q$46,2,TRUE)*$B$7),0)) -> 124.25 | H45: =IF(Tableau1[[#This Row],[Plan]]="","",C13-IF(Tableau1[[#This Row],[Appareil Tendeur ?]]="Oui",(VLOOKUP($C$54,$O$45:$Q$46,3,FALSE)),0)) -> 7450 | I45: =IF(Zone=2,IF(Tableau1[[#This Row],[Symbole]]="","",VLOOKUP(Tableau1[[#This Row],[Symbole]],Matériels!$B$3:$F$993,4,FALSE)),"") ->  | J45: =IF(Tableau1[[#This Row],[Plan Si ZP]]="","",IF(Tableau1[[#This Row],[Plan Si ZP]]=Parametres!$W$59,Parametres!$U$59,IF(Tableau1[[#This Row],[Plan Si ZP]]=Parametres!$Y$59,Parametres!$X$59,IF(Tableau1[[#This Row],[Plan Si ZP]]=Parametres!$AA$59,Parametres!$Z$59,IF(Tableau1[[#This Row],[Plan Si ZP]]=Parametres!$AC$59,Parametres!$AB$59,IF(Tableau1[[#This Row],[Plan Si ZP]]=Parametres!$AE$59,Parametres!$AD$59,IF(Tableau1[[#This Row],[Plan Si ZP]]=Parametres!$AG$59,Parametres!$AF$59,IF(Tableau1[[#This Row],[Plan Si ZP]]=Parametres!$AI$59,Parametres!$AH$59,"Erreur")))))))) ->  | K45: =IF(Tableau1[[#This Row],[Symbole]]="","",Tableau1[[#This Row],[Plan]]&"_"&Tableau1[[#This Row],[Repere]]&IF(Tableau1[[#This Row],[Iso supp]]="","","_"&Tableau1[[#This Row],[Iso supp]])) -> 10985_352 | L45: =IF(Tableau1[[#This Row],[Symbole]]="","Non","Oui") -> Oui | M45: =IF($C$7="D","Non",IF($C$7="G","Oui","Erreur")) -> Non | O45: 222940 | P45: 2081.14 | Q45: 14.2052 | R45: 2061.13 | S45: 90.73
A46: Anc 1 Pts 2 | B46: =IF(Impression!B60="","",Impression!B60) -> 30982805 | C46: =IF(Tableau1[[#This Row],[Symbole]]="","",IF(Tableau1[[#This Row],[Val Plan NZP]]="",VLOOKUP(Tableau1[[#This Row],[Symbole]],Matériels!$B$3:$F$993,4,FALSE),Tableau1[[#This Row],[Val Plan NZP]])) -> 10985 | D46: =IF(Tableau1[[#This Row],[Plan]]="","",VLOOKUP(Tableau1[[#This Row],[Symbole]],Matériels!$B$3:$F$993,5,FALSE)) -> 352 | E46: =IF(Résultats!L58="","",Résultats!L58) ->  | F46: =IF(OR(Résultats!$B$51='X,Y'!O49,Résultats!$B$52='X,Y'!O49),"Oui","Non") -> Oui | G46: =IF(Tableau1[[#This Row],[Plan]]="","",B14+(120*$B$7)+IF(Tableau1[[#This Row],[Appareil Tendeur ?]]="Oui",(VLOOKUP($C$54,$O$45:$Q$46,2,TRUE)*$B$7),0)) -> 2205.39 | H46: =IF(Tableau1[[#This Row],[Plan]]="","",C14-IF(Tableau1[[#This Row],[Appareil Tendeur ?]]="Oui",(VLOOKUP($C$54,$O$45:$Q$46,3,FALSE)),0)) -> 6435.7948 | I46: =IF(Zone=2,IF(Tableau1[[#This Row],[Symbole]]="","",VLOOKUP(Tableau1[[#This Row],[Symbole]],Matériels!$B$3:$F$993,4,FALSE)),"") ->  | J46: =IF(Tableau1[[#This Row],[Plan Si ZP]]="","",IF(Tableau1[[#This Row],[Plan Si ZP]]=Parametres!$W$59,Parametres!$U$59,IF(Tableau1[[#This Row],[Plan Si ZP]]=Parametres!$Y$59,Parametres!$X$59,IF(Tableau1[[#This Row],[Plan Si ZP]]=Parametres!$AA$59,Parametres!$Z$59,IF(Tableau1[[#This Row],[Plan Si ZP]]=Parametres!$AC$59,Parametres!$AB$59,IF(Tableau1[[#This Row],[Plan Si ZP]]=Parametres!$AE$59,Parametres!$AD$59,IF(Tableau1[[#This Row],[Plan Si ZP]]=Parametres!$AG$59,Parametres!$AF$59,IF(Tableau1[[#This Row],[Plan Si ZP]]=Parametres!$AI$59,Parametres!$AH$59,"Erreur")))))))) ->  | K46: =IF(Tableau1[[#This Row],[Symbole]]="","",Tableau1[[#This Row],[Plan]]&"_"&Tableau1[[#This Row],[Repere]]&IF(Tableau1[[#This Row],[Iso supp]]="","","_"&Tableau1[[#This Row],[Iso supp]])) -> 10985_352 | L46: =IF(Tableau1[[#This Row],[Symbole]]="","Non","Oui") -> Oui | M46: =IF($C$7="D","Non",IF($C$7="G","Oui","Erreur")) -> Non | O46: 223015 | P46: 1705 | Q46: 42.5 | R46: 1705 | S46: 42.5
A47: Anc 1 Pts 3 | B47: =IF(Impression!B61="","",Impression!B61) ->  | C47: =IF(Tableau1[[#This Row],[Symbole]]="","",IF(Tableau1[[#This Row],[Val Plan NZP]]="",VLOOKUP(Tableau1[[#This Row],[Symbole]],Matériels!$B$3:$F$993,4,FALSE),Tableau1[[#This Row],[Val Plan NZP]])) ->  | D47: =IF(Tableau1[[#This Row],[Plan]]="","",VLOOKUP(Tableau1[[#This Row],[Symbole]],Matériels!$B$3:$F$993,5,FALSE)) ->  | E47: =IF(Résultats!L59="","",Résultats!L59) ->  | F47: =IF(OR(Résultats!$B$51='X,Y'!O50,Résultats!$B$52='X,Y'!O50),"Oui","Non") -> Non | G47: =IF(Tableau1[[#This Row],[Plan]]="","",B15+(120*$B$7)+IF(Tableau1[[#This Row],[Appareil Tendeur ?]]="Oui",(VLOOKUP($C$54,$O$45:$Q$46,2,TRUE)*$B$7),0)) ->  | H47: =IF(Tableau1[[#This Row],[Plan]]="","",C15-IF(Tableau1[[#This Row],[Appareil Tendeur ?]]="Oui",(VLOOKUP($C$54,$O$45:$Q$46,3,FALSE)),0)) ->  | I47: =IF(Zone=2,IF(Tableau1[[#This Row],[Symbole]]="","",VLOOKUP(Tableau1[[#This Row],[Symbole]],Matériels!$B$3:$F$993,4,FALSE)),"") ->  | J47: =IF(Tableau1[[#This Row],[Plan Si ZP]]="","",IF(Tableau1[[#This Row],[Plan Si ZP]]=Parametres!$W$59,Parametres!$U$59,IF(Tableau1[[#This Row],[Plan Si ZP]]=Parametres!$Y$59,Parametres!$X$59,IF(Tableau1[[#This Row],[Plan Si ZP]]=Parametres!$AA$59,Parametres!$Z$59,IF(Tableau1[[#This Row],[Plan Si ZP]]=Parametres!$AC$59,Parametres!$AB$59,IF(Tableau1[[#This Row],[Plan Si ZP]]=Parametres!$AE$59,Parametres!$AD$59,IF(Tableau1[[#This Row],[Plan Si ZP]]=Parametres!$AG$59,Parametres!$AF$59,IF(Tableau1[[#This Row],[Plan Si ZP]]=Parametres!$AI$59,Parametres!$AH$59,"Erreur")))))))) ->  | K47: =IF(Tableau1[[#This Row],[Symbole]]="","",Tableau1[[#This Row],[Plan]]&"_"&Tableau1[[#This Row],[Repere]]&IF(Tableau1[[#This Row],[Iso supp]]="","","_"&Tableau1[[#This Row],[Iso supp]])) ->  | L47: =IF(Tableau1[[#This Row],[Symbole]]="","Non","Oui") -> Non | M47: Non
A48: Anc 2 Pts 1 | B48: =IF(Impression!F59="","",Impression!F59) ->  | C48: =IF(Tableau1[[#This Row],[Symbole]]="","",IF(Tableau1[[#This Row],[Val Plan NZP]]="",VLOOKUP(Tableau1[[#This Row],[Symbole]],Matériels!$B$3:$F$993,4,FALSE),Tableau1[[#This Row],[Val Plan NZP]])) ->  | D48: =IF(Tableau1[[#This Row],[Plan]]="","",VLOOKUP(Tableau1[[#This Row],[Symbole]],Matériels!$B$3:$F$993,5,FALSE)) ->  | E48: =IF(Résultats!L60="","",Résultats!L60) ->  | F48: =IF(OR(Résultats!$C$51='X,Y'!O48,Résultats!$C$52='X,Y'!O48),"Oui","Non") -> Non | G48: =IF(Tableau1[[#This Row],[Plan]]="","",G13+(120*$G$7)+IF(Tableau1[[#This Row],[Appareil Tendeur ?]]="Oui",(VLOOKUP($C$55,$O$45:$Q$46,2,TRUE)*$G$7),0)) ->  | H48: =IF(Tableau1[[#This Row],[Plan]]="","",H13-IF(Tableau1[[#This Row],[Appareil Tendeur ?]]="Oui",(VLOOKUP($C$55,$O$45:$Q$46,3,FALSE)),0)) ->  | I48: =IF(Zone=2,IF(Tableau1[[#This Row],[Symbole]]="","",VLOOKUP(Tableau1[[#This Row],[Symbole]],Matériels!$B$3:$F$993,4,FALSE)),"") ->  | J48: =IF(Tableau1[[#This Row],[Plan Si ZP]]="","",IF(Tableau1[[#This Row],[Plan Si ZP]]=Parametres!$W$59,Parametres!$U$59,IF(Tableau1[[#This Row],[Plan Si ZP]]=Parametres!$Y$59,Parametres!$X$59,IF(Tableau1[[#This Row],[Plan Si ZP]]=Parametres!$AA$59,Parametres!$Z$59,IF(Tableau1[[#This Row],[Plan Si ZP]]=Parametres!$AC$59,Parametres!$AB$59,IF(Tableau1[[#This Row],[Plan Si ZP]]=Parametres!$AE$59,Parametres!$AD$59,IF(Tableau1[[#This Row],[Plan Si ZP]]=Parametres!$AG$59,Parametres!$AF$59,IF(Tableau1[[#This Row],[Plan Si ZP]]=Parametres!$AI$59,Parametres!$AH$59,"Erreur")))))))) ->  | K48: =IF(Tableau1[[#This Row],[Symbole]]="","",Tableau1[[#This Row],[Plan]]&"_"&Tableau1[[#This Row],[Repere]]&IF(Tableau1[[#This Row],[Iso supp]]="","","_"&Tableau1[[#This Row],[Iso supp]])) ->  | L48: =IF(Tableau1[[#This Row],[Symbole]]="","Non","Oui") -> Non | M48: =IF($H$7="D","Non",IF($H$7="G","Oui","Erreur")) -> Oui | O48: Point n°1
A49: Anc 2 Pts 2 | B49: =IF(Impression!F60="","",Impression!F60) ->  | C49: =IF(Tableau1[[#This Row],[Symbole]]="","",IF(Tableau1[[#This Row],[Val Plan NZP]]="",VLOOKUP(Tableau1[[#This Row],[Symbole]],Matériels!$B$3:$F$993,4,FALSE),Tableau1[[#This Row],[Val Plan NZP]])) ->  | D49: =IF(Tableau1[[#This Row],[Plan]]="","",VLOOKUP(Tableau1[[#This Row],[Symbole]],Matériels!$B$3:$F$993,5,FALSE)) ->  | E49: =IF(Résultats!L61="","",Résultats!L61) ->  | F49: =IF(OR(Résultats!$C$51='X,Y'!O49,Résultats!$C$52='X,Y'!O49),"Oui","Non") -> Non | G49: =IF(Tableau1[[#This Row],[Plan]]="","",G14+(120*$G$7)+IF(Tableau1[[#This Row],[Appareil Tendeur ?]]="Oui",(VLOOKUP($C$55,$O$45:$Q$46,2,TRUE)*$G$7),0)) ->  | H49: =IF(Tableau1[[#This Row],[Plan]]="","",H14-IF(Tableau1[[#This Row],[Appareil Tendeur ?]]="Oui",(VLOOKUP($C$55,$O$45:$Q$46,3,FALSE)),0)) ->  | I49: =IF(Zone=2,IF(Tableau1[[#This Row],[Symbole]]="","",VLOOKUP(Tableau1[[#This Row],[Symbole]],Matériels!$B$3:$F$993,4,FALSE)),"") ->  | J49: =IF(Tableau1[[#This Row],[Plan Si ZP]]="","",IF(Tableau1[[#This Row],[Plan Si ZP]]=Parametres!$W$59,Parametres!$U$59,IF(Tableau1[[#This Row],[Plan Si ZP]]=Parametres!$Y$59,Parametres!$X$59,IF(Tableau1[[#This Row],[Plan Si ZP]]=Parametres!$AA$59,Parametres!$Z$59,IF(Tableau1[[#This Row],[Plan Si ZP]]=Parametres!$AC$59,Parametres!$AB$59,IF(Tableau1[[#This Row],[Plan Si ZP]]=Parametres!$AE$59,Parametres!$AD$59,IF(Tableau1[[#This Row],[Plan Si ZP]]=Parametres!$AG$59,Parametres!$AF$59,IF(Tableau1[[#This Row],[Plan Si ZP]]=Parametres!$AI$59,Parametres!$AH$59,"Erreur")))))))) ->  | K49: =IF(Tableau1[[#This Row],[Symbole]]="","",Tableau1[[#This Row],[Plan]]&"_"&Tableau1[[#This Row],[Repere]]&IF(Tableau1[[#This Row],[Iso supp]]="","","_"&Tableau1[[#This Row],[Iso supp]])) ->  | L49: =IF(Tableau1[[#This Row],[Symbole]]="","Non","Oui") -> Non | M49: =IF($H$7="D","Non",IF($H$7="G","Oui","Erreur")) -> Oui | O49: Point n°2
A50: Anc 2 Pts 3 | B50: =IF(Impression!F61="","",Impression!F61) ->  | C50: =IF(Tableau1[[#This Row],[Symbole]]="","",IF(Tableau1[[#This Row],[Val Plan NZP]]="",VLOOKUP(Tableau1[[#This Row],[Symbole]],Matériels!$B$3:$F$993,4,FALSE),Tableau1[[#This Row],[Val Plan NZP]])) ->  | D50: =IF(Tableau1[[#This Row],[Plan]]="","",VLOOKUP(Tableau1[[#This Row],[Symbole]],Matériels!$B$3:$F$993,5,FALSE)) ->  | E50: =IF(Résultats!L62="","",Résultats!L62) ->  | F50: =IF(OR(Résultats!$C$51='X,Y'!O50,Résultats!$C$52='X,Y'!O50),"Oui","Non") -> Non | G50: =IF(Tableau1[[#This Row],[Plan]]="","",G15+(120*$G$7)+IF(Tableau1[[#This Row],[Appareil Tendeur ?]]="Oui",(VLOOKUP($C$55,$O$45:$Q$46,2,TRUE)*$G$7),0)) ->  | H50: =IF(Tableau1[[#This Row],[Plan]]="","",H15-IF(Tableau1[[#This Row],[Appareil Tendeur ?]]="Oui",(VLOOKUP($C$55,$O$45:$Q$46,3,FALSE)),0)) ->  | I50: =IF(Zone=2,IF(Tableau1[[#This Row],[Symbole]]="","",VLOOKUP(Tableau1[[#This Row],[Symbole]],Matériels!$B$3:$F$993,4,FALSE)),"") ->  | J50: =IF(Tableau1[[#This Row],[Plan Si ZP]]="","",IF(Tableau1[[#This Row],[Plan Si ZP]]=Parametres!$W$59,Parametres!$U$59,IF(Tableau1[[#This Row],[Plan Si ZP]]=Parametres!$Y$59,Parametres!$X$59,IF(Tableau1[[#This Row],[Plan Si ZP]]=Parametres!$AA$59,Parametres!$Z$59,IF(Tableau1[[#This Row],[Plan Si ZP]]=Parametres!$AC$59,Parametres!$AB$59,IF(Tableau1[[#This Row],[Plan Si ZP]]=Parametres!$AE$59,Parametres!$AD$59,IF(Tableau1[[#This Row],[Plan Si ZP]]=Parametres!$AG$59,Parametres!$AF$59,IF(Tableau1[[#This Row],[Plan Si ZP]]=Parametres!$AI$59,Parametres!$AH$59,"Erreur")))))))) ->  | K50: =IF(Tableau1[[#This Row],[Symbole]]="","",Tableau1[[#This Row],[Plan]]&"_"&Tableau1[[#This Row],[Repere]]&IF(Tableau1[[#This Row],[Iso supp]]="","","_"&Tableau1[[#This Row],[Iso supp]])) ->  | L50: =IF(Tableau1[[#This Row],[Symbole]]="","Non","Oui") -> Non | M50: Oui | O50: Point n°3
A52: Appareil Tendeur
A53: Ancrage | B53: Symbole | C53: Plan | D53: Repere | E53: Pt X | F53: Pt Y | G53: Dessin | H53: Symetrie | I53: Nom du bloc | J53: Pts Ancrage
A54: N°1 | B54: =IF(Impression!$B$56="","",Impression!$B$56) -> 10984102 | C54: =IF(B54="","",VLOOKUP(B54,Matériels!$B$3:$F$993,4,FALSE)) -> 222940 | D54: =IF(C54="","",VLOOKUP(B54,Matériels!$B$3:$F$993,5,FALSE)) -> 222942 | E54: =IF(J54=$O$48,B13+(120*$B$7),IF(J54=$O$49,B14+(120*$B$7),IF(J54=$O$50,B15+(120*$B$7),""))) -> 124.25 | F54: =IF(J54=$O$48,C13,IF(J54=$O$49,C14,IF(J54=$O$50,C15,""))) -> 6450 | G54: =IF(B54="","Non","Oui") -> Oui | H54: =IF($C$7="D","Non",IF($C$7="G","Oui","Erreur")) -> Non | I54: =IF(B54="","",C54&"_"&D54) -> 222940_222942 | J54: =IF(B54="","",PtATa1) -> Point n°2 | K54: AT n1
A55: N°2 | B55: =IF(Impression!$F$56="","",Impression!$F$56) ->  | C55: =IF(B55="","",VLOOKUP(B55,Matériels!$B$3:$F$993,4,FALSE)) ->  | D55: =IF(C55="","",VLOOKUP(B55,Matériels!$B$3:$F$993,5,FALSE)) ->  | E55: =IF(J55=$O$48,G13+(120*$G$7),IF(J55=$O$49,G14+(120*$G$7),IF(J55=$O$50,G15+(120*$G$7),""))) ->  | F55: =IF(J55=$O$48,H13,IF(J55=$O$49,H14,IF(J55=$O$50,H15,""))) ->  | G55: =IF(B55="","Non","Oui") -> Non | H55: =IF($H$7="D","Non",IF($H$7="G","Oui","Erreur")) -> Oui | I55: =IF(B55="","",C55&"_"&D55) ->  | J55: =IF(B55="","",PtATb1) ->  | K55: AT n1
A56: N°1 | B56: =IF(Impression!$B$57="","",Impression!$B$57) ->  | C56: =IF(B56="","",VLOOKUP(B56,Matériels!$B$3:$F$993,4,FALSE)) ->  | D56: =IF(C56="","",VLOOKUP(B56,Matériels!$B$3:$F$993,5,FALSE)) ->  | E56: =IF(J56=$O$48,B13+(120*$B$7),IF(J56=$O$49,B14+(120*$B$7),IF(J56=$O$50,B15+(120*$B$7),""))) ->  | F56: =IF(J56=$O$48,C13,IF(J56=$O$49,C14,IF(J56=$O$50,C15,""))) ->  | G56: =IF(B56="","Non","Oui") -> Non | H56: =IF($C$7="D","Non",IF($C$7="G","Oui","Erreur")) -> Non | I56: =IF(B56="","",C56&"_"&D56) ->  | J56: =IF(B56="","",PtATa2) ->  | K56: AT n2
A57: N°2 | B57: =IF(Impression!$F$57="","",Impression!$F$57) ->  | C57: =IF(B57="","",VLOOKUP(B57,Matériels!$B$3:$F$993,4,FALSE)) ->  | D57: =IF(C57="","",VLOOKUP(B57,Matériels!$B$3:$F$993,5,FALSE)) ->  | E57: =IF(J57=$O$48,G13+(120*$G$7),IF(J57=$O$49,G14+(120*$G$7),IF(J57=$O$50,G15+(120*$G$7),""))) ->  | F57: =IF(J57=$O$48,H13,IF(J57=$O$49,H14,IF(J57=$O$50,H15,""))) ->  | G57: =IF(B57="","Non","Oui") -> Non | H57: =IF($H$7="D","Non",IF($H$7="G","Oui","Erreur")) -> Oui | I57: =IF(B57="","",C57&"_"&D57) ->  | J57: =IF(B57="","",PtATb2) ->  | K57: AT n2
A60: Cotation | B60: Ancrage 1 | D60: Ancrage 2
B61: Point X | C61: Point Y | D61: Point X | E61: Point Y
A62: Point n°1 | B62: =IF(C62="","",B13) -> 4.25 | C62: =IF(OR(A62=$J$54,A62=$J$56),C13,C13) -> 7450 | D62: =IF(E62="","",G13) ->  | E62: =IF(OR(A62=$J$55,A62=$J$57),IF(OR(H48=$C$62,H48=$C$63,H48=$C$64),"",H13),IF(OR(H13=$C$62,H13=$C$63,H13=$C$64),"",H13)) -> 
A63: Point n°2 | B63: =IF(C63="","",B14) -> 4.25 | C63: =IF(OR(A63=$J$54,A63=$J$56),C14,C14) -> 6450 | D63: =IF(E63="","",G14) ->  | E63: =IF(OR(A63=$J$55,A63=$J$57),IF(OR(H49=$C$62,H49=$C$63,H49=$C$64),"",H14),IF(OR(H14=$C$62,H14=$C$63,H14=$C$64),"",H14)) -> 
A64: Point n°3 | B64: =IF(C64="","",B15) ->  | C64: =IF(OR(A64=$J$54,A64=$J$56),C15,C15) ->  | E64: =IF(OR(A64=$J$55,A64=$J$57),IF(OR(H50=$C$62,H50=$C$63,H50=$C$64),"",H15),IF(OR(H15=$C$62,H15=$C$63,H15=$C$64),"",H15)) -> 
A65: Piece n°1 | B65: =IF(C65="","",B9) ->  | C65: =IF(C9=$C$13,"",IF(C9=$C$14,"",IF(C9=$C$15,"",C9))) ->  | D65: =IF(E65="","",G9) ->  | E65: =IF(H9=$H$13,"",IF(H9=$H$14,"",IF(OR(H9=$H$15,H9=$C$65,H9=$C$66,H9=$C$67,H9=$C$68,H9=$C$62,H9=$C$63,H9=$C$64),"",H9))) -> 
A66: Piece n°2 | B66: =IF(C66="","",B10) ->  | C66: =IF(C10=$C$13,"",IF(C10=$C$14,"",IF(C10=$C$15,"",C10))) ->  | D66: =IF(E66="","",G10) ->  | E66: =IF(H10=$H$13,"",IF(H10=$H$14,"",IF(OR(H10=$H$15,H10=$C$65,H10=$C$66,H10=$C$67,H10=$C$68,H10=$C$62,H10=$C$63,H10=$C$64),"",H10))) -> 
A67: Piece n°3 | B67: =IF(C67="","",B11) -> 
A68: Piece n°4 | B68: =IF(C68="","",B12) -> 
J69: Ancrage 1 | K69: Ancrage 2 | M69: Cas | N69: Rigide | O69: Cable | Q69: Api | R69: 1 Etrier | S69: 2 Etriers
A70: Block Dynamique | B70: Dessin | C70: Orientation | D70: Angle ? | E70: Angle | F70: Attribut | G70: Resultat | I70: Signe : | J70: =IF(Q13="NON",IF(C7="D",IF(B72="Non",-1,IF(B72="Oui",1,"Erreur")),IF(C7="G",IF(B72="Non",1,IF(B72="Oui",-1,"Erreur")))),IF(Q13<>"NON",IF(C7="D",-1,IF(C7="G",1,"Erreur")))) -> -1 | K70: =IF(Y13="NON",IF(H7="D",IF(B74="Non",-1,IF(B74="Oui",1,"Erreur")),IF(H7="G",IF(B74="Non",1,IF(B74="Oui",-1,"Erreur")))),IF(Y13<>"NON",IF(H7="D",-1,IF(H7="G",1,"Erreur")))) -> 1 | M70: Gauche | N70: -1 | O70: 1 | Q70: Apns | R70: 1 hauban | S70: 2 haubans
A71: Etrier 1 Massif 1 | B71: =IF(OR(A8="",A8="Aucun"),"Non","Oui") -> Oui | C71: =IF(B71="Non","",IF($C$7="D","Gauche","Droite")) -> Gauche | D71: Angle1 | E71: =IF(B72="Non",IF($Q$13<>"NON",-B7*Q22,Q22)*J70,IF(B72="Non","",IF($S$13<>"NON",-B7*IF(OR(N3="Acn",N3="Apns"),Q22,$S$22),-IF(OR(N3="Acn",N3="Apns"),Q22,$S$22)))*J70) -> 0.7377614379 | F71: Visibilité1 | G71: =IF(B71="Non","",IF(B72="Non",IF(N3="Apns",R70,R69),IF(N3="Apns",S70,S69))) -> 2 Etriers | H71: =DEGREES(E71) -> 42.27061668 | M71: Droite | N71: 1 | O71: -1
A72: Etrier 2 Massif 1 | B72: =IF(Résultats!B9>=2,"Oui","Non") -> Oui | C72: =IF(B72="Non","",IF($C$7="D","Gauche","Droite")) -> Gauche | D72: Angle2 | E72: =IF(B71="Non",IF(B72="Non","",IF($S$13<>"NON",-B7*$S$22,-$S$22))*J70,IF($Q$13<>"NON",-B7*IF(OR(N3="Acn",N3="Apns"),$S$22,$Q$22),IF(OR(N3="Acn",N3="Apns"),$S$22,$Q$22))*J70)*IF(AND(Q13<>"NON",B72="Oui"),-1,1) -> -0.7940416487 | H72: =DEGREES(E72) -> -45.49523523 | M72: 2 Gauche | N72: -1 et 1 | O72: -1
A73: Etrier 1 Massif 2 | B73: =IF(OR(F8="",F8="Aucun"),"Non","Oui") -> Non | C73: =IF(B73="Non","",IF($H$7="D","Gauche","Droite")) ->  | D73: Angle1 | E73: =IF(B73="Non","",IF(B74="Non",IF($Y$13<>"NON",-G7*Y22,Y22)*K70,IF(B74="Non","",IF($AA$13<>"NON",-G7*IF(OR(N4="Acn",N4="Apns"),$Y$22,$AA$22),-IF(OR(N4="Acn",N4="Apns"),$Y$22,$AA$22)))*K70)) ->  | F73: Visibilité1 | G73: =IF(B73="Non","",IF(B74="Non",IF(N4="Apns",R70,R69),IF(N4="Apns",S70,S69))) ->  | H73: =DEGREES(E73) ->  | M73: 2 Droite | N73: 1 et -1 | O73: 1
A74: Etrier 2 Massif 2 | B74: =IF(Résultats!C9>=2,"Oui","Non") -> Non | C74: =IF(B74="Non","",IF($H$7="D","Gauche","Droite")) ->  | D74: Angle2 | E74: =IF(B74="Non","",IF(B73="Non",IF(B74="Non","",IF($AA$13<>"NON",-G7*$AA$22,-$AA$22))*K70,IF($Y$13<>"NON",-G7*IF(OR(N4="Acn",N4="Apns"),AA22,Y22),IF(OR(N4="Acn",N4="Apns"),AA22,Y22))*K70)*IF(AND(Y13<>"NON",B74="Oui"),-1,1)) ->  | H74: =DEGREES(E74) -> 
A76: Hauban Rig. Anc 1 - 1 | B76: =IF(P22<>"Rigide","Non","Oui") -> Oui | C76: =IF(C71="","",C71) -> Gauche | E76: =IF(B76="Non","",$Q$22) -> 0.7940416487
A77: Hauban Rig. Anc 1 - 2 | B77: =IF(R22<>"Rigide","Non","Oui") -> Oui | C77: =IF(C72="","",C72) -> Gauche | E77: =IF(B77="Non","",$S$22) -> 0.7377614379
A78: Hauban Rig. Anc 2 - 1 | B78: =IF(X22<>"Rigide","Non","Oui") -> Non | E78: =IF(B78="Non","",$Y$22) -> 
A79: Hauban Rig. Anc 2 - 2 | B79: =IF(Z22<>"Rigide","Non","Oui") -> Non | E79: =IF(B79="Non","",$AA$22) -> 
A81: Si le support est un JHE et qu'il correspond à un support commandable alors insert un bloc | J81: Visibilité1
A82: Insertion JHE ? | B82: =IF(Résultats!K88="JHE","Oui","Non") -> Non | D82: Insertion PR ? | E82: =IF(Résultats!K88="PR","Oui","Non") -> Non | I82: JHE280A L | J82: =HLOOKUP($B$84,K82:T83,2,TRUE) ->  | K82: 300 | L82: 1600 | M82: 3000 | N82: 4920 | O82: 6740 | P82: 8610 | Q82: 10480 | R82: 12350 | S82: 13880
A83: Bloc JHE | B83: Distance1 | C83: Distance2 | D83: Visibilité1 | E83: Insert X | F83: Insert Y | G83: Chemin | K83: 1 | L83: 2 | M83: 3 | N83: 4 | O83: 5 | P83: 6 | Q83: 7 | R83: 8 | S83: 9 | T83: 10
A84: =IF(AND(Résultats!$J$87<>"Aucun",Résultats!$K$88="JHE"),Résultats!J87&" "&VLOOKUP(Résultats!$J$87,Résultats!F86:G89,2,FALSE),"") ->  | B84: =IF(A84="","",Résultats!$K$87*1000) ->  | C84: =IF($A$84<>"",ABS(CoteA+Arase-(VLOOKUP(Résultats!$J$87,Résultats!$F$86:$H$89,3,FALSE)-Résultats!$K$87))*1000,"") ->  | D84: =IF(A84="","",VLOOKUP(A84,I82:J88,2,FALSE)) ->  | E84: =IF(A84="","",0) ->  | F84: =IF(A84<>"",(Hsupport)*1000,"") ->  | G84: =IF(A84<>"",Q6,"") ->  | I84: JHE280B N | J84: =HLOOKUP($B$84,K84:T85,2,TRUE) ->  | K84: 300 | L84: 2100 | M84: 4000 | N84: 5920 | O84: 7740 | P84: 9610 | Q84: 11480 | R84: 13350 | S84: 14880
A85: Bloc PR | B85: Distance1 | C85: Distance2 | D85: Visibilité1 | E85: Insert X | F85: Insert Y | G85: Chemin | K85: 1 | L85: 2 | M85: 3 | N85: 4 | O85: 5 | P85: 6 | Q85: 7 | R85: 8 | S85: 9 | T85: 10
A86: =IF(AND(Résultats!$J$87<>"Aucun",$E$82="Oui"),"220085_PRdyn","") ->  | D86: =IF(AND(Résultats!$J$87<>"Aucun",$E$82="Oui"),Résultats!J87,"") ->  | E86: =IF(A86="","",0) ->  | F86: =IF(A86<>"",(-CoteA)*1000,"") ->  | G86: =IF(A86<>"",Q6,"") ->  | I86: JHE320A O | J86: =HLOOKUP($B$84,K86:T87,2,TRUE) ->  | K86: 300 | L86: 1800 | M86: 3400 | N86: 5000 | O86: 6920 | P86: 8740 | Q86: 10610 | R86: 12480 | S86: 14350 | T86: 15880
A87: Si Massif Ae | B87: Visibilite1 | C87: Angle1 | D87: Angle2 | E87: inversion | F87: Dessin ? | K87: 1 | L87: 2 | M87: 3 | N87: 4 | O87: 5 | P87: 6 | Q87: 7 | R87: 8 | S87: 9 | T87: 10
A88: Massif 1 | B88: =Impression!B10&" "&Impression!C10 -> 9 Api | C88: =IF(E71="",1,IF(C7="D",E71,-E71)) -> 0.7377614379 | D88: =IF(E72="",1,IF(C7="D",-E72,E72)) -> 0.7940416487 | E88: =IF(C7="G","G","D") -> D | F88: =Résultats!B70 -> NON | I88: JHE320B O | J88: =HLOOKUP($B$84,K88:T89,2,TRUE) ->  | K88: 300 | L88: 1800 | M88: 3400 | N88: 5000 | O88: 6920 | P88: 8740 | Q88: 10610 | R88: 12480 | S88: 14350 | T88: 15880
A89: Massif 2 | B89: =Impression!F10&" "&Impression!G10 ->  | C89: =IF(E89="G",-E73,-E73) ->  | D89: =IF(E74="",1,IF(E89="G",-E74,E74)) -> 1 | E89: =IF(H7="G","G","D") -> G | F89: =Résultats!C70 -> NON | K89: 1 | L89: 2 | M89: 3 | N89: 4 | O89: 5 | P89: 6 | Q89: 7 | R89: 8 | S89: 9 | T89: 10
A91: Bloc Potelet | B91: Consultation1 | C91: Dessin ? | E91: Insert X | F91: Insert Y | G91: Chemin
A92: =IF(C92="oui",IF(Parametres!AU58="Oui","221525_Profil_dyn","221500_Profil_dyn"),"") ->  | B92: =IF(LgPot="","",LgPot) ->  | C92: =IF(B92="","","Oui") ->  | E92: =IF(A92="","",B2) ->  | F92: =IF(A92="","",A3*1000) ->  | G92: =IF(A92<>"",Q6,"") -> 
A94: Bloc Chaine feeder | B94: Visibilité1 | C94: Dessin ? | E94: Insert X | F94: Insert Y | G94: Chemin
A95: =IF(C95="oui",Parametres!BA68,"") ->  | B95: =IF(Parametres!BA69="","",Parametres!BA69) ->  | C95: =IF(B95="","","Oui") ->  | E95: =IF(A95="","",B2) ->  | F95: =IF(A95="","",A3*1000+IF(B92<>"",B92,0)+IF(Parametres!BA52="Oui",35,-50)+IF(LEFT(A92,6)="221525",-800,0)) ->  | G95: =IF(A95<>"",Q6,"") -> 
A96: Bloc Console feeder | B96: Visibilité1 | C96: Dessin ? | E96: Insert X | F96: Insert Y | G96: Chemin
A97: =IF(C97="oui","228000_profil","") ->  | C97: =IF(Parametres!BA52="Non","",Parametres!BA52) ->  | E97: =IF(A97="","",B2) ->  | F97: =IF(A97="","",A3*1000) ->  | G97: =IF(A97<>"",Q6,"") -> 
A99: Bloc Passage CdPA | B99: Visibilité1 | C99: Dessin ? | E99: Insert X | F99: Insert Y | G99: Chemin
A100: =IF(C100="Oui","215640_face","") ->  | C100: =Parametres!AV73 -> Non | E100: =IF(A100="","",$B$2+50) ->  | F100: =IF(A100="","",Parametres!AU73*1000) ->  | G100: =IF(A100<>"",$Q$6,"") -> 
A101: =IF(C101="Oui","215640_face","") ->  | C101: =Parametres!AV74 -> Non | E101: =IF(A101="","",$B$2+50) ->  | F101: =IF(A101="","",Parametres!AU74*1000) ->  | G101: =IF(A101<>"",$Q$6,"") -> 
A102: =IF(C102="Oui","215640_face","") ->  | C102: =Parametres!AV75 -> Non | F102: =IF(A102="","",Parametres!AU75*1000) -> 

Sheet Résultats (hidden)
A1: =IF(Electrification="vingtcinq","25 kV",IF(OR(Electrification="Millecinq",Electrification="Millecinq2"),"1500 V",IF(Electrification="Autre","Autre","Erreur Calculs"))) -> 1500 V | C1: Support | D1: =Support -> HEA300 | E1: Orienté ? | F1: =IF(Orientationb="Noriente","N","O") -> N | H1: Ancrage N°1 | O1: Ancrage N°2 | V1: Longueur Hauban Ancrage Normaux | AF1: Feuil6 | AG1: 33 | AH1: 34 | AI1: 35 | AJ1: 36
H2: Tension Méca | J2: =B5 -> 90.8 | O2: Tension Méca | Q2: =C5 -> 0 | W2: Ancrage 1 | X2: Ancrage 2 | Y2: Jumelles 1 | Z2: Jumelles 2 | AG2: Dénivelé ancrage
B3: Ancrage 1 | C3: Ancrage 2 | H3: Câble | K3: Rigide | O3: Câble | R3: Rigide | V3: Hauteur 1 | W3: =IFERROR(IF($M$9=37530,HLOOKUP(B14-AraseM1,'L Haubans'!$B$2:$M$4,3,TRUE),IF($M$9=37550,HLOOKUP(B14-AraseM1,'L Haubans'!$B$2:$M$6,5,TRUE),"Erreur")),"") -> 08828752 | X3: =IFERROR(IF($T$9=37530,HLOOKUP(C14-AraseM2,'L Haubans'!$B$2:$M$4,3,TRUE),IF($T$9=37550,HLOOKUP(C14-AraseM2,'L Haubans'!$B$2:$M$6,5,TRUE),"Erreur")),"") ->  | Y3: =IFERROR(HLOOKUP(B14-AraseM1,'L Haubans'!$B$2:$M$8,7,TRUE),"") -> 00986723 | Z3: =IFERROR(HLOOKUP(C14-AraseM2,'L Haubans'!$B$2:$M$8,7,TRUE),"") -> 
A4: Deuxieme Ancrage ? | C4: =IF(Calculs!J6="Face","O","N") -> N | H4: Piece de Reglage | I4: Nombre | J4: =HLOOKUP($J$2,Parametres!$K$2:$Y$25,2,TRUE) -> 2 | K4: Piece de Reglage | L4: Nombre | M4: =HLOOKUP($J$2,Parametres!$AB$2:$AO$25,2,TRUE) -> 2 | O4: Piece de Reglage | P4: Nombre | Q4: =HLOOKUP($Q$2,Parametres!$K$2:$Y$25,2,TRUE) -> 1 | R4: Piece de Reglage | S4: Nombre | T4: =HLOOKUP($Q$2,Parametres!$AB$2:$AO$25,2,TRUE) -> 1 | V4: Hauteur 2 | W4: =IFERROR(IF($M$9=37530,HLOOKUP(B15-AraseM1,'L Haubans'!$B$2:$M$4,3,TRUE),IF($M$9=37550,HLOOKUP(B15-AraseM1,'L Haubans'!$B$2:$M$6,5,TRUE),"Erreur")),"") -> 08828752 | X4: =IFERROR(IF($T$9=37530,HLOOKUP(C15-AraseM2,'L Haubans'!$B$2:$M$4,3,TRUE),IF($T$9=37550,HLOOKUP(C15-AraseM2,'L Haubans'!$B$2:$M$6,5,TRUE),"Erreur")),"") ->  | Y4: =IFERROR(HLOOKUP(B15-AraseM1,'L Haubans'!$B$2:$M$8,7,TRUE),"") -> 00986721 | Z4: =IFERROR(HLOOKUP(C15-AraseM2,'L Haubans'!$B$2:$M$8,7,TRUE),"") ->  | AG4: Hauteur H :
A5: Tension Méca | B5: =Tension1 -> 90.8 | C5: =Tension2 -> 0 | I5: Plan | J5: =HLOOKUP($J$2,Parametres!$K$2:$Y$25,3,TRUE) -> 37606 | L5: Plan | M5: =HLOOKUP($J$2,Parametres!$AB$2:$AO$25,3,TRUE) -> 37606 | P5: Plan | Q5: =HLOOKUP($Q$2,Parametres!$K$2:$Y$25,3,TRUE) -> 37605 | S5: Plan | T5: =HLOOKUP($Q$2,Parametres!$AB$2:$AO$25,3,TRUE) -> 37606 | V5: Hauteur 3 | W5: =IFERROR(IF($M$9=37530,HLOOKUP(B16-AraseM1,'L Haubans'!$B$2:$M$4,3,TRUE),IF($M$9=37550,HLOOKUP(B16-AraseM1,'L Haubans'!$B$2:$M$6,5,TRUE),"Erreur")),"") ->  | X5: =IFERROR(IF($T$9=37530,HLOOKUP(C16-AraseM2,'L Haubans'!$B$2:$M$4,3,TRUE),IF($T$9=37550,HLOOKUP(C16-AraseM2,'L Haubans'!$B$2:$M$6,5,TRUE),"Erreur")),"") ->  | Y5: =IFERROR(HLOOKUP(B16-AraseM1,'L Haubans'!$B$2:$M$8,7,TRUE),"") ->  | Z5: =IFERROR(HLOOKUP(C16-AraseM2,'L Haubans'!$B$2:$M$8,7,TRUE),"") ->  | AG5: Hauteur h :
A6: Nature du hauban de préf | B6: =IF(Haubpref1="","Câble",Haubpref1) -> Rigide | C6: =IF(AND(Haubpref2="",C4<>"N"),"Câble",Haubpref2) -> 0 | I6: Symbole | J6: =HLOOKUP($J$2,Parametres!$K$2:$Y$25,4,TRUE) -> 08828800 | L6: Symbole | M6: =HLOOKUP($J$2,Parametres!$AB$2:$AO$25,4,TRUE) -> 08828800 | P6: Symbole | Q6: =HLOOKUP($Q$2,Parametres!$K$2:$Y$25,4,TRUE) -> 08828805 | S6: Symbole | T6: =HLOOKUP($Q$2,Parametres!$AB$2:$AO$25,4,TRUE) -> 08828800 | V6: Hauteur 4 | W6: =IFERROR(IF($M$9=37530,HLOOKUP(B17-AraseM1,'L Haubans'!$B$2:$M$4,3,TRUE),IF($M$9=37550,HLOOKUP(B17-AraseM1,'L Haubans'!$B$2:$M$6,5,TRUE),"Erreur")),"") ->  | X6: =IFERROR(IF($T$9=37530,HLOOKUP(C17-AraseM2,'L Haubans'!$B$2:$M$4,3,TRUE),IF($T$9=37550,HLOOKUP(C17-AraseM2,'L Haubans'!$B$2:$M$6,5,TRUE),"Erreur")),"") ->  | Y6: =IFERROR(HLOOKUP(B17-AraseM1,'L Haubans'!$B$2:$M$8,7,TRUE),"") ->  | Z6: =IFERROR(HLOOKUP(C17-AraseM2,'L Haubans'!$B$2:$M$8,7,TRUE),"") ->  | AG6: Delta | AH6: =IF(AI6="",AH4-AH5,AI6) -> 0
A7: Massif d'Ancrage | B7: =IF(MassifAnc1="Ae","Api",MassifAnc1) -> Api | C7: =IF(MassifAnc2="Ae","Api",MassifAnc2) -> 0 | D7: =IF(B70="OUI",VLOOKUP(B71,Parametres!$C$77:$D$84,2,FALSE),IF(AND(B7="Api",B6="Câble"),J12,IF(AND(B7="Api",B6="Rigide"),M12,IF(AND(B7="Apns",B6="Câble"),J17,IF(AND(B7="Apns",B6="Rigide"),M17,IF(AND(B7="Acn",B6="Câble"),J28,IF(AND(B7="Acn",B6="Rigide"),M28,""))))))) -> 9 | E7: =IF(C70="OUI",VLOOKUP(C71,Parametres!$C$77:$D$84,2,FALSE),IF(AND(C7="Api",C6="Câble"),Q12,IF(AND(C7="Api",C6="Rigide"),T12,IF(AND(C7="Apns",C6="Câble"),Q17,IF(AND(C7="Apns",C6="Rigide"),T17,IF(AND(C7="Acn",C6="Câble"),Q28,IF(AND(C7="Acn",C6="Rigide"),T28,""))))))) ->  | H7: Hauban d'Ancrage | I7: Ø (mm) | J7: =HLOOKUP($J$2,Parametres!$K$2:$Y$25,5,TRUE) -> 36 | K7: Hauban d'Ancrage | L7: Ø (mm) | M7: =HLOOKUP($J$2,Parametres!$AB$2:$AO$25,5,TRUE) -> 36 | O7: Hauban d'Ancrage | P7: Ø (mm) | Q7: =HLOOKUP($Q$2,Parametres!$K$2:$Y$25,5,TRUE) -> Câble | R7: Hauban d'Ancrage | S7: Ø (mm) | T7: =HLOOKUP($Q$2,Parametres!$AB$2:$AO$25,5,TRUE) -> 30 | AG7: Force :
A8: Type de massif d'Ancrage | B8: =IF(B7<>"Apns","Normaux","Surélevé") -> Normaux | C8: =IF(C7<>"Apns","Normaux","Surélevé") -> Normaux | I8: Nombre | J8: =HLOOKUP($J$2,Parametres!$K$2:$Y$25,6,TRUE) -> 2 | L8: Nombre | M8: =HLOOKUP($J$2,Parametres!$AB$2:$AO$25,6,TRUE) -> 2 | P8: Nombre | Q8: =HLOOKUP($Q$2,Parametres!$K$2:$Y$25,6,TRUE) -> 1 | S8: Nombre | T8: =HLOOKUP($Q$2,Parametres!$AB$2:$AO$25,6,TRUE) -> 1 | AG8: Résultat : | AH8: =IF(OR(AH4="",AH5="",AH7=""),0,((3*AH6)+(2*AH4))/(2*AH4)*AH7-AH7) -> 0 | AI8: =IF(OR(AH4="",AH5="",AH7=""),"",((3*AH6)+(2*AH4))/(2*AH4)*AH7) ->  | AJ8: =IF(AH8="","",AI8-AH8) -> 
A9: Nombres de Haubans | B9: =IF(B6="Câble",$J$8,IF(B6="Rigide",$M$8,0)) -> 2 | C9: =IF(C6="Câble",$Q$8,IF(C6="Rigide",$T$8,0)) -> 0 | I9: Plan | J9: =HLOOKUP($J$2,Parametres!$K$2:$Y$25,7,TRUE) -> 37550 | L9: Plan | M9: =HLOOKUP($J$2,Parametres!$AB$2:$AO$25,7,TRUE) -> 37550 | P9: Plan | Q9: =HLOOKUP($Q$2,Parametres!$K$2:$Y$25,7,TRUE) -> 37560 | S9: Plan | T9: =HLOOKUP($Q$2,Parametres!$AB$2:$AO$25,7,TRUE) -> 37530 | V9: Longueur Hauban Ancrage Surélevé
A10: Cotés de l'Ancrage | B10: =Carac1 -> Droit | C10: =Carac2 -> Gauche | I10: Repère | J10: =HLOOKUP($J$2,Parametres!$K$2:$Y$25,8,TRUE) -> 0 | L10: Repère | M10: =HLOOKUP($J$2,Parametres!$AB$2:$AO$25,8,TRUE) -> 0 | P10: Repère | Q10: =HLOOKUP($Q$2,Parametres!$K$2:$Y$25,8,TRUE) -> 103 | S10: Repère | T10: =HLOOKUP($Q$2,Parametres!$AB$2:$AO$25,8,TRUE) -> 0 | W10: Ancrage 1 | X10: Ancrage 2 | Y10: Jumelles 1 | Z10: Jumelles 2
A11: Hauteur Anc 1 | B11: =IF(HAnca1="","",HAnca1+IF($B$51=Q68,VLOOKUP(PlanATa1,Résultats!$Q$65:$S$66,3,FALSE),IF($B$52=Q68,VLOOKUP(PlanATa2,Résultats!$Q$65:$S$66,3,FALSE),0))) -> 7.45 | C11: =IF(HAncb1="","",HAncb1+IF($C$51=Q68,VLOOKUP(PlanATb1,Résultats!$Q$65:$S$66,3,FALSE),IF($C$52=Q68,VLOOKUP(PlanATb2,Résultats!$Q$65:$S$66,3,FALSE),0))) ->  | I11: Symbole | J11: =HLOOKUP($J$2,Parametres!$K$2:$Y$25,9,TRUE) -> Feuille 11 | L11: Symbole | M11: =HLOOKUP($J$2,Parametres!$AB$2:$AO$25,9,TRUE) -> Feuille 11 | P11: Symbole | Q11: =HLOOKUP($Q$2,Parametres!$K$2:$Y$25,9,TRUE) -> 00986713 | S11: Symbole | T11: =HLOOKUP($Q$2,Parametres!$AB$2:$AO$25,9,TRUE) -> Feuille 11 | V11: Hauteur 1 | W11: =IFERROR(IF($M$9=37530,HLOOKUP(B14-AraseM1,'L Haubans'!$B$11:$G$17,3,TRUE),IF(Résultats!$M$9=37550,HLOOKUP(Résultats!B14-AraseM1,'L Haubans'!$B$11:$G$17,5,TRUE),"")),"") -> 08828740 | X11: =IFERROR(IF($T$9=37530,HLOOKUP(C14-AraseM2,'L Haubans'!$B$11:$G$17,3,TRUE),IF(Résultats!$T$9=37550,HLOOKUP(Résultats!C14-AraseM2,'L Haubans'!$B$11:$G$17,5,TRUE),"")),"") ->  | Y11: =IFERROR(HLOOKUP(B14-AraseM1,'L Haubans'!$B$11:$G$17,7,TRUE),"") -> 00986723 | Z11: =IFERROR(HLOOKUP(C14-AraseM2,'L Haubans'!$B$11:$G$17,7,TRUE),"") -> 
A12: Hauteur Anc 2 | B12: =IF(HAnca2="","",HAnca2+IF($B$51=Q69,VLOOKUP(PlanATa1,Résultats!$Q$65:$S$66,3,FALSE),IF($B$52=Q69,VLOOKUP(PlanATa2,Résultats!$Q$65:$S$66,3,FALSE),0))) -> 6.45 | C12: =IF(HAncb2="","",HAncb2+IF($C$51=Q69,VLOOKUP(PlanATb1,Résultats!$Q$65:$S$66,3,FALSE),IF($C$52=Q69,VLOOKUP(PlanATb2,Résultats!$Q$65:$S$66,3,FALSE),0))) ->  | H12: Massif Api | J12: =HLOOKUP($J$2,Parametres!$K$2:$Y$25,10,TRUE) -> 9 | K12: Massif Api | M12: =HLOOKUP($J$2,Parametres!$AB$2:$AO$25,10,TRUE) -> 9 | O12: Massif Api | Q12: =HLOOKUP($Q$2,Parametres!$K$2:$Y$25,10,TRUE) -> 1 | R12: Massif Api | T12: =HLOOKUP($Q$2,Parametres!$AB$2:$AO$25,10,TRUE) -> 1 | V12: Hauteur 2 | W12: =IFERROR(IF($M$9=37530,HLOOKUP(B15-AraseM1,'L Haubans'!$B$11:$G$17,3,TRUE),IF(Résultats!$M$9=37550,HLOOKUP(Résultats!B15-AraseM1,'L Haubans'!$B$11:$G$17,5,TRUE),"")),"") -> 08828740 | X12: =IFERROR(IF($T$9=37530,HLOOKUP(C15-AraseM2,'L Haubans'!$B$11:$G$17,3,TRUE),IF(Résultats!$T$9=37550,HLOOKUP(Résultats!C15-AraseM2,'L Haubans'!$B$11:$G$17,5,TRUE),"")),"") ->  | Y12: =IFERROR(HLOOKUP(B15-AraseM1,'L Haubans'!$B$11:$G$17,7,TRUE),"") -> 00986722 | Z12: =IFERROR(HLOOKUP(C15-AraseM2,'L Haubans'!$B$11:$G$17,7,TRUE),"") -> 
A13: Hauteur Anc 3 | B13: =IF(HAnca3="","",HAnca3+IF($B$51=Q70,VLOOKUP(PlanATa1,Résultats!$Q$65:$S$66,3,FALSE),IF($B$52=Q70,VLOOKUP(PlanATa2,Résultats!$Q$65:$S$66,3,FALSE),0))) ->  | C13: =IF(HAncb3="","",HAncb3+IF($C$51=Q70,VLOOKUP(PlanATb1,Résultats!$Q$65:$S$66,3,FALSE),IF($C$52=Q70,VLOOKUP(PlanATb2,Résultats!$Q$65:$S$66,3,FALSE),0))) ->  | H13: Etrier | I13: Nombre | J13: =HLOOKUP($J$2,Parametres!$K$2:$Y$25,11,TRUE) -> 2 | K13: Etrier | L13: Nombre | M13: =HLOOKUP($J$2,Parametres!$AB$2:$AO$25,11,TRUE) -> 2 | O13: Etrier | P13: Nombre | Q13: =HLOOKUP($Q$2,Parametres!$K$2:$Y$25,11,TRUE) -> 1 | R13: Etrier | S13: Nombre | T13: =HLOOKUP($Q$2,Parametres!$AB$2:$AO$25,11,TRUE) -> 1 | V13: Hauteur 3 | W13: =IFERROR(IF($M$9=37530,HLOOKUP(B16-AraseM1,'L Haubans'!$B$11:$G$17,3,TRUE),IF(Résultats!$M$9=37550,HLOOKUP(Résultats!B16-AraseM1,'L Haubans'!$B$11:$G$17,5,TRUE),"")),"") ->  | X13: =IFERROR(IF($T$9=37530,HLOOKUP(C16-AraseM2,'L Haubans'!$B$11:$G$17,3,TRUE),IF(Résultats!$T$9=37550,HLOOKUP(Résultats!C16-AraseM2,'L Haubans'!$B$11:$G$17,5,TRUE),"")),"") ->  | Y13: =IFERROR(HLOOKUP(B16-AraseM1,'L Haubans'!$B$11:$G$17,7,TRUE),"") ->  | Z13: =IFERROR(HLOOKUP(C16-AraseM2,'L Haubans'!$B$11:$G$17,7,TRUE),"") -> 
A14: Hauteur Ancrage Hauban 1 | B14: =IF(MassifAnc1="Aucun","",IF(HHauba1="","",IF(HHauba1=HAnca1,Résultats!$B$11,IF(HHauba1=HAnca2,Résultats!$B$12,IF(HHauba1=HAnca3,Résultats!$B$13,HHauba1))))) -> 7.45 | C14: =IF(MassifAnc2="Aucun","",IF(HHaubb1="","",IF(HHaubb1=HAncb1,Résultats!$C$11,IF(HHaubb1=HAncb2,Résultats!$C$12,IF(HHaubb1=HAncb3,Résultats!$C$13,HHaubb1))))) ->  | D14: Par rapport au sol | I14: Longueur (m) | J14: =HLOOKUP($J$2,Parametres!$K$2:$Y$25,12,TRUE) -> 2.6 | L14: Longueur (m) | M14: =HLOOKUP($J$2,Parametres!$AB$2:$AO$25,12,TRUE) -> 2.6 | P14: Longueur (m) | Q14: =HLOOKUP($Q$2,Parametres!$K$2:$Y$25,12,TRUE) -> 2 | S14: Longueur (m) | T14: =HLOOKUP($Q$2,Parametres!$AB$2:$AO$25,12,TRUE) -> 2 | V14: Hauteur 4 | W14: =IFERROR(IF($M$9=37530,HLOOKUP(B17-AraseM1,'L Haubans'!$B$11:$G$17,3,TRUE),IF(Résultats!$M$9=37550,HLOOKUP(Résultats!B17-AraseM1,'L Haubans'!$B$11:$G$17,5,TRUE),"")),"") ->  | X14: =IFERROR(IF($T$9=37530,HLOOKUP(C17-AraseM2,'L Haubans'!$B$11:$G$17,3,TRUE),IF(Résultats!$T$9=37550,HLOOKUP(Résultats!C17-AraseM2,'L Haubans'!$B$11:$G$17,5,TRUE),"")),"") ->  | Y14: =IFERROR(HLOOKUP(B17-AraseM1,'L Haubans'!$B$11:$G$17,7,TRUE),"") ->  | Z14: =IFERROR(HLOOKUP(C17-AraseM2,'L Haubans'!$B$11:$G$17,7,TRUE),"") -> 
A15: Hauteur Ancrage Hauban 2 | B15: =IF(MassifAnc1="Aucun","",IF(HHauba2="","",IF(HHauba2=HAnca1,Résultats!$B$11,IF(HHauba2=HAnca2,Résultats!$B$12,IF(HHauba2=HAnca3,Résultats!$B$13,HHauba2))))) -> 6.45 | C15: =IF(MassifAnc2="Aucun","",IF(HHaubb2="","",IF(HHaubb2=HAncb1,Résultats!$C$11,IF(HHaubb2=HAncb2,Résultats!$C$12,IF(HHaubb2=HAncb3,Résultats!$C$13,HHaubb2))))) ->  | I15: Repère | J15: =HLOOKUP($J$2,Parametres!$K$2:$Y$25,13,TRUE) -> 39513 | L15: Repère | M15: =HLOOKUP($J$2,Parametres!$AB$2:$AO$25,13,TRUE) -> 39513 | P15: Repère | Q15: =HLOOKUP($Q$2,Parametres!$K$2:$Y$25,13,TRUE) -> 39511 | S15: Repère | T15: =HLOOKUP($Q$2,Parametres!$AB$2:$AO$25,13,TRUE) -> 39511
A16: Hauteur Ancrage Hauban 3 | B16: =IF(MassifAnc1="Aucun","",IF(HHauba3="","",IF(HHauba3=HAnca1,Résultats!$B$11,IF(HHauba3=HAnca2,Résultats!$B$12,IF(HHauba3=HAnca3,Résultats!$B$13,HHauba3))))) ->  | C16: =IF(MassifAnc2="Aucun","",IF(HHaubb3="","",IF(HHaubb3=HAncb1,Résultats!$C$11,IF(HHaubb3=HAncb2,Résultats!$C$12,IF(HHaubb3=HAncb3,Résultats!$C$13,HHaubb3))))) ->  | I16: Symbole | J16: =HLOOKUP($J$2,Parametres!$K$2:$Y$25,14,TRUE) -> 08828922 | L16: Symbole | M16: =HLOOKUP($J$2,Parametres!$AB$2:$AO$25,14,TRUE) -> 08828922 | P16: Symbole | Q16: =HLOOKUP($Q$2,Parametres!$K$2:$Y$25,14,TRUE) -> 08828920 | S16: Symbole | T16: =HLOOKUP($Q$2,Parametres!$AB$2:$AO$25,14,TRUE) -> 08828920
A17: Hauteur Ancrage Hauban 4 | B17: =IF(MassifAnc1="Aucun","",IF(HHauba4="","",IF(HHauba4=HAnca1,Résultats!$B$11,IF(HHauba4=HAnca2,Résultats!$B$12,IF(HHauba4=HAnca3,Résultats!$B$13,HHauba4))))) ->  | C17: =IF(MassifAnc2="Aucun","",IF(HHaubb4="","",IF(HHaubb4=HAncb1,Résultats!$C$11,IF(HHaubb4=HAncb2,Résultats!$C$12,IF(HHaubb4=HAncb3,Résultats!$C$13,HHaubb4))))) ->  | H17: Massif Apns | J17: =HLOOKUP($J$2,Parametres!$K$2:$Y$25,15,TRUE) -> 9 | K17: Massif Apns | M17: =HLOOKUP($J$2,Parametres!$AB$2:$AO$25,15,TRUE) -> 9 | O17: Massif Apns | Q17: =HLOOKUP($Q$2,Parametres!$K$2:$Y$25,15,TRUE) -> 1 | R17: Massif Apns | T17: =HLOOKUP($Q$2,Parametres!$AB$2:$AO$25,15,TRUE) -> 1 | V17: Longueur Hauban Ancrage Cylindrique
A18: Distance Massif | B18: =MassifD1 -> 7 | C18: =MassifD2 -> 0 | H18: Poutrelle d'ancrage | I18: Plan | J18: =HLOOKUP($J$2,Parametres!$K$2:$Y$25,16,TRUE) -> 20284 | K18: Poutrelle d'ancrage | L18: Plan | M18: =HLOOKUP($J$2,Parametres!$AB$2:$AO$25,16,TRUE) -> 20284 | O18: Poutrelle d'ancrage | P18: Plan | Q18: =HLOOKUP($Q$2,Parametres!$K$2:$Y$25,16,TRUE) -> 20280 | R18: Poutrelle d'ancrage | S18: Plan | T18: =HLOOKUP($Q$2,Parametres!$AB$2:$AO$25,16,TRUE) -> 20280 | W18: Ancrage 1 | X18: Ancrage 2 | Y18: Jumelles 1 | Z18: Jumelles 2
I19: Repère | J19: =HLOOKUP($J$2,Parametres!$K$2:$Y$25,17,TRUE) -> 0 | L19: Repère | M19: =HLOOKUP($J$2,Parametres!$AB$2:$AO$25,17,TRUE) -> 0 | P19: Repère | Q19: =HLOOKUP($Q$2,Parametres!$K$2:$Y$25,17,TRUE) -> 20281 | S19: Repère | T19: =HLOOKUP($Q$2,Parametres!$AB$2:$AO$25,17,TRUE) -> 20281 | V19: Hauteur 1 | W19: =IFERROR(IF($M$31=37530,HLOOKUP(B14-AraseM1,'L Haubans'!$B$21:$L$27,3,TRUE),IF($M$31=37550,HLOOKUP(B14-AraseM1,'L Haubans'!$B$21:$L$27,5,TRUE),"")),"") ->  | X19: =IFERROR(IF($T$31=37530,HLOOKUP(C14-AraseM2,'L Haubans'!$B$21:$L$27,3,TRUE),IF($T$31=37550,HLOOKUP(C14-AraseM2,'L Haubans'!$B$21:$L$27,5,TRUE),"")),"") ->  | Y19: =IFERROR(HLOOKUP(B14-AraseM1,'L Haubans'!$B$21:$L$27,7,TRUE),"") -> 00986722 | Z19: =IFERROR(HLOOKUP(C14-AraseM2,'L Haubans'!$B$21:$L$27,7,TRUE),"") -> 
B20: Ancrage Normaux "Api" | I20: Symbole | J20: =HLOOKUP($J$2,Parametres!$K$2:$Y$25,18,TRUE) -> 08820509 | L20: Symbole | M20: =HLOOKUP($J$2,Parametres!$AB$2:$AO$25,18,TRUE) -> 08820509 | P20: Symbole | Q20: =HLOOKUP($Q$2,Parametres!$K$2:$Y$25,18,TRUE) -> 08850445 | S20: Symbole | T20: =HLOOKUP($Q$2,Parametres!$AB$2:$AO$25,18,TRUE) -> 08850445 | V20: Hauteur 2 | W20: =IFERROR(IF($M$31=37530,HLOOKUP(B15-AraseM1,'L Haubans'!$B$21:$L$27,3,TRUE),IF($M$31=37550,HLOOKUP(B15-AraseM1,'L Haubans'!$B$21:$L$27,5,TRUE),"")),"") ->  | X20: =IFERROR(IF($T$31=37530,HLOOKUP(C15-AraseM2,'L Haubans'!$B$21:$L$27,3,TRUE),IF($T$31=37550,HLOOKUP(C15-AraseM2,'L Haubans'!$B$21:$L$27,5,TRUE),"")),"") ->  | Y20: =IFERROR(HLOOKUP(B15-AraseM1,'L Haubans'!$B$21:$L$27,7,TRUE),"") -> 00986721 | Z20: =IFERROR(HLOOKUP(C15-AraseM2,'L Haubans'!$B$21:$L$27,7,TRUE),"") -> 
A21: Resultats des haubans | B21: Ancrage 1 | C21: Ancrage 2 | H21: Semmelle d'appui | I21: Nombre | J21: =HLOOKUP($J$2,Parametres!$K$2:$Y$25,19,TRUE) -> 4 | K21: Semmelle d'appui | L21: Nombre | M21: =HLOOKUP($J$2,Parametres!$AB$2:$AO$25,19,TRUE) -> 4 | O21: Semmelle d'appui | P21: Nombre | Q21: =HLOOKUP($Q$2,Parametres!$K$2:$Y$25,19,TRUE) -> 2 | R21: Semmelle d'appui | S21: Nombre | T21: =HLOOKUP($Q$2,Parametres!$AB$2:$AO$25,19,TRUE) -> 2 | V21: Hauteur 3 | W21: =IFERROR(IF($M$31=37530,HLOOKUP(B16-AraseM1,'L Haubans'!$B$21:$L$27,3,TRUE),IF($M$31=37550,HLOOKUP(B16-AraseM1,'L Haubans'!$B$21:$L$27,5,TRUE),"")),"") ->  | X21: =IFERROR(IF($T$31=37530,HLOOKUP(C16-AraseM2,'L Haubans'!$B$21:$L$27,3,TRUE),IF($T$31=37550,HLOOKUP(C16-AraseM2,'L Haubans'!$B$21:$L$27,5,TRUE),"")),"") ->  | Y21: =IFERROR(HLOOKUP(B16-AraseM1,'L Haubans'!$B$21:$L$27,7,TRUE),"") ->  | Z21: =IFERROR(HLOOKUP(C16-AraseM2,'L Haubans'!$B$21:$L$27,7,TRUE),"") -> 
A22: Hauban 1 | B22: =IF(AND($B$6="câble",$J$7="câble"),$J$11,IF(AND($B$6="câble",$J$7<>"câble"),W3,IF($B$6="Rigide",W3,""))) -> 08828752 | C22: =IF(AND($C$6="câble",$Q$7="câble"),$Q$11,IF(AND($C$6="câble",$Q$7<>"câble"),X3,IF($C$6="Rigide",X3,""))) ->  | I22: Symbole | J22: =HLOOKUP($J$2,Parametres!$K$2:$Y$25,20,TRUE) -> 08828842 | L22: Symbole | M22: =HLOOKUP($J$2,Parametres!$AB$2:$AO$25,20,TRUE) -> 08828842 | P22: Symbole | Q22: =HLOOKUP($Q$2,Parametres!$K$2:$Y$25,20,TRUE) -> 08828842 | S22: Symbole | T22: =HLOOKUP($Q$2,Parametres!$AB$2:$AO$25,20,TRUE) -> 08828842 | V22: Hauteur 4 | W22: =IFERROR(IF($M$31=37530,HLOOKUP(B17-AraseM1,'L Haubans'!$B$21:$L$27,3,TRUE),IF($M$31=37550,HLOOKUP(B17-AraseM1,'L Haubans'!$B$21:$L$27,5,TRUE),"")),"") ->  | X22: =IFERROR(IF($T$31=37530,HLOOKUP(C17-AraseM2,'L Haubans'!$B$21:$L$27,3,TRUE),IF($T$31=37550,HLOOKUP(C17-AraseM2,'L Haubans'!$B$21:$L$27,5,TRUE),"")),"") ->  | Y22: =IFERROR(HLOOKUP(B17-AraseM1,'L Haubans'!$B$21:$L$27,7,TRUE),"") ->  | Z22: =IFERROR(HLOOKUP(C17-AraseM2,'L Haubans'!$B$21:$L$27,7,TRUE),"") -> 
A23: Hauban 2 | B23: =IF(AND($B$6="câble",$J$7="câble"),$J$11,IF(AND($B$6="câble",$J$7<>"câble"),W4,IF($B$6="Rigide",W4,""))) -> 08828752 | C23: =IF(AND($C$6="câble",$Q$7="câble"),$Q$11,IF(AND($C$6="câble",$Q$7<>"câble"),X4,IF($C$6="Rigide",X4,""))) ->  | H23: Cuvette | I23: Nombre | J23: =HLOOKUP($J$2,Parametres!$K$2:$Y$25,21,TRUE) -> 4 | K23: Cuvette | L23: Nombre | M23: =HLOOKUP($J$2,Parametres!$AB$2:$AO$25,21,TRUE) -> 4 | O23: Cuvette | P23: Nombre | Q23: =HLOOKUP($Q$2,Parametres!$K$2:$Y$25,21,TRUE) -> 2 | R23: Cuvette | S23: Nombre | T23: =HLOOKUP($Q$2,Parametres!$AB$2:$AO$25,21,TRUE) -> 2
A24: Hauban 3 | B24: =IF(AND($B$6="câble",$J$7="câble"),$J$11,IF(AND($B$6="câble",$J$7<>"câble"),W5,IF($B$6="Rigide",W5,""))) ->  | C24: =IF(AND($C$6="câble",$Q$7="câble"),$Q$11,IF(AND($C$6="câble",$Q$7<>"câble"),X5,IF($C$6="Rigide",X5,""))) ->  | I24: Symbole | J24: =HLOOKUP($J$2,Parametres!$K$2:$Y$25,22,TRUE) -> 08828552 | L24: Symbole | M24: =HLOOKUP($J$2,Parametres!$AB$2:$AO$25,22,TRUE) -> 08828552 | P24: Symbole | Q24: =HLOOKUP($Q$2,Parametres!$K$2:$Y$25,22,TRUE) -> 08828552 | S24: Symbole | T24: =HLOOKUP($Q$2,Parametres!$AB$2:$AO$25,22,TRUE) -> 08828552 | V24: Ancrage des haubans sur le support
A25: Hauban 4 | B25: =IF(AND($B$6="câble",$J$7="câble"),$J$11,IF(AND($B$6="câble",$J$7<>"câble"),W6,IF($B$6="Rigide",W6,""))) ->  | C25: =IF(AND($C$6="câble",$Q$7="câble"),$Q$11,IF(AND($C$6="câble",$Q$7<>"câble"),X6,IF($C$6="Rigide",X6,""))) ->  | H25: Tiges filetees | I25: Nombre | J25: =HLOOKUP($J$2,Parametres!$K$2:$Y$25,23,TRUE) -> 4 | K25: Tiges filetees | L25: Nombre | M25: =HLOOKUP($J$2,Parametres!$AB$2:$AO$25,23,TRUE) -> 4 | O25: Tiges filetees | P25: Nombre | Q25: =HLOOKUP($Q$2,Parametres!$K$2:$Y$25,23,TRUE) -> 2 | R25: Tiges filetees | S25: Nombre | T25: =HLOOKUP($Q$2,Parametres!$AB$2:$AO$25,23,TRUE) -> 2 | W25: Ancrage 1 | Y25: Ancrage 2 | AA25: 25 kV | AB25: 08850900 | AC25: 222210 | AD25: Catenaire
I26: Symbole | J26: =HLOOKUP($J$2,Parametres!$K$2:$Y$25,24,TRUE) -> 08800300 | L26: Symbole | M26: =HLOOKUP($J$2,Parametres!$AB$2:$AO$25,24,TRUE) -> 08800300 | P26: Symbole | Q26: =HLOOKUP($Q$2,Parametres!$K$2:$Y$25,24,TRUE) -> 08800300 | S26: Symbole | T26: =HLOOKUP($Q$2,Parametres!$AB$2:$AO$25,24,TRUE) -> 08800300 | V26: Hauban 1 | W26: =IF(HHauba1="","N",IF($A$1="25 kV","08850905",IF($A$1="1500 V","08820565",IF($A$1="Autre","A définir","")))) -> 08820565 | X26: =IF(OR(B14=$B$11,B14=$B$12,B14=$B$13),"H=","H/") -> H= | Y26: =IF(HHaubb1="","N",IF($A$1="25 kV","08850905",IF($A$1="1500 V","08820565",IF($A$1="Autre","A définir","")))) -> N | Z26: =IF(OR(C14=$C$11,C14=$C$12,C14=$C$13),"H=","H/") -> H= | AB26: 08850905 | AC26: 222211 | AD26: Hauban
B27: Ancrage Surelevé "Apns" | V27: Hauban 2 | W27: =IF(HHauba2="","N",IF(B9=1,"N",IF($A$1="25 kV","08850905",IF($A$1="1500 V","08820565",IF($A$1="Autre","A définir",""))))) -> 08820565 | X27: =IF(W27="N","H/",IF(OR(B15=$B$11,B15=$B$12,B15=$B$13),"H=","H/")) -> H= | Y27: =IF(HHaubb2="","N",IF($C$9=1,"N",IF($A$1="25 kV","08850905",IF($A$1="1500 V","08820565",IF($A$1="Autre","A définir",""))))) -> N | Z27: =IF(Y27="N","H/",IF(OR(C15=$C$11,C15=$C$12,C15=$C$13),"H=","H/")) -> H/ | AA27: 1500 V | AB27: 08820583 | AC27: 22173 | AD27: Catenaire
A28: Resultats des haubans | B28: Ancrage 1 | C28: Ancrage 2 | H28: Massif Acn | J28: =HLOOKUP(J2,Parametres!$K$28:$O$44,2,TRUE) -> Trop efforts | K28: Massif Acn | M28: =HLOOKUP(J2,Parametres!$S$28:$W$44,2,TRUE) -> Trop efforts | O28: Massif Acn | Q28: =HLOOKUP(Q2,Parametres!$K$28:$O$44,2,TRUE) -> 1 | R28: Massif Acn | T28: =HLOOKUP(Q2,Parametres!$S$28:$W$44,2,TRUE) -> 1 | V28: Hauban 3 | W28: =IF(HHauba3="","N",IF($B$9>2,IF($A$1="25 kV","08850905",IF($A$1="1500 V","08820565",IF($A$1="Autre","A définir",""))),"N")) -> N | X28: =IF(W28="N","H/",IF(OR(B16=$B$11,B16=$B$12,B16=$B$13),"H=","H/")) -> H/ | Y28: =IF(HHaubb3="","N",IF($C$9>2,IF($A$1="25 kV","08850905",IF($A$1="1500 V","08820565",IF($A$1="Autre","A définir",""))),"N")) -> N | Z28: =IF(Y28="N","H/",IF(OR(C16=$C$11,C16=$C$12,C16=$C$13),"H=","H/")) -> H/ | AB28: 08820565 | AC28: 22155 | AD28: Hauban
A29: Hauban 1 | B29: =IF(AND($B$6="câble",$J$7="câble"),$J$11,IF(AND($B$6="câble",$J$7<>"câble"),W11,IF($B$6="Rigide",W11,""))) -> 08828740 | C29: =IF(AND($C$6="câble",$Q$7="câble"),$Q$11,IF(AND($C$6="câble",$Q$7<>"câble"),X11,IF($C$6="Rigide",X11,""))) ->  | H29: Hauban | I29: Ø (mm) | J29: =HLOOKUP(J2,Parametres!$K$28:$O$44,3,TRUE) -> 0 | K29: Hauban | L29: Ø (mm) | M29: =HLOOKUP(J2,Parametres!$S$28:$W$44,3,TRUE) -> 0 | O29: Hauban | P29: Ø (mm) | Q29: =HLOOKUP(Q2,Parametres!$K$28:$O$44,3,TRUE) -> Câble | R29: Hauban | S29: Ø (mm) | T29: =HLOOKUP(Q2,Parametres!$S$28:$W$44,3,TRUE) -> 30 | V29: Hauban 4 | W29: =IF(HHauba4="","N",IF($B$9<>4,"N",IF($A$1="25 kV","08850905",IF($A$1="1500 V","08820565",IF($A$1="Autre","A définir",""))))) -> N | X29: =IF(W29="N","H/",IF(OR(B17=$B$11,B17=$B$12,B17=$B$13),"H=","H/")) -> H/ | Y29: =IF(HHaubb4="","N",IF($C$9<>4,"N",IF($A$1="25 kV","08850905",IF($A$1="1500 V","08820565",IF($A$1="Autre","A définir",""))))) -> N | Z29: =IF(Y29="N","H/",IF(OR(C17=$C$11,C17=$C$12,C17=$C$13),"H=","H/")) -> H/
A30: Hauban 2 | B30: =IF(AND($B$6="câble",$J$7="câble"),$J$11,IF(AND($B$6="câble",$J$7<>"câble"),W12,IF($B$6="Rigide",W12,""))) -> 08828740 | C30: =IF(AND($C$6="câble",$Q$7="câble"),$Q$11,IF(AND($C$6="câble",$Q$7<>"câble"),X12,IF($C$6="Rigide",X12,""))) ->  | I30: Nombre | J30: =HLOOKUP(J2,Parametres!$K$28:$O$44,4,TRUE) -> 0 | L30: Nombre | M30: =HLOOKUP(J2,Parametres!$S$28:$W$44,4,TRUE) -> 0 | P30: Nombre | Q30: =HLOOKUP(Q2,Parametres!$K$28:$O$44,4,TRUE) -> 1 | S30: Nombre | T30: =HLOOKUP(Q2,Parametres!$S$28:$W$44,4,TRUE) -> 1
A31: Hauban 3 | I31: Plan | J31: =HLOOKUP(J2,Parametres!$K$28:$O$44,5,TRUE) -> 0 | L31: Plan | M31: =HLOOKUP(J2,Parametres!$S$28:$W$44,5,TRUE) -> 0 | P31: Plan | Q31: =HLOOKUP(Q2,Parametres!$K$28:$O$44,5,TRUE) -> 37560 | S31: Plan | T31: =HLOOKUP(Q2,Parametres!$S$28:$W$44,5,TRUE) -> 37530 | V31: Ancrages sur le support des CAT
A32: Hauban 4 | I32: Repère | J32: =HLOOKUP(J2,Parametres!$K$28:$O$44,6,TRUE) -> 0 | L32: Repère | M32: =HLOOKUP(J2,Parametres!$S$28:$W$44,6,TRUE) -> 0 | P32: Repère | Q32: =HLOOKUP(Q2,Parametres!$K$28:$O$44,6,TRUE) -> 103 | S32: Repère | T32: =HLOOKUP(Q2,Parametres!$S$28:$W$44,6,TRUE) -> 0 | W32: Ancrage 1 | Y32: Ancrage 2
I33: Symbole | J33: =HLOOKUP(J2,Parametres!$K$28:$O$44,7,TRUE) -> Trop efforts | L33: Symbole | M33: =HLOOKUP(J2,Parametres!$S$28:$W$44,7,TRUE) -> Trop efforts | P33: Symbole | Q33: =HLOOKUP(Q2,Parametres!$K$28:$O$44,7,TRUE) -> 00986713 | S33: Symbole | T33: =HLOOKUP(Q2,Parametres!$S$28:$W$44,7,TRUE) -> Feuille 12 | V33: Ancrage 1 | W33: =IF(B11="","N",IF($A$1="25 kV","08850900",IF($A$1="1500 V","08820583",IF(A1="Autre","A definir","N")))) -> 08820583 | Y33: =IF(C11="","N",IF($A$1="25 kV","08850900",IF($A$1="1500 V","08820583",IF(A1="Autre","A definir","N")))) -> N
B34: Ancrage Surelevé "Acn" | H34: Etrier | I34: Ø (mm) | J34: =HLOOKUP(J2,Parametres!$K$28:$O$44,8,TRUE) -> 0 | K34: Etrier | L34: Ø (mm) | M34: =HLOOKUP(J2,Parametres!$S$28:$W$44,8,TRUE) -> 0 | O34: Etrier | P34: Ø (mm) | Q34: =HLOOKUP(Q2,Parametres!$K$28:$O$44,8,TRUE) -> 27 | R34: Etrier | S34: Ø (mm) | T34: =HLOOKUP(Q2,Parametres!$S$28:$W$44,8,TRUE) -> 27 | V34: Ancrage 2 | W34: =IF(B12="","N",IF($A$1="25 kV","08850900",IF($A$1="1500 V","08820583",IF(A2="Autre","A definir","N")))) -> 08820583 | Y34: =IF(C12="","N",IF($A$1="25 kV","08850900",IF($A$1="1500 V","08820583",IF(A2="Autre","A definir","N")))) -> N
A35: Resultats des haubans | B35: Ancrage 1 | C35: Ancrage 2 | I35: Nombre | J35: =HLOOKUP(J2,Parametres!$K$28:$O$44,9,TRUE) -> 0 | L35: Nombre | M35: =HLOOKUP(J2,Parametres!$S$28:$W$44,9,TRUE) -> 0 | P35: Nombre | Q35: =HLOOKUP(Q2,Parametres!$K$28:$O$44,9,TRUE) -> 1 | S35: Nombre | T35: =HLOOKUP(Q2,Parametres!$S$28:$W$44,9,TRUE) -> 1 | V35: Ancrage 3 | W35: N | Y35: N
A36: Hauban 1 | B36: =IF(AND($B$6="câble",$J$7="câble"),$J$11,IF(AND($B$6="câble",$J$7<>"câble"),W19,IF($B$6="Rigide",W19,""))) ->  | C36: =IF(AND($C$6="câble",$Q$7="câble"),$Q$11,IF(AND($C$6="câble",$Q$7<>"câble"),X19,IF($C$6="Rigide",X19,""))) ->  | I36: Plan | J36: =HLOOKUP(J2,Parametres!$K$28:$O$44,10,TRUE) -> 0 | L36: Plan | M36: =HLOOKUP(J2,Parametres!$S$28:$W$44,10,TRUE) -> 0 | P36: Plan | Q36: =HLOOKUP(Q2,Parametres!$K$28:$O$44,10,TRUE) -> 239527 | S36: Plan | T36: =HLOOKUP(Q2,Parametres!$S$28:$W$44,10,TRUE) -> 239527
A37: Hauban 2 | B37: =IF(AND($B$6="câble",$J$7="câble"),$J$11,IF(AND($B$6="câble",$J$7<>"câble"),W20,IF($B$6="Rigide",W20,""))) ->  | C37: =IF(AND($C$6="câble",$Q$7="câble"),$Q$11,IF(AND($C$6="câble",$Q$7<>"câble"),X20,IF($C$6="Rigide",X20,""))) ->  | I37: Symbole | J37: =HLOOKUP(J2,Parametres!$K$28:$O$44,11,TRUE) -> Trop efforts | L37: Symbole | M37: =HLOOKUP(J2,Parametres!$S$28:$W$44,11,TRUE) -> Trop efforts | P37: Symbole | Q37: =HLOOKUP(Q2,Parametres!$K$28:$O$44,11,TRUE) -> 08858855 | S37: Symbole | T37: =HLOOKUP(Q2,Parametres!$S$28:$W$44,11,TRUE) -> 08858855 | V37: Variables des Ancrages
A38: Hauban 3 | H38: Pièce de reglage | I38: Nombre | J38: =HLOOKUP(J2,Parametres!$K$28:$O$44,12,TRUE) -> 0 | K38: Pièce de reglage | L38: Nombre | M38: =HLOOKUP(J2,Parametres!$S$28:$W$44,12,TRUE) -> 0 | O38: Pièce de reglage | P38: Nombre | Q38: =HLOOKUP(Q2,Parametres!$K$28:$O$44,12,TRUE) -> 1 | R38: Pièce de reglage | S38: Nombre | T38: =HLOOKUP(Q2,Parametres!$S$28:$W$44,12,TRUE) -> 1 | V38: Ancrage 1 | X38: Ancrage2 | AB38: Ancrage 1 | AC38: Ancrage 2
A39: Hauban 4 | I39: Plan | J39: =HLOOKUP(J2,Parametres!$K$28:$O$44,13,TRUE) -> 0 | L39: Plan | M39: =HLOOKUP(J2,Parametres!$S$28:$W$44,13,TRUE) -> 0 | P39: Plan | Q39: =HLOOKUP(Q2,Parametres!$K$28:$O$44,13,TRUE) -> 37605 | S39: Plan | T39: =HLOOKUP(Q2,Parametres!$S$28:$W$44,13,TRUE) -> 37605 | V39: =IF(W39="",0,1) -> 1 | W39: =IF(AB39<>"",AA39,"") -> Hauban 1 | X39: =IF(Y39="",0,1) -> 0 | Y39: =IF(AC39<>"",IF(IFERROR(VLOOKUP(AA39,$AB$39:$AB$42,1,FALSE),FALSE)=AA39,"",AA39),"") ->  | AA39: Hauban 1 | AB39: =IF(MassifAnc1="Aucun","",IF(HHauba1="","",IF(HHauba1=HAnca1,"Ancrage 1",IF(HHauba1=HAnca2,"Ancrage 2",IF(HHauba1=HAnca3,"Ancrage 3",IF(HHauba1=HHaubb1,"Hauban 1",IF(HHauba1=HHaubb2,"Hauban 2",IF(HHauba1=HHaubb3,"Hauban 3",IF(HHauba1=HHaubb4,"Hauban 4","N"))))))))) -> Ancrage 1 | AC39: =IF(MassifAnc2="Aucun","",IF($C$4="N","",IF(HHaubb1<>"",IF(HHaubb1=HAncb1,"Ancrage 1",IF(HHaubb1=HAncb2,"Ancrage 2",IF(HHaubb1=HAncb3,"Ancrage 3",IF(HHaubb1=HHauba1,"Hauban 1",IF(HHaubb1=HHauba2,"Hauban 2",IF(HHaubb1=HHauba3,"Hauban 3",IF(HHaubb1=HHauba4,"Hauban 4","N"))))))),""))) -> 
I40: Symbole | J40: =HLOOKUP(J2,Parametres!$K$28:$O$44,14,TRUE) -> Trop efforts | L40: Symbole | M40: =HLOOKUP(J2,Parametres!$S$28:$W$44,14,TRUE) -> Trop efforts | P40: Symbole | Q40: =HLOOKUP(Q2,Parametres!$K$28:$O$44,14,TRUE) -> 08828805 | S40: Symbole | T40: =HLOOKUP(Q2,Parametres!$S$28:$W$44,14,TRUE) -> 08828805 | V40: =IF(W40<>"",V39+1,IF(V39<1,0,V39)) -> 2 | W40: Hauban 2 | X40: =IF(Y40<>"",X39+1,IF(X39<1,0,X39)) -> 0 | Y40: =IF(AC40<>"",IF(IFERROR(VLOOKUP(AA40,$AB$39:$AB$42,1,FALSE),FALSE)=AA40,"",AA40),"") ->  | AA40: Hauban 2 | AB40: =IF(MassifAnc1="Aucun","",IF(HHauba2="","",IF(HHauba2=HAnca1,"Ancrage 1",IF(HHauba2=HAnca2,"Ancrage 2",IF(HHauba2=HAnca3,"Ancrage 3",IF(HHauba2=HHaubb1,"Hauban 1",IF(HHauba2=HHaubb2,"Hauban 2",IF(HHauba2=HHaubb3,"Hauban 3",IF(HHauba2=HHaubb4,"Hauban 4","N"))))))))) -> Ancrage 2 | AC40: =IF(MassifAnc2="Aucun","",IF($C$4="N","",IF(HHaubb2<>"",IF(HHaubb2=HAncb1,"Ancrage 1",IF(HHaubb2=HAncb2,"Ancrage 2",IF(HHaubb2=HAncb3,"Ancrage 3",IF(HHaubb2=HHauba1,"Hauban 1",IF(HHaubb2=HHauba2,"Hauban 2",IF(HHaubb2=HHauba3,"Hauban 3",IF(HHaubb2=HHauba4,"Hauban 4","N"))))))),""))) -> 
B41: Ancrage 1 | C41: Ancrage 2 | H41: Poutrelle | I41: Plan | J41: =HLOOKUP(J2,Parametres!$K$28:$O$44,15,TRUE) -> 0 | K41: Poutrelle | L41: Plan | M41: =HLOOKUP(J2,Parametres!$S$28:$W$44,15,TRUE) -> 0 | O41: Poutrelle | P41: Plan | Q41: =HLOOKUP(Q2,Parametres!$K$28:$O$44,15,TRUE) -> 220108 | R41: Poutrelle | S41: Plan | T41: =HLOOKUP(Q2,Parametres!$S$28:$W$44,15,TRUE) -> 220108 | V41: =IF(W41<>"",V40+1,IF(V40<1,0,V40)) -> 2 | X41: =IF(Y41<>"",X40+1,IF(X40<1,0,X40)) -> 0 | AA41: Hauban 3 | AB41: =IF(MassifAnc1="Aucun","",IF(HHauba3="","",IF(HHauba3=HAnca1,"Ancrage 1",IF(HHauba3=HAnca2,"Ancrage 2",IF(HHauba3=HAnca3,"Ancrage 3",IF(HHauba3=HHaubb1,"Hauban 1",IF(HHauba3=HHaubb2,"Hauban 2",IF(HHauba3=HHaubb3,"Hauban 3",IF(HHauba3=HHaubb4,"Hauban 4","N"))))))))) ->  | AC41: =IF(MassifAnc2="Aucun","",IF($C$4="N","",IF(HHaubb3<>"",IF(HHaubb3=HAncb1,"Ancrage 1",IF(HHaubb3=HAncb2,"Ancrage 2",IF(HHaubb3=HAncb3,"Ancrage 3",IF(HHaubb3=HHauba1,"Hauban 1",IF(HHaubb3=HHauba2,"Hauban 2",IF(HHaubb3=HHauba3,"Hauban 3",IF(HHaubb3=HHauba4,"Hauban 4","N"))))))),""))) -> 
A42: Acier Inox 93² | B42: =IF(AND(B6="Câble",J7="Câble"),SUM(W72:W75),"") ->  | C42: =IF(AND(C6="Câble",Q7="Câble"),SUM(AA72:AA75),"") ->  | I42: Repère | J42: =HLOOKUP(J2,Parametres!$K$28:$O$44,16,TRUE) -> 0 | L42: Repère | M42: =HLOOKUP(J2,Parametres!$S$28:$W$44,16,TRUE) -> 0 | P42: Repère | Q42: =HLOOKUP(Q2,Parametres!$K$28:$O$44,16,TRUE) -> 101 | S42: Repère | T42: =HLOOKUP(Q2,Parametres!$S$28:$W$44,16,TRUE) -> 101 | V42: 2 | X42: 0 | AA42: Hauban 4 | AB42: =IF(MassifAnc1="Aucun","",IF(HHauba4="","",IF(HHauba4=HAnca1,"Ancrage 1",IF(HHauba4=HAnca2,"Ancrage 2",IF(HHauba4=HAnca3,"Ancrage 3",IF(HHauba4=HHaubb1,"Hauban 1",IF(HHauba4=HHaubb2,"Hauban 2",IF(HHauba4=HHaubb3,"Hauban 3",IF(HHauba4=HHaubb4,"Hauban 4","N"))))))))) ->  | AC42: =IF(MassifAnc2="Aucun","",IF($C$4="N","",IF(HHaubb4<>"",IF(HHaubb4=HAncb1,"Ancrage 1",IF(HHaubb4=HAncb2,"Ancrage 2",IF(HHaubb4=HAncb3,"Ancrage 3",IF(HHaubb4=HHauba1,"Hauban 1",IF(HHaubb4=HHauba2,"Hauban 2",IF(HHaubb4=HHauba3,"Hauban 3",IF(HHaubb4=HHauba4,"Hauban 4","N"))))))),""))) -> 
A43: Acier Inox 113² | B43: =IF(AND(B6="Câble",J7="Câble"),SUM(X72:X75),"") ->  | C43: =IF(AND(C6="Câble",Q7="Câble"),SUM(AB72:AB75),"") ->  | I43: Symbole | J43: =HLOOKUP(J2,Parametres!$K$28:$O$44,17,TRUE) -> Trop efforts | L43: Symbole | M43: =HLOOKUP(J2,Parametres!$S$28:$W$44,17,TRUE) -> Trop efforts | P43: Symbole | Q43: =HLOOKUP(Q2,Parametres!$K$28:$O$44,17,TRUE) -> 08850435 | S43: Symbole | T43: =HLOOKUP(Q2,Parametres!$S$28:$W$44,17,TRUE) -> 08850435 | V43: 2 | W43: =IF(AB43<>"",IF(IFERROR(VLOOKUP(AA43,$AB$39:$AB$42,1,FALSE),FALSE)=AA43,"",AA43),"") ->  | X43: 0 | Y43: =IF(AC43<>"",IF(OR(IFERROR(VLOOKUP(AA43,$AC$39:$AC$42,1,FALSE),FALSE)=AA43,IFERROR(VLOOKUP(AA43,$AB$43:$AB$45,1,FALSE),FALSE)=AA43),"",AA43),"") ->  | AA43: Ancrage 1 | AB43: =IF(HAnca1="","",IF(HAnca1=HHauba1,"Hauban 1",IF(HAnca1=HHauba2,"Hauban 2",IF(HAnca1=HHauba3,"Hauban 3",IF(HAnca1=HHauba4,"Hauban 4",IF(HAnca1=HAncb1,"Ancrage 1",IF(HAnca1=HAncb2,"Ancrage 2",IF(HAnca1=HAncb3,"Ancrage 3","N")))))))) -> Hauban 1 | AC43: =IF(OR(C4="N",HAncb1=""),"",IF(HAncb1=HHaubb1,"Hauban 1",IF(HAncb1=HHaubb2,"Hauban 2",IF(HAncb1=HHaubb3,"Hauban 3",IF(HAncb1=HHaubb4,"Hauban 4",IF(HAncb1=HAnca1,"Ancrage 1",IF(HAncb1=HAnca2,"Ancrage 2",IF(HAncb1=HAnca3,"Ancrage 3","N")))))))) -> 
V44: 2 | W44: =IF(AB44<>"",IF(OR(IFERROR(VLOOKUP(AA44,$AB$39:$AB$42,1,FALSE),FALSE)=AA44,IFERROR(VLOOKUP(AA44,$AB$43,1,FALSE),FALSE)=AA44),"",AA44),"") ->  | X44: 0 | Y44: =IF(AC44<>"",IF(OR(IFERROR(VLOOKUP(AA44,$AC$39:$AC$42,1,FALSE),FALSE)=AA44,IFERROR(VLOOKUP(AA44,$AB$43:$AB$45,1,FALSE),FALSE)=AA44),"",AA44),"") ->  | AA44: Ancrage 2 | AB44: =IF(HAnca2="","",IF(HAnca2=HHauba1,"Hauban 1",IF(HAnca2=HHauba2,"Hauban 2",IF(HAnca2=HHauba3,"Hauban 3",IF(HAnca2=HHauba4,"Hauban 4",IF(HAnca2=HAncb1,"Ancrage 1",IF(HAnca2=HAncb2,"Ancrage 2",IF(HAnca2=HAncb3,"Ancrage 3","N")))))))) -> Hauban 2 | AC44: =IF(OR(C5="N",HAncb2=""),"",IF(HAncb2=HHaubb1,"Hauban 1",IF(HAncb2=HHaubb2,"Hauban 2",IF(HAncb2=HHaubb3,"Hauban 3",IF(HAncb2=HHaubb4,"Hauban 4",IF(HAncb2=HAnca1,"Ancrage 1",IF(HAncb2=HAnca2,"Ancrage 2",IF(HAncb2=HAnca3,"Ancrage 3","N")))))))) -> 
A45: Appareil tendeur n°1 | B45: =IF(ATanc1=1,"",VLOOKUP(RepATa1,Matériels!$A$54:$F$993,2,FALSE)) -> 10984102 | C45: =IF(ATanc2="Oui",VLOOKUP(RepATb1,Matériels!$A$54:$F$993,2,FALSE),"") ->  | V45: 2 | W45: =IF(AB45<>"",IF(OR(IFERROR(VLOOKUP(AA45,$AB$39:$AB$42,1,FALSE),FALSE)=AA45,IFERROR(VLOOKUP(AA45,$AB$43:$AB$44,1,FALSE),FALSE)=AA45),"",AA45),"") ->  | X45: 0 | AA45: Ancrage 3 | AB45: =IF(HAnca3="","",IF(HAnca3=HHauba1,"Hauban 1",IF(HAnca3=HHauba2,"Hauban 2",IF(HAnca3=HHauba3,"Hauban 3",IF(HAnca3=HHauba4,"Hauban 4",IF(HAnca3=HAncb1,"Ancrage 1",IF(HAnca3=HAncb2,"Ancrage 2",IF(HAnca3=HAncb3,"Ancrage 3","N")))))))) ->  | AC45: =IF(OR(C6="N",HAncb3=""),"",IF(HAncb3=HHaubb1,"Hauban 1",IF(HAncb3=HHaubb2,"Hauban 2",IF(HAncb3=HHaubb3,"Hauban 3",IF(HAncb3=HHaubb4,"Hauban 4",IF(HAncb3=HAnca1,"Ancrage 1",IF(HAncb3=HAnca2,"Ancrage 2",IF(HAncb3=HAnca3,"Ancrage 3","N")))))))) -> 
A46: Appareil tendeur n°2 | B46: =IFERROR(IF(ATanc1=1,"",VLOOKUP(RepATa2,Matériels!$A$54:$F$993,2,FALSE)),"") ->  | C46: =IFERROR(IF(ATanc2="Oui",VLOOKUP(RepATb2,Matériels!$A$54:$F$993,2,FALSE),""),"") -> 
A47: Conducteur 1 | B47: =IF(OR(I51="",J51=""),"",VLOOKUP(I51&J51,Matériels!$A$3:$F$1004,2,FALSE)) -> 30982805 | C47: =IF(OR(K51="",L51=""),"",VLOOKUP(K51&L51,Matériels!$A$3:$F$1004,2,FALSE)) -> 
A48: Conducteur 2 | B48: =IF(OR(I52="",J52=""),"",VLOOKUP(I52&J52,Matériels!$A$3:$F$1004,2,FALSE)) -> 30982805 | C48: =IF(OR(K52="",L52=""),"",VLOOKUP(K52&L52,Matériels!$A$3:$F$1004,2,FALSE)) ->  | H48: Ancrage Conducteurs | O48: Jumelles | R48: Boulons / TF | T48: Rondelles pour TF | W48: Boulons H | AC48: 9 | AD48: 08800262 | AG48: Rondelles
A49: Conducteur 3 | B49: =IF(OR(I53="",J53=""),"",VLOOKUP(I53&J53,Matériels!$A$3:$F$1004,2,FALSE)) ->  | C49: =IF(OR(K53="",L53=""),"",VLOOKUP(K53&L53,Matériels!$A$3:$F$1004,2,FALSE)) ->  | I49: Ancrage 1 | K49: Ancrage 2 | O49: 00986721 | P49: 120 | R49: Ancrage1 | S49: Ancrage 2 | T49: Ancrage1 | U49: Ancrage 2 | W49: =LEFT(D1,3) -> HEA | X49: Ancrage 1 | AC49: 10 | AD49: 01602026 | AG49: =LEFT(D1,3) -> HEA | AH49: Ancrage 1
I50: Plan | J50: Repere | K50: Plan | L50: Repere | O50: 00986722 | P50: 500 | R50: =IF(W51="","",IF(F1="O","Sommier à définir",IF($A$1="25 kV",Y51,IF($A$1="1500 V",AA51,IF($A$1="Autre","A définir","Erreur"))))) -> 01602487 | S50: =IF(W60="","",IF(F1="O","Sommier à définir",IF($A$1="25 kV",Y60,IF($A$1="1500 V",AA60,IF($A$1="Autre","A définir","Erreur"))))) ->  | T50: =IF(AG51="","",IF($F$1="O","Sommier à définir",IF($A$1="25 kV",AI51,IF($A$1="1500 V",AK51,IF($A$1="Autre","A définir","Erreur"))))) ->  | U50: =IF(AG60="","",IF($F$1="O","Sommier à définir",IF($A$1="25 kV",AI60,IF($A$1="1500 V",AK60,IF($A$1="Autre","A définir","Erreur"))))) ->  | X50: 25 kV | Y50: Symboles | Z50: 1500 V | AA50: Symboles | AC50: 11 | AD50: 01602058 | AH50: 25 kV | AI50: Symboles | AJ50: 1500 V | AK50: Symboles
A51: Position de l'AT n°1 | B51: =IF(AND(ATanc1=2,PtATa1<>"",PlanATa1<>"",RepATa1<>""),PtATa1,"") -> Point n°2 | C51: =IF(AND(ATanc2="Oui",PtATb1<>"",PlanATb1<>"",Tension2<>""),PtATb1,"") ->  | H51: Conducteur 1 | I51: =IF(PlanAnca1="","",PlanAnca1) -> 10985 | J51: =IF(RepAnca1="","",RepAnca1) -> 352 | K51: =IF(PlanAncb1="","",PlanAncb1) ->  | L51: =IF(RepAncb1="","",RepAncb1) ->  | O51: 00986723 | P51: 1000 | R51: =IF(W52="","",IF(F1="O","Sommier à définir",IF($A$1="25 kV",Y52,IF($A$1="1500 V",AA52,IF($A$1="Autre","A définir","Erreur"))))) -> 01602487 | S51: =IF(W61="","",IF(F1="O","Sommier à définir",IF($A$1="25 kV",Y61,IF($A$1="1500 V",AA61,IF($A$1="Autre","A définir","Erreur"))))) ->  | T51: =IF(AG52="","",IF($F$1="O","Sommier à définir",IF($A$1="25 kV",AI52,IF($A$1="1500 V",AK52,IF($A$1="Autre","A définir","Erreur"))))) ->  | U51: =IF(AG61="","",IF($F$1="O","Sommier à définir",IF($A$1="25 kV",AI61,IF($A$1="1500 V",AK61,IF($A$1="Autre","A définir","Erreur"))))) ->  | V51: 1 | W51: =IFERROR(VLOOKUP(V51,$V$39:$W$45,2,FALSE),"") -> Hauban 1 | X51: =IF(W51="","",IF(AND(OR($W$49="JHE",LEFT($W$49,2)="PR"),IFERROR(VLOOKUP(W51,$AA$39:$AC$45,2,FALSE),0)<>"N"),9,IF(AND(OR($W$49="JHE",LEFT($W$49,2)="PR"),IFERROR(VLOOKUP(W51,$AA$39:$AC$45,2,FALSE),0)="N"),9,IF(AND(OR($W$49="HEA",$W$49="HEB"),IFERROR(VLOOKUP(W51,$AA$39:$AC$45,2,FALSE),0)<>"N"),12,IF(AND(OR($W$49="HEA",$W$49="HEB"),IFERROR(VLOOKUP(W51,$AA$39:$AC$45,2,FALSE),0)="N"),10,"ERREUR"))))) -> 12 | Y51: =IFERROR(VLOOKUP(X51,$AC$48:$AD$56,2,FALSE),"") -> 01602108 | Z51: =IF(W51="","",IF(AND($W$49="JHE",IFERROR(VLOOKUP(W51,$AA$39:$AC$45,2,FALSE),0)<>"N"),15,IF(AND(LEFT($W$49,2)="PR",IFERROR(VLOOKUP(W51,$AA$39:$AC$45,2,FALSE),0)<>"N"),9,IF(AND($W$58="JHE",IFERROR(VLOOKUP(W51,$AA$39:$AC$45,2,FALSE),0)="N"),15,IF(AND(LEFT($W$58,2)="PR",IFERROR(VLOOKUP(W51,$AA$39:$AC$45,2,FALSE),0)="N"),9,IF(AND(OR($W$49="HEA",$W$49="HEB"),IFERROR(VLOOKUP(W51,$AA$39:$AC$45,2,FALSE),0)<>"N"),19,IF(AND(OR($W$49="HEA",$W$49="HEB"),IFERROR(VLOOKUP(W51,$AA$39:$AC$45,2,FALSE),0)="N"),18,"ERREUR"))))))) -> 19 | AA51: =IFERROR(VLOOKUP(Z51,$AC$48:$AD$56,2,FALSE),"") -> 01602487 | AC51: 12 | AD51: 01602108 | AF51: 1 | AG51: =IFERROR(VLOOKUP(AF51,$V$39:$W$45,2,FALSE),"") -> Hauban 1 | AH51: =IF(AG51="","",IF(AND($AG$49="JHE",VLOOKUP(AG51,$AA$39:$AC$45,2,FALSE)="N"),20,"")) ->  | AI51: =IFERROR(VLOOKUP(AH51,$AC$48:$AD$58,2,FALSE),"") ->  | AJ51: =IF(AG51="","",IF(AND($AG$49="JHE",VLOOKUP(AG51,$AA$39:$AC$45,2,FALSE)="N"),22,"")) ->  | AK51: =IFERROR(VLOOKUP(AJ51,$AC$48:$AD$58,2,FALSE),"") -> 
A52: Position de l'AT n°2 | B52: =IF(AND(ATanc1=2,PtATa2<>"",PlanATa2<>"",RepATa2<>""),PtATa2,"") ->  | C52: =IF(AND(ATanc2="Oui",PtATb2<>"",PlanATb2<>"",RepATb2<>""),PtATb2,"") ->  | H52: Conducteur 2 | I52: =IF(PlanAnca2="","",PlanAnca2) -> 10985 | J52: =IF(RepAnca2="","",RepAnca2) -> 352 | K52: =IF(PlanAncb2="","",PlanAncb2) ->  | L52: =IF(RepAncb2="","",RepAncb2) ->  | O52: 00986724 | P52: 1500 | R52: =IF(W53="","",IF(F1="O","Sommier à définir",IF($A$1="25 kV",Y53,IF($A$1="1500 V",AA53,IF($A$1="Autre","A définir","Erreur"))))) ->  | S52: =IF(W62="","",IF(F1="O","Sommier à définir",IF($A$1="25 kV",Y62,IF($A$1="1500 V",AA62,IF($A$1="Autre","A définir","Erreur"))))) ->  | V52: 2 | W52: =IFERROR(VLOOKUP(V52,$V$39:$W$45,2,FALSE),"") -> Hauban 2 | X52: =IF(W52="","",IF(AND(OR($W$49="JHE",LEFT($W$49,2)="PR"),IFERROR(VLOOKUP(W52,$AA$39:$AC$45,2,FALSE),0)<>"N"),9,IF(AND(OR($W$49="JHE",LEFT($W$49,2)="PR"),IFERROR(VLOOKUP(W52,$AA$39:$AC$45,2,FALSE),0)="N"),9,IF(AND(OR($W$49="HEA",$W$49="HEB"),IFERROR(VLOOKUP(W52,$AA$39:$AC$45,2,FALSE),0)<>"N"),12,IF(AND(OR($W$49="HEA",$W$49="HEB"),IFERROR(VLOOKUP(W52,$AA$39:$AC$45,2,FALSE),0)="N"),10,"ERREUR"))))) -> 12 | Y52: =IFERROR(VLOOKUP(X52,$AC$48:$AD$56,2,FALSE),"") -> 01602108 | Z52: =IF(W52="","",IF(AND($W$49="JHE",IFERROR(VLOOKUP(W52,$AA$39:$AC$45,2,FALSE),0)<>"N"),15,IF(AND(LEFT($W$49,2)="PR",IFERROR(VLOOKUP(W52,$AA$39:$AC$45,2,FALSE),0)<>"N"),9,IF(AND($W$58="JHE",IFERROR(VLOOKUP(W52,$AA$39:$AC$45,2,FALSE),0)="N"),15,IF(AND(LEFT($W$58,2)="PR",IFERROR(VLOOKUP(W52,$AA$39:$AC$45,2,FALSE),0)="N"),9,IF(AND(OR($W$49="HEA",$W$49="HEB"),IFERROR(VLOOKUP(W52,$AA$39:$AC$45,2,FALSE),0)<>"N"),19,IF(AND(OR($W$49="HEA",$W$49="HEB"),IFERROR(VLOOKUP(W52,$AA$39:$AC$45,2,FALSE),0)="N"),18,"ERREUR"))))))) -> 19 | AA52: =IFERROR(VLOOKUP(Z52,$AC$48:$AD$56,2,FALSE),"") -> 01602487 | AC52: 13 | AD52: 01670239 | AF52: 2 | AG52: =IFERROR(VLOOKUP(AF52,$V$39:$W$45,2,FALSE),"") -> Hauban 2 | AH52: =IF(AG52="","",IF(AND($AG$49="JHE",VLOOKUP(AG52,$AA$39:$AC$45,2,FALSE)="N"),20,"")) ->  | AI52: =IFERROR(VLOOKUP(AH52,$AC$48:$AD$58,2,FALSE),"") ->  | AJ52: =IF(AG52="","",IF(AND($AG$49="JHE",VLOOKUP(AG52,$AA$39:$AC$45,2,FALSE)="N"),22,"")) ->  | AK52: =IFERROR(VLOOKUP(AJ52,$AC$48:$AD$58,2,FALSE),"") -> 
H53: Conducteur 3 | I53: =IF(PlanAnca3="","",PlanAnca3) ->  | J53: =IF(RepAnca3="","",RepAnca3) ->  | K53: =IF(PlanAncb3="","",PlanAncb3) ->  | L53: =IF(RepAncb3="","",RepAncb3) ->  | O53: 00986725 | P53: 2000 | R53: =IF(W54="","",IF(F1="O","Sommier à définir",IF($A$1="25 kV",Y54,IF($A$1="1500 V",AA54,IF($A$1="Autre","A définir","Erreur"))))) ->  | S53: =IF(W63="","",IF(F1="O","Sommier à définir",IF($A$1="25 kV",Y63,IF($A$1="1500 V",AA63,IF($A$1="Autre","A définir","Erreur"))))) ->  | V53: 3 | AC53: 14 | AD53: 08800300 | AF53: 3
O54: 00986726 | P54: 2500 | R54: =IF(W55="","",IF(F1="O","Sommier à définir",IF($A$1="25 kV",Y55,IF($A$1="1500 V",AA55,IF($A$1="Autre","A définir","Erreur"))))) ->  | S54: =IF(W64="","",IF(F1="O","Sommier à définir",IF($A$1="25 kV",Y64,IF($A$1="1500 V",AA64,IF($A$1="Autre","A définir","Erreur"))))) ->  | V54: 4 | AA54: =IFERROR(VLOOKUP(Z54,$AC$48:$AD$56,2,FALSE),"") ->  | AC54: 15 | AD54: 08800278 | AF54: 4
A55: Coupon de RAil | B55: Ancrage 1 | C55: Ancrage 2 | H55: Isolement supplémentaire | O55: 00986727 | P55: 3000 | R55: =IF(W56="","",IF(F1="O","Sommier à définir",IF($A$1="25 kV",Y56,IF($A$1="1500 V",AA56,IF($A$1="Autre","A définir","Erreur"))))) ->  | S55: =IF(W65="","",IF(F1="O","Sommier à définir",IF($A$1="25 kV",Y65,IF($A$1="1500 V",AA65,IF($A$1="Autre","A définir","Erreur"))))) ->  | V55: 5 | AC55: 18 | AD55: 01602443 | AF55: 5
A56: Massif Api ? | B56: =IF(B7="Api","Oui","Non") -> Oui | C56: =IF(C7="Api","Oui","Non") -> Non | I56: Iso 1 | J56: Iso 2 | K56: Iso 3 | L56: Quantités | O56: 00986728 | P56: 3500 | R56: =IF(W57="","",IF(F1="O","Sommier à définir",IF($A$1="25 kV",Y57,IF($A$1="1500 V",AA57,IF($A$1="Autre","A définir","Erreur"))))) ->  | S56: =IF(W66="","",IF(F1="O","Sommier à définir",IF($A$1="25 kV",Y66,IF($A$1="1500 V",AA66,IF($A$1="Autre","A définir","Erreur"))))) ->  | V56: 6 | AC56: 19 | AD56: 01602487 | AF56: 6
A57: Type de Massif : | B57: =Impression!B10 -> 9 | C57: =Impression!F10 ->  | G57: Ancrage1 | H57: Conducteur 1 | I57: =IFERROR(IF(OR(IsoSupa1="",IsoSupa1="Non"),"",VLOOKUP(I51&J51,Parametres!$AK$60:$AP$759,4,FALSE)),"") ->  | J57: =IFERROR(IF(OR(IsoSupa1="",IsoSupa1="Non"),"",VLOOKUP(I51&J51,Parametres!$AK$60:$AP$759,5,FALSE)),"") ->  | K57: =IFERROR(IF(OR(IsoSupa1="",IsoSupa1="Non"),"",VLOOKUP(I51&J51,Parametres!$AK$60:$AP$759,6,FALSE)),"") ->  | L57: =IF(OR(IsoSupa1="",IsoSupa1="Non"),"",IsoSupa1) ->  | M57: 1 | T57: =(7-(COUNTBLANK(T50:T56)))*4 -> 0 | U57: =(7-(COUNTBLANK(U50:U56)))*4 -> 0 | V57: 7 | AC57: 20 | AD57: 01680330 | AF57: 7
A58: Coupon de Rail | B58: =IF(B56="Oui",VLOOKUP(B57,Parametres!$Z$33:$AA$44,2,FALSE),"Aucun") -> 1800 | C58: =IF(C56="Oui",VLOOKUP(C57,Parametres!$Z$33:$AA$44,2,FALSE),"Aucun") -> Aucun | H58: Conducteur 2 | I58: =IFERROR(IF(OR(IsoSupa2="",IsoSupa2="Non"),"",VLOOKUP(I52&J52,Parametres!$AK$60:$AP$759,4,FALSE)),"") ->  | J58: =IFERROR(IF(OR(IsoSupa2="",IsoSupa2="Non"),"",VLOOKUP(I52&J52,Parametres!$AK$60:$AP$759,5,FALSE)),"") ->  | K58: =IFERROR(IF(OR(IsoSupa2="",IsoSupa2="Non"),"",VLOOKUP(I52&J52,Parametres!$AK$60:$AP$759,6,FALSE)),"") ->  | L58: =IF(OR(IsoSupa2="",IsoSupa2="Non"),"",IsoSupa2) ->  | M58: =IF(I58<>I57,2,M57) -> 1 | W58: =LEFT(D1,3) -> HEA | X58: Ancrage 2 | AC58: 22 | AD58: 01680333 | AG58: =LEFT(D1,3) -> HEA | AH58: Ancrage 2
A59: Liaison CdpA au support | B59: =IFERROR(IF(VLOOKUP("Ok",F93:F100,1,FALSE)="Ok",IF(F93="Ok",E102,E103),""),"") ->  | C59: =IFERROR(IF(VLOOKUP("Ok",G93:G100,1,FALSE)="Ok",IF(G93="Ok",E102,E103),""),"") ->  | H59: Conducteur 3 | I59: =IFERROR(IF(OR(IsoSupa3="",IsoSupa3="Non"),"",VLOOKUP(I53&J53,Parametres!$AK$60:$AP$759,4,FALSE)),"") ->  | J59: =IFERROR(IF(OR(IsoSupa3="",IsoSupa3="Non"),"",VLOOKUP(I53&J53,Parametres!$AK$60:$AP$759,5,FALSE)),"") ->  | K59: =IFERROR(IF(OR(IsoSupa3="",IsoSupa3="Non"),"",VLOOKUP(I53&J53,Parametres!$AK$60:$AP$759,6,FALSE)),"") ->  | L59: =IF(OR(IsoSupa3="",IsoSupa3="Non"),"",IsoSupa3) ->  | M59: =IF(I59=I57,M57,IF(I59=I58,M58,3)) -> 1 | X59: 25 kV | Y59: Symboles | Z59: 1500 V | AA59: Symboles | AH59: 25 kV | AI59: Symboles | AJ59: 1500 V | AK59: Symboles
G60: Ancrage2 | H60: Conducteur 1 | I60: =IFERROR(IF(OR(IsoSupb1="",IsoSupb1="Non"),"",VLOOKUP(K51&L51,Parametres!$AK$60:$AP$759,4,FALSE)),"") ->  | J60: =IFERROR(IF(OR(IsoSupb1="",IsoSupb1="Non"),"",VLOOKUP(K51&L51,Parametres!$AK$60:$AP$759,5,FALSE)),"") ->  | K60: =IFERROR(IF(OR(IsoSupb1="",IsoSupb1="Non"),"",VLOOKUP(K51&L51,Parametres!$AK$60:$AP$759,6,FALSE)),"") ->  | L60: =IF(OR(IsoSupb1="",IsoSupb1="Non"),"",IsoSupb1) ->  | M60: 4 | V60: 1 | W60: =IFERROR(VLOOKUP(V60,$X$39:$Y$45,2,FALSE),"") ->  | X60: =IF(W60="","",IF(AND(OR($W$58="JHE",LEFT($W$58,2)="PR"),IFERROR(VLOOKUP(W60,$AA$39:$AC$45,3,FALSE),0)<>"N"),9,IF(AND(OR($W$58="JHE",LEFT($W$58,2)="PR"),IFERROR(VLOOKUP(W60,$AA$39:$AC$45,3,FALSE),0)="N"),9,IF(AND(OR($W$58="HEA",$W$58="HEB"),IFERROR(VLOOKUP(W60,$AA$39:$AC$45,3,FALSE),0)<>"N"),12,IF(AND(OR($W$58="HEA",$W$58="HEB"),IFERROR(VLOOKUP(W60,$AA$39:$AC$45,3,FALSE),0)="N"),10,"ERREUR"))))) ->  | Y60: =IFERROR(VLOOKUP(X60,$AC$48:$AD$56,2,FALSE),"") ->  | Z60: =IF(W60="","",IF(AND($W$58="JHE",IFERROR(VLOOKUP(W60,$AA$39:$AC$45,3,FALSE),0)<>"N"),15,IF(AND(LEFT($W$58,2)="PR",IFERROR(VLOOKUP(W60,$AA$39:$AC$45,3,FALSE),0)<>"N"),9,IF(AND($W$58="JHE",IFERROR(VLOOKUP(W60,$AA$39:$AC$45,3,FALSE),0)="N"),15,IF(AND(LEFT($W$58,2)="PR",IFERROR(VLOOKUP(W60,$AA$39:$AC$45,3,FALSE),0)="N"),9,IF(AND(OR($W$58="HEA",$W$58="HEB"),IFERROR(VLOOKUP(W60,$AA$39:$AC$45,3,FALSE),0)<>"N"),19,IF(AND(OR($W$58="HEA",$W$58="HEB"),IFERROR(VLOOKUP(W60,$AA$39:$AC$45,3,FALSE),0)="N"),18,"ERREUR"))))))) ->  | AA60: =IFERROR(VLOOKUP(Z60,$AC$48:$AD$56,2,FALSE),"") ->  | AF60: 1 | AG60: =IFERROR(VLOOKUP(AF60,$X$39:$Y$45,2,FALSE),"") ->  | AH60: =IF(AG60="","",IF(AND($AG$58="JHE",VLOOKUP(AG60,$AA$39:$AC$45,3,FALSE)="N"),20,"")) ->  | AI60: =IFERROR(VLOOKUP(AH60,$AC$48:$AD$58,2,FALSE),"") ->  | AJ60: =IF(AG60="","",IF(AND($AG$58="JHE",VLOOKUP(AG60,$AA$39:$AC$45,3,FALSE)="N"),22,"")) ->  | AK60: =IFERROR(VLOOKUP(AJ60,$AC$48:$AD$58,2,FALSE),"") -> 
A61: Percages E : | H61: Conducteur 2 | I61: =IFERROR(IF(OR(IsoSupb2="",IsoSupb2="Non"),"",VLOOKUP(K52&L52,Parametres!$AK$60:$AP$759,4,FALSE)),"") ->  | J61: =IFERROR(IF(OR(IsoSupb2="",IsoSupb2="Non"),"",VLOOKUP(K52&L52,Parametres!$AK$60:$AP$759,5,FALSE)),"") ->  | K61: =IFERROR(IF(OR(IsoSupb2="",IsoSupb2="Non"),"",VLOOKUP(K52&L52,Parametres!$AK$60:$AP$759,6,FALSE)),"") ->  | L61: =IF(OR(IsoSupb2="",IsoSupb2="Non"),"",IsoSupb2) ->  | M61: =IF(I61<>I60,5,M60) -> 4 | V61: 2 | W61: =IFERROR(VLOOKUP(V61,$X$39:$Y$45,2,FALSE),"") ->  | X61: =IF(W61="","",IF(AND(OR($W$58="JHE",LEFT($W$58,2)="PR"),IFERROR(VLOOKUP(W61,$AA$39:$AC$45,3,FALSE),0)<>"N"),9,IF(AND(OR($W$58="JHE",LEFT($W$58,2)="PR"),IFERROR(VLOOKUP(W61,$AA$39:$AC$45,3,FALSE),0)="N"),9,IF(AND(OR($W$58="HEA",$W$58="HEB"),IFERROR(VLOOKUP(W61,$AA$39:$AC$45,3,FALSE),0)<>"N"),12,IF(AND(OR($W$58="HEA",$W$58="HEB"),IFERROR(VLOOKUP(W61,$AA$39:$AC$45,3,FALSE),0)="N"),10,"ERREUR"))))) ->  | Y61: =IFERROR(VLOOKUP(X61,$AC$48:$AD$56,2,FALSE),"") ->  | Z61: =IF(W61="","",IF(AND($W$58="JHE",IFERROR(VLOOKUP(W61,$AA$39:$AC$45,3,FALSE),0)<>"N"),15,IF(AND(LEFT($W$58,2)="PR",IFERROR(VLOOKUP(W61,$AA$39:$AC$45,3,FALSE),0)<>"N"),9,IF(AND($W$58="JHE",IFERROR(VLOOKUP(W61,$AA$39:$AC$45,3,FALSE),0)="N"),15,IF(AND(LEFT($W$58,2)="PR",IFERROR(VLOOKUP(W61,$AA$39:$AC$45,3,FALSE),0)="N"),9,IF(AND(OR($W$58="HEA",$W$58="HEB"),IFERROR(VLOOKUP(W61,$AA$39:$AC$45,3,FALSE),0)<>"N"),19,IF(AND(OR($W$58="HEA",$W$58="HEB"),IFERROR(VLOOKUP(W61,$AA$39:$AC$45,3,FALSE),0)="N"),18,"ERREUR"))))))) ->  | AA61: =IFERROR(VLOOKUP(Z61,$AC$48:$AD$56,2,FALSE),"") ->  | AF61: 2 | AG61: =IFERROR(VLOOKUP(AF61,$X$39:$Y$45,2,FALSE),"") ->  | AH61: =IF(AG61="","",IF(AND($W$58="JHE",VLOOKUP(AG61,$AA$39:$AC$45,3,FALSE)="N"),20,"")) ->  | AI61: =IFERROR(VLOOKUP(AH61,$AC$48:$AD$58,2,FALSE),"") ->  | AJ61: =IF(AG61="","",IF(AND($AG$58="JHE",VLOOKUP(AG61,$AA$39:$AC$45,3,FALSE)="N"),22,"")) ->  | AK61: =IFERROR(VLOOKUP(AJ61,$AC$48:$AD$58,2,FALSE),"") -> 
B62: Ancrage 1 | C62: Ancrage 2 | H62: Conducteur 3 | I62: =IFERROR(IF(OR(IsoSupb3="",IsoSupb3="Non"),"",VLOOKUP(K53&L53,Parametres!$AK$60:$AP$759,4,FALSE)),"") ->  | J62: =IFERROR(IF(OR(IsoSupb3="",IsoSupb3="Non"),"",VLOOKUP(K53&L53,Parametres!$AK$60:$AP$759,5,FALSE)),"") ->  | K62: =IFERROR(IF(OR(IsoSupb3="",IsoSupb3="Non"),"",VLOOKUP(K53&L53,Parametres!$AK$60:$AP$759,6,FALSE)),"") ->  | L62: =IF(OR(IsoSupb3="",IsoSupb3="Non"),"",IsoSupb3) ->  | M62: =IF(I62=I60,M60,IF(I62=I61,M61,6)) -> 4 | V62: 3 | AF62: 3
A63: Pts 1 | V63: 4 | AF63: 4
A64: Pts 2 | G64: Total Isolement Supplémentaire | J64: Liste d'iso supp Ancrage 1 | M64: Liste d'iso supp Ancrage 2 | Q64: Longueur AT | R64: X | S64: Y | V64: 5 | AF64: 5
A65: Pts 3 | G65: Numéro | H65: Isolateurs | I65: Quantitées | K65: Isolateurs | L65: Quantitées | N65: Isolateurs | O65: Quantitées | Q65: 222940 | R65: =2061.13/1000 -> 2.06113 | S65: 0 | V65: 6 | AF65: 6
A66: Pts 4 | E66: Ancrage 1 | F66: =IF($I$57<>0,$I$57,"") ->  | G66: =IF(H66<>"",1,0) -> 0 | H66: =IF($I$57<>0,$I$57,"") ->  | I66: =L57 ->  | J66: 1 | K66: =IFERROR(VLOOKUP(J66,$G$66:$I$74,2,FALSE),"") ->  | L66: =IF(K66="","",SUMIF($H$66:$I$74,K66,$I$66:$I$74)) ->  | M66: 1 | N66: =IFERROR(VLOOKUP(M66,$G$75:$I$83,2,FALSE),"") ->  | O66: =IF(N66="","",SUMIF($H$75:$I$83,N66,$I$75:$I$83)) ->  | Q66: 223015 | R66: =1705/1000 -> 1.705 | S66: 0 | V66: 7 | AF66: 7
A67: Pts 5 | F67: =IF($J$57<>0,$J$57,"") ->  | G67: =IF(H67=H66,G66,IF(H67<>"",G66+1,"")) -> 0 | H67: =IF($J$57<>0,$J$57,"") ->  | I67: =IF(H67="","",L57) ->  | J67: 2 | K67: =IFERROR(VLOOKUP(J67,$G$66:$I$74,2,FALSE),"") ->  | L67: =IF(K67="","",SUMIF($H$66:$I$74,K67,$I$66:$I$74)) ->  | M67: 2 | N67: =IFERROR(VLOOKUP(M67,$G$75:$I$83,2,FALSE),"") ->  | O67: =IF(N67="","",SUMIF($H$75:$I$83,N67,$I$75:$I$83)) -> 
A68: Pts 6 | F68: =IF($K$57<>0,$K$57,"") ->  | G68: =IF(H68="",G67,IF(IFERROR(VLOOKUP(H68,$F$66:I67,1,FALSE)=H68,FALSE),VLOOKUP(H68,$F$66:I67,2,FALSE),IF(H68<>"",G67+1,G67))) -> 0 | H68: =IF($K$57<>0,$K$57,"") ->  | I68: =IF(H68="","",L57) ->  | J68: 3 | M68: 3 | Q68: Point n°1
A69: Pts 7 | F69: =IF($I$58<>0,$I$58,"") ->  | G69: =IF(H69="",G68,IF(IFERROR(VLOOKUP(H69,$F$66:I68,1,FALSE)=H69,FALSE),VLOOKUP(H69,$F$66:I68,2,FALSE),IF(H69<>"",G68+1,G68))) -> 0 | H69: =IF($I$58<>0,$I$58,"") ->  | I69: =IF(H69="","",L58) ->  | J69: 4 | M69: 4 | Q69: Point n°2
A70: Massif Ae ? | B70: =IF(MassifAnc1="Ae","OUI","NON") -> NON | C70: =IF(MassifAnc2="Ae","OUI","NON") -> NON | F70: =IF($J$58<>0,$J$58,"") ->  | G70: =IF(H70="",G69,IF(IFERROR(VLOOKUP(H70,$F$66:I69,1,FALSE)=H70,FALSE),VLOOKUP(H70,$F$66:I69,2,FALSE),IF(H70<>"",G69+1,G69))) -> 0 | H70: =IF($J$58<>0,$J$58,"") ->  | I70: =IF(H70="","",L58) ->  | J70: 5 | M70: 5 | Q70: Point n°3 | V70: Longueur de Cables Ancrage 1 | Z70: Longueur de Cables Ancrage 2 | AD70: Rondelles pour Ancrage seul sur JHE
A71: Type de Massif Ae | F71: =IF($K$58<>0,$K$58,"") ->  | G71: =IF(H71="",G70,IF(IFERROR(VLOOKUP(H71,$F$66:I70,1,FALSE)=H71,FALSE),VLOOKUP(H71,$F$66:I70,2,FALSE),IF(H71<>"",G70+1,G70))) -> 0 | H71: =IF($K$58<>0,$K$58,"") ->  | I71: =IF(H71="","",L58) ->  | J71: 6 | M71: 6 | V71: =Haubpref1 -> Rigide | W71: Ac Inox 93² | X71: Ac Inox 113² | Z71: =Haubpref2 -> 0 | AA71: Ac Inox 93² | AB71: Ac Inox 113²
A72: Tension Maxi du massif Ae | B72: =IF(B71="","",HLOOKUP(B71,Parametres!$K$47:$S$48,2,TRUE)) ->  | C72: =IF(C71="","",HLOOKUP(C71,Parametres!$K$47:$S$48,2,TRUE)) ->  | F72: =IF($I$59<>0,$I$59,"") ->  | G72: =IF(H72="",G71,IF(IFERROR(VLOOKUP(H72,$F$66:I71,1,FALSE)=H72,FALSE),VLOOKUP(H72,$F$66:I71,2,FALSE),IF(H72<>"",G71+1,G71))) -> 0 | H72: =IF($I$59<>0,$I$59,"") ->  | I72: =IF(H72="","",L59) ->  | J72: 7 | M72: 7 | V72: Hauban 1 | W72: =IF(B14="","",CEILING(SQRT(IF($B$7<>"Apns",B14,B14-2.9)^2+$B$18^2)+0.5,0.5)) -> 11 | X72: =IF(B14="","",CEILING(SQRT(IF($B$7<>"Apns",B14,B14-2.9)^2+$B$18^2)+0.5,0.5)) -> 11 | Z72: Hauban 1 | AA72: =IF(C14="","",CEILING(SQRT(IF($C$7<>"Apns",C14,C14-2.9)^2+$C$18^2)+0.5,0.5)) ->  | AB72: =IF(C14="","",CEILING(SQRT(IF($C$7<>"Apns",C14,C14-2.9)^2+$C$18^2)+0.5,0.5)) -> 
A73: Acceptable ? | B73: =IF(B72="","OK",IFERROR(IF(B72>B5,"OK","ERREUR"),"ERREUR")) -> OK | C73: =IF(C72="","OK",IFERROR(IF(C72>C5,"OK","ERREUR"),"ERREUR")) -> OK | F73: =IF($J$59<>0,$J$59,"") ->  | G73: =IF(H73="",G72,IF(IFERROR(VLOOKUP(H73,$F$66:I72,1,FALSE)=H73,FALSE),VLOOKUP(H73,$F$66:I72,2,FALSE),IF(H73<>"",G72+1,G72))) -> 0 | H73: =IF($J$59<>0,$J$59,"") ->  | I73: =IF(H73="","",L59) ->  | J73: 8 | M73: 8 | V73: Hauban 2 | W73: =IF(B15="","",CEILING(SQRT(IF($B$7<>"Apns",B15,B15-2.9)^2+($B$18+0.25)^2)+0.5,0.5)) -> 10.5 | X73: =IF(B15="","",CEILING(SQRT(IF($B$7<>"Apns",B15,B15-2.9)^2+($B$18+0.25)^2)+0.5,0.5)) -> 10.5 | Z73: Hauban 2 | AA73: =IF(C15="","",CEILING(SQRT(IF($C$7<>"Apns",C15,C15-2.9)^2+($C$18+0.25)^2)+0.5,0.5)) ->  | AB73: =IF(C15="","",CEILING(SQRT(IF($C$7<>"Apns",C15,C15-2.9)^2+($C$18+0.25)^2)+0.5,0.5)) -> 
F74: =IF($K$59<>0,$K$59,"") ->  | G74: =IF(H74="",G73,IF(IFERROR(VLOOKUP(H74,$F$66:I73,1,FALSE)=H74,FALSE),VLOOKUP(H74,$F$66:I73,2,FALSE),IF(H74<>"",G73+1,G73))) -> 0 | H74: =IF($K$59<>0,$K$59,"") ->  | I74: =IF(H74="","",L59) ->  | J74: 9 | M74: 9 | V74: Hauban 3 | W74: =IF(B16="","",CEILING(SQRT(IF($B$7<>"Apns",B16,B16-2.9)^2+$B$18^2)+0.5,0.5)) ->  | X74: =IF(B16="","",CEILING(SQRT(IF($B$7<>"Apns",B16,B16-2.9)^2+$B$18^2)+0.5,0.5)) ->  | Z74: Hauban 3 | AA74: =IF(C16="","",CEILING(SQRT(IF($C$7<>"Apns",C16,C16-2.9)^2+$C$18^2)+0.5,0.5)) ->  | AB74: =IF(C16="","",CEILING(SQRT(IF($C$7<>"Apns",C16,C16-2.9)^2+$C$18^2)+0.5,0.5)) -> 
E75: Ancrage 2 | F75: =IF($I$60<>0,$I$60,"") ->  | G75: =IF(H75<>"",1,0) -> 0 | H75: =IF($I$60<>0,$I$60,"") ->  | I75: =IF(H75="","",L60) ->  | V75: Hauban 4 | W75: =IF(B17="","",CEILING(SQRT(IF($B$7<>"Apns",B17,B17-2.9)^2+($B$18+0.25)^2)+0.5,0.5)) ->  | X75: =IF(B17="","",CEILING(SQRT(IF($B$7<>"Apns",B17,B17-2.9)^2+($B$18+0.25)^2)+0.5,0.5)) ->  | Z75: Hauban 4 | AA75: =IF(C17="","",CEILING(SQRT(IF($C$7<>"Apns",C17,C17-2.9)^2+($C$18+0.25)^2)+0.5,0.5)) ->  | AB75: =IF(C17="","",CEILING(SQRT(IF($C$7<>"Apns",C17,C17-2.9)^2+($C$18+0.25)^2)+0.5,0.5)) -> 
F76: =IF($J$60<>0,$J$60,"") ->  | G76: =IF(H76="",G75,IF(IFERROR(VLOOKUP(H76,$F$75:I75,1,FALSE)=H76,FALSE),VLOOKUP(H76,$F$75:I75,2,FALSE),IF(H76<>"",G75+1,G75))) -> 0 | H76: =IF($J$60<>0,$J$60,"") ->  | I76: =IF(H76="","",L60) ->  | W76: 03682670 | X76: 03682668 | AA76: 03682670 | AB76: 03682668
F77: =IF($K$60<>0,$K$60,"") ->  | G77: =IF(H77="",G76,IF(IFERROR(VLOOKUP(H77,$F$75:I76,1,FALSE)=H77,FALSE),VLOOKUP(H77,$F$75:I76,2,FALSE),IF(H77<>"",G76+1,G76))) -> 0 | H77: =IF($K$60<>0,$K$60,"") ->  | I77: =IF(H77="","",L60) -> 
F78: =IF($I$61<>0,$I$61,"") ->  | G78: =IF(H78="",G77,IF(IFERROR(VLOOKUP(H78,$F$75:I77,1,FALSE)=H78,FALSE),VLOOKUP(H78,$F$75:I77,2,FALSE),IF(H78<>"",G77+1,G77))) -> 0 | H78: =IF($I$61<>0,$I$61,"") ->  | I78: =IF(H78="","",L61) -> 
F79: =IF($J$61<>0,$J$61,"") ->  | G79: =IF(H79="",G78,IF(IFERROR(VLOOKUP(H79,$F$75:I78,1,FALSE)=H79,FALSE),VLOOKUP(H79,$F$75:I78,2,FALSE),IF(H79<>"",G78+1,G78))) -> 0 | H79: =IF($J$61<>0,$J$61,"") ->  | I79: =IF(H79="","",L61) ->  | R79: Type de lignes | U79: Passage Feeder / CdPA / CdPAo
F80: =IF($K$61<>0,$K$61,"") ->  | G80: =IF(H80="",G79,IF(IFERROR(VLOOKUP(H80,$F$75:I79,1,FALSE)=H80,FALSE),VLOOKUP(H80,$F$75:I79,2,FALSE),IF(H80<>"",G79+1,G79))) -> 0 | H80: =IF($K$61<>0,$K$61,"") ->  | I80: =IF(H80="","",L61) ->  | R80: CdPAO-voie | S80: CDPAO | T80: 1 | U80: Type câble | V80: Hauteur | W80: type ligne | X80: ='X,Y'!D2 -> 145
F81: =IF($I$62<>0,$I$62,"") ->  | G81: =IF(H81="",G80,IF(IFERROR(VLOOKUP(H81,$F$75:I80,1,FALSE)=H81,FALSE),VLOOKUP(H81,$F$75:I80,2,FALSE),IF(H81<>"",G80+1,G80))) -> 0 | H81: =IF($I$62<>0,$I$62,"") ->  | I81: =IF(H81="","",L62) ->  | R81: Feeder-voie | S81: FEEDER_A | T81: 1 | U81: =IF(cable1="","",cable1) ->  | V81: =IF(Haut1="","",Haut1*1000) ->  | W81: =IF(U81="","",(VLOOKUP(U81,$R$80:$S$85,2,FALSE))) ->  | X81: =IF(U81="","",VLOOKUP(U81,$R$80:$T$85,3,FALSE)) -> 
F82: =IF($J$62<>0,$J$62,"") ->  | G82: =IF(H82="",G81,IF(IFERROR(VLOOKUP(H82,$F$75:I81,1,FALSE)=H82,FALSE),VLOOKUP(H82,$F$75:I81,2,FALSE),IF(H82<>"",G81+1,G81))) -> 0 | H82: =IF($J$62<>0,$J$62,"") ->  | I82: =IF(H82="","",L62) ->  | R82: CdPA-voie | S82: CDPA | T82: 1 | U82: =IF(cable2="","",cable2) ->  | V82: =IF(haut2="","",haut2*1000) ->  | W82: =IF(U82="","",(VLOOKUP(U82,$R$80:$S$85,2,FALSE))) ->  | X82: =IF(U82="","",VLOOKUP(U82,$R$80:$T$85,3,FALSE)) -> 
F83: =IF($K$62<>0,$K$62,"") ->  | G83: =IF(H83="",G82,IF(IFERROR(VLOOKUP(H83,$F$75:I82,1,FALSE)=H83,FALSE),VLOOKUP(H83,$F$75:I82,2,FALSE),IF(H83<>"",G82+1,G82))) -> 0 | H83: =IF($K$62<>0,$K$62,"") ->  | I83: =IF(H83="","",L62) ->  | R83: CdPAO-champ | S83: CDPAO | T83: 2 | U83: =IF(cable3="","",cable3) ->  | V83: =IF(haut3="","",haut3*1000) ->  | W83: =IF(U83="","",(VLOOKUP(U83,$R$80:$S$85,2,FALSE))) ->  | X83: =IF(U83="","",VLOOKUP(U83,$R$80:$T$85,3,FALSE)) -> 
R84: Feeder-champ | S84: FEEDER_A | T84: 2
C85: Support JHE | F85: Profilé | G85: Lettre Lg | H85: Lg Maxi (m) | J85: Donnée pour Ancrage | R85: CdPA-champ | S85: CDPA | T85: 2
C86: Si un support affecté est dans cette liste, insert un bloc correspondant a la vrai représentation | F86: JHE280A | G86: L | H86: 13.9 | J86: Support | K86: Lg (m)
F87: JHE280B | G87: N | H87: 14.9 | J87: =IF(Support="","Aucun",Support) -> HEA300 | K87: =IF(OR(Support="",Hsupport="",CoteA=""),"",Hsupport+CoteA) -> 12.4
F88: JHE320A | G88: O | H88: 15.9 | J88: Insert ? | K88: =IF(LEFT($J$87,2)="PR","PR",IF(IFERROR(VLOOKUP($J$87,$F$86:$F$89,1,FALSE),"Non")="Non","Non",IF(VLOOKUP($J$87,$F$86:$H$89,3,FALSE)>=K87,"JHE","Non"))) -> Non
F89: JHE320B | G89: O | H89: 15.9
C91: Si un de ces Ancrages est présent alors liaison du CdpA au support | J91: Nb | L91: H Perçages | M91: Nb | N91: Hauteur E :
C92: Elec | D92: Plan | E92: Repere | F92: Ancrage 1 | G92: Ancrage 2 | I92: Ancrage 1 | J92: =M92 -> 1 | K92: Piece 1 | L92: =HAnca1 -> 7.45 | M92: =IF(L92=0,0,1) -> 1 | N92: =IF(AND($M$108<>0,$M$108+O92<=$M$107),"E"&$M$108+O92&": L="&(VLOOKUP($M$108+O92,$J$92:$M$105,3,FALSE)+$M$109)&" m","") -> E1: L=8.9 m | O92: 0
C93: 1500V | D93: 44050 | E93: 801 | F93: =IF(OR(PlanAnca1&RepAnca1=D93&E93,PlanAnca2&RepAnca2=D93&E93,PlanAnca3&RepAnca3=D93&E93),"Ok","Non") -> Non | G93: =IF(OR(PlanAncb1&RepAncb1=D93&E93,PlanAncb2&RepAncb2=D93&E93,PlanAncb3&RepAncb3=D93&E93),"Ok","Non") -> Non | J93: =M93 -> 2 | K93: Piece 2 | L93: =HAnca2 -> 6.45 | M93: =IF(L93=0,M92,IF(L93=L92,M92,M92+1)) -> 2 | N93: =IF(AND($M$108<>0,$M$108+O93<=$M$107),"E"&$M$108+O93&": L="&(VLOOKUP($M$108+O93,$J$92:$M$105,3,FALSE)+$M$109)&" m","") -> E2: L=7.9 m | O93: 1
C94: 25 KV | D94: 310446 | E94: 135 | F94: Non | G94: Non | J94: 2 | K94: Piece 3 | L94: =HAnca3 -> 0 | M94: =IF(L94=0,M93,IF(OR(L94=L93,L94=L92),M93,M93+1)) -> 2 | O94: 2
C95: 25 KV | D95: 310484 | E95: 135 | F95: Non | G95: Non | J95: 2 | K95: Hauban 1 | L95: =HHauba1 -> 7.45 | M95: =IF(L95=0,M94,IF(OR(L95=L92,L95=L94,L95=L93),M94,M94+1)) -> 2 | O95: 3
C96: 25 KV | D96: 310483 | E96: 721 | F96: Non | G96: Non | J96: 2 | K96: Hauban 2 | L96: =HHauba2 -> 6.45 | M96: =IF(L96=0,M95,IF(OR(L96=L92,L96=L93,L96=L95,L96=L94),M95,M95+1)) -> 2 | O96: 4
C97: 25 KV | D97: 310484 | E97: 721 | F97: Non | G97: Non | J97: 2 | K97: Hauban 3 | L97: =HHauba3 -> 0 | M97: =IF(L97=0,M96,IF(OR(L97=L92,L97=L93,L97=L94,L97=L96,L97=L95),M96,M96+1)) -> 2 | O97: 5
C98: 25 KV | D98: 310480 | E98: 136 | F98: Non | G98: Non | J98: 2 | K98: Hauban 4 | L98: =HHauba4 -> 0 | M98: =IF(L98=0,M97,IF(OR(L98=L92,L98=L93,L98=L94,L98=L95,L98=L97,L98=L96),M97,M97+1)) -> 2 | O98: 6
C99: 25 KV | D99: 310489 | E99: 136 | F99: Non | G99: Non | I99: Ancrage 2 | J99: 2 | K99: Piece 1 | L99: =HAncb1 -> 0 | M99: =IF(L99=0,M98,IF(OR(L99=L92,L99=L93,L99=L94,L99=L95,L99=L96,L99=L98,L99=L97),M98,M98+1)) -> 2 | O99: 7
C100: 25 KV | D100: 311446 | E100: 135 | F100: Non | G100: Non | J100: 2 | K100: Piece 2 | L100: =HAncb2 -> 0 | M100: =IF(L100=0,M99,IF(OR(L100=L92,L100=L93,L100=L94,L100=L95,L100=L96,L100=L97,L100=L99,L100=L98),M99,M99+1)) -> 2 | O100: 8
J101: 2 | K101: Piece 3 | L101: =HAncb3 -> 0 | M101: =IF(L101=0,M100,IF(OR(L101=L92,L101=L93,L101=L94,L101=L95,L101=L96,L101=L97,L101=L98,L101=L100,L101=L99),M100,M100+1)) -> 2 | O101: 9
C102: 44050 | D102: 802 | E102: 10983630 | J102: 2 | K102: Hauban 1 | L102: =HHaubb1 -> 0 | M102: =IF(L102=0,M101,IF(OR(L102=L92,L102=L93,L102=L94,L102=L95,L102=L96,L102=L97,L102=L98,L102=L99,L102=L101,L102=L100),M101,M101+1)) -> 2 | O102: 10
C103: 333090 | D103: 102A | E103: 20987297 | J103: 2 | K103: Hauban 2 | L103: =HHaubb2 -> 0 | M103: =IF(L103=0,M102,IF(OR(L103=L92,L103=L93,L103=L94,L103=L95,L103=L96,L103=L97,L103=L98,L103=L99,L103=L100,L103=L102,L103=L101),M102,M102+1)) -> 2 | O103: 11
J104: 2 | K104: Hauban 3 | L104: =HHaubb3 -> 0 | M104: =IF(L104=0,M103,IF(OR(L104=L92,L104=L93,L104=L94,L104=L95,L104=L96,L104=L97,L104=L98,L104=L99,L104=L100,L104=L101,L104=L103,L104=L102),M103,M103+1)) -> 2 | O104: 12
J105: 2 | K105: Hauban 4 | L105: =HHaubb4 -> 0 | M105: =IF(L105=0,M104,IF(OR(L105=L92,L105=L93,L105=L94,L105=L95,L105=L96,L105=L97,L105=L98,L105=L99,L105=L100,L105=L101,L105=L102,L105=L104,L105=L103),M104,M104+1)) -> 2 | O105: 13
L107: Max = | M107: =MAX(M92:M105) -> 2
L108: Min = | M108: =MIN(M92:M105) -> 1
L109: Côte A : | M109: =IF(CoteA="","",CoteA) -> 1.45

Sheet Temp (hidden)
O1: <?xml version="1.0" encoding="UTF-8" standalone="yes"?>
O2: <root>
A4: <way position="0" support_name=" | B4: 265-4 | C4: " support_layer=" | D4: " anchor_name=" | E4: " anchor_layer=" | F4: " name="" statusName=" | G4: " range="" statusRange=" | H4: " radius="" statusRadius=" | I4: " slope="" statusSlope=" | J4: " height="" statusHeight=" | M4: =IF(OR(L4="",L4=" "),"Existant",L4) -> Existant | N4: "> | O4: =A4&B4&C4&M4&D4&IF(Name1="","",Name1)&E4&M7&F4&M4&G4&M4&H4&M4&I4&M4&J4&M4&N4 -> <way position="0" support_name="265-4" support_layer="Existant" anchor_name="" anchor_layer="Existant" name="" statusName="Existant" range="" statusRange="Existant" radius="" statusRadius="Existant" slope="" statusSlope="Existant" height="" statusHeight="Existant">
A5: <massif name=" | B5: =A6&B6 ->  | C5: " statusName=" | D5: " volume=" | E5: =IF(C6="","",C6) ->  | F5: m3" statusVolume=" | G5: " momentPar="" statusPar=" | H5: " momentPerp="" statusPerp=" | I5: " ground="" statusGround=" | L5: Existant | M5: =IF(OR(L5="",L5=" "),"Existant",L5) -> Existant | N5: "/> | O5: =A5&B5&C5&M5&D5&E5&F5&M5&G5&M5&H5&M5&I5&M5&N5 -> <massif name="" statusName="Existant" volume="m3" statusVolume="Existant" momentPar="" statusPar="Existant" momentPerp="" statusPerp="Existant" ground="" statusGround="Existant"/>
C6: =IFERROR(VLOOKUP(A6&B6,Massifs!$Y$3:$Z$38,2,FALSE),"") -> 
B7: =IFERROR(VLOOKUP(A7,Matériels!$B$2:$F$1004,2,FALSE),"") ->  | C7: =IFERROR(VLOOKUP(A7,Matériels!$B$2:$F$1004,4,FALSE),"") ->  | D7: =IFERROR(IF(VLOOKUP(A7,Matériels!$B$2:$F$1004,5,FALSE)="","",VLOOKUP(A7,Matériels!$B$2:$F$1004,5,FALSE)),"") ->  | G7: <material position="0 | H7: " symbol=" | I7: " total=" | J7: " comment="True" designation=" | K7: " status=" | L7: Existant | M7: =IF(OR(L7="",L7=" "),"Existant",L7) -> Existant | N7: "/> | O7: =IF(F7="",IF(A7="","",G7&H7&A7&I7&E7&K7&M7&N7),G7&J7&" Coupon de Rail Lg= "&F7&" mm"&H7&I7&"1"&K7&M7&N7) -> 
B8: =IFERROR(VLOOKUP(A8,Matériels!$B$2:$F$1004,2,FALSE),"") ->  | C8: =IFERROR(VLOOKUP(A8,Matériels!$B$2:$F$1004,4,FALSE),"") ->  | D8: =IFERROR(IF(VLOOKUP(A8,Matériels!$B$2:$F$1004,5,FALSE)="","",VLOOKUP(A8,Matériels!$B$2:$F$1004,5,FALSE)),"") ->  | G8: <material position="1 | H8: " symbol=" | I8: " total=" | J8: " comment="True" designation=" | K8: " status=" | L8: Existant | M8: =IF(OR(L8="",L8=" "),"Existant",L8) -> Existant | N8: "/> | O8: =IF(F8="",IF(A8="","",G8&H8&A8&I8&E8&K8&M8&N8),G8&J8&" Coupon de Rail Lg= "&F8&" mm"&H8&I8&"1"&K8&M8&N8) -> 
B9: =IFERROR(VLOOKUP(A9,Matériels!$B$2:$F$1004,2,FALSE),"") ->  | C9: =IFERROR(VLOOKUP(A9,Matériels!$B$2:$F$1004,4,FALSE),"") ->  | D9: =IFERROR(IF(VLOOKUP(A9,Matériels!$B$2:$F$1004,5,FALSE)="","",VLOOKUP(A9,Matériels!$B$2:$F$1004,5,FALSE)),"") ->  | G9: <material position="2 | H9: " symbol=" | I9: " total=" | J9: " comment="True" designation=" | K9: " status=" | L9: Existant | M9: Existant | N9: "/>
B10: =IFERROR(VLOOKUP(A10,Matériels!$B$2:$F$1004,2,FALSE),"") ->  | C10: =IFERROR(VLOOKUP(A10,Matériels!$B$2:$F$1004,4,FALSE),"") ->  | D10: =IFERROR(IF(VLOOKUP(A10,Matériels!$B$2:$F$1004,5,FALSE)="","",VLOOKUP(A10,Matériels!$B$2:$F$1004,5,FALSE)),"") ->  | G10: <material position="3 | H10: " symbol=" | I10: " total=" | J10: " comment="True" designation=" | K10: " status=" | L10: Existant | M10: Existant | N10: "/>
B11: =IFERROR(VLOOKUP(A11,Matériels!$B$2:$F$1004,2,FALSE),"") ->  | C11: =IFERROR(VLOOKUP(A11,Matériels!$B$2:$F$1004,4,FALSE),"") ->  | D11: =IFERROR(IF(VLOOKUP(A11,Matériels!$B$2:$F$1004,5,FALSE)="","",VLOOKUP(A11,Matériels!$B$2:$F$1004,5,FALSE)),"") ->  | G11: <material position="4 | H11: " symbol=" | I11: " total=" | J11: " comment="True" designation=" | K11: " status=" | L11: Existant | M11: Existant | N11: "/>
B12: =IFERROR(VLOOKUP(A12,Matériels!$B$2:$F$1004,2,FALSE),"") ->  | C12: =IFERROR(VLOOKUP(A12,Matériels!$B$2:$F$1004,4,FALSE),"") ->  | D12: =IFERROR(IF(VLOOKUP(A12,Matériels!$B$2:$F$1004,5,FALSE)="","",VLOOKUP(A12,Matériels!$B$2:$F$1004,5,FALSE)),"") ->  | G12: <material position="5 | H12: " symbol=" | I12: " total=" | J12: " comment="True" designation=" | K12: " status=" | L12: Existant | M12: Existant | N12: "/>
B13: =IFERROR(VLOOKUP(A13,Matériels!$B$2:$F$1004,2,FALSE),"") ->  | C13: =IFERROR(VLOOKUP(A13,Matériels!$B$2:$F$1004,4,FALSE),"") ->  | D13: =IFERROR(IF(VLOOKUP(A13,Matériels!$B$2:$F$1004,5,FALSE)="","",VLOOKUP(A13,Matériels!$B$2:$F$1004,5,FALSE)),"") ->  | G13: <material position="6 | H13: " symbol=" | I13: " total=" | J13: " comment="True" designation=" | K13: " status=" | L13: Existant | M13: Existant | N13: "/>
B14: =IFERROR(VLOOKUP(A14,Matériels!$B$2:$F$1004,2,FALSE),"") ->  | C14: =IFERROR(VLOOKUP(A14,Matériels!$B$2:$F$1004,4,FALSE),"") ->  | D14: =IFERROR(IF(VLOOKUP(A14,Matériels!$B$2:$F$1004,5,FALSE)="","",VLOOKUP(A14,Matériels!$B$2:$F$1004,5,FALSE)),"") ->  | G14: <material position="7 | H14: " symbol=" | I14: " total=" | J14: " comment="True" designation=" | K14: " status=" | L14: Existant | M14: Existant | N14: "/>
B15: =IFERROR(VLOOKUP(A15,Matériels!$B$2:$F$1004,2,FALSE),"") ->  | C15: =IFERROR(VLOOKUP(A15,Matériels!$B$2:$F$1004,4,FALSE),"") ->  | D15: =IFERROR(IF(VLOOKUP(A15,Matériels!$B$2:$F$1004,5,FALSE)="","",VLOOKUP(A15,Matériels!$B$2:$F$1004,5,FALSE)),"") ->  | G15: <material position="8 | H15: " symbol=" | I15: " total=" | J15: " comment="True" designation=" | K15: " status=" | L15: Existant | M15: Existant | N15: "/>
B16: =IFERROR(VLOOKUP(A16,Matériels!$B$2:$F$1004,2,FALSE),"") ->  | C16: =IFERROR(VLOOKUP(A16,Matériels!$B$2:$F$1004,4,FALSE),"") ->  | D16: =IFERROR(IF(VLOOKUP(A16,Matériels!$B$2:$F$1004,5,FALSE)="","",VLOOKUP(A16,Matériels!$B$2:$F$1004,5,FALSE)),"") ->  | G16: <material position="9 | H16: " symbol=" | I16: " total=" | J16: " comment="True" designation=" | K16: " status=" | L16: Existant | M16: Existant | N16: "/>
B17: =IFERROR(VLOOKUP(A17,Matériels!$B$2:$F$1004,2,FALSE),"") ->  | C17: =IFERROR(VLOOKUP(A17,Matériels!$B$2:$F$1004,4,FALSE),"") ->  | D17: =IFERROR(IF(VLOOKUP(A17,Matériels!$B$2:$F$1004,5,FALSE)="","",VLOOKUP(A17,Matériels!$B$2:$F$1004,5,FALSE)),"") ->  | G17: <material position="10 | H17: " symbol=" | I17: " total=" | J17: " comment="True" designation=" | K17: " status=" | L17: Existant | M17: Existant | N17: "/>
B18: =IFERROR(VLOOKUP(A18,Matériels!$B$2:$F$1004,2,FALSE),"") ->  | C18: =IFERROR(VLOOKUP(A18,Matériels!$B$2:$F$1004,4,FALSE),"") ->  | D18: =IFERROR(IF(VLOOKUP(A18,Matériels!$B$2:$F$1004,5,FALSE)="","",VLOOKUP(A18,Matériels!$B$2:$F$1004,5,FALSE)),"") ->  | G18: <material position="11 | H18: " symbol=" | I18: " total=" | J18: " comment="True" designation=" | K18: " status=" | L18: Existant | M18: Existant | N18: "/>
B19: =IFERROR(VLOOKUP(A19,Matériels!$B$2:$F$1004,2,FALSE),"") ->  | C19: =IFERROR(VLOOKUP(A19,Matériels!$B$2:$F$1004,4,FALSE),"") ->  | D19: =IFERROR(IF(VLOOKUP(A19,Matériels!$B$2:$F$1004,5,FALSE)="","",VLOOKUP(A19,Matériels!$B$2:$F$1004,5,FALSE)),"") ->  | G19: <material position="12 | H19: " symbol=" | I19: " total=" | J19: " comment="True" designation=" | K19: " status=" | M19: Existant | N19: "/>
B20: =IFERROR(VLOOKUP(A20,Matériels!$B$2:$F$1004,2,FALSE),"") ->  | C20: =IFERROR(VLOOKUP(A20,Matériels!$B$2:$F$1004,4,FALSE),"") ->  | D20: =IFERROR(IF(VLOOKUP(A20,Matériels!$B$2:$F$1004,5,FALSE)="","",VLOOKUP(A20,Matériels!$B$2:$F$1004,5,FALSE)),"") ->  | G20: <material position="13 | H20: " symbol=" | I20: " total=" | J20: " comment="True" designation=" | K20: " status=" | M20: Existant | N20: "/>
B21: =IFERROR(VLOOKUP(A21,Matériels!$B$2:$F$1004,2,FALSE),"") ->  | C21: =IFERROR(VLOOKUP(A21,Matériels!$B$2:$F$1004,4,FALSE),"") ->  | D21: =IFERROR(IF(VLOOKUP(A21,Matériels!$B$2:$F$1004,5,FALSE)="","",VLOOKUP(A21,Matériels!$B$2:$F$1004,5,FALSE)),"") ->  | G21: <material position="14 | H21: " symbol=" | I21: " total=" | J21: " comment="True" designation=" | K21: " status=" | M21: Existant | N21: "/>
B22: =IFERROR(VLOOKUP(A22,Matériels!$B$2:$F$1004,2,FALSE),"") ->  | C22: =IFERROR(VLOOKUP(A22,Matériels!$B$2:$F$1004,4,FALSE),"") ->  | D22: =IFERROR(IF(VLOOKUP(A22,Matériels!$B$2:$F$1004,5,FALSE)="","",VLOOKUP(A22,Matériels!$B$2:$F$1004,5,FALSE)),"") ->  | G22: <material position="15 | H22: " symbol=" | I22: " total=" | J22: " comment="True" designation=" | K22: " status=" | M22: Existant | N22: "/>
B23: =IFERROR(VLOOKUP(A23,Matériels!$B$2:$F$1004,2,FALSE),"") ->  | C23: =IFERROR(VLOOKUP(A23,Matériels!$B$2:$F$1004,4,FALSE),"") ->  | D23: =IFERROR(IF(VLOOKUP(A23,Matériels!$B$2:$F$1004,5,FALSE)="","",VLOOKUP(A23,Matériels!$B$2:$F$1004,5,FALSE)),"") ->  | G23: <material position="16 | H23: " symbol=" | I23: " total=" | J23: " comment="True" designation=" | K23: " status=" | M23: Existant | N23: "/>
B24: =IFERROR(VLOOKUP(A24,Matériels!$B$2:$F$1004,2,FALSE),"") ->  | C24: =IFERROR(VLOOKUP(A24,Matériels!$B$2:$F$1004,4,FALSE),"") ->  | D24: =IFERROR(IF(VLOOKUP(A24,Matériels!$B$2:$F$1004,5,FALSE)="","",VLOOKUP(A24,Matériels!$B$2:$F$1004,5,FALSE)),"") ->  | G24: <material position="17 | H24: " symbol=" | I24: " total=" | J24: " comment="True" designation=" | K24: " status=" | M24: Existant | N24: "/>
B25: =IFERROR(VLOOKUP(A25,Matériels!$B$2:$F$1004,2,FALSE),"") ->  | C25: =IFERROR(VLOOKUP(A25,Matériels!$B$2:$F$1004,4,FALSE),"") ->  | D25: =IFERROR(IF(VLOOKUP(A25,Matériels!$B$2:$F$1004,5,FALSE)="","",VLOOKUP(A25,Matériels!$B$2:$F$1004,5,FALSE)),"") ->  | G25: <material position="18 | H25: " symbol=" | I25: " total=" | J25: " comment="True" designation=" | K25: " status=" | M25: Existant | N25: "/>
B26: =IFERROR(VLOOKUP(A26,Matériels!$B$2:$F$1004,2,FALSE),"") ->  | C26: =IFERROR(VLOOKUP(A26,Matériels!$B$2:$F$1004,4,FALSE),"") ->  | D26: =IFERROR(IF(VLOOKUP(A26,Matériels!$B$2:$F$1004,5,FALSE)="","",VLOOKUP(A26,Matériels!$B$2:$F$1004,5,FALSE)),"") ->  | G26: <material position="19 | H26: " symbol=" | I26: " total=" | J26: " comment="True" designation=" | K26: " status=" | M26: Existant | N26: "/>
B27: =IFERROR(VLOOKUP(A27,Matériels!$B$2:$F$1004,2,FALSE),"") ->  | C27: =IFERROR(VLOOKUP(A27,Matériels!$B$2:$F$1004,4,FALSE),"") ->  | D27: =IFERROR(IF(VLOOKUP(A27,Matériels!$B$2:$F$1004,5,FALSE)="","",VLOOKUP(A27,Matériels!$B$2:$F$1004,5,FALSE)),"") ->  | G27: <material position="20 | H27: " symbol=" | I27: " total=" | J27: " comment="True" designation=" | K27: " status=" | M27: Existant | N27: "/>
B28: =IFERROR(VLOOKUP(A28,Matériels!$B$2:$F$1004,2,FALSE),"") ->  | C28: =IFERROR(VLOOKUP(A28,Matériels!$B$2:$F$1004,4,FALSE),"") ->  | D28: =IFERROR(IF(VLOOKUP(A28,Matériels!$B$2:$F$1004,5,FALSE)="","",VLOOKUP(A28,Matériels!$B$2:$F$1004,5,FALSE)),"") ->  | G28: <material position="21 | H28: " symbol=" | I28: " total=" | J28: " comment="True" designation=" | K28: " status=" | M28: Existant | N28: "/>
O29: </way>
A32: <way position="1" support_name=" | B32: 197-50B Anc | C32: " support_layer=" | D32: " anchor_name=" | E32: " anchor_layer=" | F32: " name="" statusName=" | G32: " range="" statusRange=" | H32: " radius="" statusRadius=" | I32: " slope="" statusSlope=" | J32: " height="" statusHeight=" | L32: Existant | M32: =IF(OR(L32="",L32=" "),"Existant",L32) -> Existant | N32: "> | O32: =A32&B32&C32&M32&D32&IF(Name2="","",Name2)&E32&M35&F32&M32&G32&M32&H32&M32&I32&M32&J32&M32&N32 -> <way position="1" support_name="197-50B Anc" support_layer="Existant" anchor_name="" anchor_layer="Existant" name="" statusName="Existant" range="" statusRange="Existant" radius="" statusRadius="Existant" slope="" statusSlope="Existant" height="" statusHeight="Existant">
A33: <massif name=" | B33: =A34&B34 ->  | C33: " statusName=" | D33: " volume=" | E33: =IF(C34="","",C34) ->  | F33: m3" statusVolume=" | G33: " momentPar="" statusPar=" | H33: " momentPerp="" statusPerp=" | I33: " ground="" statusGround=" | M33: Existant | N33: "/> | O33: =A33&B33&C33&M33&D33&E33&F33&M33&G33&M33&H33&M33&I33&M33&N33 -> <massif name="" statusName="Existant" volume="m3" statusVolume="Existant" momentPar="" statusPar="Existant" momentPerp="" statusPerp="Existant" ground="" statusGround="Existant"/>
C34: =IFERROR(VLOOKUP(A34&B34,Massifs!$Y$3:$Z$38,2,FALSE),"") -> 
B35: =IFERROR(VLOOKUP(A35,Matériels!$B$2:$F$1004,2,FALSE),"") ->  | C35: =IFERROR(VLOOKUP(A35,Matériels!$B$2:$F$1004,4,FALSE),"") ->  | D35: =IFERROR(IF(VLOOKUP(A35,Matériels!$B$2:$F$1004,5,FALSE)="","",VLOOKUP(A35,Matériels!$B$2:$F$1004,5,FALSE)),"") ->  | G35: <material position="0 | H35: " symbol=" | I35: " total=" | J35: " comment="True" designation=" | K35: " status=" | M35: =IF(OR(L35="",L35=" "),"Existant",L35) -> Existant | N35: "/> | O35: =IF(F35="",IF(A35="","",G35&H35&A35&I35&E35&K35&M35&N35),G35&J35&" Coupon de Rail Lg= "&F35&" mm"&H35&I35&"1"&K35&M35&N35) -> 
B36: =IFERROR(VLOOKUP(A36,Matériels!$B$2:$F$1004,2,FALSE),"") ->  | C36: =IFERROR(VLOOKUP(A36,Matériels!$B$2:$F$1004,4,FALSE),"") ->  | D36: =IFERROR(IF(VLOOKUP(A36,Matériels!$B$2:$F$1004,5,FALSE)="","",VLOOKUP(A36,Matériels!$B$2:$F$1004,5,FALSE)),"") ->  | G36: <material position="1 | H36: " symbol=" | I36: " total=" | J36: " comment="True" designation=" | K36: " status=" | M36: Existant | N36: "/>
B37: =IFERROR(VLOOKUP(A37,Matériels!$B$2:$F$1004,2,FALSE),"") ->  | C37: =IFERROR(VLOOKUP(A37,Matériels!$B$2:$F$1004,4,FALSE),"") ->  | D37: =IFERROR(IF(VLOOKUP(A37,Matériels!$B$2:$F$1004,5,FALSE)="","",VLOOKUP(A37,Matériels!$B$2:$F$1004,5,FALSE)),"") ->  | G37: <material position="2 | H37: " symbol=" | I37: " total=" | J37: " comment="True" designation=" | K37: " status=" | M37: Existant | N37: "/>
B38: =IFERROR(VLOOKUP(A38,Matériels!$B$2:$F$1004,2,FALSE),"") ->  | C38: =IFERROR(VLOOKUP(A38,Matériels!$B$2:$F$1004,4,FALSE),"") ->  | D38: =IFERROR(IF(VLOOKUP(A38,Matériels!$B$2:$F$1004,5,FALSE)="","",VLOOKUP(A38,Matériels!$B$2:$F$1004,5,FALSE)),"") ->  | G38: <material position="3 | H38: " symbol=" | I38: " total=" | J38: " comment="True" designation=" | K38: " status=" | M38: Existant | N38: "/>
B39: =IFERROR(VLOOKUP(A39,Matériels!$B$2:$F$1004,2,FALSE),"") ->  | C39: =IFERROR(VLOOKUP(A39,Matériels!$B$2:$F$1004,4,FALSE),"") ->  | D39: =IFERROR(IF(VLOOKUP(A39,Matériels!$B$2:$F$1004,5,FALSE)="","",VLOOKUP(A39,Matériels!$B$2:$F$1004,5,FALSE)),"") ->  | G39: <material position="4 | H39: " symbol=" | I39: " total=" | J39: " comment="True" designation=" | K39: " status=" | M39: Existant | N39: "/>
B40: =IFERROR(VLOOKUP(A40,Matériels!$B$2:$F$1004,2,FALSE),"") ->  | C40: =IFERROR(VLOOKUP(A40,Matériels!$B$2:$F$1004,4,FALSE),"") ->  | D40: =IFERROR(IF(VLOOKUP(A40,Matériels!$B$2:$F$1004,5,FALSE)="","",VLOOKUP(A40,Matériels!$B$2:$F$1004,5,FALSE)),"") ->  | G40: <material position="5 | H40: " symbol=" | I40: " total=" | J40: " comment="True" designation=" | K40: " status=" | M40: Existant | N40: "/>
B41: =IFERROR(VLOOKUP(A41,Matériels!$B$2:$F$1004,2,FALSE),"") ->  | C41: =IFERROR(VLOOKUP(A41,Matériels!$B$2:$F$1004,4,FALSE),"") ->  | D41: =IFERROR(IF(VLOOKUP(A41,Matériels!$B$2:$F$1004,5,FALSE)="","",VLOOKUP(A41,Matériels!$B$2:$F$1004,5,FALSE)),"") ->  | G41: <material position="6 | H41: " symbol=" | I41: " total=" | J41: " comment="True" designation=" | K41: " status=" | M41: Existant | N41: "/>
B42: =IFERROR(VLOOKUP(A42,Matériels!$B$2:$F$1004,2,FALSE),"") ->  | C42: =IFERROR(VLOOKUP(A42,Matériels!$B$2:$F$1004,4,FALSE),"") ->  | D42: =IFERROR(IF(VLOOKUP(A42,Matériels!$B$2:$F$1004,5,FALSE)="","",VLOOKUP(A42,Matériels!$B$2:$F$1004,5,FALSE)),"") ->  | G42: <material position="7 | H42: " symbol=" | I42: " total=" | J42: " comment="True" designation=" | K42: " status=" | M42: Existant | N42: "/>
B43: =IFERROR(VLOOKUP(A43,Matériels!$B$2:$F$1004,2,FALSE),"") ->  | C43: =IFERROR(VLOOKUP(A43,Matériels!$B$2:$F$1004,4,FALSE),"") ->  | D43: =IFERROR(IF(VLOOKUP(A43,Matériels!$B$2:$F$1004,5,FALSE)="","",VLOOKUP(A43,Matériels!$B$2:$F$1004,5,FALSE)),"") ->  | G43: <material position="8 | H43: " symbol=" | I43: " total=" | J43: " comment="True" designation=" | K43: " status=" | M43: Existant | N43: "/>
B44: =IFERROR(VLOOKUP(A44,Matériels!$B$2:$F$1004,2,FALSE),"") ->  | C44: =IFERROR(VLOOKUP(A44,Matériels!$B$2:$F$1004,4,FALSE),"") ->  | D44: =IFERROR(IF(VLOOKUP(A44,Matériels!$B$2:$F$1004,5,FALSE)="","",VLOOKUP(A44,Matériels!$B$2:$F$1004,5,FALSE)),"") ->  | G44: <material position="9 | H44: " symbol=" | I44: " total=" | J44: " comment="True" designation=" | K44: " status=" | M44: Existant | N44: "/>
B45: =IFERROR(VLOOKUP(A45,Matériels!$B$2:$F$1004,2,FALSE),"") ->  | C45: =IFERROR(VLOOKUP(A45,Matériels!$B$2:$F$1004,4,FALSE),"") ->  | D45: =IFERROR(IF(VLOOKUP(A45,Matériels!$B$2:$F$1004,5,FALSE)="","",VLOOKUP(A45,Matériels!$B$2:$F$1004,5,FALSE)),"") ->  | G45: <material position="10 | H45: " symbol=" | I45: " total=" | J45: " comment="True" designation=" | K45: " status=" | M45: Existant | N45: "/>
B46: =IFERROR(VLOOKUP(A46,Matériels!$B$2:$F$1004,2,FALSE),"") ->  | C46: =IFERROR(VLOOKUP(A46,Matériels!$B$2:$F$1004,4,FALSE),"") ->  | D46: =IFERROR(IF(VLOOKUP(A46,Matériels!$B$2:$F$1004,5,FALSE)="","",VLOOKUP(A46,Matériels!$B$2:$F$1004,5,FALSE)),"") ->  | G46: <material position="11 | H46: " symbol=" | I46: " total=" | J46: " comment="True" designation=" | K46: " status=" | M46: Existant | N46: "/>
B47: =IFERROR(VLOOKUP(A47,Matériels!$B$2:$F$1004,2,FALSE),"") ->  | C47: =IFERROR(VLOOKUP(A47,Matériels!$B$2:$F$1004,4,FALSE),"") ->  | D47: =IFERROR(IF(VLOOKUP(A47,Matériels!$B$2:$F$1004,5,FALSE)="","",VLOOKUP(A47,Matériels!$B$2:$F$1004,5,FALSE)),"") ->  | G47: <material position="12 | H47: " symbol=" | I47: " total=" | J47: " comment="True" designation=" | K47: " status=" | M47: Existant | N47: "/>
B48: =IFERROR(VLOOKUP(A48,Matériels!$B$2:$F$1004,2,FALSE),"") ->  | C48: =IFERROR(VLOOKUP(A48,Matériels!$B$2:$F$1004,4,FALSE),"") ->  | D48: =IFERROR(IF(VLOOKUP(A48,Matériels!$B$2:$F$1004,5,FALSE)="","",VLOOKUP(A48,Matériels!$B$2:$F$1004,5,FALSE)),"") ->  | G48: <material position="13 | H48: " symbol=" | I48: " total=" | J48: " comment="True" designation=" | K48: " status=" | M48: Existant | N48: "/>
B49: =IFERROR(VLOOKUP(A49,Matériels!$B$2:$F$1004,2,FALSE),"") ->  | C49: =IFERROR(VLOOKUP(A49,Matériels!$B$2:$F$1004,4,FALSE),"") ->  | D49: =IFERROR(IF(VLOOKUP(A49,Matériels!$B$2:$F$1004,5,FALSE)="","",VLOOKUP(A49,Matériels!$B$2:$F$1004,5,FALSE)),"") ->  | G49: <material position="14 | H49: " symbol=" | I49: " total=" | J49: " comment="True" designation=" | K49: " status=" | M49: Existant | N49: "/>
B50: =IFERROR(VLOOKUP(A50,Matériels!$B$2:$F$1004,2,FALSE),"") ->  | C50: =IFERROR(VLOOKUP(A50,Matériels!$B$2:$F$1004,4,FALSE),"") ->  | D50: =IFERROR(IF(VLOOKUP(A50,Matériels!$B$2:$F$1004,5,FALSE)="","",VLOOKUP(A50,Matériels!$B$2:$F$1004,5,FALSE)),"") ->  | G50: <material position="15 | H50: " symbol=" | I50: " total=" | J50: " comment="True" designation=" | K50: " status=" | M50: Existant | N50: "/>
B51: =IFERROR(VLOOKUP(A51,Matériels!$B$2:$F$1004,2,FALSE),"") ->  | C51: =IFERROR(VLOOKUP(A51,Matériels!$B$2:$F$1004,4,FALSE),"") ->  | D51: =IFERROR(IF(VLOOKUP(A51,Matériels!$B$2:$F$1004,5,FALSE)="","",VLOOKUP(A51,Matériels!$B$2:$F$1004,5,FALSE)),"") ->  | G51: <material position="16 | H51: " symbol=" | I51: " total=" | J51: " comment="True" designation=" | K51: " status=" | M51: Existant | N51: "/>
B52: =IFERROR(VLOOKUP(A52,Matériels!$B$2:$F$1004,2,FALSE),"") ->  | C52: =IFERROR(VLOOKUP(A52,Matériels!$B$2:$F$1004,4,FALSE),"") ->  | D52: =IFERROR(IF(VLOOKUP(A52,Matériels!$B$2:$F$1004,5,FALSE)="","",VLOOKUP(A52,Matériels!$B$2:$F$1004,5,FALSE)),"") ->  | G52: <material position="17 | H52: " symbol=" | I52: " total=" | J52: " comment="True" designation=" | K52: " status=" | M52: Existant | N52: "/>
B53: =IFERROR(VLOOKUP(A53,Matériels!$B$2:$F$1004,2,FALSE),"") ->  | C53: =IFERROR(VLOOKUP(A53,Matériels!$B$2:$F$1004,4,FALSE),"") ->  | D53: =IFERROR(IF(VLOOKUP(A53,Matériels!$B$2:$F$1004,5,FALSE)="","",VLOOKUP(A53,Matériels!$B$2:$F$1004,5,FALSE)),"") ->  | G53: <material position="18 | H53: " symbol=" | I53: " total=" | J53: " comment="True" designation=" | K53: " status=" | M53: Existant | N53: "/>
B54: =IFERROR(VLOOKUP(A54,Matériels!$B$2:$F$1004,2,FALSE),"") ->  | C54: =IFERROR(VLOOKUP(A54,Matériels!$B$2:$F$1004,4,FALSE),"") ->  | D54: =IFERROR(IF(VLOOKUP(A54,Matériels!$B$2:$F$1004,5,FALSE)="","",VLOOKUP(A54,Matériels!$B$2:$F$1004,5,FALSE)),"") ->  | G54: <material position="19 | H54: " symbol=" | I54: " total=" | J54: " comment="True" designation=" | K54: " status=" | M54: Existant | N54: "/>
B55: =IFERROR(VLOOKUP(A55,Matériels!$B$2:$F$1004,2,FALSE),"") ->  | C55: =IFERROR(VLOOKUP(A55,Matériels!$B$2:$F$1004,4,FALSE),"") ->  | D55: =IFERROR(IF(VLOOKUP(A55,Matériels!$B$2:$F$1004,5,FALSE)="","",VLOOKUP(A55,Matériels!$B$2:$F$1004,5,FALSE)),"") ->  | G55: <material position="20 | H55: " symbol=" | I55: " total=" | J55: " comment="True" designation=" | K55: " status=" | M55: Existant | N55: "/>
B56: =IFERROR(VLOOKUP(A56,Matériels!$B$2:$F$1004,2,FALSE),"") ->  | C56: =IFERROR(VLOOKUP(A56,Matériels!$B$2:$F$1004,4,FALSE),"") ->  | D56: =IFERROR(IF(VLOOKUP(A56,Matériels!$B$2:$F$1004,5,FALSE)="","",VLOOKUP(A56,Matériels!$B$2:$F$1004,5,FALSE)),"") ->  | G56: <material position="21 | H56: " symbol=" | I56: " total=" | J56: " comment="True" designation=" | K56: " status=" | M56: Existant | N56: "/>
O57: </way>
O58: </root>

Sheet Matériels (hidden)
B1: Symbole | C1: Matériels | D1: Type | E1: Plan | F1: Repère | G1: Paramètre | H1: Unité | I1: Symbole | J1: Plan+Repère | K1: Matériels | L1: Plan | M1: Repère | N1: Symbole | P1: Plage_Plans
B2: A définir | C2: A définir | D2: A définir | E2: A définir | F2: A définir | G2: A définir | H2: A définir | I2: A définir | J2: A définir | K2: A définir | L2: A définir | M2: A définir | N2: A définir | P2: A définir
B3: 08828805 | C3: Piece de Reglage | D3: Ø24 | E3: 37605 | I3: 08828805 | J3: =L3&M3 -> 37605 | K3: Piece de Reglage | L3: 37605 | N3: 08828805 | P3: 37605
B4: 08828800 | C4: Piece de Reglage | D4: Ø30 ou 36 | E4: 37606 | I4: 08828800 | J4: =L4&M4 -> 37606 | K4: Piece de Reglage | L4: 37606 | N4: 08828800 | P4: 37606
B5: 00986713 | C5: hauban d'ancrage en câble Ac Inox 93² | D5: Câble Ac Inox 93² | E5: 37560 | F5: 103 | I5: 00986713 | J5: =L5&M5 -> 37560103 | K5: hauban d'ancrage en câble Ac Inox 93² | L5: 37560 | M5: 103 | N5: 00986713 | P5: 37560
B6: 00986715 | C6: hauban d'ancrage en câble Ac Inox 113² | D6: Câble Ac Inox 113² | E6: 37560 | F6: 105 | I6: 00986715 | J6: 37560105 | K6: hauban d'ancrage en câble Ac Inox 113² | L6: 37560 | M6: 105 | N6: 00986715 | P6: 37530
B7: 08828680 | C7: hauban d'ancrage Ø30 de Lg= 4,75m | D7: rigide Ø30 | E7: 37530 | F7: 37531 | G7: 4.75 | H7: m | I7: 08828680 | J7: 3753037531 | K7: hauban d'ancrage Ø30 de Lg= 4,75m | L7: 37530 | M7: 37531 | N7: 08828680 | P7: 37550
B8: 08828684 | C8: hauban d'ancrage Ø30 de Lg= 5,75m | D8: rigide Ø30 | E8: 37530 | F8: 37533 | G8: 5.75 | H8: m | I8: 08828684 | J8: 3753037533 | K8: hauban d'ancrage Ø30 de Lg= 5,75m | L8: 37530 | M8: 37533 | N8: 08828684 | P8: 03682668
B9: 08828692 | C9: hauban d'ancrage Ø30 de Lg= 8,75m | D9: rigide Ø30 | E9: 37530 | F9: 37536 | G9: 8.75 | H9: m | I9: 08828692 | J9: 3753037536 | K9: hauban d'ancrage Ø30 de Lg= 8,75m | L9: 37530 | M9: 37536 | N9: 08828692 | P9: 03682670
B10: 08828696 | C10: hauban d'ancrage Ø30 de Lg= 9,75m | D10: rigide Ø30 | E10: 37530 | F10: 37538 | G10: 9.75 | H10: m | I10: 08828696 | J10: 3753037538 | K10: hauban d'ancrage Ø30 de Lg= 9,75m | L10: 37530 | M10: 37538 | N10: 08828696 | P10: 39510
B11: 08828740 | C11: hauban d'ancrage Ø36 de Lg= 4,75m | D11: rigide Ø36 | E11: 37550 | F11: 37551 | G11: 4.75 | H11: m | I11: 08828740 | J11: 3755037551 | K11: hauban d'ancrage Ø36 de Lg= 4,75m | L11: 37550 | M11: 37551 | N11: 08828740 | P11: 239527
B12: 08828744 | C12: hauban d'ancrage Ø36 de Lg= 5,75m | D12: rigide Ø36 | E12: 37550 | F12: 37553 | G12: 5.75 | H12: m | I12: 08828744 | J12: 3755037553 | K12: hauban d'ancrage Ø36 de Lg= 5,75m | L12: 37550 | M12: 37553 | N12: 08828744 | P12: 20280
B13: 08828752 | C13: hauban d'ancrage Ø36 de Lg= 8,75m | D13: rigide Ø36 | E13: 37550 | F13: 37556 | G13: 8.75 | H13: m | I13: 08828752 | J13: 3755037556 | K13: hauban d'ancrage Ø36 de Lg= 8,75m | L13: 37550 | M13: 37556 | N13: 08828752 | P13: 20283
B14: 08828756 | C14: hauban d'ancrage Ø36 de Lg= 9,75m | D14: rigide Ø36 | E14: 37550 | F14: 37558 | G14: 9.75 | H14: m | I14: 08828756 | J14: 3755037558 | K14: hauban d'ancrage Ø36 de Lg= 9,75m | L14: 37550 | M14: 37558 | N14: 08828756 | P14: 20284
B15: 03682668 | C15: Cable Ac. Inox 113² | D15: 113mm² | E15: 03682668 | G15: A définir | H15: m | I15: 03682668 | J15: 03682668 | K15: Cable Ac. Inox 113² | L15: 03682668 | N15: 03682668 | P15: 20285
B16: 03682670 | C16: Cable Ac. Inox 93² | D16: 93mm² | E16: 03682670 | G16: A définir | H16: m | I16: 03682670 | J16: 03682670 | K16: Cable Ac. Inox 93² | L16: 03682670 | N16: 03682670 | P16: 220108
B17: 08828920 | C17: Etrier | D17: Ø27 | E17: 39510 | F17: 39511 | G17: 2 | H17: m | I17: 08828920 | J17: 3951039511 | K17: Etrier | L17: 39510 | M17: 39511 | N17: 08828920 | P17: 222210
B18: 08828921 | C18: Etrier | D18: Ø27 | E18: 39510 | F18: 39512 | G18: 2.3 | H18: m | I18: 08828921 | J18: 3951039512 | K18: Etrier | L18: 39510 | M18: 39512 | N18: 08828921 | P18: 222211
B19: 08828922 | C19: Etrier | D19: Ø27 | E19: 39510 | F19: 39513 | G19: 2.6 | H19: m | I19: 08828922 | J19: 3951039513 | K19: Etrier | L19: 39510 | M19: 39513 | N19: 08828922 | P19: 22173
B20: 08858855 | C20: Etrier | D20: Ø27 pour massif Acn | E20: 239527 | I20: 08858855 | J20: 239527 | K20: Etrier | L20: 239527 | N20: 08858855 | P20: 22155
B21: 08850445 | C21: poutrelle d'ancrage HEA240 ou HEB220 | D21: HEA240 ou HEB220 | E21: 20280 | F21: 20281 | I21: 08850445 | J21: 2028020281 | K21: poutrelle d'ancrage HEA240 ou HEB220 | L21: 20280 | M21: 20281 | N21: 08850445 | P21: 08800262
B22: 08820504 | C22: poutrelle d'ancrage HEA320 ou HEB300 | D22: HEA320 ou HEB300 | E22: 20283 | I22: 08820504 | J22: 20283 | K22: poutrelle d'ancrage HEA320 ou HEB300 | L22: 20283 | N22: 08820504 | P22: 01602026
B23: 08820509 | C23: poutrelle d'ancrage HEA320r ou HE300B | D23: HEA320r ou HE300B | E23: 20284 | I23: 08820509 | J23: 20284 | K23: poutrelle d'ancrage HEA320r ou HE300B | L23: 20284 | N23: 08820509 | P23: 01602058
B24: 08820495 | C24: poutrelle d'ancrage HEB260 | D24: HEB260 | E24: 20280 | F24: 20282 | I24: 08820495 | J24: 2028020282 | K24: poutrelle d'ancrage HEB260 | L24: 20280 | M24: 20282 | N24: 08820495 | P24: 01602108
B25: 08820520 | C25: poutrelle d'ancrage HEA320 jumelés | D25: HEA320 jumelés | E25: 20285 | F25: 101 | I25: 08820520 | J25: 20285101 | K25: poutrelle d'ancrage HEA320 jumelés | L25: 20285 | M25: 101 | N25: 08820520 | P25: 01670239
B26: 08820521 | C26: poutrelle d'ancrage HEB300 jumelés | D26: HEB300 jumelés | E26: 20285 | F26: 102 | I26: 08820521 | J26: 20285102 | K26: poutrelle d'ancrage HEB300 jumelés | L26: 20285 | M26: 102 | N26: 08820521 | P26: 08800300
B27: 08850435 | C27: poutrelle d'ancrage HEA200 Massif Acn | D27: HEA200 Massif Acn | E27: 220108 | F27: 101 | I27: 08850435 | J27: 220108101 | K27: poutrelle d'ancrage HEA200 Massif Acn | L27: 220108 | M27: 101 | N27: 08850435 | P27: 08800278
B28: 08850436 | C28: poutrelle d'ancrage HEA200 Massif Acn | D28: HEA200 Massif Acn | E28: 220108 | F28: 102 | I28: 08850436 | J28: 220108102 | K28: poutrelle d'ancrage HEA200 Massif Acn | L28: 220108 | M28: 102 | N28: 08850436 | P28: 01602487
B29: 08850437 | C29: poutrelle d'ancrage HEA200 Massif Acn | D29: HEA200 Massif Acn | E29: 220108 | F29: 103 | I29: 08850437 | J29: 220108103 | K29: poutrelle d'ancrage HEA200 Massif Acn | L29: 220108 | M29: 103 | N29: 08850437 | P29: 01602443
B30: 08850442 | C30: poutrelle d'ancrage HEA200 Massif Acn | D30: HEA200 Massif Acn | E30: 220108 | F30: 108 | I30: 08850442 | J30: 220108108 | K30: poutrelle d'ancrage HEA200 Massif Acn | L30: 220108 | M30: 108 | N30: 08850442 | P30: 01680330
B31: 08850900 | C31: Piece d'ancrage Câble | D31: 25KV Poteaux HE | E31: 222210 | I31: 08850900 | J31: 222210 | K31: Piece d'ancrage Câble | L31: 222210 | N31: 08850900 | P31: 01680333
B32: 08850905 | C32: Piece d'ancrage Hauban | D32: 25KV Poteaux HE | E32: 222211 | I32: 08850905 | J32: 222211 | K32: Piece d'ancrage Hauban | L32: 222211 | N32: 08850905 | P32: 333090
B33: 08820583 | C33: Piece d'ancrage Câble | D33: 1500V Poteaux HE | E33: 22173 | I33: 08820583 | J33: 22173 | K33: Piece d'ancrage Câble | L33: 22173 | N33: 08820583 | P33: 37620
B34: 08820565 | C34: Piece d'ancrage Hauban | D34: 1500V Poteaux HE | E34: 22155 | I34: 08820565 | J34: 22155 | K34: Piece d'ancrage Hauban | L34: 22155 | N34: 08820565 | P34: 37623
